Workbook

Sheet Startside
B8: Indsatstrappens Nøgletal
B11: Version 2.0
B15: Velkommen til Indsatstrappens Nøgletal. Indsatstrappens Nøgletal er et redskab til at følge kommunernes foranstaltningsmønster på indsatstrappens trin. Redskabet indeholder data om anbringelser og forebyggende foranstaltninger på området for udsatte børn og unge fra 2007 og frem til nyeste offentliggjorte år i de nationale registre. Data stammer fra anbringelsesstatistikken hos Danmarks Statistik. Du har mulighed for at se en enkelt kommunes nøgletal samt at sammenligne med udvalgte sammenligningskommuner, og hele landet. Du kan desuden se udviklingen i nøgletallene over tid. Indsatstrappens trin er illustreret i figuren til højre. Du kan se, hvordan de enkelte nøgletal er defineret ved at bruge infoknapperne ved opgørelserne. På Socialstyrelsens hjemmeside kan du finde en vejledning til, hvordan du bruger redskabet. Du kan tilgå sidenvia linket nedenfor. I selve redskabet er der også vejledninger til hvert trin, ligesom du kan få yderligere informationer ved at trykke på info-boksene.
B16: Gå til mere information på Socialstyrelsen.dk

Sheet Dine valg
B3: Dine valg
B5: Før du går i gang med at bruge redskabet, skal du tage stilling til hvilken kommune, du ønsker at se nøgletal for. Når du har foretaget dit valg, har du tre muligheder: 1. Du kan se nøgletallene over tid og sammenligne med andre aktører ved at bruge knappen "Nøgletalsanalyse". 2. Du kan se datagrundlaget for de nøgletal, der kan understøttes af registerdata ved at bruge knappen "Registerdata". 3. Du kan se datagrundlaget for de nøgletal, som ikke er registerunderstøttede ved at bruge knappen "Egne indtastninger".
Y7: Aarhus
B23: Vælg kommune | D23: Vælg sammenligningsgruppe | F23: Valgte kommuner
B24: =VLOOKUP(Kom_valg,Data!B1674:C1771,2,FALSE) -> København | F24: 1. | G24: =IF($Y$7="","",$Y$7) -> Aarhus
F25: 2. | G25: =IF($Y$8="","",$Y$8) -> 
F26: 3. | G26: =IF($Y$9="","",$Y$9) -> 
F27: 4. | G27: =IF($Y$10="","",$Y$10) -> 
F28: 5. | G28: =IF($Y$11="","",$Y$11) -> 
F29: 6. | G29: =IF($Y$12="","",$Y$12) -> 
F30: 7. | G30: =IF($Y$13="","",$Y$13) -> 
D71: Vælg sammenligningsgruppe | G71: Valgte kommuner
G72: =IF(K8="","",K8) -> 

Sheet Registerdata
B3: Registerdata
B6: En række af nøgletallene i redskabet er baseret på registerdata. På denne side kan du se de registerbaserede nøgletal, og hvordan de for din valgte kommune ændrer sig over tid. Du kan vælge ét nøgletal af gangen, ved at vælge nøgletallet i rullemenuen nedenfor. Du kan se definitionen af det enkelte nøgletal, ved at klikke på infoknappen til venstre for tabellen. Nøgletallet vil blive opgjort fra 2016 og frem til nyeste offentliggjorte data. Du kan se alle nøgletal over tid og sammenligne med andre aktører ved at vælge knappen "Nøgletalsanalyse". Bemærk, at nøgletallet angives med *, hvis antallet af observationer er mindre end 3 individer.
E7: =IF(L10="","",L10) -> 
E8: =IF(L11="","",L11) ->  | F8: =IF(M18="","",M18) -> 
F9: =IF(M86="","",M86) -> 
B10: Vælg nøgletal
B11: =VLOOKUP(regNT_valg,Data!F1692:G1700,2,FALSE) -> Nøgletal 1 - Institutionsanbringelser
B15: =Skyggetabeller!B6 -> Nøgletal 1: Institutionsanbringelser
B17: =Skyggetabeller!B9 -> Nøgletal 1: Institutionsanbringelser | D17: 2016-01-01 | E17: 2016-07-01 | F17: 2017-01-01 | G17: 2017-07-01 | H17: 2018-01-01 | I17: 2018-07-01 | J17: 2019-01-01 | K17: 2019-07-01 | L17: 2020-01-01 | M17: 2020-07-01 | N17: 2021-01-01 | O17: 2021-07-01 | P17: 2022-01-01 | Q17: 2022-07-01 | R17: 2023-01-01
B18: =Skyggetabeller!B10 -> København
B19: =Skyggetabeller!B11 -> Antal anbragte | D19: =Skyggetabeller!D11 -> 230 | E19: =Skyggetabeller!E11 -> 233 | F19: =Skyggetabeller!F11 -> 224 | G19: =Skyggetabeller!G11 -> 226 | H19: =Skyggetabeller!H11 -> 214 | I19: =Skyggetabeller!I11 -> 217 | J19: =Skyggetabeller!J11 -> 204 | K19: =Skyggetabeller!K11 -> 193 | L19: =Skyggetabeller!L11 -> 160 | M19: =Skyggetabeller!M11 -> 180 | N19: =Skyggetabeller!N11 -> 201 | O19: =Skyggetabeller!O11 -> 219 | P19: =Skyggetabeller!P11 -> 217 | Q19: =Skyggetabeller!Q11 -> 243 | R19: =Skyggetabeller!R11 -> 248
B20: =Skyggetabeller!B12 -> Antal 0-17-årige | D20: =Skyggetabeller!D12 -> 103578 | E20: =Skyggetabeller!E12 -> 104797 | F20: =Skyggetabeller!F12 -> 105885 | G20: =Skyggetabeller!G12 -> 106913 | H20: =Skyggetabeller!H12 -> 107770 | I20: =Skyggetabeller!I12 -> 108734 | J20: =Skyggetabeller!J12 -> 109335 | K20: =Skyggetabeller!K12 -> 110138 | L20: =Skyggetabeller!L12 -> 110822 | M20: =Skyggetabeller!M12 -> 111068 | N20: =Skyggetabeller!N12 -> 110927 | O20: =Skyggetabeller!O12 -> 110614 | P20: =Skyggetabeller!P12 -> 110513 | Q20: =Skyggetabeller!Q12 -> 110692 | R20: =Skyggetabeller!R12 -> 110835
B21: =Skyggetabeller!B13 -> Andel | D21: =Skyggetabeller!D13 -> 2.220548765 | E21: =Skyggetabeller!E13 -> 2.223346088 | F21: =Skyggetabeller!F13 -> 2.115502668 | G21: =Skyggetabeller!G13 -> 2.113868285 | H21: =Skyggetabeller!H13 -> 1.985710309 | I21: =Skyggetabeller!I13 -> 1.995695918 | J21: =Skyggetabeller!J13 -> 1.865825216 | K21: =Skyggetabeller!K13 -> 1.752347056 | L21: =Skyggetabeller!L13 -> 1.443756655 | M21: =Skyggetabeller!M13 -> 1.620628804 | N21: =Skyggetabeller!N13 -> 1.812002488 | O21: =Skyggetabeller!O13 -> 1.979857884 | P21: =Skyggetabeller!P13 -> 1.963569897 | Q21: =Skyggetabeller!Q13 -> 2.195280598 | R21: =Skyggetabeller!R13 -> 2.237560337
B22: =Skyggetabeller!B14 -> Sammenligningsgruppe, gns.
B23: =Skyggetabeller!B15 -> Antal anbragte | D23: =Skyggetabeller!D15 -> 189 | E23: =Skyggetabeller!E15 -> 203 | F23: =Skyggetabeller!F15 -> 191 | G23: =Skyggetabeller!G15 -> 190 | H23: =Skyggetabeller!H15 -> 180 | I23: =Skyggetabeller!I15 -> 168 | J23: =Skyggetabeller!J15 -> 174 | K23: =Skyggetabeller!K15 -> 178 | L23: =Skyggetabeller!L15 -> 171 | M23: =Skyggetabeller!M15 -> 173 | N23: =Skyggetabeller!N15 -> 175 | O23: =Skyggetabeller!O15 -> 175 | P23: =Skyggetabeller!P15 -> 161 | Q23: =Skyggetabeller!Q15 -> 174 | R23: =Skyggetabeller!R15 -> 168
B24: =Skyggetabeller!B16 -> Antal 0-17-årige | D24: =Skyggetabeller!D16 -> 62241 | E24: =Skyggetabeller!E16 -> 62670 | F24: =Skyggetabeller!F16 -> 62903 | G24: =Skyggetabeller!G16 -> 63077 | H24: =Skyggetabeller!H16 -> 63245 | I24: =Skyggetabeller!I16 -> 63510 | J24: =Skyggetabeller!J16 -> 63607 | K24: =Skyggetabeller!K16 -> 63704 | L24: =Skyggetabeller!L16 -> 63890 | M24: =Skyggetabeller!M16 -> 64128 | N24: =Skyggetabeller!N16 -> 64334 | O24: =Skyggetabeller!O16 -> 64307 | P24: =Skyggetabeller!P16 -> 64049 | Q24: =Skyggetabeller!Q16 -> 64356 | R24: =Skyggetabeller!R16 -> 64420
B25: =Skyggetabeller!B17 -> Andel | D25: =Skyggetabeller!D17 -> 3.036583602 | E25: =Skyggetabeller!E17 -> 3.239189405 | F25: =Skyggetabeller!F17 -> 3.036421156 | G25: =Skyggetabeller!G17 -> 3.012191449 | H25: =Skyggetabeller!H17 -> 2.846074789 | I25: =Skyggetabeller!I17 -> 2.645252716 | J25: =Skyggetabeller!J17 -> 2.735547974 | K25: =Skyggetabeller!K17 -> 2.79417305 | L25: =Skyggetabeller!L17 -> 2.676475192 | M25: =Skyggetabeller!M17 -> 2.697729541 | N25: =Skyggetabeller!N17 -> 2.720179066 | O25: =Skyggetabeller!O17 -> 2.721321163 | P25: =Skyggetabeller!P17 -> 2.513700448 | Q25: =Skyggetabeller!Q17 -> 2.70371061 | R25: =Skyggetabeller!R17 -> 2.60788575
B26: =Skyggetabeller!B18 -> Hele landet
B27: =Skyggetabeller!B19 -> Antal anbragte | D27: =Skyggetabeller!D19 -> 3438 | E27: =Skyggetabeller!E19 -> 3434 | F27: =Skyggetabeller!F19 -> 3381 | G27: =Skyggetabeller!G19 -> 3463 | H27: =Skyggetabeller!H19 -> 3375 | I27: =Skyggetabeller!I19 -> 3401 | J27: =Skyggetabeller!J19 -> 3298 | K27: =Skyggetabeller!K19 -> 3276 | L27: =Skyggetabeller!L19 -> 3268 | M27: =Skyggetabeller!M19 -> 3331 | N27: =Skyggetabeller!N19 -> 3391 | O27: =Skyggetabeller!O19 -> 3479 | P27: =Skyggetabeller!P19 -> 3460 | Q27: =Skyggetabeller!Q19 -> 3624 | R27: =Skyggetabeller!R19 -> 3632
B28: =Skyggetabeller!B20 -> Antal 0-17-årige | D28: =Skyggetabeller!D20 -> 1167426 | E28: =Skyggetabeller!E20 -> 1167002 | F28: =Skyggetabeller!F20 -> 1168201 | G28: =Skyggetabeller!G20 -> 1165363 | H28: =Skyggetabeller!H20 -> 1165475 | I28: =Skyggetabeller!I20 -> 1162195 | J28: =Skyggetabeller!J20 -> 1160360 | K28: =Skyggetabeller!K20 -> 1156537 | L28: =Skyggetabeller!L20 -> 1156116 | M28: =Skyggetabeller!M20 -> 1153027 | N28: =Skyggetabeller!N20 -> 1152972 | O28: =Skyggetabeller!O20 -> 1151374 | P28: =Skyggetabeller!P20 -> 1151704 | Q28: =Skyggetabeller!Q20 -> 1157254 | R28: =Skyggetabeller!R20 -> 1155814
B29: =Skyggetabeller!B21 -> Andel | D29: =Skyggetabeller!D21 -> 2.944940407 | E29: =Skyggetabeller!E21 -> 2.942582789 | F29: =Skyggetabeller!F21 -> 2.894193722 | G29: =Skyggetabeller!G21 -> 2.971606272 | H29: =Skyggetabeller!H21 -> 2.895815011 | I29: =Skyggetabeller!I21 -> 2.926359174 | J29: =Skyggetabeller!J21 -> 2.84222138 | K29: =Skyggetabeller!K21 -> 2.832594201 | L29: =Skyggetabeller!L21 -> 2.826705971 | M29: =Skyggetabeller!M21 -> 2.888917606 | N29: =Skyggetabeller!N21 -> 2.94109484 | O29: =Skyggetabeller!O21 -> 3.021607228 | P29: =Skyggetabeller!P21 -> 3.004244146 | Q29: =Skyggetabeller!Q21 -> 3.131551068 | R29: =Skyggetabeller!R21 -> 3.142374119
B30: Anm.: Hvis nøgletallet er angivet med * er der foretaget en diskretionering af data, da der er for få observationer.
B31: =IF('Dine valg'!$G$24="","Ingen sammenligningsgruppe valgt.","Anm.: Valgte kommuner i sammenligningsgruppen: "&'Dine valg'!$G$24&" "&'Dine valg'!$G$25&" "&'Dine valg'!$G$26&" "&'Dine valg'!$G$27&" "&'Dine valg'!$G$28&" "&'Dine valg'!$G$29&" "&'Dine valg'!$G$30) -> Anm.: Valgte kommuner i sammenligningsgruppen: Aarhus
B32: Kilde: Socialstyrelsens egne beregninger baseret på registerdata fra Danmarks Statistik.
B34: Undernøgletal - Institutionsanbringelser
B36: =Skyggetabeller!B24 -> Nøgletal 1.1 Anbragte på døgninstitutioner | D36: 2016-01-01 | E36: 2016-07-01 | F36: 2017-01-01 | G36: 2017-07-01 | H36: 2018-01-01 | I36: 2018-07-01 | J36: 2019-01-01 | K36: 2019-07-01 | L36: 2020-01-01 | M36: 2020-07-01 | N36: 2021-01-01 | O36: 2021-07-01 | P36: 2022-01-01 | Q36: 2022-07-01 | R36: 2023-01-01
B37: =Skyggetabeller!B25 -> København
B38: =Skyggetabeller!B26 -> Antal anbragte | D38: =Skyggetabeller!D26 -> 169 | E38: =Skyggetabeller!E26 -> 175 | F38: =Skyggetabeller!F26 -> 170 | G38: =Skyggetabeller!G26 -> 181 | H38: =Skyggetabeller!H26 -> 174 | I38: =Skyggetabeller!I26 -> 174 | J38: =Skyggetabeller!J26 -> 161 | K38: =Skyggetabeller!K26 -> 153 | L38: =Skyggetabeller!L26 -> 139 | M38: =Skyggetabeller!M26 -> 147 | N38: =Skyggetabeller!N26 -> 159 | O38: =Skyggetabeller!O26 -> 165 | P38: =Skyggetabeller!P26 -> 173 | Q38: =Skyggetabeller!Q26 -> 196 | R38: =Skyggetabeller!R26 -> 200
B39: =Skyggetabeller!B27 -> Antal 0-17-årige | D39: =Skyggetabeller!D27 -> 230 | E39: =Skyggetabeller!E27 -> 233 | F39: =Skyggetabeller!F27 -> 224 | G39: =Skyggetabeller!G27 -> 226 | H39: =Skyggetabeller!H27 -> 214 | I39: =Skyggetabeller!I27 -> 217 | J39: =Skyggetabeller!J27 -> 204 | K39: =Skyggetabeller!K27 -> 193 | L39: =Skyggetabeller!L27 -> 160 | M39: =Skyggetabeller!M27 -> 180 | N39: =Skyggetabeller!N27 -> 201 | O39: =Skyggetabeller!O27 -> 219 | P39: =Skyggetabeller!P27 -> 217 | Q39: =Skyggetabeller!Q27 -> 243 | R39: =Skyggetabeller!R27 -> 248
B40: =Skyggetabeller!B28 -> Andel | D40: =Skyggetabeller!D28 -> 0.7347826087 | E40: =Skyggetabeller!E28 -> 0.7510729614 | F40: =Skyggetabeller!F28 -> 0.7589285714 | G40: =Skyggetabeller!G28 -> 0.8008849558 | H40: =Skyggetabeller!H28 -> 0.8130841121 | I40: =Skyggetabeller!I28 -> 0.801843318 | J40: =Skyggetabeller!J28 -> 0.7892156863 | K40: =Skyggetabeller!K28 -> 0.792746114 | L40: =Skyggetabeller!L28 -> 0.86875 | M40: =Skyggetabeller!M28 -> 0.8166666667 | N40: =Skyggetabeller!N28 -> 0.7910447761 | O40: =Skyggetabeller!O28 -> 0.7534246575 | P40: =Skyggetabeller!P28 -> 0.797235023 | Q40: =Skyggetabeller!Q28 -> 0.8065843621 | R40: =Skyggetabeller!R28 -> 0.8064516129
B41: =Skyggetabeller!B29 -> Sammenligningsgruppe, gns.
B42: =Skyggetabeller!B30 -> Antal anbragte | D42: =Skyggetabeller!D30 -> 127 | E42: =Skyggetabeller!E30 -> 138 | F42: =Skyggetabeller!F30 -> 133 | G42: =Skyggetabeller!G30 -> 133 | H42: =Skyggetabeller!H30 -> 119 | I42: =Skyggetabeller!I30 -> 116 | J42: =Skyggetabeller!J30 -> 118 | K42: =Skyggetabeller!K30 -> 127 | L42: =Skyggetabeller!L30 -> 120 | M42: =Skyggetabeller!M30 -> 127 | N42: =Skyggetabeller!N30 -> 123 | O42: =Skyggetabeller!O30 -> 118 | P42: =Skyggetabeller!P30 -> 109 | Q42: =Skyggetabeller!Q30 -> 109 | R42: =Skyggetabeller!R30 -> 110
B43: =Skyggetabeller!B31 -> Antal 0-17-årige | D43: =Skyggetabeller!D31 -> 189 | E43: =Skyggetabeller!E31 -> 203 | F43: =Skyggetabeller!F31 -> 191 | G43: =Skyggetabeller!G31 -> 190 | H43: =Skyggetabeller!H31 -> 180 | I43: =Skyggetabeller!I31 -> 168 | J43: =Skyggetabeller!J31 -> 174 | K43: =Skyggetabeller!K31 -> 178 | L43: =Skyggetabeller!L31 -> 171 | M43: =Skyggetabeller!M31 -> 173 | N43: =Skyggetabeller!N31 -> 175 | O43: =Skyggetabeller!O31 -> 175 | P43: =Skyggetabeller!P31 -> 161 | Q43: =Skyggetabeller!Q31 -> 174 | R43: =Skyggetabeller!R31 -> 168
B44: =Skyggetabeller!B32 -> Andel | D44: =Skyggetabeller!D32 -> 0.671957672 | E44: =Skyggetabeller!E32 -> 0.6798029557 | F44: =Skyggetabeller!F32 -> 0.6963350785 | G44: =Skyggetabeller!G32 -> 0.7 | H44: =Skyggetabeller!H32 -> 0.6611111111 | I44: =Skyggetabeller!I32 -> 0.6904761905 | J44: =Skyggetabeller!J32 -> 0.6781609195 | K44: =Skyggetabeller!K32 -> 0.7134831461 | L44: =Skyggetabeller!L32 -> 0.701754386 | M44: =Skyggetabeller!M32 -> 0.7341040462 | N44: =Skyggetabeller!N32 -> 0.7028571429 | O44: =Skyggetabeller!O32 -> 0.6742857143 | P44: =Skyggetabeller!P32 -> 0.6770186335 | Q44: =Skyggetabeller!Q32 -> 0.6264367816 | R44: =Skyggetabeller!R32 -> 0.6547619048
B45: =Skyggetabeller!B33 -> Hele landet
B46: =Skyggetabeller!B34 -> Antal anbragte | D46: =Skyggetabeller!D34 -> 1830 | E46: =Skyggetabeller!E34 -> 1843 | F46: =Skyggetabeller!F34 -> 1815 | G46: =Skyggetabeller!G34 -> 1809 | H46: =Skyggetabeller!H34 -> 1760 | I46: =Skyggetabeller!I34 -> 1771 | J46: =Skyggetabeller!J34 -> 1688 | K46: =Skyggetabeller!K34 -> 1686 | L46: =Skyggetabeller!L34 -> 1675 | M46: =Skyggetabeller!M34 -> 1666 | N46: =Skyggetabeller!N34 -> 1701 | O46: =Skyggetabeller!O34 -> 1688 | P46: =Skyggetabeller!P34 -> 1699 | Q46: =Skyggetabeller!Q34 -> 1763 | R46: =Skyggetabeller!R34 -> 1765
B47: =Skyggetabeller!B35 -> Antal 0-17-årige | D47: =Skyggetabeller!D35 -> 3438 | E47: =Skyggetabeller!E35 -> 3434 | F47: =Skyggetabeller!F35 -> 3381 | G47: =Skyggetabeller!G35 -> 3463 | H47: =Skyggetabeller!H35 -> 3375 | I47: =Skyggetabeller!I35 -> 3401 | J47: =Skyggetabeller!J35 -> 3298 | K47: =Skyggetabeller!K35 -> 3276 | L47: =Skyggetabeller!L35 -> 3268 | M47: =Skyggetabeller!M35 -> 3331 | N47: =Skyggetabeller!N35 -> 3391 | O47: =Skyggetabeller!O35 -> 3479 | P47: =Skyggetabeller!P35 -> 3460 | Q47: =Skyggetabeller!Q35 -> 3624 | R47: =Skyggetabeller!R35 -> 3632
B48: =Skyggetabeller!B36 -> Andel | D48: =Skyggetabeller!D36 -> 0.5322862129 | E48: =Skyggetabeller!E36 -> 0.5366919045 | F48: =Skyggetabeller!F36 -> 0.536823425 | G48: =Skyggetabeller!G36 -> 0.5223794398 | H48: =Skyggetabeller!H36 -> 0.5214814815 | I48: =Skyggetabeller!I36 -> 0.5207291973 | J48: =Skyggetabeller!J36 -> 0.5118253487 | K48: =Skyggetabeller!K36 -> 0.5146520147 | L48: =Skyggetabeller!L36 -> 0.5125458996 | M48: =Skyggetabeller!M36 -> 0.5001501051 | N48: =Skyggetabeller!N36 -> 0.5016219404 | O48: =Skyggetabeller!O36 -> 0.4851968957 | P48: =Skyggetabeller!P36 -> 0.4910404624 | Q48: =Skyggetabeller!Q36 -> 0.4864790287 | R48: =Skyggetabeller!R36 -> 0.4859581498
B49: Anm.: Hvis nøgletallet er angivet med * er der foretaget en diskretionering af data, da der er for få observationer.
B50: =IF('Dine valg'!$G$24="","Ingen sammenligningsgruppe valgt.","Anm.: Valgte kommuner i sammenligningsgruppen: "&'Dine valg'!$G$24&" "&'Dine valg'!$G$25&" "&'Dine valg'!$G$26&" "&'Dine valg'!$G$27&" "&'Dine valg'!$G$28&" "&'Dine valg'!$G$29&" "&'Dine valg'!$G$30) -> Anm.: Valgte kommuner i sammenligningsgruppen: Aarhus
B51: Kilde: Socialstyrelsens egne beregninger baseret på registerdata fra Danmarks Statistik.
B53: =Skyggetabeller!B39 -> Nøgletal 1.2 Anbragte på sikrede døgninstitutioner | D53: 2016-01-01 | E53: 2016-07-01 | F53: 2017-01-01 | G53: 2017-07-01 | H53: 2018-01-01 | I53: 2018-07-01 | J53: 2019-01-01 | K53: 2019-07-01 | L53: 2020-01-01 | M53: 2020-07-01 | N53: 2021-01-01 | O53: 2021-07-01 | P53: 2022-01-01 | Q53: 2022-07-01 | R53: 2023-01-01
B54: =Skyggetabeller!B40 -> København
B55: =Skyggetabeller!B41 -> Antal anbragte | D55: =Skyggetabeller!D41 -> 7 | E55: =Skyggetabeller!E41 -> 6 | F55: =Skyggetabeller!F41 -> 7 | G55: =Skyggetabeller!G41 -> 6 | H55: =Skyggetabeller!H41 -> 6 | I55: =Skyggetabeller!I41 -> 10 | J55: =Skyggetabeller!J41 -> 10 | K55: =Skyggetabeller!K41 -> 5 | L55: =Skyggetabeller!L41 -> * | M55: =Skyggetabeller!M41 -> 9 | N55: =Skyggetabeller!N41 -> 17 | O55: =Skyggetabeller!O41 -> 22 | P55: =Skyggetabeller!P41 -> 16 | Q55: =Skyggetabeller!Q41 -> 15 | R55: =Skyggetabeller!R41 -> 10
B56: =Skyggetabeller!B42 -> Antal 0-17-årige | D56: =Skyggetabeller!D42 -> 230 | E56: =Skyggetabeller!E42 -> 233 | F56: =Skyggetabeller!F42 -> 224 | G56: =Skyggetabeller!G42 -> 226 | H56: =Skyggetabeller!H42 -> 214 | I56: =Skyggetabeller!I42 -> 217 | J56: =Skyggetabeller!J42 -> 204 | K56: =Skyggetabeller!K42 -> 193 | L56: =Skyggetabeller!L42 -> 160 | M56: =Skyggetabeller!M42 -> 180 | N56: =Skyggetabeller!N42 -> 201 | O56: =Skyggetabeller!O42 -> 219 | P56: =Skyggetabeller!P42 -> 217 | Q56: =Skyggetabeller!Q42 -> 243 | R56: =Skyggetabeller!R42 -> 248
B57: =Skyggetabeller!B43 -> Andel | D57: =Skyggetabeller!D43 -> 0.03043478261 | E57: =Skyggetabeller!E43 -> 0.02575107296 | F57: =Skyggetabeller!F43 -> 0.03125 | G57: =Skyggetabeller!G43 -> 0.02654867257 | H57: =Skyggetabeller!H43 -> 0.02803738318 | I57: =Skyggetabeller!I43 -> 0.04608294931 | J57: =Skyggetabeller!J43 -> 0.04901960784 | K57: =Skyggetabeller!K43 -> 0.02590673575 | L57: =Skyggetabeller!L43 -> * | M57: =Skyggetabeller!M43 -> 0.05 | N57: =Skyggetabeller!N43 -> 0.08457711443 | O57: =Skyggetabeller!O43 -> 0.100456621 | P57: =Skyggetabeller!P43 -> 0.07373271889 | Q57: =Skyggetabeller!Q43 -> 0.06172839506 | R57: =Skyggetabeller!R43 -> 0.04032258065
B58: =Skyggetabeller!B44 -> Sammenligningsgruppe, gns.
B59: =Skyggetabeller!B45 -> Antal anbragte | D59: =Skyggetabeller!D45 -> 7 | E59: =Skyggetabeller!E45 -> 4 | F59: =Skyggetabeller!F45 -> 3 | G59: =Skyggetabeller!G45 -> 4 | H59: =Skyggetabeller!H45 -> 4 | I59: =Skyggetabeller!I45 -> 7 | J59: =Skyggetabeller!J45 -> 10 | K59: =Skyggetabeller!K45 -> 9 | L59: =Skyggetabeller!L45 -> 16 | M59: =Skyggetabeller!M45 -> 11 | N59: =Skyggetabeller!N45 -> 15 | O59: =Skyggetabeller!O45 -> 14 | P59: =Skyggetabeller!P45 -> 14 | Q59: =Skyggetabeller!Q45 -> 17 | R59: =Skyggetabeller!R45 -> 14
B60: =Skyggetabeller!B46 -> Antal 0-17-årige | D60: =Skyggetabeller!D46 -> 189 | E60: =Skyggetabeller!E46 -> 203 | F60: =Skyggetabeller!F46 -> 191 | G60: =Skyggetabeller!G46 -> 190 | H60: =Skyggetabeller!H46 -> 180 | I60: =Skyggetabeller!I46 -> 168 | J60: =Skyggetabeller!J46 -> 174 | K60: =Skyggetabeller!K46 -> 178 | L60: =Skyggetabeller!L46 -> 171 | M60: =Skyggetabeller!M46 -> 173 | N60: =Skyggetabeller!N46 -> 175 | O60: =Skyggetabeller!O46 -> 175 | P60: =Skyggetabeller!P46 -> 161 | Q60: =Skyggetabeller!Q46 -> 174 | R60: =Skyggetabeller!R46 -> 168
B61: =Skyggetabeller!B47 -> Andel | D61: =Skyggetabeller!D47 -> 0.03703703704 | E61: =Skyggetabeller!E47 -> 0.0197044335 | F61: =Skyggetabeller!F47 -> 0.01570680628 | G61: =Skyggetabeller!G47 -> 0.02105263158 | H61: =Skyggetabeller!H47 -> 0.02222222222 | I61: =Skyggetabeller!I47 -> 0.04166666667 | J61: =Skyggetabeller!J47 -> 0.05747126437 | K61: =Skyggetabeller!K47 -> 0.05056179775 | L61: =Skyggetabeller!L47 -> 0.09356725146 | M61: =Skyggetabeller!M47 -> 0.06358381503 | N61: =Skyggetabeller!N47 -> 0.08571428571 | O61: =Skyggetabeller!O47 -> 0.08 | P61: =Skyggetabeller!P47 -> 0.08695652174 | Q61: =Skyggetabeller!Q47 -> 0.09770114943 | R61: =Skyggetabeller!R47 -> 0.08333333333
B62: =Skyggetabeller!B48 -> Hele landet
B63: =Skyggetabeller!B49 -> Antal anbragte | D63: =Skyggetabeller!D49 -> 58 | E63: =Skyggetabeller!E49 -> 62 | F63: =Skyggetabeller!F49 -> 80 | G63: =Skyggetabeller!G49 -> 79 | H63: =Skyggetabeller!H49 -> 64 | I63: =Skyggetabeller!I49 -> 84 | J63: =Skyggetabeller!J49 -> 76 | K63: =Skyggetabeller!K49 -> 72 | L63: =Skyggetabeller!L49 -> 79 | M63: =Skyggetabeller!M49 -> 84 | N63: =Skyggetabeller!N49 -> 95 | O63: =Skyggetabeller!O49 -> 98 | P63: =Skyggetabeller!P49 -> 84 | Q63: =Skyggetabeller!Q49 -> 88 | R63: =Skyggetabeller!R49 -> 85
B64: =Skyggetabeller!B50 -> Antal 0-17-årige | D64: =Skyggetabeller!D50 -> 3438 | E64: =Skyggetabeller!E50 -> 3434 | F64: =Skyggetabeller!F50 -> 3381 | G64: =Skyggetabeller!G50 -> 3463 | H64: =Skyggetabeller!H50 -> 3375 | I64: =Skyggetabeller!I50 -> 3401 | J64: =Skyggetabeller!J50 -> 3298 | K64: =Skyggetabeller!K50 -> 3276 | L64: =Skyggetabeller!L50 -> 3268 | M64: =Skyggetabeller!M50 -> 3331 | N64: =Skyggetabeller!N50 -> 3391 | O64: =Skyggetabeller!O50 -> 3479 | P64: =Skyggetabeller!P50 -> 3460 | Q64: =Skyggetabeller!Q50 -> 3624 | R64: =Skyggetabeller!R50 -> 3632
B65: =Skyggetabeller!B51 -> Andel | D65: =Skyggetabeller!D51 -> 0.01687027341 | E65: =Skyggetabeller!E51 -> 0.01805474665 | F65: =Skyggetabeller!F51 -> 0.02366163857 | G65: =Skyggetabeller!G51 -> 0.02281259024 | H65: =Skyggetabeller!H51 -> 0.01896296296 | I65: =Skyggetabeller!I51 -> 0.02469861805 | J65: =Skyggetabeller!J51 -> 0.02304426925 | K65: =Skyggetabeller!K51 -> 0.02197802198 | L65: =Skyggetabeller!L51 -> 0.02417380661 | M65: =Skyggetabeller!M51 -> 0.02521765236 | N65: =Skyggetabeller!N51 -> 0.02801533471 | O65: =Skyggetabeller!O51 -> 0.02816901408 | P65: =Skyggetabeller!P51 -> 0.02427745665 | Q65: =Skyggetabeller!Q51 -> 0.02428256071 | R65: =Skyggetabeller!R51 -> 0.0234030837
B66: Anm.: Hvis nøgletallet er angivet med * er der foretaget en diskretionering af data, da der er for få observationer.
B67: =IF('Dine valg'!$G$24="","Ingen sammenligningsgruppe valgt.","Anm.: Valgte kommuner i sammenligningsgruppen: "&'Dine valg'!$G$24&" "&'Dine valg'!$G$25&" "&'Dine valg'!$G$26&" "&'Dine valg'!$G$27&" "&'Dine valg'!$G$28&" "&'Dine valg'!$G$29&" "&'Dine valg'!$G$30) -> Anm.: Valgte kommuner i sammenligningsgruppen: Aarhus
B68: Kilde: Socialstyrelsens egne beregninger baseret på registerdata fra Danmarks Statistik.
B70: =Skyggetabeller!B55 -> Nøgletal 1.3 Anbragte på socialpædagogiske opholdssteder | D70: 2016-01-01 | E70: 2016-07-01 | F70: 2017-01-01 | G70: 2017-07-01 | H70: 2018-01-01 | I70: 2018-07-01 | J70: 2019-01-01 | K70: 2019-07-01 | L70: 2020-01-01 | M70: 2020-07-01 | N70: 2021-01-01 | O70: 2021-07-01 | P70: 2022-01-01 | Q70: 2022-07-01 | R70: 2023-01-01
B71: =Skyggetabeller!B56 -> København
B72: =Skyggetabeller!B57 -> Antal anbragte | D72: =Skyggetabeller!D57 -> 54 | E72: =Skyggetabeller!E57 -> 52 | F72: =Skyggetabeller!F57 -> 47 | G72: =Skyggetabeller!G57 -> 39 | H72: =Skyggetabeller!H57 -> 34 | I72: =Skyggetabeller!I57 -> 33 | J72: =Skyggetabeller!J57 -> 33 | K72: =Skyggetabeller!K57 -> 35 | L72: =Skyggetabeller!L57 -> * | M72: =Skyggetabeller!M57 -> 24 | N72: =Skyggetabeller!N57 -> 25 | O72: =Skyggetabeller!O57 -> 32 | P72: =Skyggetabeller!P57 -> 28 | Q72: =Skyggetabeller!Q57 -> 32 | R72: =Skyggetabeller!R57 -> 38
B73: =Skyggetabeller!B58 -> Antal 0-17-årige | D73: =Skyggetabeller!D58 -> 230 | E73: =Skyggetabeller!E58 -> 233 | F73: =Skyggetabeller!F58 -> 224 | G73: =Skyggetabeller!G58 -> 226 | H73: =Skyggetabeller!H58 -> 214 | I73: =Skyggetabeller!I58 -> 217 | J73: =Skyggetabeller!J58 -> 204 | K73: =Skyggetabeller!K58 -> 193 | L73: =Skyggetabeller!L58 -> 160 | M73: =Skyggetabeller!M58 -> 180 | N73: =Skyggetabeller!N58 -> 201 | O73: =Skyggetabeller!O58 -> 219 | P73: =Skyggetabeller!P58 -> 217 | Q73: =Skyggetabeller!Q58 -> 243 | R73: =Skyggetabeller!R58 -> 248
B74: =Skyggetabeller!B59 -> Andel | D74: =Skyggetabeller!D59 -> 0.2347826087 | E74: =Skyggetabeller!E59 -> 0.2231759657 | F74: =Skyggetabeller!F59 -> 0.2098214286 | G74: =Skyggetabeller!G59 -> 0.1725663717 | H74: =Skyggetabeller!H59 -> 0.1588785047 | I74: =Skyggetabeller!I59 -> 0.1520737327 | J74: =Skyggetabeller!J59 -> 0.1617647059 | K74: =Skyggetabeller!K59 -> 0.1813471503 | L74: =Skyggetabeller!L59 -> * | M74: =Skyggetabeller!M59 -> 0.1333333333 | N74: =Skyggetabeller!N59 -> 0.1243781095 | O74: =Skyggetabeller!O59 -> 0.1461187215 | P74: =Skyggetabeller!P59 -> 0.1290322581 | Q74: =Skyggetabeller!Q59 -> 0.1316872428 | R74: =Skyggetabeller!R59 -> 0.1532258065
B75: =Skyggetabeller!B60 -> Sammenligningsgruppe, gns.
B76: =Skyggetabeller!B61 -> Antal anbragte | D76: =Skyggetabeller!D61 -> 55 | E76: =Skyggetabeller!E61 -> 61 | F76: =Skyggetabeller!F61 -> 55 | G76: =Skyggetabeller!G61 -> 53 | H76: =Skyggetabeller!H61 -> 57 | I76: =Skyggetabeller!I61 -> 45 | J76: =Skyggetabeller!J61 -> 46 | K76: =Skyggetabeller!K61 -> 42 | L76: =Skyggetabeller!L61 -> 35 | M76: =Skyggetabeller!M61 -> 35 | N76: =Skyggetabeller!N61 -> 37 | O76: =Skyggetabeller!O61 -> 43 | P76: =Skyggetabeller!P61 -> 38 | Q76: =Skyggetabeller!Q61 -> 48 | R76: =Skyggetabeller!R61 -> 44
B77: =Skyggetabeller!B62 -> Antal 0-17-årige | D77: =Skyggetabeller!D62 -> 189 | E77: =Skyggetabeller!E62 -> 203 | F77: =Skyggetabeller!F62 -> 191 | G77: =Skyggetabeller!G62 -> 190 | H77: =Skyggetabeller!H62 -> 180 | I77: =Skyggetabeller!I62 -> 168 | J77: =Skyggetabeller!J62 -> 174 | K77: =Skyggetabeller!K62 -> 178 | L77: =Skyggetabeller!L62 -> 171 | M77: =Skyggetabeller!M62 -> 173 | N77: =Skyggetabeller!N62 -> 175 | O77: =Skyggetabeller!O62 -> 175 | P77: =Skyggetabeller!P62 -> 161 | Q77: =Skyggetabeller!Q62 -> 174 | R77: =Skyggetabeller!R62 -> 168
B78: =Skyggetabeller!B63 -> Andel | D78: =Skyggetabeller!D63 -> 0.291005291 | E78: =Skyggetabeller!E63 -> 0.3004926108 | F78: =Skyggetabeller!F63 -> 0.2879581152 | G78: =Skyggetabeller!G63 -> 0.2789473684 | H78: =Skyggetabeller!H63 -> 0.3166666667 | I78: =Skyggetabeller!I63 -> 0.2678571429 | J78: =Skyggetabeller!J63 -> 0.2643678161 | K78: =Skyggetabeller!K63 -> 0.2359550562 | L78: =Skyggetabeller!L63 -> 0.2046783626 | M78: =Skyggetabeller!M63 -> 0.2023121387 | N78: =Skyggetabeller!N63 -> 0.2114285714 | O78: =Skyggetabeller!O63 -> 0.2457142857 | P78: =Skyggetabeller!P63 -> 0.2360248447 | Q78: =Skyggetabeller!Q63 -> 0.275862069 | R78: =Skyggetabeller!R63 -> 0.2619047619
B79: =Skyggetabeller!B64 -> Hele landet
B80: =Skyggetabeller!B65 -> Antal anbragte | D80: =Skyggetabeller!D65 -> 1550 | E80: =Skyggetabeller!E65 -> 1529 | F80: =Skyggetabeller!F65 -> 1486 | G80: =Skyggetabeller!G65 -> 1575 | H80: =Skyggetabeller!H65 -> 1551 | I80: =Skyggetabeller!I65 -> 1546 | J80: =Skyggetabeller!J65 -> 1534 | K80: =Skyggetabeller!K65 -> 1518 | L80: =Skyggetabeller!L65 -> 1514 | M80: =Skyggetabeller!M65 -> 1581 | N80: =Skyggetabeller!N65 -> 1595 | O80: =Skyggetabeller!O65 -> 1693 | P80: =Skyggetabeller!P65 -> 1677 | Q80: =Skyggetabeller!Q65 -> 1773 | R80: =Skyggetabeller!R65 -> 1782
B81: =Skyggetabeller!B66 -> Antal 0-17-årige | D81: =Skyggetabeller!D66 -> 3438 | E81: =Skyggetabeller!E66 -> 3434 | F81: =Skyggetabeller!F66 -> 3381 | G81: =Skyggetabeller!G66 -> 3463 | H81: =Skyggetabeller!H66 -> 3375 | I81: =Skyggetabeller!I66 -> 3401 | J81: =Skyggetabeller!J66 -> 3298 | K81: =Skyggetabeller!K66 -> 3276 | L81: =Skyggetabeller!L66 -> 3268 | M81: =Skyggetabeller!M66 -> 3331 | N81: =Skyggetabeller!N66 -> 3391 | O81: =Skyggetabeller!O66 -> 3479 | P81: =Skyggetabeller!P66 -> 3460 | Q81: =Skyggetabeller!Q66 -> 3624 | R81: =Skyggetabeller!R66 -> 3632
B82: =Skyggetabeller!B67 -> Andel | D82: =Skyggetabeller!D67 -> 0.4508435137 | E82: =Skyggetabeller!E67 -> 0.4452533489 | F82: =Skyggetabeller!F67 -> 0.4395149364 | G82: =Skyggetabeller!G67 -> 0.45480797 | H82: =Skyggetabeller!H67 -> 0.4595555556 | I82: =Skyggetabeller!I67 -> 0.4545721847 | J82: =Skyggetabeller!J67 -> 0.465130382 | K82: =Skyggetabeller!K67 -> 0.4633699634 | L82: =Skyggetabeller!L67 -> 0.4632802938 | M82: =Skyggetabeller!M67 -> 0.4746322426 | N82: =Skyggetabeller!N67 -> 0.4703627249 | O82: =Skyggetabeller!O67 -> 0.4866340903 | P82: =Skyggetabeller!P67 -> 0.4846820809 | Q82: =Skyggetabeller!Q67 -> 0.4892384106 | R82: =Skyggetabeller!R67 -> 0.4906387665
B83: Anm.: Hvis nøgletallet er angivet med * er der foretaget en diskretionering af data, da der er for få observationer.
B84: =IF('Dine valg'!$G$24="","Ingen sammenligningsgruppe valgt.","Anm.: Valgte kommuner i sammenligningsgruppen: "&'Dine valg'!$G$24&" "&'Dine valg'!$G$25&" "&'Dine valg'!$G$26&" "&'Dine valg'!$G$27&" "&'Dine valg'!$G$28&" "&'Dine valg'!$G$29&" "&'Dine valg'!$G$30) -> Anm.: Valgte kommuner i sammenligningsgruppen: Aarhus
B85: Kilde: Socialstyrelsens egne beregninger baseret på registerdata fra Danmarks Statistik.
B87: =Skyggetabeller!B90 -> Nøgletal 2: Varighed af institutionsanbringelser
B89: =Skyggetabeller!B93 -> Nøgletal 2: Gennemsnitlig varighed af igangværende institutionsanbringelser | D89: 2016-01-01 | E89: 2016-07-01 | F89: 2017-01-01 | G89: 2017-07-01 | H89: 2018-01-01 | I89: 2018-07-01 | J89: 2019-01-01 | K89: 2019-07-01 | L89: 2020-01-01 | M89: 2020-07-01 | N89: 2021-01-01 | O89: 2021-07-01 | P89: 2022-01-01 | Q89: 2022-07-01 | R89: 2023-01-01
B90: =Skyggetabeller!B94 -> København
B91: =Skyggetabeller!B95 -> Samlet antal dage | D91: =Skyggetabeller!D95 -> 185478 | E91: =Skyggetabeller!E95 -> 186030 | F91: =Skyggetabeller!F95 -> 176992 | G91: =Skyggetabeller!G95 -> 164546 | H91: =Skyggetabeller!H95 -> 154847 | I91: =Skyggetabeller!I95 -> 156577 | J91: =Skyggetabeller!J95 -> 149429 | K91: =Skyggetabeller!K95 -> 151260 | L91: =Skyggetabeller!L95 -> 125961 | M91: =Skyggetabeller!M95 -> 128612 | N91: =Skyggetabeller!N95 -> 128494 | O91: =Skyggetabeller!O95 -> 132359 | P91: =Skyggetabeller!P95 -> 131176 | Q91: =Skyggetabeller!Q95 -> 136329 | R91: =Skyggetabeller!R95 -> 146245
B92: =Skyggetabeller!B96 -> Antal anbragte | D92: =Skyggetabeller!D96 -> 230 | E92: =Skyggetabeller!E96 -> 233 | F92: =Skyggetabeller!F96 -> 224 | G92: =Skyggetabeller!G96 -> 226 | H92: =Skyggetabeller!H96 -> 214 | I92: =Skyggetabeller!I96 -> 217 | J92: =Skyggetabeller!J96 -> 204 | K92: =Skyggetabeller!K96 -> 193 | L92: =Skyggetabeller!L96 -> 160 | M92: =Skyggetabeller!M96 -> 180 | N92: =Skyggetabeller!N96 -> 201 | O92: =Skyggetabeller!O96 -> 219 | P92: =Skyggetabeller!P96 -> 217 | Q92: =Skyggetabeller!Q96 -> 243 | R92: =Skyggetabeller!R96 -> 248
B93: =Skyggetabeller!B97 -> Gennemsnitlig varighed | D93: =Skyggetabeller!D97 -> 806.426087 | E93: =Skyggetabeller!E97 -> 798.4120172 | F93: =Skyggetabeller!F97 -> 790.1428571 | G93: =Skyggetabeller!G97 -> 728.079646 | H93: =Skyggetabeller!H97 -> 723.5841121 | I93: =Skyggetabeller!I97 -> 721.5529954 | J93: =Skyggetabeller!J97 -> 732.495098 | K93: =Skyggetabeller!K97 -> 783.7305699 | L93: =Skyggetabeller!L97 -> 787.25625 | M93: =Skyggetabeller!M97 -> 714.5111111 | N93: =Skyggetabeller!N97 -> 639.2736318 | O93: =Skyggetabeller!O97 -> 604.3789954 | P93: =Skyggetabeller!P97 -> 604.4976959 | Q93: =Skyggetabeller!Q97 -> 561.0246914 | R93: =Skyggetabeller!R97 -> 589.6975806
B94: =Skyggetabeller!B98 -> Sammenligningsgruppe, gns.
B95: =Skyggetabeller!B99 -> Samlet antal dage | D95: =Skyggetabeller!D99 -> 200604 | E95: =Skyggetabeller!E99 -> 208297 | F95: =Skyggetabeller!F99 -> 208831 | G95: =Skyggetabeller!G99 -> 206091 | H95: =Skyggetabeller!H99 -> 194184 | I95: =Skyggetabeller!I99 -> 170529 | J95: =Skyggetabeller!J99 -> 159152 | K95: =Skyggetabeller!K99 -> 173246 | L95: =Skyggetabeller!L99 -> 172055 | M95: =Skyggetabeller!M99 -> 165391 | N95: =Skyggetabeller!N99 -> 172915 | O95: =Skyggetabeller!O99 -> 176105 | P95: =Skyggetabeller!P99 -> 176903 | Q95: =Skyggetabeller!Q99 -> 184152 | R95: =Skyggetabeller!R99 -> 174335
B96: =Skyggetabeller!B100 -> Antal anbragte | D96: =Skyggetabeller!D100 -> 189 | E96: =Skyggetabeller!E100 -> 203 | F96: =Skyggetabeller!F100 -> 191 | G96: =Skyggetabeller!G100 -> 190 | H96: =Skyggetabeller!H100 -> 180 | I96: =Skyggetabeller!I100 -> 168 | J96: =Skyggetabeller!J100 -> 174 | K96: =Skyggetabeller!K100 -> 178 | L96: =Skyggetabeller!L100 -> 171 | M96: =Skyggetabeller!M100 -> 173 | N96: =Skyggetabeller!N100 -> 175 | O96: =Skyggetabeller!O100 -> 175 | P96: =Skyggetabeller!P100 -> 161 | Q96: =Skyggetabeller!Q100 -> 174 | R96: =Skyggetabeller!R100 -> 168
B97: =Skyggetabeller!B101 -> Gennemsnitlig varighed | D97: =Skyggetabeller!D101 -> 1061.396825 | E97: =Skyggetabeller!E101 -> 1026.093596 | F97: =Skyggetabeller!F101 -> 1093.356021 | G97: =Skyggetabeller!G101 -> 1084.689474 | H97: =Skyggetabeller!H101 -> 1078.8 | I97: =Skyggetabeller!I101 -> 1015.053571 | J97: =Skyggetabeller!J101 -> 914.6666667 | K97: =Skyggetabeller!K101 -> 973.2921348 | L97: =Skyggetabeller!L101 -> 1006.169591 | M97: =Skyggetabeller!M101 -> 956.017341 | N97: =Skyggetabeller!N101 -> 988.0857143 | O97: =Skyggetabeller!O101 -> 1006.314286 | P97: =Skyggetabeller!P101 -> 1098.776398 | Q97: =Skyggetabeller!Q101 -> 1058.344828 | R97: =Skyggetabeller!R101 -> 1037.708333
B98: =Skyggetabeller!B102 -> Hele landet
B99: =Skyggetabeller!B103 -> Samlet antal dage | D99: =Skyggetabeller!D103 -> 3141398 | E99: =Skyggetabeller!E103 -> 2999675 | F99: =Skyggetabeller!F103 -> 2926881 | G99: =Skyggetabeller!G103 -> 2872799 | H99: =Skyggetabeller!H103 -> 2788973 | I99: =Skyggetabeller!I103 -> 2678553 | J99: =Skyggetabeller!J103 -> 2556646 | K99: =Skyggetabeller!K103 -> 2525234 | L99: =Skyggetabeller!L103 -> 2484125 | M99: =Skyggetabeller!M103 -> 2543481 | N99: =Skyggetabeller!N103 -> 2543999 | O99: =Skyggetabeller!O103 -> 2565330 | P99: =Skyggetabeller!P103 -> 2595601 | Q99: =Skyggetabeller!Q103 -> 2636910 | R99: =Skyggetabeller!R103 -> 2688748
B100: =Skyggetabeller!B104 -> Antal anbragte | D100: =Skyggetabeller!D104 -> 3438 | E100: =Skyggetabeller!E104 -> 3434 | F100: =Skyggetabeller!F104 -> 3381 | G100: =Skyggetabeller!G104 -> 3463 | H100: =Skyggetabeller!H104 -> 3375 | I100: =Skyggetabeller!I104 -> 3401 | J100: =Skyggetabeller!J104 -> 3298 | K100: =Skyggetabeller!K104 -> 3276 | L100: =Skyggetabeller!L104 -> 3268 | M100: =Skyggetabeller!M104 -> 3331 | N100: =Skyggetabeller!N104 -> 3391 | O100: =Skyggetabeller!O104 -> 3479 | P100: =Skyggetabeller!P104 -> 3460 | Q100: =Skyggetabeller!Q104 -> 3624 | R100: =Skyggetabeller!R104 -> 3632
B101: =Skyggetabeller!B105 -> Gennemsnitlig varighed | D101: =Skyggetabeller!D105 -> 913.7283304 | E101: =Skyggetabeller!E105 -> 873.5221316 | F101: =Skyggetabeller!F105 -> 865.6850044 | G101: =Skyggetabeller!G105 -> 829.5694485 | H101: =Skyggetabeller!H105 -> 826.3623704 | I101: =Skyggetabeller!I105 -> 787.5780653 | J101: =Skyggetabeller!J105 -> 775.211037 | K101: =Skyggetabeller!K105 -> 770.8284493 | L101: =Skyggetabeller!L105 -> 760.1361689 | M101: =Skyggetabeller!M105 -> 763.5788052 | N101: =Skyggetabeller!N105 -> 750.2208788 | O101: =Skyggetabeller!O105 -> 737.3756827 | P101: =Skyggetabeller!P105 -> 750.1736994 | Q101: =Skyggetabeller!Q105 -> 727.6241722 | R101: =Skyggetabeller!R105 -> 740.2940529
B102: Anm.: Hvis nøgletallet er angivet med * er der foretaget en diskretionering af data, da der er for få observationer.
B103: =IF('Dine valg'!$G$24="","Ingen sammenligningsgruppe valgt.","Anm.: Valgte kommuner i sammenligningsgruppen: "&'Dine valg'!$G$24&" "&'Dine valg'!$G$25&" "&'Dine valg'!$G$26&" "&'Dine valg'!$G$27&" "&'Dine valg'!$G$28&" "&'Dine valg'!$G$29&" "&'Dine valg'!$G$30) -> Anm.: Valgte kommuner i sammenligningsgruppen: Aarhus
B104: Kilde: Socialstyrelsens egne beregninger baseret på registerdata fra Danmarks Statistik.
B106: Undernøgletal - Varighed af igangværende institutionsanbringelser
B108: =Skyggetabeller!B108 -> Nøgletal 2.1 Gennemsnitlig varighed af igangværende anbringelser på døgninstitution | D108: 2016-01-01 | E108: 2016-07-01 | F108: 2017-01-01 | G108: 2017-07-01 | H108: 2018-01-01 | I108: 2018-07-01 | J108: 2019-01-01 | K108: 2019-07-01 | L108: 2020-01-01 | M108: 2020-07-01 | N108: 2021-01-01 | O108: 2021-07-01 | P108: 2022-01-01 | Q108: 2022-07-01 | R108: 2023-01-01
B109: =Skyggetabeller!B109 -> København
B110: =Skyggetabeller!B110 -> Samlet antal dage | D110: =Skyggetabeller!D110 -> 131733 | E110: =Skyggetabeller!E110 -> 133739 | F110: =Skyggetabeller!F110 -> 126890 | G110: =Skyggetabeller!G110 -> 118827 | H110: =Skyggetabeller!H110 -> 109211 | I110: =Skyggetabeller!I110 -> 109671 | J110: =Skyggetabeller!J110 -> 102873 | K110: =Skyggetabeller!K110 -> 101422 | L110: =Skyggetabeller!L110 -> 94891 | M110: =Skyggetabeller!M110 -> 93866 | N110: =Skyggetabeller!N110 -> 95550 | O110: =Skyggetabeller!O110 -> 95564 | P110: =Skyggetabeller!P110 -> 97246 | Q110: =Skyggetabeller!Q110 -> 99775 | R110: =Skyggetabeller!R110 -> 115330
B111: =Skyggetabeller!B111 -> Antal anbragte | D111: =Skyggetabeller!D111 -> 169 | E111: =Skyggetabeller!E111 -> 175 | F111: =Skyggetabeller!F111 -> 170 | G111: =Skyggetabeller!G111 -> 181 | H111: =Skyggetabeller!H111 -> 174 | I111: =Skyggetabeller!I111 -> 174 | J111: =Skyggetabeller!J111 -> 161 | K111: =Skyggetabeller!K111 -> 153 | L111: =Skyggetabeller!L111 -> 139 | M111: =Skyggetabeller!M111 -> 147 | N111: =Skyggetabeller!N111 -> 159 | O111: =Skyggetabeller!O111 -> 165 | P111: =Skyggetabeller!P111 -> 173 | Q111: =Skyggetabeller!Q111 -> 196 | R111: =Skyggetabeller!R111 -> 200
B112: =Skyggetabeller!B112 -> Gennemsnitlig varighed | D112: =Skyggetabeller!D112 -> 779.4852071 | E112: =Skyggetabeller!E112 -> 764.2228571 | F112: =Skyggetabeller!F112 -> 746.4117647 | G112: =Skyggetabeller!G112 -> 656.5027624 | H112: =Skyggetabeller!H112 -> 627.6494253 | I112: =Skyggetabeller!I112 -> 630.2931034 | J112: =Skyggetabeller!J112 -> 638.9627329 | K112: =Skyggetabeller!K112 -> 662.8888889 | L112: =Skyggetabeller!L112 -> 682.6690647 | M112: =Skyggetabeller!M112 -> 638.5442177 | N112: =Skyggetabeller!N112 -> 600.9433962 | O112: =Skyggetabeller!O112 -> 579.1757576 | P112: =Skyggetabeller!P112 -> 562.1156069 | Q112: =Skyggetabeller!Q112 -> 509.0561224 | R112: =Skyggetabeller!R112 -> 576.65
B113: =Skyggetabeller!B113 -> Sammenligningsgruppe, gns.
B114: =Skyggetabeller!B114 -> Samlet antal dage | D114: =Skyggetabeller!D114 -> 156966 | E114: =Skyggetabeller!E114 -> 162998 | F114: =Skyggetabeller!F114 -> 162866 | G114: =Skyggetabeller!G114 -> 163378 | H114: =Skyggetabeller!H114 -> 148645 | I114: =Skyggetabeller!I114 -> 132428 | J114: =Skyggetabeller!J114 -> 124068 | K114: =Skyggetabeller!K114 -> 136572 | L114: =Skyggetabeller!L114 -> 138504 | M114: =Skyggetabeller!M114 -> 139069 | N114: =Skyggetabeller!N114 -> 144465 | O114: =Skyggetabeller!O114 -> 151477 | P114: =Skyggetabeller!P114 -> 153357 | Q114: =Skyggetabeller!Q114 -> 154573 | R114: =Skyggetabeller!R114 -> 147751
B115: =Skyggetabeller!B115 -> Antal anbragte | D115: =Skyggetabeller!D115 -> 127 | E115: =Skyggetabeller!E115 -> 138 | F115: =Skyggetabeller!F115 -> 133 | G115: =Skyggetabeller!G115 -> 133 | H115: =Skyggetabeller!H115 -> 119 | I115: =Skyggetabeller!I115 -> 116 | J115: =Skyggetabeller!J115 -> 118 | K115: =Skyggetabeller!K115 -> 127 | L115: =Skyggetabeller!L115 -> 120 | M115: =Skyggetabeller!M115 -> 127 | N115: =Skyggetabeller!N115 -> 123 | O115: =Skyggetabeller!O115 -> 118 | P115: =Skyggetabeller!P115 -> 109 | Q115: =Skyggetabeller!Q115 -> 109 | R115: =Skyggetabeller!R115 -> 110
B116: =Skyggetabeller!B116 -> Gennemsnitlig varighed | D116: =Skyggetabeller!D116 -> 1235.952756 | E116: =Skyggetabeller!E116 -> 1181.144928 | F116: =Skyggetabeller!F116 -> 1224.556391 | G116: =Skyggetabeller!G116 -> 1228.406015 | H116: =Skyggetabeller!H116 -> 1249.117647 | I116: =Skyggetabeller!I116 -> 1141.62069 | J116: =Skyggetabeller!J116 -> 1051.423729 | K116: =Skyggetabeller!K116 -> 1075.370079 | L116: =Skyggetabeller!L116 -> 1154.2 | M116: =Skyggetabeller!M116 -> 1095.031496 | N116: =Skyggetabeller!N116 -> 1174.512195 | O116: =Skyggetabeller!O116 -> 1283.70339 | P116: =Skyggetabeller!P116 -> 1406.944954 | Q116: =Skyggetabeller!Q116 -> 1418.100917 | R116: =Skyggetabeller!R116 -> 1343.190909
B117: =Skyggetabeller!B117 -> Hele landet
B118: =Skyggetabeller!B118 -> Samlet antal dage | D118: =Skyggetabeller!D118 -> 1833692 | E118: =Skyggetabeller!E118 -> 1772046 | F118: =Skyggetabeller!F118 -> 1747663 | G118: =Skyggetabeller!G118 -> 1686242 | H118: =Skyggetabeller!H118 -> 1626960 | I118: =Skyggetabeller!I118 -> 1553179 | J118: =Skyggetabeller!J118 -> 1469501 | K118: =Skyggetabeller!K118 -> 1463985 | L118: =Skyggetabeller!L118 -> 1443662 | M118: =Skyggetabeller!M118 -> 1452255 | N118: =Skyggetabeller!N118 -> 1444481 | O118: =Skyggetabeller!O118 -> 1435374 | P118: =Skyggetabeller!P118 -> 1444354 | Q118: =Skyggetabeller!Q118 -> 1469416 | R118: =Skyggetabeller!R118 -> 1510747
B119: =Skyggetabeller!B119 -> Antal anbragte | D119: =Skyggetabeller!D119 -> 1830 | E119: =Skyggetabeller!E119 -> 1843 | F119: =Skyggetabeller!F119 -> 1815 | G119: =Skyggetabeller!G119 -> 1809 | H119: =Skyggetabeller!H119 -> 1760 | I119: =Skyggetabeller!I119 -> 1771 | J119: =Skyggetabeller!J119 -> 1688 | K119: =Skyggetabeller!K119 -> 1686 | L119: =Skyggetabeller!L119 -> 1675 | M119: =Skyggetabeller!M119 -> 1666 | N119: =Skyggetabeller!N119 -> 1701 | O119: =Skyggetabeller!O119 -> 1688 | P119: =Skyggetabeller!P119 -> 1699 | Q119: =Skyggetabeller!Q119 -> 1763 | R119: =Skyggetabeller!R119 -> 1765
B120: =Skyggetabeller!B120 -> Gennemsnitlig varighed | D120: =Skyggetabeller!D120 -> 1002.017486 | E120: =Skyggetabeller!E120 -> 961.5008139 | F120: =Skyggetabeller!F120 -> 962.8997245 | G120: =Skyggetabeller!G120 -> 932.1404091 | H120: =Skyggetabeller!H120 -> 924.4090909 | I120: =Skyggetabeller!I120 -> 877.0067758 | J120: =Skyggetabeller!J120 -> 870.5574645 | K120: =Skyggetabeller!K120 -> 868.3185053 | L120: =Skyggetabeller!L120 -> 861.8877612 | M120: =Skyggetabeller!M120 -> 871.7016807 | N120: =Skyggetabeller!N120 -> 849.1951793 | O120: =Skyggetabeller!O120 -> 850.3400474 | P120: =Skyggetabeller!P120 -> 850.1200706 | Q120: =Skyggetabeller!Q120 -> 833.4747589 | R120: =Skyggetabeller!R120 -> 855.9473088
B121: Anm.: Hvis nøgletallet er angivet med * er der foretaget en diskretionering af data, da der er for få observationer.
B122: =IF('Dine valg'!$G$24="","Ingen sammenligningsgruppe valgt.","Anm.: Valgte kommuner i sammenligningsgruppen: "&'Dine valg'!$G$24&" "&'Dine valg'!$G$25&" "&'Dine valg'!$G$26&" "&'Dine valg'!$G$27&" "&'Dine valg'!$G$28&" "&'Dine valg'!$G$29&" "&'Dine valg'!$G$30) -> Anm.: Valgte kommuner i sammenligningsgruppen: Aarhus
B123: Kilde: Socialstyrelsens egne beregninger baseret på registerdata fra Danmarks Statistik.
B125: =Skyggetabeller!B123 -> Nøgletal 2.2: Gennemsnitlig varighed af igangværende anbringelser på sikret døgninstitution | D125: 2016-01-01 | E125: 2016-07-01 | F125: 2017-01-01 | G125: 2017-07-01 | H125: 2018-01-01 | I125: 2018-07-01 | J125: 2019-01-01 | K125: 2019-07-01 | L125: 2020-01-01 | M125: 2020-07-01 | N125: 2021-01-01 | O125: 2021-07-01 | P125: 2022-01-01 | Q125: 2022-07-01 | R125: 2023-01-01
B126: =Skyggetabeller!B124 -> København
B127: =Skyggetabeller!B125 -> Samlet antal dage | D127: =Skyggetabeller!D125 -> 3323 | E127: =Skyggetabeller!E125 -> 3189 | F127: =Skyggetabeller!F125 -> 2067 | G127: =Skyggetabeller!G125 -> 2443 | H127: =Skyggetabeller!H125 -> 2098 | I127: =Skyggetabeller!I125 -> 2830 | J127: =Skyggetabeller!J125 -> 2993 | K127: =Skyggetabeller!K125 -> 3225 | L127: =Skyggetabeller!L125 -> * | M127: =Skyggetabeller!M125 -> 801 | N127: =Skyggetabeller!N125 -> 1693 | O127: =Skyggetabeller!O125 -> 2439 | P127: =Skyggetabeller!P125 -> 2322 | Q127: =Skyggetabeller!Q125 -> 1764 | R127: =Skyggetabeller!R125 -> 2455
B128: =Skyggetabeller!B126 -> Antal anbragte | D128: =Skyggetabeller!D126 -> 7 | E128: =Skyggetabeller!E126 -> 6 | F128: =Skyggetabeller!F126 -> 7 | G128: =Skyggetabeller!G126 -> 6 | H128: =Skyggetabeller!H126 -> 6 | I128: =Skyggetabeller!I126 -> 10 | J128: =Skyggetabeller!J126 -> 10 | K128: =Skyggetabeller!K126 -> 5 | L128: =Skyggetabeller!L126 -> * | M128: =Skyggetabeller!M126 -> 9 | N128: =Skyggetabeller!N126 -> 17 | O128: =Skyggetabeller!O126 -> 22 | P128: =Skyggetabeller!P126 -> 16 | Q128: =Skyggetabeller!Q126 -> 15 | R128: =Skyggetabeller!R126 -> 10
B129: =Skyggetabeller!B127 -> Gennemsnitlig varighed | D129: =Skyggetabeller!D127 -> 474.7142857 | E129: =Skyggetabeller!E127 -> 531.5 | F129: =Skyggetabeller!F127 -> 295.2857143 | G129: =Skyggetabeller!G127 -> 407.1666667 | H129: =Skyggetabeller!H127 -> 349.6666667 | I129: =Skyggetabeller!I127 -> 283 | J129: =Skyggetabeller!J127 -> 299.3 | K129: =Skyggetabeller!K127 -> 645 | L129: =Skyggetabeller!L127 -> * | M129: =Skyggetabeller!M127 -> 89 | N129: =Skyggetabeller!N127 -> 99.58823529 | O129: =Skyggetabeller!O127 -> 110.8636364 | P129: =Skyggetabeller!P127 -> 145.125 | Q129: =Skyggetabeller!Q127 -> 117.6 | R129: =Skyggetabeller!R127 -> 245.5
B130: =Skyggetabeller!B128 -> Sammenligningsgruppe, gns.
B131: =Skyggetabeller!B129 -> Samlet antal dage | D131: =Skyggetabeller!D129 -> 839 | E131: =Skyggetabeller!E129 -> 0 | F131: =Skyggetabeller!F129 -> 0 | G131: =Skyggetabeller!G129 -> 0 | H131: =Skyggetabeller!H129 -> 0 | I131: =Skyggetabeller!I129 -> 902 | J131: =Skyggetabeller!J129 -> 1195 | K131: =Skyggetabeller!K129 -> 2514 | L131: =Skyggetabeller!L129 -> 3886 | M131: =Skyggetabeller!M129 -> 1688 | N131: =Skyggetabeller!N129 -> 1831 | O131: =Skyggetabeller!O129 -> 3067 | P131: =Skyggetabeller!P129 -> 3724 | Q131: =Skyggetabeller!Q129 -> 5481 | R131: =Skyggetabeller!R129 -> 5754
B132: =Skyggetabeller!B130 -> Antal anbragte | D132: =Skyggetabeller!D130 -> 7 | E132: =Skyggetabeller!E130 -> 4 | F132: =Skyggetabeller!F130 -> 3 | G132: =Skyggetabeller!G130 -> 4 | H132: =Skyggetabeller!H130 -> 4 | I132: =Skyggetabeller!I130 -> 7 | J132: =Skyggetabeller!J130 -> 10 | K132: =Skyggetabeller!K130 -> 9 | L132: =Skyggetabeller!L130 -> 16 | M132: =Skyggetabeller!M130 -> 11 | N132: =Skyggetabeller!N130 -> 15 | O132: =Skyggetabeller!O130 -> 14 | P132: =Skyggetabeller!P130 -> 14 | Q132: =Skyggetabeller!Q130 -> 17 | R132: =Skyggetabeller!R130 -> 14
B133: =Skyggetabeller!B131 -> Gennemsnitlig varighed | D133: =Skyggetabeller!D131 -> 119.8571429 | E133: =Skyggetabeller!E131 -> 0 | F133: =Skyggetabeller!F131 -> 0 | G133: =Skyggetabeller!G131 -> 0 | H133: =Skyggetabeller!H131 -> 0 | I133: =Skyggetabeller!I131 -> 128.8571429 | J133: =Skyggetabeller!J131 -> 119.5 | K133: =Skyggetabeller!K131 -> 279.3333333 | L133: =Skyggetabeller!L131 -> 242.875 | M133: =Skyggetabeller!M131 -> 153.4545455 | N133: =Skyggetabeller!N131 -> 122.0666667 | O133: =Skyggetabeller!O131 -> 219.0714286 | P133: =Skyggetabeller!P131 -> 266 | Q133: =Skyggetabeller!Q131 -> 322.4117647 | R133: =Skyggetabeller!R131 -> 411
B134: =Skyggetabeller!B132 -> Hele landet
B135: =Skyggetabeller!B133 -> Samlet antal dage | D135: =Skyggetabeller!D133 -> 19522 | E135: =Skyggetabeller!E133 -> 19854 | F135: =Skyggetabeller!F133 -> 23846 | G135: =Skyggetabeller!G133 -> 25839 | H135: =Skyggetabeller!H133 -> 18299 | I135: =Skyggetabeller!I133 -> 18138 | J135: =Skyggetabeller!J133 -> 20357 | K135: =Skyggetabeller!K133 -> 23262 | L135: =Skyggetabeller!L133 -> 20737 | M135: =Skyggetabeller!M133 -> 21082 | N135: =Skyggetabeller!N133 -> 18812 | O135: =Skyggetabeller!O133 -> 22266 | P135: =Skyggetabeller!P133 -> 19232 | Q135: =Skyggetabeller!Q133 -> 20585 | R135: =Skyggetabeller!R133 -> 20791
B136: =Skyggetabeller!B134 -> Antal anbragte | D136: =Skyggetabeller!D134 -> 58 | E136: =Skyggetabeller!E134 -> 62 | F136: =Skyggetabeller!F134 -> 80 | G136: =Skyggetabeller!G134 -> 79 | H136: =Skyggetabeller!H134 -> 64 | I136: =Skyggetabeller!I134 -> 84 | J136: =Skyggetabeller!J134 -> 76 | K136: =Skyggetabeller!K134 -> 72 | L136: =Skyggetabeller!L134 -> 79 | M136: =Skyggetabeller!M134 -> 84 | N136: =Skyggetabeller!N134 -> 95 | O136: =Skyggetabeller!O134 -> 98 | P136: =Skyggetabeller!P134 -> 84 | Q136: =Skyggetabeller!Q134 -> 88 | R136: =Skyggetabeller!R134 -> 85
B137: =Skyggetabeller!B135 -> Gennemsnitlig varighed | D137: =Skyggetabeller!D135 -> 336.5862069 | E137: =Skyggetabeller!E135 -> 320.2258065 | F137: =Skyggetabeller!F135 -> 298.075 | G137: =Skyggetabeller!G135 -> 327.0759494 | H137: =Skyggetabeller!H135 -> 285.921875 | I137: =Skyggetabeller!I135 -> 215.9285714 | J137: =Skyggetabeller!J135 -> 267.8552632 | K137: =Skyggetabeller!K135 -> 323.0833333 | L137: =Skyggetabeller!L135 -> 262.4936709 | M137: =Skyggetabeller!M135 -> 250.9761905 | N137: =Skyggetabeller!N135 -> 198.0210526 | O137: =Skyggetabeller!O135 -> 227.2040816 | P137: =Skyggetabeller!P135 -> 228.952381 | Q137: =Skyggetabeller!Q135 -> 233.9204545 | R137: =Skyggetabeller!R135 -> 244.6
B138: Anm.: Hvis nøgletallet er angivet med * er der foretaget en diskretionering af data, da der er for få observationer.
B139: =IF('Dine valg'!$G$24="","Ingen sammenligningsgruppe valgt.","Anm.: Valgte kommuner i sammenligningsgruppen: "&'Dine valg'!$G$24&" "&'Dine valg'!$G$25&" "&'Dine valg'!$G$26&" "&'Dine valg'!$G$27&" "&'Dine valg'!$G$28&" "&'Dine valg'!$G$29&" "&'Dine valg'!$G$30) -> Anm.: Valgte kommuner i sammenligningsgruppen: Aarhus
B140: Kilde: Socialstyrelsens egne beregninger baseret på registerdata fra Danmarks Statistik.
B142: =Skyggetabeller!B138 -> Nøgletal 2.3: Gennemsnitlig varighed af igangværende anbringelser på socialpædagogisk opholdssted | D142: 2016-01-01 | E142: 2016-07-01 | F142: 2017-01-01 | G142: 2017-07-01 | H142: 2018-01-01 | I142: 2018-07-01 | J142: 2019-01-01 | K142: 2019-07-01 | L142: 2020-01-01 | M142: 2020-07-01 | N142: 2021-01-01 | O142: 2021-07-01 | P142: 2022-01-01 | Q142: 2022-07-01 | R142: 2023-01-01
B143: =Skyggetabeller!B139 -> København
B144: =Skyggetabeller!B140 -> Samlet antal dage | D144: =Skyggetabeller!D140 -> 50422 | E144: =Skyggetabeller!E140 -> 49102 | F144: =Skyggetabeller!F140 -> 48035 | G144: =Skyggetabeller!G140 -> 43276 | H144: =Skyggetabeller!H140 -> 43538 | I144: =Skyggetabeller!I140 -> 44076 | J144: =Skyggetabeller!J140 -> 43563 | K144: =Skyggetabeller!K140 -> 46613 | L144: =Skyggetabeller!L140 -> * | M144: =Skyggetabeller!M140 -> 33945 | N144: =Skyggetabeller!N140 -> 31251 | O144: =Skyggetabeller!O140 -> 34356 | P144: =Skyggetabeller!P140 -> 31608 | Q144: =Skyggetabeller!Q140 -> 34790 | R144: =Skyggetabeller!R140 -> 28460
B145: =Skyggetabeller!B141 -> Antal anbragte | D145: =Skyggetabeller!D141 -> 54 | E145: =Skyggetabeller!E141 -> 52 | F145: =Skyggetabeller!F141 -> 47 | G145: =Skyggetabeller!G141 -> 39 | H145: =Skyggetabeller!H141 -> 34 | I145: =Skyggetabeller!I141 -> 33 | J145: =Skyggetabeller!J141 -> 33 | K145: =Skyggetabeller!K141 -> 35 | L145: =Skyggetabeller!L141 -> * | M145: =Skyggetabeller!M141 -> 24 | N145: =Skyggetabeller!N141 -> 25 | O145: =Skyggetabeller!O141 -> 32 | P145: =Skyggetabeller!P141 -> 28 | Q145: =Skyggetabeller!Q141 -> 32 | R145: =Skyggetabeller!R141 -> 38
B146: =Skyggetabeller!B142 -> Gennemsnitlig varighed | D146: =Skyggetabeller!D142 -> 933.7407407 | E146: =Skyggetabeller!E142 -> 944.2692308 | F146: =Skyggetabeller!F142 -> 1022.021277 | G146: =Skyggetabeller!G142 -> 1109.641026 | H146: =Skyggetabeller!H142 -> 1280.529412 | I146: =Skyggetabeller!I142 -> 1335.636364 | J146: =Skyggetabeller!J142 -> 1320.090909 | K146: =Skyggetabeller!K142 -> 1331.8 | L146: =Skyggetabeller!L142 -> * | M146: =Skyggetabeller!M142 -> 1414.375 | N146: =Skyggetabeller!N142 -> 1250.04 | O146: =Skyggetabeller!O142 -> 1073.625 | P146: =Skyggetabeller!P142 -> 1128.857143 | Q146: =Skyggetabeller!Q142 -> 1087.1875 | R146: =Skyggetabeller!R142 -> 748.9473684
B147: =Skyggetabeller!B143 -> Sammenligningsgruppe, gns.
B148: =Skyggetabeller!B144 -> Samlet antal dage | D148: =Skyggetabeller!D144 -> 42799 | E148: =Skyggetabeller!E144 -> 0 | F148: =Skyggetabeller!F144 -> 0 | G148: =Skyggetabeller!G144 -> 0 | H148: =Skyggetabeller!H144 -> 0 | I148: =Skyggetabeller!I144 -> 37199 | J148: =Skyggetabeller!J144 -> 33889 | K148: =Skyggetabeller!K144 -> 34160 | L148: =Skyggetabeller!L144 -> 29665 | M148: =Skyggetabeller!M144 -> 24634 | N148: =Skyggetabeller!N144 -> 26619 | O148: =Skyggetabeller!O144 -> 21561 | P148: =Skyggetabeller!P144 -> 19822 | Q148: =Skyggetabeller!Q144 -> 24098 | R148: =Skyggetabeller!R144 -> 20830
B149: =Skyggetabeller!B145 -> Antal anbragte | D149: =Skyggetabeller!D145 -> 55 | E149: =Skyggetabeller!E145 -> 61 | F149: =Skyggetabeller!F145 -> 55 | G149: =Skyggetabeller!G145 -> 53 | H149: =Skyggetabeller!H145 -> 57 | I149: =Skyggetabeller!I145 -> 45 | J149: =Skyggetabeller!J145 -> 46 | K149: =Skyggetabeller!K145 -> 42 | L149: =Skyggetabeller!L145 -> 35 | M149: =Skyggetabeller!M145 -> 35 | N149: =Skyggetabeller!N145 -> 37 | O149: =Skyggetabeller!O145 -> 43 | P149: =Skyggetabeller!P145 -> 38 | Q149: =Skyggetabeller!Q145 -> 48 | R149: =Skyggetabeller!R145 -> 44
B150: =Skyggetabeller!B146 -> Gennemsnitlig varighed | D150: =Skyggetabeller!D146 -> 778.1636364 | E150: =Skyggetabeller!E146 -> 0 | F150: =Skyggetabeller!F146 -> 0 | G150: =Skyggetabeller!G146 -> 0 | H150: =Skyggetabeller!H146 -> 0 | I150: =Skyggetabeller!I146 -> 826.6444444 | J150: =Skyggetabeller!J146 -> 736.7173913 | K150: =Skyggetabeller!K146 -> 813.3333333 | L150: =Skyggetabeller!L146 -> 847.5714286 | M150: =Skyggetabeller!M146 -> 703.8285714 | N150: =Skyggetabeller!N146 -> 719.4324324 | O150: =Skyggetabeller!O146 -> 501.4186047 | P150: =Skyggetabeller!P146 -> 521.6315789 | Q150: =Skyggetabeller!Q146 -> 502.0416667 | R150: =Skyggetabeller!R146 -> 473.4090909
B151: =Skyggetabeller!B147 -> Hele landet
B152: =Skyggetabeller!B148 -> Samlet antal dage | D152: =Skyggetabeller!D148 -> 1288184 | E152: =Skyggetabeller!E148 -> 1207775 | F152: =Skyggetabeller!F148 -> 1155372 | G152: =Skyggetabeller!G148 -> 1160718 | H152: =Skyggetabeller!H148 -> 1143714 | I152: =Skyggetabeller!I148 -> 1107236 | J152: =Skyggetabeller!J148 -> 1066788 | K152: =Skyggetabeller!K148 -> 1037987 | L152: =Skyggetabeller!L148 -> 1019726 | M152: =Skyggetabeller!M148 -> 1070144 | N152: =Skyggetabeller!N148 -> 1080706 | O152: =Skyggetabeller!O148 -> 1107690 | P152: =Skyggetabeller!P148 -> 1132015 | Q152: =Skyggetabeller!Q148 -> 1146909 | R152: =Skyggetabeller!R148 -> 1157210
B153: =Skyggetabeller!B149 -> Antal anbragte | D153: =Skyggetabeller!D149 -> 1550 | E153: =Skyggetabeller!E149 -> 1529 | F153: =Skyggetabeller!F149 -> 1486 | G153: =Skyggetabeller!G149 -> 1575 | H153: =Skyggetabeller!H149 -> 1551 | I153: =Skyggetabeller!I149 -> 1546 | J153: =Skyggetabeller!J149 -> 1534 | K153: =Skyggetabeller!K149 -> 1518 | L153: =Skyggetabeller!L149 -> 1514 | M153: =Skyggetabeller!M149 -> 1581 | N153: =Skyggetabeller!N149 -> 1595 | O153: =Skyggetabeller!O149 -> 1693 | P153: =Skyggetabeller!P149 -> 1677 | Q153: =Skyggetabeller!Q149 -> 1773 | R153: =Skyggetabeller!R149 -> 1782
B154: =Skyggetabeller!B150 -> Gennemsnitlig varighed | D154: =Skyggetabeller!D150 -> 831.0864516 | E154: =Skyggetabeller!E150 -> 789.911707 | F154: =Skyggetabeller!F150 -> 777.5047106 | G154: =Skyggetabeller!G150 -> 736.9638095 | H154: =Skyggetabeller!H150 -> 737.4042553 | I154: =Skyggetabeller!I150 -> 716.1940492 | J154: =Skyggetabeller!J150 -> 695.4289439 | K154: =Skyggetabeller!K150 -> 683.7859025 | L154: =Skyggetabeller!L150 -> 673.5310436 | M154: =Skyggetabeller!M150 -> 676.8779254 | N154: =Skyggetabeller!N150 -> 677.5586207 | O154: =Skyggetabeller!O150 -> 654.2764324 | P154: =Skyggetabeller!P150 -> 675.0238521 | Q154: =Skyggetabeller!Q150 -> 646.8747885 | R154: =Skyggetabeller!R150 -> 649.3883277
B155: Anm.: Hvis nøgletallet er angivet med * er der foretaget en diskretionering af data, da der er for få observationer.
B156: =IF('Dine valg'!$G$24="","Ingen sammenligningsgruppe valgt.","Anm.: Valgte kommuner i sammenligningsgruppen: "&'Dine valg'!$G$24&" "&'Dine valg'!$G$25&" "&'Dine valg'!$G$26&" "&'Dine valg'!$G$27&" "&'Dine valg'!$G$28&" "&'Dine valg'!$G$29&" "&'Dine valg'!$G$30) -> Anm.: Valgte kommuner i sammenligningsgruppen: Aarhus
B157: Kilde: Socialstyrelsens egne beregninger baseret på registerdata fra Danmarks Statistik.
B159: =Skyggetabeller!B153 -> Nøgletal 3: Anbragte i plejefamilie
B161: =Skyggetabeller!B156 -> Nøgletal 3: Anbragte i plejefamilie | D161: 2016-01-01 | E161: 2016-07-01 | F161: 2017-01-01 | G161: 2017-07-01 | H161: 2018-01-01 | I161: 2018-07-01 | J161: 2019-01-01 | K161: 2019-07-01 | L161: 2020-01-01 | M161: 2020-07-01 | N161: 2021-01-01 | O161: 2021-07-01 | P161: 2022-01-01 | Q161: 2022-07-01 | R161: 2023-01-01
B162: =Skyggetabeller!B157 -> København
B163: =Skyggetabeller!B158 -> Antal anbragte | D163: =Skyggetabeller!D158 -> 382 | E163: =Skyggetabeller!E158 -> 369 | F163: =Skyggetabeller!F158 -> 355 | G163: =Skyggetabeller!G158 -> 347 | H163: =Skyggetabeller!H158 -> 348 | I163: =Skyggetabeller!I158 -> 351 | J163: =Skyggetabeller!J158 -> 339 | K163: =Skyggetabeller!K158 -> 325 | L163: =Skyggetabeller!L158 -> 312 | M163: =Skyggetabeller!M158 -> 295 | N163: =Skyggetabeller!N158 -> 288 | O163: =Skyggetabeller!O158 -> 285 | P163: =Skyggetabeller!P158 -> 272 | Q163: =Skyggetabeller!Q158 -> 264 | R163: =Skyggetabeller!R158 -> 269
B164: =Skyggetabeller!B159 -> Antal 0-17-årige | D164: =Skyggetabeller!D159 -> 103578 | E164: =Skyggetabeller!E159 -> 104797 | F164: =Skyggetabeller!F159 -> 105885 | G164: =Skyggetabeller!G159 -> 106913 | H164: =Skyggetabeller!H159 -> 107770 | I164: =Skyggetabeller!I159 -> 108734 | J164: =Skyggetabeller!J159 -> 109335 | K164: =Skyggetabeller!K159 -> 110138 | L164: =Skyggetabeller!L159 -> 110822 | M164: =Skyggetabeller!M159 -> 111068 | N164: =Skyggetabeller!N159 -> 110927 | O164: =Skyggetabeller!O159 -> 110614 | P164: =Skyggetabeller!P159 -> 110513 | Q164: =Skyggetabeller!Q159 -> 110692 | R164: =Skyggetabeller!R159 -> 110835
B165: =Skyggetabeller!B160 -> Andel | D165: =Skyggetabeller!D160 -> 3.688041862 | E165: =Skyggetabeller!E160 -> 3.521093161 | F165: =Skyggetabeller!F160 -> 3.35269396 | G165: =Skyggetabeller!G160 -> 3.245629624 | H165: =Skyggetabeller!H160 -> 3.229099007 | I165: =Skyggetabeller!I160 -> 3.22806114 | J165: =Skyggetabeller!J160 -> 3.100562491 | K165: =Skyggetabeller!K160 -> 2.950843487 | L165: =Skyggetabeller!L160 -> 2.815325477 | M165: =Skyggetabeller!M160 -> 2.65603054 | N165: =Skyggetabeller!N160 -> 2.596302073 | O165: =Skyggetabeller!O160 -> 2.576527384 | P165: =Skyggetabeller!P160 -> 2.461248903 | Q165: =Skyggetabeller!Q160 -> 2.384996206 | R165: =Skyggetabeller!R160 -> 2.427031172
B166: =Skyggetabeller!B161 -> Sammenligningsgruppe, gns.
B167: =Skyggetabeller!B162 -> Antal anbragte | D167: =Skyggetabeller!D162 -> 208 | E167: =Skyggetabeller!E162 -> 215 | F167: =Skyggetabeller!F162 -> 221 | G167: =Skyggetabeller!G162 -> 225 | H167: =Skyggetabeller!H162 -> 228 | I167: =Skyggetabeller!I162 -> 240 | J167: =Skyggetabeller!J162 -> 239 | K167: =Skyggetabeller!K162 -> 234 | L167: =Skyggetabeller!L162 -> 232 | M167: =Skyggetabeller!M162 -> 233 | N167: =Skyggetabeller!N162 -> 224 | O167: =Skyggetabeller!O162 -> 214 | P167: =Skyggetabeller!P162 -> 214 | Q167: =Skyggetabeller!Q162 -> 217 | R167: =Skyggetabeller!R162 -> 205
B168: =Skyggetabeller!B163 -> Antal 0-17-årige | D168: =Skyggetabeller!D163 -> 62241 | E168: =Skyggetabeller!E163 -> 62670 | F168: =Skyggetabeller!F163 -> 62903 | G168: =Skyggetabeller!G163 -> 63077 | H168: =Skyggetabeller!H163 -> 63245 | I168: =Skyggetabeller!I163 -> 63510 | J168: =Skyggetabeller!J163 -> 63607 | K168: =Skyggetabeller!K163 -> 63704 | L168: =Skyggetabeller!L163 -> 63890 | M168: =Skyggetabeller!M163 -> 64128 | N168: =Skyggetabeller!N163 -> 64334 | O168: =Skyggetabeller!O163 -> 64307 | P168: =Skyggetabeller!P163 -> 64049 | Q168: =Skyggetabeller!Q163 -> 64356 | R168: =Skyggetabeller!R163 -> 64420
B169: =Skyggetabeller!B164 -> Andel | D169: =Skyggetabeller!D164 -> 3.341848621 | E169: =Skyggetabeller!E164 -> 3.430668581 | F169: =Skyggetabeller!F164 -> 3.513345945 | G169: =Skyggetabeller!G164 -> 3.567068821 | H169: =Skyggetabeller!H164 -> 3.605028065 | I169: =Skyggetabeller!I164 -> 3.778932452 | J169: =Skyggetabeller!J164 -> 3.75744808 | K169: =Skyggetabeller!K164 -> 3.673238729 | L169: =Skyggetabeller!L164 -> 3.631241196 | M169: =Skyggetabeller!M164 -> 3.633358283 | N169: =Skyggetabeller!N164 -> 3.481829204 | O169: =Skyggetabeller!O164 -> 3.327787022 | P169: =Skyggetabeller!P164 -> 3.3411919 | Q169: =Skyggetabeller!Q164 -> 3.371868979 | R169: =Skyggetabeller!R164 -> 3.18224154
B170: =Skyggetabeller!B165 -> Hele landet
B171: =Skyggetabeller!B166 -> Antal anbragte | D171: =Skyggetabeller!D166 -> 6595 | E171: =Skyggetabeller!E166 -> 6668 | F171: =Skyggetabeller!F166 -> 6765 | G171: =Skyggetabeller!G166 -> 6800 | H171: =Skyggetabeller!H166 -> 6764 | I171: =Skyggetabeller!I166 -> 6814 | J171: =Skyggetabeller!J166 -> 6788 | K171: =Skyggetabeller!K166 -> 6768 | L171: =Skyggetabeller!L166 -> 6647 | M171: =Skyggetabeller!M166 -> 6585 | N171: =Skyggetabeller!N166 -> 6525 | O171: =Skyggetabeller!O166 -> 6509 | P171: =Skyggetabeller!P166 -> 6410 | Q171: =Skyggetabeller!Q166 -> 6335 | R171: =Skyggetabeller!R166 -> 6243
B172: =Skyggetabeller!B167 -> Antal 0-17-årige | D172: =Skyggetabeller!D167 -> 1167426 | E172: =Skyggetabeller!E167 -> 1167002 | F172: =Skyggetabeller!F167 -> 1168201 | G172: =Skyggetabeller!G167 -> 1165363 | H172: =Skyggetabeller!H167 -> 1165475 | I172: =Skyggetabeller!I167 -> 1162195 | J172: =Skyggetabeller!J167 -> 1160360 | K172: =Skyggetabeller!K167 -> 1156537 | L172: =Skyggetabeller!L167 -> 1156116 | M172: =Skyggetabeller!M167 -> 1153027 | N172: =Skyggetabeller!N167 -> 1152972 | O172: =Skyggetabeller!O167 -> 1151374 | P172: =Skyggetabeller!P167 -> 1151704 | Q172: =Skyggetabeller!Q167 -> 1157254 | R172: =Skyggetabeller!R167 -> 1155814
B173: =Skyggetabeller!B168 -> Andel | D173: =Skyggetabeller!D168 -> 5.649180333 | E173: =Skyggetabeller!E168 -> 5.713786266 | F173: =Skyggetabeller!F168 -> 5.790955495 | G173: =Skyggetabeller!G168 -> 5.835091727 | H173: =Skyggetabeller!H168 -> 5.803642292 | I173: =Skyggetabeller!I168 -> 5.863043637 | J173: =Skyggetabeller!J168 -> 5.849908649 | K173: =Skyggetabeller!K168 -> 5.851952856 | L173: =Skyggetabeller!L168 -> 5.749423068 | M173: =Skyggetabeller!M168 -> 5.711054468 | N173: =Skyggetabeller!N168 -> 5.659287476 | O173: =Skyggetabeller!O168 -> 5.6532456 | P173: =Skyggetabeller!P168 -> 5.565666178 | Q173: =Skyggetabeller!Q168 -> 5.474165568 | R173: =Skyggetabeller!R168 -> 5.401388113
B174: Anm.: Hvis nøgletallet er angivet med * er der foretaget en diskretionering af data, da der er for få observationer.
B175: =IF('Dine valg'!$G$24="","Ingen sammenligningsgruppe valgt.","Anm.: Valgte kommuner i sammenligningsgruppen: "&'Dine valg'!$G$24&" "&'Dine valg'!$G$25&" "&'Dine valg'!$G$26&" "&'Dine valg'!$G$27&" "&'Dine valg'!$G$28&" "&'Dine valg'!$G$29&" "&'Dine valg'!$G$30) -> Anm.: Valgte kommuner i sammenligningsgruppen: Aarhus
B176: Kilde: Socialstyrelsens egne beregninger baseret på registerdata fra Danmarks Statistik.
B178: =Skyggetabeller!B171 -> Nøgletal 4: Anbragte i netværksplejefamilie
B180: =Skyggetabeller!B174 -> Nøgletal 4: Anbragte i netværksplejefamilie | D180: 2016-01-01 | E180: 2016-07-01 | F180: 2017-01-01 | G180: 2017-07-01 | H180: 2018-01-01 | I180: 2018-07-01 | J180: 2019-01-01 | K180: 2019-07-01 | L180: 2020-01-01 | M180: 2020-07-01 | N180: 2021-01-01 | O180: 2021-07-01 | P180: 2022-01-01 | Q180: 2022-07-01 | R180: 2023-01-01
B181: =Skyggetabeller!B175 -> København
B182: =Skyggetabeller!B176 -> Antal anbragte | D182: =Skyggetabeller!D176 -> 105 | E182: =Skyggetabeller!E176 -> 101 | F182: =Skyggetabeller!F176 -> 105 | G182: =Skyggetabeller!G176 -> 112 | H182: =Skyggetabeller!H176 -> 110 | I182: =Skyggetabeller!I176 -> 107 | J182: =Skyggetabeller!J176 -> 112 | K182: =Skyggetabeller!K176 -> 107 | L182: =Skyggetabeller!L176 -> 108 | M182: =Skyggetabeller!M176 -> 108 | N182: =Skyggetabeller!N176 -> 115 | O182: =Skyggetabeller!O176 -> 113 | P182: =Skyggetabeller!P176 -> 113 | Q182: =Skyggetabeller!Q176 -> 112 | R182: =Skyggetabeller!R176 -> 114
B183: =Skyggetabeller!B177 -> Antal 0-17-årige | D183: =Skyggetabeller!D177 -> 103578 | E183: =Skyggetabeller!E177 -> 104797 | F183: =Skyggetabeller!F177 -> 105885 | G183: =Skyggetabeller!G177 -> 106913 | H183: =Skyggetabeller!H177 -> 107770 | I183: =Skyggetabeller!I177 -> 108734 | J183: =Skyggetabeller!J177 -> 109335 | K183: =Skyggetabeller!K177 -> 110138 | L183: =Skyggetabeller!L177 -> 110822 | M183: =Skyggetabeller!M177 -> 111068 | N183: =Skyggetabeller!N177 -> 110927 | O183: =Skyggetabeller!O177 -> 110614 | P183: =Skyggetabeller!P177 -> 110513 | Q183: =Skyggetabeller!Q177 -> 110692 | R183: =Skyggetabeller!R177 -> 110835
B184: =Skyggetabeller!B178 -> Andel | D184: =Skyggetabeller!D178 -> 1.013728784 | E184: =Skyggetabeller!E178 -> 0.9637680468 | F184: =Skyggetabeller!F178 -> 0.9916418756 | G184: =Skyggetabeller!G178 -> 1.047580743 | H184: =Skyggetabeller!H178 -> 1.020692215 | I184: =Skyggetabeller!I178 -> 0.9840528262 | J184: =Skyggetabeller!J178 -> 1.024374628 | K184: =Skyggetabeller!K178 -> 0.9715084712 | L184: =Skyggetabeller!L178 -> 0.974535742 | M184: =Skyggetabeller!M178 -> 0.9723772824 | N184: =Skyggetabeller!N178 -> 1.036717841 | O184: =Skyggetabeller!O178 -> 1.021570506 | P184: =Skyggetabeller!P178 -> 1.02250414 | Q184: =Skyggetabeller!Q178 -> 1.011816572 | R184: =Skyggetabeller!R178 -> 1.028555962
B185: =Skyggetabeller!B179 -> Sammenligningsgruppe, gns.
B186: =Skyggetabeller!B180 -> Antal anbragte | D186: =Skyggetabeller!D180 -> 37 | E186: =Skyggetabeller!E180 -> 38 | F186: =Skyggetabeller!F180 -> 42 | G186: =Skyggetabeller!G180 -> 37 | H186: =Skyggetabeller!H180 -> 33 | I186: =Skyggetabeller!I180 -> 27 | J186: =Skyggetabeller!J180 -> 25 | K186: =Skyggetabeller!K180 -> 24 | L186: =Skyggetabeller!L180 -> 22 | M186: =Skyggetabeller!M180 -> 24 | N186: =Skyggetabeller!N180 -> 26 | O186: =Skyggetabeller!O180 -> 25 | P186: =Skyggetabeller!P180 -> 22 | Q186: =Skyggetabeller!Q180 -> 22 | R186: =Skyggetabeller!R180 -> 25
B187: =Skyggetabeller!B181 -> Antal 0-17-årige | D187: =Skyggetabeller!D181 -> 62241 | E187: =Skyggetabeller!E181 -> 62670 | F187: =Skyggetabeller!F181 -> 62903 | G187: =Skyggetabeller!G181 -> 63077 | H187: =Skyggetabeller!H181 -> 63245 | I187: =Skyggetabeller!I181 -> 63510 | J187: =Skyggetabeller!J181 -> 63607 | K187: =Skyggetabeller!K181 -> 63704 | L187: =Skyggetabeller!L181 -> 63890 | M187: =Skyggetabeller!M181 -> 64128 | N187: =Skyggetabeller!N181 -> 64334 | O187: =Skyggetabeller!O181 -> 64307 | P187: =Skyggetabeller!P181 -> 64049 | Q187: =Skyggetabeller!Q181 -> 64356 | R187: =Skyggetabeller!R181 -> 64420
B188: =Skyggetabeller!B182 -> Andel | D188: =Skyggetabeller!D182 -> 0.5944634566 | E188: =Skyggetabeller!E182 -> 0.606350726 | F188: =Skyggetabeller!F182 -> 0.6676947045 | G188: =Skyggetabeller!G182 -> 0.5865846505 | H188: =Skyggetabeller!H182 -> 0.5217803779 | I188: =Skyggetabeller!I182 -> 0.4251299008 | J188: =Skyggetabeller!J182 -> 0.3930385021 | K188: =Skyggetabeller!K182 -> 0.3767424338 | L188: =Skyggetabeller!L182 -> 0.3443418375 | M188: =Skyggetabeller!M182 -> 0.374251497 | N188: =Skyggetabeller!N182 -> 0.4041408897 | O188: =Skyggetabeller!O182 -> 0.3887601661 | P188: =Skyggetabeller!P182 -> 0.3434870178 | Q188: =Skyggetabeller!Q182 -> 0.3418484679 | R188: =Skyggetabeller!R182 -> 0.3880782366
B189: =Skyggetabeller!B183 -> Hele landet
B190: =Skyggetabeller!B184 -> Antal anbragte | D190: =Skyggetabeller!D184 -> 942 | E190: =Skyggetabeller!E184 -> 959 | F190: =Skyggetabeller!F184 -> 954 | G190: =Skyggetabeller!G184 -> 999 | H190: =Skyggetabeller!H184 -> 961 | I190: =Skyggetabeller!I184 -> 943 | J190: =Skyggetabeller!J184 -> 942 | K190: =Skyggetabeller!K184 -> 917 | L190: =Skyggetabeller!L184 -> 899 | M190: =Skyggetabeller!M184 -> 919 | N190: =Skyggetabeller!N184 -> 943 | O190: =Skyggetabeller!O184 -> 946 | P190: =Skyggetabeller!P184 -> 929 | Q190: =Skyggetabeller!Q184 -> 947 | R190: =Skyggetabeller!R184 -> 978
B191: =Skyggetabeller!B185 -> Antal 0-17-årige | D191: =Skyggetabeller!D185 -> 1167426 | E191: =Skyggetabeller!E185 -> 1167002 | F191: =Skyggetabeller!F185 -> 1168201 | G191: =Skyggetabeller!G185 -> 1165363 | H191: =Skyggetabeller!H185 -> 1165475 | I191: =Skyggetabeller!I185 -> 1162195 | J191: =Skyggetabeller!J185 -> 1160360 | K191: =Skyggetabeller!K185 -> 1156537 | L191: =Skyggetabeller!L185 -> 1156116 | M191: =Skyggetabeller!M185 -> 1153027 | N191: =Skyggetabeller!N185 -> 1152972 | O191: =Skyggetabeller!O185 -> 1151374 | P191: =Skyggetabeller!P185 -> 1151704 | Q191: =Skyggetabeller!Q185 -> 1157254 | R191: =Skyggetabeller!R185 -> 1155814
B192: =Skyggetabeller!B186 -> Andel | D192: =Skyggetabeller!D186 -> 0.8069033926 | E192: =Skyggetabeller!E186 -> 0.8217638016 | F192: =Skyggetabeller!F186 -> 0.8166402871 | G192: =Skyggetabeller!G186 -> 0.8572436228 | H192: =Skyggetabeller!H186 -> 0.8245565113 | I192: =Skyggetabeller!I186 -> 0.811395678 | J192: =Skyggetabeller!J186 -> 0.8118170223 | K192: =Skyggetabeller!K186 -> 0.7928842743 | L192: =Skyggetabeller!L186 -> 0.7776036315 | M192: =Skyggetabeller!M186 -> 0.7970325066 | N192: =Skyggetabeller!N186 -> 0.8178862973 | O192: =Skyggetabeller!O186 -> 0.82162703 | P192: =Skyggetabeller!P186 -> 0.8066308704 | Q192: =Skyggetabeller!Q186 -> 0.8183164629 | R192: =Skyggetabeller!R186 -> 0.8461569076
B193: Anm.: Hvis nøgletallet er angivet med * er der foretaget en diskretionering af data, da der er for få observationer.
B194: =IF('Dine valg'!$G$24="","Ingen sammenligningsgruppe valgt.","Anm.: Valgte kommuner i sammenligningsgruppen: "&'Dine valg'!$G$24&" "&'Dine valg'!$G$25&" "&'Dine valg'!$G$26&" "&'Dine valg'!$G$27&" "&'Dine valg'!$G$28&" "&'Dine valg'!$G$29&" "&'Dine valg'!$G$30) -> Anm.: Valgte kommuner i sammenligningsgruppen: Aarhus
B195: Kilde: Socialstyrelsens egne beregninger baseret på registerdata fra Danmarks Statistik.
B197: =Skyggetabeller!B189 -> Nøgletal 5: Hjemmebaserede foranstaltninger
B199: =Skyggetabeller!B192 -> Nøgletal 5: Modtagere af hjemmebaserede foranstaltninger | D199: 2016-01-01 | E199: 2016-07-01 | F199: 2017-01-01 | G199: 2017-07-01 | H199: 2018-01-01 | I199: 2018-07-01 | J199: 2019-01-01 | K199: 2019-07-01 | L199: 2020-01-01 | M199: 2020-07-01 | N199: 2021-01-01 | O199: 2021-07-01 | P199: 2022-01-01 | Q199: 2022-07-01 | R199: 2023-01-01
B200: =Skyggetabeller!B193 -> København
B201: =Skyggetabeller!B194 -> Antal modtagere | D201: =Skyggetabeller!D194 -> 1985 | E201: =Skyggetabeller!E194 -> 2101 | F201: =Skyggetabeller!F194 -> 2146 | G201: =Skyggetabeller!G194 -> 2233 | H201: =Skyggetabeller!H194 -> 2324 | I201: =Skyggetabeller!I194 -> 2384 | J201: =Skyggetabeller!J194 -> 2355 | K201: =Skyggetabeller!K194 -> 2239 | L201: =Skyggetabeller!L194 -> 2155 | M201: =Skyggetabeller!M194 -> 2139 | N201: =Skyggetabeller!N194 -> 2042 | O201: =Skyggetabeller!O194 -> 2302 | P201: =Skyggetabeller!P194 -> 2307 | Q201: =Skyggetabeller!Q194 -> 2419 | R201: =Skyggetabeller!R194 -> 2424
B202: =Skyggetabeller!B195 -> Antal 0-17-årige | D202: =Skyggetabeller!D195 -> 103578 | E202: =Skyggetabeller!E195 -> 104797 | F202: =Skyggetabeller!F195 -> 105885 | G202: =Skyggetabeller!G195 -> 106913 | H202: =Skyggetabeller!H195 -> 107770 | I202: =Skyggetabeller!I195 -> 108734 | J202: =Skyggetabeller!J195 -> 109335 | K202: =Skyggetabeller!K195 -> 110138 | L202: =Skyggetabeller!L195 -> 110822 | M202: =Skyggetabeller!M195 -> 111068 | N202: =Skyggetabeller!N195 -> 110927 | O202: =Skyggetabeller!O195 -> 110614 | P202: =Skyggetabeller!P195 -> 110513 | Q202: =Skyggetabeller!Q195 -> 110692 | R202: =Skyggetabeller!R195 -> 110835
B203: =Skyggetabeller!B196 -> Andel | D203: =Skyggetabeller!D196 -> 19.1643013 | E203: =Skyggetabeller!E196 -> 20.04828382 | F203: =Skyggetabeller!F196 -> 20.2672711 | G203: =Skyggetabeller!G196 -> 20.88614107 | H203: =Skyggetabeller!H196 -> 21.56444279 | I203: =Skyggetabeller!I196 -> 21.92506484 | J203: =Skyggetabeller!J196 -> 21.5393058 | K203: =Skyggetabeller!K196 -> 20.32904175 | L203: =Skyggetabeller!L196 -> 19.44559744 | M203: =Skyggetabeller!M196 -> 19.25847229 | N203: =Skyggetabeller!N196 -> 18.40850289 | O203: =Skyggetabeller!O196 -> 20.8111089 | P203: =Skyggetabeller!P196 -> 20.87537213 | Q203: =Skyggetabeller!Q196 -> 21.85343114 | R203: =Skyggetabeller!R196 -> 21.87034781
B204: =Skyggetabeller!B197 -> Sammenligningsgruppe, gns.
B205: =Skyggetabeller!B198 -> Antal modtagere | D205: =Skyggetabeller!D198 -> 1152 | E205: =Skyggetabeller!E198 -> 1145 | F205: =Skyggetabeller!F198 -> 1132 | G205: =Skyggetabeller!G198 -> 1080 | H205: =Skyggetabeller!H198 -> 1164 | I205: =Skyggetabeller!I198 -> 1202 | J205: =Skyggetabeller!J198 -> 1303 | K205: =Skyggetabeller!K198 -> 1297 | L205: =Skyggetabeller!L198 -> 1303 | M205: =Skyggetabeller!M198 -> 1270 | N205: =Skyggetabeller!N198 -> 1252 | O205: =Skyggetabeller!O198 -> 1224 | P205: =Skyggetabeller!P198 -> 1147 | Q205: =Skyggetabeller!Q198 -> 1112 | R205: =Skyggetabeller!R198 -> 1086
B206: =Skyggetabeller!B199 -> Antal 0-17-årige | D206: =Skyggetabeller!D199 -> 62241 | E206: =Skyggetabeller!E199 -> 62670 | F206: =Skyggetabeller!F199 -> 62903 | G206: =Skyggetabeller!G199 -> 63077 | H206: =Skyggetabeller!H199 -> 63245 | I206: =Skyggetabeller!I199 -> 63510 | J206: =Skyggetabeller!J199 -> 63607 | K206: =Skyggetabeller!K199 -> 63704 | L206: =Skyggetabeller!L199 -> 63890 | M206: =Skyggetabeller!M199 -> 64128 | N206: =Skyggetabeller!N199 -> 64334 | O206: =Skyggetabeller!O199 -> 64307 | P206: =Skyggetabeller!P199 -> 64049 | Q206: =Skyggetabeller!Q199 -> 64356 | R206: =Skyggetabeller!R199 -> 64420
B207: =Skyggetabeller!B200 -> Andel | D207: =Skyggetabeller!D200 -> 18.50870005 | E207: =Skyggetabeller!E200 -> 18.27030477 | F207: =Skyggetabeller!F200 -> 17.99596204 | G207: =Skyggetabeller!G200 -> 17.12193034 | H207: =Skyggetabeller!H200 -> 18.40461697 | I207: =Skyggetabeller!I200 -> 18.92615336 | J207: =Skyggetabeller!J200 -> 20.48516673 | K207: =Skyggetabeller!K200 -> 20.35978902 | L207: =Skyggetabeller!L200 -> 20.39442792 | M207: =Skyggetabeller!M200 -> 19.80414172 | N207: =Skyggetabeller!N200 -> 19.46093823 | O207: =Skyggetabeller!O200 -> 19.03369773 | P207: =Skyggetabeller!P200 -> 17.90816406 | Q207: =Skyggetabeller!Q200 -> 17.2788862 | R207: =Skyggetabeller!R200 -> 16.8581186
B208: =Skyggetabeller!B201 -> Hele landet
B209: =Skyggetabeller!B202 -> Antal modtagere | D209: =Skyggetabeller!D202 -> 23861 | E209: =Skyggetabeller!E202 -> 23864 | F209: =Skyggetabeller!F202 -> 23957 | G209: =Skyggetabeller!G202 -> 23985 | H209: =Skyggetabeller!H202 -> 24277 | I209: =Skyggetabeller!I202 -> 23840 | J209: =Skyggetabeller!J202 -> 24353 | K209: =Skyggetabeller!K202 -> 24158 | L209: =Skyggetabeller!L202 -> 25052 | M209: =Skyggetabeller!M202 -> 25126 | N209: =Skyggetabeller!N202 -> 25586 | O209: =Skyggetabeller!O202 -> 26506 | P209: =Skyggetabeller!P202 -> 26802 | Q209: =Skyggetabeller!Q202 -> 26911 | R209: =Skyggetabeller!R202 -> 27050
B210: =Skyggetabeller!B203 -> Antal 0-17-årige | D210: =Skyggetabeller!D203 -> 1167426 | E210: =Skyggetabeller!E203 -> 1167002 | F210: =Skyggetabeller!F203 -> 1168201 | G210: =Skyggetabeller!G203 -> 1165363 | H210: =Skyggetabeller!H203 -> 1165475 | I210: =Skyggetabeller!I203 -> 1162195 | J210: =Skyggetabeller!J203 -> 1160360 | K210: =Skyggetabeller!K203 -> 1156537 | L210: =Skyggetabeller!L203 -> 1156116 | M210: =Skyggetabeller!M203 -> 1153027 | N210: =Skyggetabeller!N203 -> 1152972 | O210: =Skyggetabeller!O203 -> 1151374 | P210: =Skyggetabeller!P203 -> 1151704 | Q210: =Skyggetabeller!Q203 -> 1157254 | R210: =Skyggetabeller!R203 -> 1155814
B211: =Skyggetabeller!B204 -> Andel | D211: =Skyggetabeller!D204 -> 20.43898286 | E211: =Skyggetabeller!E204 -> 20.44897952 | F211: =Skyggetabeller!F204 -> 20.507601 | G211: =Skyggetabeller!G204 -> 20.58156986 | H211: =Skyggetabeller!H204 -> 20.83013364 | I211: =Skyggetabeller!I204 -> 20.51290876 | J211: =Skyggetabeller!J204 -> 20.98745217 | K211: =Skyggetabeller!K204 -> 20.88822061 | L211: =Skyggetabeller!L204 -> 21.66910587 | M211: =Skyggetabeller!M204 -> 21.79133706 | N211: =Skyggetabeller!N204 -> 22.1913455 | O211: =Skyggetabeller!O204 -> 23.02119033 | P211: =Skyggetabeller!P204 -> 23.27160451 | Q211: =Skyggetabeller!Q204 -> 23.2541862 | R211: =Skyggetabeller!R204 -> 23.40341958
B212: Anm.: Hvis nøgletallet er angivet med * er der foretaget en diskretionering af data, da der er for få observationer.
B213: =IF('Dine valg'!$G$24="","Ingen sammenligningsgruppe valgt.","Anm.: Valgte kommuner i sammenligningsgruppen: "&'Dine valg'!$G$24&" "&'Dine valg'!$G$25&" "&'Dine valg'!$G$26&" "&'Dine valg'!$G$27&" "&'Dine valg'!$G$28&" "&'Dine valg'!$G$29&" "&'Dine valg'!$G$30) -> Anm.: Valgte kommuner i sammenligningsgruppen: Aarhus
B214: Kilde: Socialstyrelsens egne beregninger baseret på registerdata fra Danmarks Statistik.
B216: Undernøgletal - Hjemmebaserede foranstaltninger
B218: =Skyggetabeller!B207 -> Nøgletal 5.1 Modtagere af døgnophold for både forældremyndigheds-indehaveren, barnet eller den unge og andre medlemmer af familien | D218: 2016-01-01 | E218: 2016-07-01 | F218: 2017-01-01 | G218: 2017-07-01 | H218: 2018-01-01 | I218: 2018-07-01 | J218: 2019-01-01 | K218: 2019-07-01 | L218: 2020-01-01 | M218: 2020-07-01 | N218: 2021-01-01 | O218: 2021-07-01 | P218: 2022-01-01 | Q218: 2022-07-01 | R218: 2023-01-01
B219: =Skyggetabeller!B208 -> København
B220: =Skyggetabeller!B209 -> Antal modtagere | D220: =Skyggetabeller!D209 -> 17 | E220: =Skyggetabeller!E209 -> 10 | F220: =Skyggetabeller!F209 -> 10 | G220: =Skyggetabeller!G209 -> 14 | H220: =Skyggetabeller!H209 -> 13 | I220: =Skyggetabeller!I209 -> 14 | J220: =Skyggetabeller!J209 -> 15 | K220: =Skyggetabeller!K209 -> 9 | L220: =Skyggetabeller!L209 -> 15 | M220: =Skyggetabeller!M209 -> 8 | N220: =Skyggetabeller!N209 -> 6 | O220: =Skyggetabeller!O209 -> * | P220: =Skyggetabeller!P209 -> 11 | Q220: =Skyggetabeller!Q209 -> 9 | R220: =Skyggetabeller!R209 -> 10
B221: =Skyggetabeller!B210 -> Antal 0-17-årige | D221: =Skyggetabeller!D210 -> 103578 | E221: =Skyggetabeller!E210 -> 104797 | F221: =Skyggetabeller!F210 -> 105885 | G221: =Skyggetabeller!G210 -> 106913 | H221: =Skyggetabeller!H210 -> 107770 | I221: =Skyggetabeller!I210 -> 108734 | J221: =Skyggetabeller!J210 -> 109335 | K221: =Skyggetabeller!K210 -> 110138 | L221: =Skyggetabeller!L210 -> 110822 | M221: =Skyggetabeller!M210 -> 111068 | N221: =Skyggetabeller!N210 -> 110927 | O221: =Skyggetabeller!O210 -> 110614 | P221: =Skyggetabeller!P210 -> 110513 | Q221: =Skyggetabeller!Q210 -> 110692 | R221: =Skyggetabeller!R210 -> 110835
B222: =Skyggetabeller!B211 -> Andel | D222: =Skyggetabeller!D211 -> 0.1641275174 | E222: =Skyggetabeller!E211 -> 0.09542257889 | F222: =Skyggetabeller!F211 -> 0.09444208339 | G222: =Skyggetabeller!G211 -> 0.1309475929 | H222: =Skyggetabeller!H211 -> 0.1206272618 | I222: =Skyggetabeller!I211 -> 0.1287545754 | J222: =Skyggetabeller!J211 -> 0.1371930306 | K222: =Skyggetabeller!K211 -> 0.0817156658 | L222: =Skyggetabeller!L211 -> 0.1353521864 | M222: =Skyggetabeller!M211 -> 0.07202794684 | N222: =Skyggetabeller!N211 -> 0.05408962651 | O222: =Skyggetabeller!O211 -> * | P222: =Skyggetabeller!P211 -> 0.09953580122 | Q222: =Skyggetabeller!Q211 -> 0.08130668883 | R222: =Skyggetabeller!R211 -> 0.09022420715
B223: =Skyggetabeller!B212 -> Sammenligningsgruppe, gns.
B224: =Skyggetabeller!B213 -> Antal modtagere | D224: =Skyggetabeller!D213 -> 3 | E224: =Skyggetabeller!E213 -> 0 | F224: =Skyggetabeller!F213 -> 0 | G224: =Skyggetabeller!G213 -> 0 | H224: =Skyggetabeller!H213 -> 0 | I224: =Skyggetabeller!I213 -> 0 | J224: =Skyggetabeller!J213 -> 3 | K224: =Skyggetabeller!K213 -> 0 | L224: =Skyggetabeller!L213 -> 0 | M224: =Skyggetabeller!M213 -> 0 | N224: =Skyggetabeller!N213 -> 0 | O224: =Skyggetabeller!O213 -> 0 | P224: =Skyggetabeller!P213 -> 0 | Q224: =Skyggetabeller!Q213 -> 0 | R224: =Skyggetabeller!R213 -> 0
B225: =Skyggetabeller!B214 -> Antal 0-17-årige | D225: =Skyggetabeller!D214 -> 62241 | E225: =Skyggetabeller!E214 -> 62670 | F225: =Skyggetabeller!F214 -> 62903 | G225: =Skyggetabeller!G214 -> 63077 | H225: =Skyggetabeller!H214 -> 63245 | I225: =Skyggetabeller!I214 -> 63510 | J225: =Skyggetabeller!J214 -> 63607 | K225: =Skyggetabeller!K214 -> 63704 | L225: =Skyggetabeller!L214 -> 63890 | M225: =Skyggetabeller!M214 -> 64128 | N225: =Skyggetabeller!N214 -> 64334 | O225: =Skyggetabeller!O214 -> 64307 | P225: =Skyggetabeller!P214 -> 64049 | Q225: =Skyggetabeller!Q214 -> 64356 | R225: =Skyggetabeller!R214 -> 64420
B226: =Skyggetabeller!B215 -> Andel | D226: =Skyggetabeller!D215 -> 0.04819973972 | E226: =Skyggetabeller!E215 -> 0 | F226: =Skyggetabeller!F215 -> 0 | G226: =Skyggetabeller!G215 -> 0 | H226: =Skyggetabeller!H215 -> 0 | I226: =Skyggetabeller!I215 -> 0 | J226: =Skyggetabeller!J215 -> 0.04716462025 | K226: =Skyggetabeller!K215 -> 0 | L226: =Skyggetabeller!L215 -> 0 | M226: =Skyggetabeller!M215 -> 0 | N226: =Skyggetabeller!N215 -> 0 | O226: =Skyggetabeller!O215 -> 0 | P226: =Skyggetabeller!P215 -> 0 | Q226: =Skyggetabeller!Q215 -> 0 | R226: =Skyggetabeller!R215 -> 0
... 139 more rows

Sheet Indtastningsark
B3: ="Egne indtastninger for "&Kommune&"" -> Egne indtastninger for København
B7: Nogle af nøgletallene kan ikke baseres på nationale registerdata, men kan baseres på lokale data fra kommuner. Disse nøgletal skal du indtaste data i de blå celler neden for, hvis du gerne vil inkludere dem i din analyse. Bemærk at du for disse nøgletal ikke kan sammenligne med øvrige kommuner, regionen eller hele landet. Du kan se nøgletallene over tid ved at vælge "Nøgletalsanalyse".
B18: Vælg nøgletal
B24: =Skyggetabeller!B267 -> Nøgletal 6: Forebyggende indsatser (§ 11, stk. 3-tilbud)
B26: =Skyggetabeller!B270 -> Nøgletal 6: Modtagere af § 11, stk. 3-tilbud | D26: 2016-01-01 | E26: 2016-07-01 | F26: 2017-01-01 | G26: 2017-07-01 | H26: 2018-01-01 | I26: 2018-07-01 | J26: 2019-01-01 | K26: 2019-07-01 | L26: 2020-01-01 | M26: 2020-07-01 | N26: 2021-01-01 | O26: 2021-07-01 | P26: 2022-01-01 | Q26: 2022-07-01 | R26: 2023-01-01
B27: =Skyggetabeller!B271 -> Antal modtagere
B28: =Skyggetabeller!B272 -> Antal 0-17-årige | D28: =IFERROR(INDEX(Data_kom2,MATCH(1,(komnavn2=Kommune)*(komaar2=D$26),0),2),"Data ikke tilføjet") -> 103578 | E28: =IFERROR(INDEX(Data_kom2,MATCH(1,(komnavn2=Kommune)*(komaar2=E$26),0),2),"Data ikke tilføjet") -> 104797 | F28: =IFERROR(INDEX(Data_kom2,MATCH(1,(komnavn2=Kommune)*(komaar2=F$26),0),2),"Data ikke tilføjet") -> 105885 | G28: =IFERROR(INDEX(Data_kom2,MATCH(1,(komnavn2=Kommune)*(komaar2=G$26),0),2),"Data ikke tilføjet") -> 106913 | H28: =IFERROR(INDEX(Data_kom2,MATCH(1,(komnavn2=Kommune)*(komaar2=H$26),0),2),"Data ikke tilføjet") -> 107770 | I28: =IFERROR(INDEX(Data_kom2,MATCH(1,(komnavn2=Kommune)*(komaar2=I$26),0),2),"Data ikke tilføjet") -> 108734 | J28: =IFERROR(INDEX(Data_kom2,MATCH(1,(komnavn2=Kommune)*(komaar2=J$26),0),2),"Data ikke tilføjet") -> 109335 | K28: =IFERROR(INDEX(Data_kom2,MATCH(1,(komnavn2=Kommune)*(komaar2=K$26),0),2),"Data ikke tilføjet") -> 110138 | L28: =IFERROR(INDEX(Data_kom2,MATCH(1,(komnavn2=Kommune)*(komaar2=L$26),0),2),"Data ikke tilføjet") -> 110822 | M28: =IFERROR(INDEX(Data_kom2,MATCH(1,(komnavn2=Kommune)*(komaar2=M$26),0),2),"Data ikke tilføjet") -> 111068 | N28: =IFERROR(INDEX(Data_kom2,MATCH(1,(komnavn2=Kommune)*(komaar2=N$26),0),2),"Data ikke tilføjet") -> 110927 | O28: =IFERROR(INDEX(Data_kom2,MATCH(1,(komnavn2=Kommune)*(komaar2=O$26),0),2),"Data ikke tilføjet") -> 110614 | P28: =IFERROR(INDEX(Data_kom2,MATCH(1,(komnavn2=Kommune)*(komaar2=P$26),0),2),"Data ikke tilføjet") -> 110513 | Q28: =IFERROR(INDEX(Data_kom2,MATCH(1,(komnavn2=Kommune)*(komaar2=Q$26),0),2),"Data ikke tilføjet") -> 110692 | R28: =IFERROR(INDEX(Data_kom2,MATCH(1,(komnavn2=Kommune)*(komaar2=R$26),0),2),"Data ikke tilføjet") -> 110835
B29: =Skyggetabeller!B273 -> Andel | D29: =IFERROR(IF(D27="*","*",IF(D28=0,"Nævner er 0",(D27/D28*1000))),"Data ikke tilføjet") -> 0 | E29: =IFERROR(IF(E27="*","*",IF(E28=0,"Nævner er 0",(E27/E28*1000))),"Data ikke tilføjet") -> 0 | F29: 0 | G29: 0 | H29: 0 | I29: 0 | J29: 0 | K29: 0 | L29: 0 | M29: 0 | N29: =IFERROR(IF(N27="*","*",IF(N28=0,"Nævner er 0",(N27/N28*1000))),"Data ikke tilføjet") -> 0 | O29: 0 | P29: 0 | Q29: 0 | R29: 0
B31: =Skyggetabeller!B277 -> Nøgletal 6.1: Modtagere af myndighedsbevilgede § 11, stk. 3-tilbud | D31: 2016-01-01 | E31: 2016-07-01 | F31: 2017-01-01 | G31: 2017-07-01 | H31: 2018-01-01 | I31: 2018-07-01 | J31: 2019-01-01 | K31: 2019-07-01 | L31: 2020-01-01 | M31: 2020-07-01 | N31: 2021-01-01 | O31: 2021-07-01 | P31: 2022-01-01 | Q31: 2022-07-01 | R31: 2023-01-01
B32: =Skyggetabeller!B278 -> Antal modtagere
B33: =Skyggetabeller!B279 -> Antal 0-17-årige | D33: =IFERROR(INDEX(Data_kom2,MATCH(1,(komnavn2=Kommune)*(komaar2=D$31),0),2),"Data ikke tilføjet") -> 103578 | E33: =IFERROR(INDEX(Data_kom2,MATCH(1,(komnavn2=Kommune)*(komaar2=E$31),0),2),"Data ikke tilføjet") -> 104797 | F33: =IFERROR(INDEX(Data_kom2,MATCH(1,(komnavn2=Kommune)*(komaar2=F$31),0),2),"Data ikke tilføjet") -> 105885 | G33: =IFERROR(INDEX(Data_kom2,MATCH(1,(komnavn2=Kommune)*(komaar2=G$31),0),2),"Data ikke tilføjet") -> 106913 | H33: =IFERROR(INDEX(Data_kom2,MATCH(1,(komnavn2=Kommune)*(komaar2=H$31),0),2),"Data ikke tilføjet") -> 107770 | I33: =IFERROR(INDEX(Data_kom2,MATCH(1,(komnavn2=Kommune)*(komaar2=I$31),0),2),"Data ikke tilføjet") -> 108734 | J33: =IFERROR(INDEX(Data_kom2,MATCH(1,(komnavn2=Kommune)*(komaar2=J$31),0),2),"Data ikke tilføjet") -> 109335 | K33: =IFERROR(INDEX(Data_kom2,MATCH(1,(komnavn2=Kommune)*(komaar2=K$31),0),2),"Data ikke tilføjet") -> 110138 | L33: =IFERROR(INDEX(Data_kom2,MATCH(1,(komnavn2=Kommune)*(komaar2=L$31),0),2),"Data ikke tilføjet") -> 110822 | M33: =IFERROR(INDEX(Data_kom2,MATCH(1,(komnavn2=Kommune)*(komaar2=M$31),0),2),"Data ikke tilføjet") -> 111068 | N33: =IFERROR(INDEX(Data_kom2,MATCH(1,(komnavn2=Kommune)*(komaar2=N$31),0),2),"Data ikke tilføjet") -> 110927 | O33: =IFERROR(INDEX(Data_kom2,MATCH(1,(komnavn2=Kommune)*(komaar2=O$31),0),2),"Data ikke tilføjet") -> 110614 | P33: =IFERROR(INDEX(Data_kom2,MATCH(1,(komnavn2=Kommune)*(komaar2=P$31),0),2),"Data ikke tilføjet") -> 110513 | Q33: =IFERROR(INDEX(Data_kom2,MATCH(1,(komnavn2=Kommune)*(komaar2=Q$31),0),2),"Data ikke tilføjet") -> 110692 | R33: =IFERROR(INDEX(Data_kom2,MATCH(1,(komnavn2=Kommune)*(komaar2=R$31),0),2),"Data ikke tilføjet") -> 110835
B34: =Skyggetabeller!B280 -> Andel | D34: =IFERROR(IF(D32="*","*",IF(D33=0,"Nævner er 0",(D32/D33*1000))),"Data ikke tilføjet") -> 0 | E34: =IFERROR(IF(E32="*","*",IF(E33=0,"Nævner er 0",(E32/E33*1000))),"Data ikke tilføjet") -> 0 | F34: =IFERROR(IF(F32="*","*",IF(F33=0,"Nævner er 0",(F32/F33*1000))),"Data ikke tilføjet") -> 0 | G34: =IFERROR(IF(G32="*","*",IF(G33=0,"Nævner er 0",(G32/G33*1000))),"Data ikke tilføjet") -> 0 | H34: =IFERROR(IF(H32="*","*",IF(H33=0,"Nævner er 0",(H32/H33*1000))),"Data ikke tilføjet") -> 0 | I34: =IFERROR(IF(I32="*","*",IF(I33=0,"Nævner er 0",(I32/I33*1000))),"Data ikke tilføjet") -> 0 | J34: =IFERROR(IF(J32="*","*",IF(J33=0,"Nævner er 0",(J32/J33*1000))),"Data ikke tilføjet") -> 0 | K34: =IFERROR(IF(K32="*","*",IF(K33=0,"Nævner er 0",(K32/K33*1000))),"Data ikke tilføjet") -> 0 | L34: =IFERROR(IF(L32="*","*",IF(L33=0,"Nævner er 0",(L32/L33*1000))),"Data ikke tilføjet") -> 0 | M34: =IFERROR(IF(M32="*","*",IF(M33=0,"Nævner er 0",(M32/M33*1000))),"Data ikke tilføjet") -> 0 | N34: 0 | O34: 0 | P34: 0 | Q34: 0 | R34: 0
B36: =Skyggetabeller!B283 -> Nøgletal 6.2: Modtagere af øvrige § 11, stk. 3-tilbud | D36: 2016-01-01 | E36: 2016-07-01 | F36: 2017-01-01 | G36: 2017-07-01 | H36: 2018-01-01 | I36: 2018-07-01 | J36: 2019-01-01 | K36: 2019-07-01 | L36: 2020-01-01 | M36: 2020-07-01 | N36: 2021-01-01 | O36: 2021-07-01 | P36: 2022-01-01 | Q36: 2022-07-01 | R36: 2023-01-01
B37: =Skyggetabeller!B284 -> Antal modtagere
B38: =Skyggetabeller!B285 -> Antal 0-17-årige | D38: =IFERROR(INDEX(Data_kom2,MATCH(1,(komnavn2=Kommune)*(komaar2=D$36),0),2),"Data ikke tilføjet") -> 103578 | E38: =IFERROR(INDEX(Data_kom2,MATCH(1,(komnavn2=Kommune)*(komaar2=E$36),0),2),"Data ikke tilføjet") -> 104797 | F38: =IFERROR(INDEX(Data_kom2,MATCH(1,(komnavn2=Kommune)*(komaar2=F$36),0),2),"Data ikke tilføjet") -> 105885 | G38: =IFERROR(INDEX(Data_kom2,MATCH(1,(komnavn2=Kommune)*(komaar2=G$36),0),2),"Data ikke tilføjet") -> 106913 | H38: =IFERROR(INDEX(Data_kom2,MATCH(1,(komnavn2=Kommune)*(komaar2=H$36),0),2),"Data ikke tilføjet") -> 107770 | I38: =IFERROR(INDEX(Data_kom2,MATCH(1,(komnavn2=Kommune)*(komaar2=I$36),0),2),"Data ikke tilføjet") -> 108734 | J38: =IFERROR(INDEX(Data_kom2,MATCH(1,(komnavn2=Kommune)*(komaar2=J$36),0),2),"Data ikke tilføjet") -> 109335 | K38: =IFERROR(INDEX(Data_kom2,MATCH(1,(komnavn2=Kommune)*(komaar2=K$36),0),2),"Data ikke tilføjet") -> 110138 | L38: =IFERROR(INDEX(Data_kom2,MATCH(1,(komnavn2=Kommune)*(komaar2=L$36),0),2),"Data ikke tilføjet") -> 110822 | M38: =IFERROR(INDEX(Data_kom2,MATCH(1,(komnavn2=Kommune)*(komaar2=M$36),0),2),"Data ikke tilføjet") -> 111068 | N38: =IFERROR(INDEX(Data_kom2,MATCH(1,(komnavn2=Kommune)*(komaar2=N$36),0),2),"Data ikke tilføjet") -> 110927 | O38: =IFERROR(INDEX(Data_kom2,MATCH(1,(komnavn2=Kommune)*(komaar2=O$36),0),2),"Data ikke tilføjet") -> 110614 | P38: =IFERROR(INDEX(Data_kom2,MATCH(1,(komnavn2=Kommune)*(komaar2=P$36),0),2),"Data ikke tilføjet") -> 110513 | Q38: =IFERROR(INDEX(Data_kom2,MATCH(1,(komnavn2=Kommune)*(komaar2=Q$36),0),2),"Data ikke tilføjet") -> 110692 | R38: =IFERROR(INDEX(Data_kom2,MATCH(1,(komnavn2=Kommune)*(komaar2=R$36),0),2),"Data ikke tilføjet") -> 110835
B39: =Skyggetabeller!B286 -> Andel | D39: =IFERROR(IF(D37="*","*",IF(D38=0,"Nævner er 0",(D37/D38*1000))),"Data ikke tilføjet") -> 0 | E39: =IFERROR(IF(E37="*","*",IF(E38=0,"Nævner er 0",(E37/E38*1000))),"Data ikke tilføjet") -> 0 | F39: =IFERROR(IF(F37="*","*",IF(F38=0,"Nævner er 0",(F37/F38*1000))),"Data ikke tilføjet") -> 0 | G39: =IFERROR(IF(G37="*","*",IF(G38=0,"Nævner er 0",(G37/G38*1000))),"Data ikke tilføjet") -> 0 | H39: =IFERROR(IF(H37="*","*",IF(H38=0,"Nævner er 0",(H37/H38*1000))),"Data ikke tilføjet") -> 0 | I39: =IFERROR(IF(I37="*","*",IF(I38=0,"Nævner er 0",(I37/I38*1000))),"Data ikke tilføjet") -> 0 | J39: =IFERROR(IF(J37="*","*",IF(J38=0,"Nævner er 0",(J37/J38*1000))),"Data ikke tilføjet") -> 0 | K39: =IFERROR(IF(K37="*","*",IF(K38=0,"Nævner er 0",(K37/K38*1000))),"Data ikke tilføjet") -> 0 | L39: =IFERROR(IF(L37="*","*",IF(L38=0,"Nævner er 0",(L37/L38*1000))),"Data ikke tilføjet") -> 0 | M39: =IFERROR(IF(M37="*","*",IF(M38=0,"Nævner er 0",(M37/M38*1000))),"Data ikke tilføjet") -> 0 | N39: 0 | O39: 0 | P39: 0 | Q39: 0 | R39: 0
B41: =Skyggetabeller!B373 -> Nøgletal 10: Fra forebyggende indsatser og op ad trappen
B43: =Skyggetabeller!B376 -> Nøgletal 10: Tidligere modtagere af forebyggende indsatser, som nu er rykket ned ad trappen | D43: 2016-01-01 | E43: 2016-07-01 | F43: 2017-01-01 | G43: 2017-07-01 | H43: 2018-01-01 | I43: 2018-07-01 | J43: 2019-01-01 | K43: 2019-07-01 | L43: 2020-01-01 | M43: 2020-07-01 | N43: 2021-01-01 | O43: 2021-07-01 | P43: 2022-01-01 | Q43: 2022-07-01 | R43: 2023-01-01
B44: =Skyggetabeller!B377 -> Antal, der har bevæget sig
B45: =Skyggetabeller!B378 -> Antal tidligere modtagere
B46: =Skyggetabeller!B379 -> Andel | D46: =IFERROR(IF(D44="*","*",IF(D45=0,"Nævner er 0",(D44/D45))),"Data ikke tilføjet") -> Nævner er 0 | E46: =IFERROR(IF(E44="*","*",IF(E45=0,"Nævner er 0",(E44/E45))),"Data ikke tilføjet") -> Nævner er 0 | F46: =IFERROR(IF(F44="*","*",IF(F45=0,"Nævner er 0",(F44/F45))),"Data ikke tilføjet") -> Nævner er 0 | G46: =IFERROR(IF(G44="*","*",IF(G45=0,"Nævner er 0",(G44/G45))),"Data ikke tilføjet") -> Nævner er 0 | H46: =IFERROR(IF(H44="*","*",IF(H45=0,"Nævner er 0",(H44/H45))),"Data ikke tilføjet") -> Nævner er 0 | I46: =IFERROR(IF(I44="*","*",IF(I45=0,"Nævner er 0",(I44/I45))),"Data ikke tilføjet") -> Nævner er 0 | J46: =IFERROR(IF(J44="*","*",IF(J45=0,"Nævner er 0",(J44/J45))),"Data ikke tilføjet") -> Nævner er 0 | K46: =IFERROR(IF(K44="*","*",IF(K45=0,"Nævner er 0",(K44/K45))),"Data ikke tilføjet") -> Nævner er 0 | L46: =IFERROR(IF(L44="*","*",IF(L45=0,"Nævner er 0",(L44/L45))),"Data ikke tilføjet") -> Nævner er 0 | M46: =IFERROR(IF(M44="*","*",IF(M45=0,"Nævner er 0",(M44/M45))),"Data ikke tilføjet") -> Nævner er 0 | N46: =IFERROR(IF(N44="*","*",IF(N45=0,"Nævner er 0",(N44/N45))),"Data ikke tilføjet") -> Nævner er 0 | O46: =IFERROR(IF(O44="*","*",IF(O45=0,"Nævner er 0",(O44/O45))),"Data ikke tilføjet") -> Nævner er 0 | P46: =IFERROR(IF(P44="*","*",IF(P45=0,"Nævner er 0",(P44/P45))),"Data ikke tilføjet") -> Nævner er 0 | Q46: =IFERROR(IF(Q44="*","*",IF(Q45=0,"Nævner er 0",(Q44/Q45))),"Data ikke tilføjet") -> Nævner er 0 | R46: =IFERROR(IF(R44="*","*",IF(R45=0,"Nævner er 0",(R44/R45))),"Data ikke tilføjet") -> Nævner er 0
B48: =Skyggetabeller!B383 -> Nøgletal 10.1: Tidligere modtagere af myndighedsbevilget § 11, stk. 3-indsats, som nu er rykket ned ad trappen | D48: 2016-01-01 | E48: 2016-07-01 | F48: 2017-01-01 | G48: 2017-07-01 | H48: 2018-01-01 | I48: 2018-07-01 | J48: 2019-01-01 | K48: 2019-07-01 | L48: 2020-01-01 | M48: 2020-07-01 | N48: 2021-01-01 | O48: 2021-07-01 | P48: 2022-01-01 | Q48: 2022-07-01 | R48: 2023-01-01
B49: =Skyggetabeller!B384 -> Antal, der har bevæget sig
B50: =Skyggetabeller!B385 -> Antal tidligere modtagere
B51: =Skyggetabeller!B386 -> Andel | D51: =IFERROR(IF(D49="*","*",IF(D50=0,"Nævner er 0",(D49/D50))),"Data ikke tilføjet") -> Nævner er 0 | E51: =IFERROR(IF(E49="*","*",IF(E50=0,"Nævner er 0",(E49/E50))),"Data ikke tilføjet") -> Nævner er 0 | F51: =IFERROR(IF(F49="*","*",IF(F50=0,"Nævner er 0",(F49/F50))),"Data ikke tilføjet") -> Nævner er 0 | G51: =IFERROR(IF(G49="*","*",IF(G50=0,"Nævner er 0",(G49/G50))),"Data ikke tilføjet") -> Nævner er 0 | H51: =IFERROR(IF(H49="*","*",IF(H50=0,"Nævner er 0",(H49/H50))),"Data ikke tilføjet") -> Nævner er 0 | I51: =IFERROR(IF(I49="*","*",IF(I50=0,"Nævner er 0",(I49/I50))),"Data ikke tilføjet") -> Nævner er 0 | J51: =IFERROR(IF(J49="*","*",IF(J50=0,"Nævner er 0",(J49/J50))),"Data ikke tilføjet") -> Nævner er 0 | K51: =IFERROR(IF(K49="*","*",IF(K50=0,"Nævner er 0",(K49/K50))),"Data ikke tilføjet") -> Nævner er 0 | L51: =IFERROR(IF(L49="*","*",IF(L50=0,"Nævner er 0",(L49/L50))),"Data ikke tilføjet") -> Nævner er 0 | M51: =IFERROR(IF(M49="*","*",IF(M50=0,"Nævner er 0",(M49/M50))),"Data ikke tilføjet") -> Nævner er 0 | N51: =IFERROR(IF(N49="*","*",IF(N50=0,"Nævner er 0",(N49/N50))),"Data ikke tilføjet") -> Nævner er 0 | O51: =IFERROR(IF(O49="*","*",IF(O50=0,"Nævner er 0",(O49/O50))),"Data ikke tilføjet") -> Nævner er 0 | P51: =IFERROR(IF(P49="*","*",IF(P50=0,"Nævner er 0",(P49/P50))),"Data ikke tilføjet") -> Nævner er 0 | Q51: =IFERROR(IF(Q49="*","*",IF(Q50=0,"Nævner er 0",(Q49/Q50))),"Data ikke tilføjet") -> Nævner er 0 | R51: =IFERROR(IF(R49="*","*",IF(R50=0,"Nævner er 0",(R49/R50))),"Data ikke tilføjet") -> Nævner er 0
B53: =Skyggetabeller!B390 -> Nøgletal 10.2: Tidligere modtagere af ikke-myndighedsbevilget § 11, stk. 3-indsats, som nu er rykket ned ad trappen | D53: 2016-01-01 | E53: 2016-07-01 | F53: 2017-01-01 | G53: 2017-07-01 | H53: 2018-01-01 | I53: 2018-07-01 | J53: 2019-01-01 | K53: 2019-07-01 | L53: 2020-01-01 | M53: 2020-07-01 | N53: 2021-01-01 | O53: 2021-07-01 | P53: 2022-01-01 | Q53: 2022-07-01 | R53: 2023-01-01
B54: =Skyggetabeller!B391 -> Antal, der har bevæget sig
B55: =Skyggetabeller!B392 -> Antal tidligere modtagere
B56: =Skyggetabeller!B393 -> Andel | D56: =IFERROR(IF(D54="*","*",IF(D55=0,"Nævner er 0",(D54/D55))),"Data ikke tilføjet") -> Nævner er 0 | E56: =IFERROR(IF(E54="*","*",IF(E55=0,"Nævner er 0",(E54/E55))),"Data ikke tilføjet") -> Nævner er 0 | F56: =IFERROR(IF(F54="*","*",IF(F55=0,"Nævner er 0",(F54/F55))),"Data ikke tilføjet") -> Nævner er 0 | G56: =IFERROR(IF(G54="*","*",IF(G55=0,"Nævner er 0",(G54/G55))),"Data ikke tilføjet") -> Nævner er 0 | H56: =IFERROR(IF(H54="*","*",IF(H55=0,"Nævner er 0",(H54/H55))),"Data ikke tilføjet") -> Nævner er 0 | I56: =IFERROR(IF(I54="*","*",IF(I55=0,"Nævner er 0",(I54/I55))),"Data ikke tilføjet") -> Nævner er 0 | J56: =IFERROR(IF(J54="*","*",IF(J55=0,"Nævner er 0",(J54/J55))),"Data ikke tilføjet") -> Nævner er 0 | K56: =IFERROR(IF(K54="*","*",IF(K55=0,"Nævner er 0",(K54/K55))),"Data ikke tilføjet") -> Nævner er 0 | L56: =IFERROR(IF(L54="*","*",IF(L55=0,"Nævner er 0",(L54/L55))),"Data ikke tilføjet") -> Nævner er 0 | M56: =IFERROR(IF(M54="*","*",IF(M55=0,"Nævner er 0",(M54/M55))),"Data ikke tilføjet") -> Nævner er 0 | N56: =IFERROR(IF(N54="*","*",IF(N55=0,"Nævner er 0",(N54/N55))),"Data ikke tilføjet") -> Nævner er 0 | O56: =IFERROR(IF(O54="*","*",IF(O55=0,"Nævner er 0",(O54/O55))),"Data ikke tilføjet") -> Nævner er 0 | P56: =IFERROR(IF(P54="*","*",IF(P55=0,"Nævner er 0",(P54/P55))),"Data ikke tilføjet") -> Nævner er 0 | Q56: =IFERROR(IF(Q54="*","*",IF(Q55=0,"Nævner er 0",(Q54/Q55))),"Data ikke tilføjet") -> Nævner er 0 | R56: =IFERROR(IF(R54="*","*",IF(R55=0,"Nævner er 0",(R54/R55))),"Data ikke tilføjet") -> Nævner er 0
B58: =Skyggetabeller!B396 -> Nøgletal 11: Frekvens af opfølgninger
B60: =Skyggetabeller!B399 -> Nøgletal 11.1: Frekvens i opfølgninger for institutionsanbringelser | D60: 2016-01-01 | E60: 2016-07-01 | F60: 2017-01-01 | G60: 2017-07-01 | H60: 2018-01-01 | I60: 2018-07-01 | J60: 2019-01-01 | K60: 2019-07-01 | L60: 2020-01-01 | M60: 2020-07-01 | N60: 2021-01-01 | O60: 2021-07-01 | P60: 2022-01-01 | Q60: 2022-07-01 | R60: 2023-01-01
B61: =Skyggetabeller!B400 -> Antal dage
B62: =Skyggetabeller!B401 -> Antal opfølgninger
B63: =Skyggetabeller!B402 -> Varighed | D63: =IFERROR(IF(D61="*","*",IF(D62=0,"Nævner er 0",(D61/D62))),"Data ikke tilføjet") -> Nævner er 0 | E63: =IFERROR(IF(E61="*","*",IF(E62=0,"Nævner er 0",(E61/E62))),"Data ikke tilføjet") -> Nævner er 0 | F63: =IFERROR(IF(F61="*","*",IF(F62=0,"Nævner er 0",(F61/F62))),"Data ikke tilføjet") -> Nævner er 0 | G63: =IFERROR(IF(G61="*","*",IF(G62=0,"Nævner er 0",(G61/G62))),"Data ikke tilføjet") -> Nævner er 0 | H63: =IFERROR(IF(H61="*","*",IF(H62=0,"Nævner er 0",(H61/H62))),"Data ikke tilføjet") -> Nævner er 0 | I63: =IFERROR(IF(I61="*","*",IF(I62=0,"Nævner er 0",(I61/I62))),"Data ikke tilføjet") -> Nævner er 0 | J63: =IFERROR(IF(J61="*","*",IF(J62=0,"Nævner er 0",(J61/J62))),"Data ikke tilføjet") -> Nævner er 0 | K63: =IFERROR(IF(K61="*","*",IF(K62=0,"Nævner er 0",(K61/K62))),"Data ikke tilføjet") -> Nævner er 0 | L63: =IFERROR(IF(L61="*","*",IF(L62=0,"Nævner er 0",(L61/L62))),"Data ikke tilføjet") -> Nævner er 0 | M63: =IFERROR(IF(M61="*","*",IF(M62=0,"Nævner er 0",(M61/M62))),"Data ikke tilføjet") -> Nævner er 0 | N63: =IFERROR(IF(N61="*","*",IF(N62=0,"Nævner er 0",(N61/N62))),"Data ikke tilføjet") -> Nævner er 0 | O63: =IFERROR(IF(O61="*","*",IF(O62=0,"Nævner er 0",(O61/O62))),"Data ikke tilføjet") -> Nævner er 0 | P63: =IFERROR(IF(P61="*","*",IF(P62=0,"Nævner er 0",(P61/P62))),"Data ikke tilføjet") -> Nævner er 0 | Q63: =IFERROR(IF(Q61="*","*",IF(Q62=0,"Nævner er 0",(Q61/Q62))),"Data ikke tilføjet") -> Nævner er 0 | R63: =IFERROR(IF(R61="*","*",IF(R62=0,"Nævner er 0",(R61/R62))),"Data ikke tilføjet") -> Nævner er 0
B65: =Skyggetabeller!B404 -> Nøgletal 11.2: Frekvens i opfølgninger for plejefamilier | D65: 2016-01-01 | E65: 2016-07-01 | F65: 2017-01-01 | G65: 2017-07-01 | H65: 2018-01-01 | I65: 2018-07-01 | J65: 2019-01-01 | K65: 2019-07-01 | L65: 2020-01-01 | M65: 2020-07-01 | N65: 2021-01-01 | O65: 2021-07-01 | P65: 2022-01-01 | Q65: 2022-07-01 | R65: 2023-01-01
B66: =Skyggetabeller!B405 -> Antal dage
B67: =Skyggetabeller!B406 -> Antal opfølgninger
B68: =Skyggetabeller!B407 -> Varighed | D68: =IFERROR(IF(D66="*","*",IF(D67=0,"Nævner er 0",(D66/D67))),"Data ikke tilføjet") -> Nævner er 0 | E68: =IFERROR(IF(E66="*","*",IF(E67=0,"Nævner er 0",(E66/E67))),"Data ikke tilføjet") -> Nævner er 0 | F68: =IFERROR(IF(F66="*","*",IF(F67=0,"Nævner er 0",(F66/F67))),"Data ikke tilføjet") -> Nævner er 0 | G68: =IFERROR(IF(G66="*","*",IF(G67=0,"Nævner er 0",(G66/G67))),"Data ikke tilføjet") -> Nævner er 0 | H68: =IFERROR(IF(H66="*","*",IF(H67=0,"Nævner er 0",(H66/H67))),"Data ikke tilføjet") -> Nævner er 0 | I68: =IFERROR(IF(I66="*","*",IF(I67=0,"Nævner er 0",(I66/I67))),"Data ikke tilføjet") -> Nævner er 0 | J68: =IFERROR(IF(J66="*","*",IF(J67=0,"Nævner er 0",(J66/J67))),"Data ikke tilføjet") -> Nævner er 0 | K68: =IFERROR(IF(K66="*","*",IF(K67=0,"Nævner er 0",(K66/K67))),"Data ikke tilføjet") -> Nævner er 0 | L68: =IFERROR(IF(L66="*","*",IF(L67=0,"Nævner er 0",(L66/L67))),"Data ikke tilføjet") -> Nævner er 0 | M68: =IFERROR(IF(M66="*","*",IF(M67=0,"Nævner er 0",(M66/M67))),"Data ikke tilføjet") -> Nævner er 0 | N68: =IFERROR(IF(N66="*","*",IF(N67=0,"Nævner er 0",(N66/N67))),"Data ikke tilføjet") -> Nævner er 0 | O68: =IFERROR(IF(O66="*","*",IF(O67=0,"Nævner er 0",(O66/O67))),"Data ikke tilføjet") -> Nævner er 0 | P68: =IFERROR(IF(P66="*","*",IF(P67=0,"Nævner er 0",(P66/P67))),"Data ikke tilføjet") -> Nævner er 0 | Q68: =IFERROR(IF(Q66="*","*",IF(Q67=0,"Nævner er 0",(Q66/Q67))),"Data ikke tilføjet") -> Nævner er 0 | R68: =IFERROR(IF(R66="*","*",IF(R67=0,"Nævner er 0",(R66/R67))),"Data ikke tilføjet") -> Nævner er 0
B70: =Skyggetabeller!B409 -> Nøgletal 11.3: Frekvens i opfølgninger for hjemmebaserede foranstaltninger | D70: 2016-01-01 | E70: 2016-07-01 | F70: 2017-01-01 | G70: 2017-07-01 | H70: 2018-01-01 | I70: 2018-07-01 | J70: 2019-01-01 | K70: 2019-07-01 | L70: 2020-01-01 | M70: 2020-07-01 | N70: 2021-01-01 | O70: 2021-07-01 | P70: 2022-01-01 | Q70: 2022-07-01 | R70: 2023-01-01
B71: =Skyggetabeller!B410 -> Antal dage
B72: =Skyggetabeller!B411 -> Antal opfølgninger
B73: =Skyggetabeller!B412 -> Varighed | D73: =IFERROR(IF(D71="*","*",IF(D72=0,"Nævner er 0",(D71/D72))),"Data ikke tilføjet") -> Nævner er 0 | E73: =IFERROR(IF(E71="*","*",IF(E72=0,"Nævner er 0",(E71/E72))),"Data ikke tilføjet") -> Nævner er 0 | F73: =IFERROR(IF(F71="*","*",IF(F72=0,"Nævner er 0",(F71/F72))),"Data ikke tilføjet") -> Nævner er 0 | G73: =IFERROR(IF(G71="*","*",IF(G72=0,"Nævner er 0",(G71/G72))),"Data ikke tilføjet") -> Nævner er 0 | H73: =IFERROR(IF(H71="*","*",IF(H72=0,"Nævner er 0",(H71/H72))),"Data ikke tilføjet") -> Nævner er 0 | I73: =IFERROR(IF(I71="*","*",IF(I72=0,"Nævner er 0",(I71/I72))),"Data ikke tilføjet") -> Nævner er 0 | J73: =IFERROR(IF(J71="*","*",IF(J72=0,"Nævner er 0",(J71/J72))),"Data ikke tilføjet") -> Nævner er 0 | K73: =IFERROR(IF(K71="*","*",IF(K72=0,"Nævner er 0",(K71/K72))),"Data ikke tilføjet") -> Nævner er 0 | L73: =IFERROR(IF(L71="*","*",IF(L72=0,"Nævner er 0",(L71/L72))),"Data ikke tilføjet") -> Nævner er 0 | M73: =IFERROR(IF(M71="*","*",IF(M72=0,"Nævner er 0",(M71/M72))),"Data ikke tilføjet") -> Nævner er 0 | N73: =IFERROR(IF(N71="*","*",IF(N72=0,"Nævner er 0",(N71/N72))),"Data ikke tilføjet") -> Nævner er 0 | O73: =IFERROR(IF(O71="*","*",IF(O72=0,"Nævner er 0",(O71/O72))),"Data ikke tilføjet") -> Nævner er 0 | P73: =IFERROR(IF(P71="*","*",IF(P72=0,"Nævner er 0",(P71/P72))),"Data ikke tilføjet") -> Nævner er 0 | Q73: =IFERROR(IF(Q71="*","*",IF(Q72=0,"Nævner er 0",(Q71/Q72))),"Data ikke tilføjet") -> Nævner er 0 | R73: =IFERROR(IF(R71="*","*",IF(R72=0,"Nævner er 0",(R71/R72))),"Data ikke tilføjet") -> Nævner er 0

Sheet Nøgletalsanalyse
B4: Nøgletalsanalyse | U4: 20181
B8: På denne side kan du se nøgletallene for din valgte kommune over tid og sammenligne med din valgte gruppe af sammenligningskommuner og hele landet. Du kan vælge det nøgletal, du ønsker at se i rullemenuen nedenfor. Du kan også vælge at se alle nøgletal på én gang. Som udgangspunkt er nøgletallene illustreret som figurer, men du kan folde den tilhørende tabel ud under figuren, hvis du ønsker at se de data, der afbilledes i figuren. Du folder tabellerne ud ved at benytte de røde pile til venstre for tabeloverskriften. Nøgletal 6, 10 og 11 er baseret på kommunes egne indtastninger. Så her er graferne tomme, medminde du har indtastet data under "Egne indtastninger". Ved alle nøgletallenes grafik er der infoknapper indeholdende nøgletallets definition, datakilde og opdateringsfrekvens. Til højre for nøgletallenes første figur er en tekstboks med forudfyldt tekst. Ønsker du at lave en rapport med nøgletallene, kan du bruge tekstboksen til at skrive tekst til figuren. Den forudfyldte tekst kan anvendes eller slettes efter behov. Teksten i tekstboksen printes sammen med figuren i rapporten, hvis du vælger nøgletallet under "Print rapport" i den røde bjælke.
B12: Vælg nøgletal
B13: =VLOOKUP(NT_valg,Data!F1674:F1685,2,FALSE) -> 
B17: =Skyggetabeller!B6 -> Nøgletal 1: Institutionsanbringelser
B19: Figur 1: Institutionsanbringelser | M19: Benyt, slet eller erstat gerne følgende tekst til beskrivelse af udviklingen over tid for det pågældende nøgletal. Beskrivelsen vil blive indsat i rapporten (skriv maks 20 linjer):
Z24: =Q2110 -> 0
B43: =Registerdata!$B$30 -> Anm.: Hvis nøgletallet er angivet med * er der foretaget en diskretionering af data, da der er for få observationer.
B44: =IF('Dine valg'!$G$24="","Ingen sammenligningsgruppe valgt.","Anm.: Valgte kommuner i sammenligningsgruppen: "&'Dine valg'!$G$24&" "&'Dine valg'!$G$25&" "&'Dine valg'!$G$26&" "&'Dine valg'!$G$27&" "&'Dine valg'!$G$28&" "&'Dine valg'!$G$29&" "&'Dine valg'!$G$30) -> Anm.: Valgte kommuner i sammenligningsgruppen: Aarhus
B45: =Registerdata!$B$32 -> Kilde: Socialstyrelsens egne beregninger baseret på registerdata fra Danmarks Statistik.
B47: =Årstal -> Tabel 1: Institutionsanbringelser
B49: =Skyggetabeller!B9 -> Nøgletal 1: Institutionsanbringelser | D49: 2016-01-01 | E49: 2016-07-01 | F49: 2017-01-01 | G49: 2017-07-01 | H49: 2018-01-01 | I49: 2018-07-01 | J49: 2019-01-01 | K49: 2019-07-01 | L49: 2020-01-01 | M49: 2020-07-01
B50: =Skyggetabeller!B10 -> København
B51: =Skyggetabeller!B13 -> Andel | D51: =Skyggetabeller!D13 -> 2.220548765 | E51: =Skyggetabeller!E13 -> 2.223346088 | F51: =Skyggetabeller!F13 -> 2.115502668 | G51: =Skyggetabeller!G13 -> 2.113868285 | H51: =Skyggetabeller!H13 -> 1.985710309 | I51: =Skyggetabeller!I13 -> 1.995695918 | J51: =Skyggetabeller!J13 -> 1.865825216 | K51: =Skyggetabeller!K13 -> 1.752347056 | L51: =Skyggetabeller!L13 -> 1.443756655 | M51: =Skyggetabeller!M13 -> 1.620628804
B52: =Skyggetabeller!B12 -> Antal 0-17-årige | D52: =Skyggetabeller!D12 -> 103578 | E52: =Skyggetabeller!E12 -> 104797 | F52: =Skyggetabeller!F12 -> 105885 | G52: =Skyggetabeller!G12 -> 106913 | H52: =Skyggetabeller!H12 -> 107770 | I52: =Skyggetabeller!I12 -> 108734 | J52: =Skyggetabeller!J12 -> 109335 | K52: =Skyggetabeller!K12 -> 110138 | L52: =Skyggetabeller!L12 -> 110822 | M52: =Skyggetabeller!M12 -> 111068
B53: =Skyggetabeller!B14 -> Sammenligningsgruppe, gns.
B54: =Skyggetabeller!B17 -> Andel | D54: =Skyggetabeller!D17 -> 3.036583602 | E54: =Skyggetabeller!E17 -> 3.239189405 | F54: =Skyggetabeller!F17 -> 3.036421156 | G54: =Skyggetabeller!G17 -> 3.012191449 | H54: =Skyggetabeller!H17 -> 2.846074789 | I54: =Skyggetabeller!I17 -> 2.645252716 | J54: =Skyggetabeller!J17 -> 2.735547974 | K54: =Skyggetabeller!K17 -> 2.79417305 | L54: =Skyggetabeller!L17 -> 2.676475192 | M54: =Skyggetabeller!M17 -> 2.697729541
B55: =Skyggetabeller!B16 -> Antal 0-17-årige | D55: =Skyggetabeller!D16 -> 62241 | E55: =Skyggetabeller!E16 -> 62670 | F55: =Skyggetabeller!F16 -> 62903 | G55: =Skyggetabeller!G16 -> 63077 | H55: =Skyggetabeller!H16 -> 63245 | I55: =Skyggetabeller!I16 -> 63510 | J55: =Skyggetabeller!J16 -> 63607 | K55: =Skyggetabeller!K16 -> 63704 | L55: =Skyggetabeller!L16 -> 63890 | M55: =Skyggetabeller!M16 -> 64128
B56: =Skyggetabeller!B18 -> Hele landet
B57: =Skyggetabeller!B21 -> Andel | D57: =Skyggetabeller!D21 -> 2.944940407 | E57: =Skyggetabeller!E21 -> 2.942582789 | F57: =Skyggetabeller!F21 -> 2.894193722 | G57: =Skyggetabeller!G21 -> 2.971606272 | H57: =Skyggetabeller!H21 -> 2.895815011 | I57: =Skyggetabeller!I21 -> 2.926359174 | J57: =Skyggetabeller!J21 -> 2.84222138 | K57: =Skyggetabeller!K21 -> 2.832594201 | L57: =Skyggetabeller!L21 -> 2.826705971 | M57: =Skyggetabeller!M21 -> 2.888917606
B58: =Skyggetabeller!B20 -> Antal 0-17-årige | D58: =Skyggetabeller!D20 -> 1167426 | E58: =Skyggetabeller!E20 -> 1167002 | F58: =Skyggetabeller!F20 -> 1168201 | G58: =Skyggetabeller!G20 -> 1165363 | H58: =Skyggetabeller!H20 -> 1165475 | I58: =Skyggetabeller!I20 -> 1162195 | J58: =Skyggetabeller!J20 -> 1160360 | K58: =Skyggetabeller!K20 -> 1156537 | L58: =Skyggetabeller!L20 -> 1156116 | M58: =Skyggetabeller!M20 -> 1153027
B59: =Registerdata!$B$30 -> Anm.: Hvis nøgletallet er angivet med * er der foretaget en diskretionering af data, da der er for få observationer.
B60: =IF('Dine valg'!$G$24="","Ingen sammenligningsgruppe valgt.","Anm.: Valgte kommuner i sammenligningsgruppen: "&'Dine valg'!$G$24&" "&'Dine valg'!$G$25&" "&'Dine valg'!$G$26&" "&'Dine valg'!$G$27&" "&'Dine valg'!$G$28&" "&'Dine valg'!$G$29&" "&'Dine valg'!$G$30) -> Anm.: Valgte kommuner i sammenligningsgruppen: Aarhus
B61: =Registerdata!$B$32 -> Kilde: Socialstyrelsens egne beregninger baseret på registerdata fra Danmarks Statistik.
B63: Figur 1.1: Anbragte på døgninstitutioner | G63: Figur 1.2 Anbringelser på sikrede døgninstitutioner | M63: Figur 1.3: Anbragte på socialpædagogiske opholdssteder
B82: Anm.: Hvis nøgletallet har værdien 0 i grafen kan det enten betyde 0 %, eller at der er foretaget en diskretionering af data, da der er for få observationer. Se tilhørende tabel for værdien.
B83: =IF('Dine valg'!$G$24="","Ingen sammenligningsgruppe valgt.","Anm.: Valgte kommuner i sammenligningsgruppen: "&'Dine valg'!$G$24&" "&'Dine valg'!$G$25&" "&'Dine valg'!$G$26&" "&'Dine valg'!$G$27&" "&'Dine valg'!$G$28&" "&'Dine valg'!$G$29&" "&'Dine valg'!$G$30) -> Anm.: Valgte kommuner i sammenligningsgruppen: Aarhus
B84: =Registerdata!$B$32 -> Kilde: Socialstyrelsens egne beregninger baseret på registerdata fra Danmarks Statistik.
B87: =Skyggetabeller!B23 -> Tabel 1.1: Anbragte på døgninstitutioner
B89: =Skyggetabeller!B24 -> Nøgletal 1.1 Anbragte på døgninstitutioner | D89: 2016-01-01 | E89: 2016-07-01 | F89: 2017-01-01 | G89: 2017-07-01 | H89: 2018-01-01 | I89: 2018-07-01 | J89: 2019-01-01 | K89: 2019-07-01 | L89: 2020-01-01 | M89: 2020-07-01 | N89: 2021-01-01 | O89: 2021-07-01 | P89: 2022-01-01 | Q89: 2022-07-01 | R89: 2023-01-01
B90: =Skyggetabeller!B25 -> København
B91: =Skyggetabeller!B28 -> Andel | D91: =Skyggetabeller!D28 -> 0.7347826087 | E91: =Skyggetabeller!E28 -> 0.7510729614 | F91: =Skyggetabeller!F28 -> 0.7589285714 | G91: =Skyggetabeller!G28 -> 0.8008849558 | H91: =Skyggetabeller!H28 -> 0.8130841121 | I91: =Skyggetabeller!I28 -> 0.801843318 | J91: =Skyggetabeller!J28 -> 0.7892156863 | K91: =Skyggetabeller!K28 -> 0.792746114 | L91: =Skyggetabeller!L28 -> 0.86875 | M91: =Skyggetabeller!M28 -> 0.8166666667 | N91: =Skyggetabeller!N28 -> 0.7910447761 | O91: =Skyggetabeller!O28 -> 0.7534246575 | P91: =Skyggetabeller!P28 -> 0.797235023 | Q91: =Skyggetabeller!Q28 -> 0.8065843621 | R91: =Skyggetabeller!R28 -> 0.8064516129
B92: =Skyggetabeller!B29 -> Sammenligningsgruppe, gns.
B93: =Skyggetabeller!B32 -> Andel | D93: =Skyggetabeller!D32 -> 0.671957672 | E93: =Skyggetabeller!E32 -> 0.6798029557 | F93: =Skyggetabeller!F32 -> 0.6963350785 | G93: =Skyggetabeller!G32 -> 0.7 | H93: =Skyggetabeller!H32 -> 0.6611111111 | I93: =Skyggetabeller!I32 -> 0.6904761905 | J93: =Skyggetabeller!J32 -> 0.6781609195 | K93: =Skyggetabeller!K32 -> 0.7134831461 | L93: =Skyggetabeller!L32 -> 0.701754386 | M93: =Skyggetabeller!M32 -> 0.7341040462 | N93: =Skyggetabeller!N32 -> 0.7028571429 | O93: =Skyggetabeller!O32 -> 0.6742857143 | P93: =Skyggetabeller!P32 -> 0.6770186335 | Q93: =Skyggetabeller!Q32 -> 0.6264367816 | R93: =Skyggetabeller!R32 -> 0.6547619048
B94: =Skyggetabeller!B33 -> Hele landet
B95: =Skyggetabeller!B36 -> Andel | D95: =Skyggetabeller!D36 -> 0.5322862129 | E95: =Skyggetabeller!E36 -> 0.5366919045 | F95: =Skyggetabeller!F36 -> 0.536823425 | G95: =Skyggetabeller!G36 -> 0.5223794398 | H95: =Skyggetabeller!H36 -> 0.5214814815 | I95: =Skyggetabeller!I36 -> 0.5207291973 | J95: =Skyggetabeller!J36 -> 0.5118253487 | K95: =Skyggetabeller!K36 -> 0.5146520147 | L95: =Skyggetabeller!L36 -> 0.5125458996 | M95: =Skyggetabeller!M36 -> 0.5001501051 | N95: =Skyggetabeller!N36 -> 0.5016219404 | O95: =Skyggetabeller!O36 -> 0.4851968957 | P95: =Skyggetabeller!P36 -> 0.4910404624 | Q95: =Skyggetabeller!Q36 -> 0.4864790287 | R95: =Skyggetabeller!R36 -> 0.4859581498
B96: =Registerdata!$B$30 -> Anm.: Hvis nøgletallet er angivet med * er der foretaget en diskretionering af data, da der er for få observationer.
B97: =IF('Dine valg'!$G$24="","Ingen sammenligningsgruppe valgt.","Anm.: Valgte kommuner i sammenligningsgruppen: "&'Dine valg'!$G$24&" "&'Dine valg'!$G$25&" "&'Dine valg'!$G$26&" "&'Dine valg'!$G$27&" "&'Dine valg'!$G$28&" "&'Dine valg'!$G$29&" "&'Dine valg'!$G$30) -> Anm.: Valgte kommuner i sammenligningsgruppen: Aarhus
B98: =Registerdata!$B$32 -> Kilde: Socialstyrelsens egne beregninger baseret på registerdata fra Danmarks Statistik.
B100: =Skyggetabeller!B38 -> Tabel 1.2: Anbragte på sikrede døgninstitutioner
B102: =Skyggetabeller!B39 -> Nøgletal 1.2 Anbragte på sikrede døgninstitutioner | D102: 2016-01-01 | E102: 2016-07-01 | F102: 2017-01-01 | G102: 2017-07-01 | H102: 2018-01-01 | I102: 2018-07-01 | J102: 2019-01-01 | K102: 2019-07-01 | L102: 2020-01-01 | M102: 2020-07-01 | N102: 2021-01-01 | O102: 2021-07-01 | P102: 2022-01-01 | Q102: 2022-07-01 | R102: 2023-01-01
B103: =Skyggetabeller!B40 -> København
B104: =Skyggetabeller!B43 -> Andel | D104: =Skyggetabeller!D43 -> 0.03043478261 | E104: =Skyggetabeller!E43 -> 0.02575107296 | F104: =Skyggetabeller!F43 -> 0.03125 | G104: =Skyggetabeller!G43 -> 0.02654867257 | H104: =Skyggetabeller!H43 -> 0.02803738318 | I104: =Skyggetabeller!I43 -> 0.04608294931 | J104: =Skyggetabeller!J43 -> 0.04901960784 | K104: =Skyggetabeller!K43 -> 0.02590673575 | L104: =Skyggetabeller!L43 -> * | M104: =Skyggetabeller!M43 -> 0.05 | N104: =Skyggetabeller!N43 -> 0.08457711443 | O104: =Skyggetabeller!O43 -> 0.100456621 | P104: =Skyggetabeller!P43 -> 0.07373271889 | Q104: =Skyggetabeller!Q43 -> 0.06172839506 | R104: =Skyggetabeller!R43 -> 0.04032258065
B105: =Skyggetabeller!B44 -> Sammenligningsgruppe, gns.
B106: =Skyggetabeller!B47 -> Andel | D106: =Skyggetabeller!D47 -> 0.03703703704 | E106: =Skyggetabeller!E47 -> 0.0197044335 | F106: =Skyggetabeller!F47 -> 0.01570680628 | G106: =Skyggetabeller!G47 -> 0.02105263158 | H106: =Skyggetabeller!H47 -> 0.02222222222 | I106: =Skyggetabeller!I47 -> 0.04166666667 | J106: =Skyggetabeller!J47 -> 0.05747126437 | K106: =Skyggetabeller!K47 -> 0.05056179775 | L106: =Skyggetabeller!L47 -> 0.09356725146 | M106: =Skyggetabeller!M47 -> 0.06358381503 | N106: =Skyggetabeller!N47 -> 0.08571428571 | O106: =Skyggetabeller!O47 -> 0.08 | P106: =Skyggetabeller!P47 -> 0.08695652174 | Q106: =Skyggetabeller!Q47 -> 0.09770114943 | R106: =Skyggetabeller!R47 -> 0.08333333333
B107: =Skyggetabeller!B48 -> Hele landet
B108: =Skyggetabeller!B51 -> Andel | D108: =Skyggetabeller!D51 -> 0.01687027341 | E108: =Skyggetabeller!E51 -> 0.01805474665 | F108: =Skyggetabeller!F51 -> 0.02366163857 | G108: =Skyggetabeller!G51 -> 0.02281259024 | H108: =Skyggetabeller!H51 -> 0.01896296296 | I108: =Skyggetabeller!I51 -> 0.02469861805 | J108: =Skyggetabeller!J51 -> 0.02304426925 | K108: =Skyggetabeller!K51 -> 0.02197802198 | L108: =Skyggetabeller!L51 -> 0.02417380661 | M108: =Skyggetabeller!M51 -> 0.02521765236 | N108: =Skyggetabeller!N51 -> 0.02801533471 | O108: =Skyggetabeller!O51 -> 0.02816901408 | P108: =Skyggetabeller!P51 -> 0.02427745665 | Q108: =Skyggetabeller!Q51 -> 0.02428256071 | R108: =Skyggetabeller!R51 -> 0.0234030837
B109: =Registerdata!$B$30 -> Anm.: Hvis nøgletallet er angivet med * er der foretaget en diskretionering af data, da der er for få observationer.
B110: =IF('Dine valg'!$G$24="","Ingen sammenligningsgruppe valgt.","Anm.: Valgte kommuner i sammenligningsgruppen: "&'Dine valg'!$G$24&" "&'Dine valg'!$G$25&" "&'Dine valg'!$G$26&" "&'Dine valg'!$G$27&" "&'Dine valg'!$G$28&" "&'Dine valg'!$G$29&" "&'Dine valg'!$G$30) -> Anm.: Valgte kommuner i sammenligningsgruppen: Aarhus
B111: =Registerdata!$B$32 -> Kilde: Socialstyrelsens egne beregninger baseret på registerdata fra Danmarks Statistik.
B113: =Skyggetabeller!B54 -> Tabel 1.3: Anbragte på socialpædagogiske opholdssteder
B115: =Skyggetabeller!B55 -> Nøgletal 1.3 Anbragte på socialpædagogiske opholdssteder | D115: 2016-01-01 | E115: 2016-07-01 | F115: 2017-01-01 | G115: 2017-07-01 | H115: 2018-01-01 | I115: 2018-07-01 | J115: 2019-01-01 | K115: 2019-07-01 | L115: 2020-01-01 | M115: 2020-07-01 | N115: 2021-01-01 | O115: 2021-07-01 | P115: 2022-01-01 | Q115: 2022-07-01 | R115: 2023-01-01
B116: =Skyggetabeller!B56 -> København
B117: =Skyggetabeller!B59 -> Andel | D117: =Skyggetabeller!D59 -> 0.2347826087 | E117: =Skyggetabeller!E59 -> 0.2231759657 | F117: =Skyggetabeller!F59 -> 0.2098214286 | G117: =Skyggetabeller!G59 -> 0.1725663717 | H117: =Skyggetabeller!H59 -> 0.1588785047 | I117: =Skyggetabeller!I59 -> 0.1520737327 | J117: =Skyggetabeller!J59 -> 0.1617647059 | K117: =Skyggetabeller!K59 -> 0.1813471503 | L117: =Skyggetabeller!L59 -> * | M117: =Skyggetabeller!M59 -> 0.1333333333 | N117: =Skyggetabeller!N59 -> 0.1243781095 | O117: =Skyggetabeller!O59 -> 0.1461187215 | P117: =Skyggetabeller!P59 -> 0.1290322581 | Q117: =Skyggetabeller!Q59 -> 0.1316872428 | R117: =Skyggetabeller!R59 -> 0.1532258065
B118: =Skyggetabeller!B60 -> Sammenligningsgruppe, gns.
B119: =Skyggetabeller!B63 -> Andel | D119: =Skyggetabeller!D63 -> 0.291005291 | E119: =Skyggetabeller!E63 -> 0.3004926108 | F119: =Skyggetabeller!F63 -> 0.2879581152 | G119: =Skyggetabeller!G63 -> 0.2789473684 | H119: =Skyggetabeller!H63 -> 0.3166666667 | I119: =Skyggetabeller!I63 -> 0.2678571429 | J119: =Skyggetabeller!J63 -> 0.2643678161 | K119: =Skyggetabeller!K63 -> 0.2359550562 | L119: =Skyggetabeller!L63 -> 0.2046783626 | M119: =Skyggetabeller!M63 -> 0.2023121387 | N119: =Skyggetabeller!N63 -> 0.2114285714 | O119: =Skyggetabeller!O63 -> 0.2457142857 | P119: =Skyggetabeller!P63 -> 0.2360248447 | Q119: =Skyggetabeller!Q63 -> 0.275862069 | R119: =Skyggetabeller!R63 -> 0.2619047619
B120: =Skyggetabeller!B64 -> Hele landet
B121: =Skyggetabeller!B67 -> Andel | D121: =Skyggetabeller!D67 -> 0.4508435137 | E121: =Skyggetabeller!E67 -> 0.4452533489 | F121: =Skyggetabeller!F67 -> 0.4395149364 | G121: =Skyggetabeller!G67 -> 0.45480797 | H121: =Skyggetabeller!H67 -> 0.4595555556 | I121: =Skyggetabeller!I67 -> 0.4545721847 | J121: =Skyggetabeller!J67 -> 0.465130382 | K121: =Skyggetabeller!K67 -> 0.4633699634 | L121: =Skyggetabeller!L67 -> 0.4632802938 | M121: =Skyggetabeller!M67 -> 0.4746322426 | N121: =Skyggetabeller!N67 -> 0.4703627249 | O121: =Skyggetabeller!O67 -> 0.4866340903 | P121: =Skyggetabeller!P67 -> 0.4846820809 | Q121: =Skyggetabeller!Q67 -> 0.4892384106 | R121: =Skyggetabeller!R67 -> 0.4906387665
B122: =Registerdata!$B$30 -> Anm.: Hvis nøgletallet er angivet med * er der foretaget en diskretionering af data, da der er for få observationer.
B123: =IF('Dine valg'!$G$24="","Ingen sammenligningsgruppe valgt.","Anm.: Valgte kommuner i sammenligningsgruppen: "&'Dine valg'!$G$24&" "&'Dine valg'!$G$25&" "&'Dine valg'!$G$26&" "&'Dine valg'!$G$27&" "&'Dine valg'!$G$28&" "&'Dine valg'!$G$29&" "&'Dine valg'!$G$30) -> Anm.: Valgte kommuner i sammenligningsgruppen: Aarhus
B124: =Registerdata!$B$32 -> Kilde: Socialstyrelsens egne beregninger baseret på registerdata fra Danmarks Statistik.
B127: ="Figur 1.4: Fordeling af institutionsanbragte for "&Kommune -> Figur 1.4: Fordeling af institutionsanbragte for København | G127: ="Figur 1.5 fordeling af institutionsanbragte for "&Skyggetabeller!B14 -> Figur 1.5 fordeling af institutionsanbragte for Sammenligningsgruppe, gns. | M127: ="Figur 1.6: Fordelingen af institutionsanbragte for "&Skyggetabeller!B18 -> Figur 1.6: Fordelingen af institutionsanbragte for Hele landet
B148: Anm.: Hvis de enkelte nedslagspunkter ikke summer til 100 %, skyldes det diskretionerede værdier. Disse udgør marginen til 100 %. | G148: Anm.: Hvis de enkelte nedslagspunkter ikke summer til 100 %, skyldes det diskretionerede værdier. Disse udgør marginen til 100 %. | M148: Anm.: Hvis de enkelte nedslagspunkter ikke summer til 100 %, skyldes det diskretionerede værdier. Disse udgør marginen til 100 %.
B149: =Registerdata!$B$30 -> Anm.: Hvis nøgletallet er angivet med * er der foretaget en diskretionering af data, da der er for få observationer. | G149: =Registerdata!$B$30 -> Anm.: Hvis nøgletallet er angivet med * er der foretaget en diskretionering af data, da der er for få observationer. | M149: =Registerdata!$B$30 -> Anm.: Hvis nøgletallet er angivet med * er der foretaget en diskretionering af data, da der er for få observationer.
B150: =IF('Dine valg'!$G$24="","Ingen sammenligningsgruppe valgt.","Anm.: Valgte kommuner i sammenligningsgruppen: "&'Dine valg'!$G$24&" "&'Dine valg'!$G$25&" "&'Dine valg'!$G$26&" "&'Dine valg'!$G$27&" "&'Dine valg'!$G$28&" "&'Dine valg'!$G$29&" "&'Dine valg'!$G$30) -> Anm.: Valgte kommuner i sammenligningsgruppen: Aarhus | G150: =IF('Dine valg'!$G$24="","Ingen sammenligningsgruppe valgt.","Anm.: Valgte kommuner i sammenligningsgruppen: "&'Dine valg'!$G$24&" "&'Dine valg'!$G$25&" "&'Dine valg'!$G$26&" "&'Dine valg'!$G$27&" "&'Dine valg'!$G$28&" "&'Dine valg'!$G$29&" "&'Dine valg'!$G$30) -> Anm.: Valgte kommuner i sammenligningsgruppen: Aarhus | M150: =IF('Dine valg'!$G$24="","Ingen sammenligningsgruppe valgt.","Anm.: Valgte kommuner i sammenligningsgruppen: "&'Dine valg'!$G$24&" "&'Dine valg'!$G$25&" "&'Dine valg'!$G$26&" "&'Dine valg'!$G$27&" "&'Dine valg'!$G$28&" "&'Dine valg'!$G$29&" "&'Dine valg'!$G$30) -> Anm.: Valgte kommuner i sammenligningsgruppen: Aarhus
B151: =Registerdata!$B$32 -> Kilde: Socialstyrelsens egne beregninger baseret på registerdata fra Danmarks Statistik. | G151: =Registerdata!$B$32 -> Kilde: Socialstyrelsens egne beregninger baseret på registerdata fra Danmarks Statistik. | M151: =Registerdata!$B$32 -> Kilde: Socialstyrelsens egne beregninger baseret på registerdata fra Danmarks Statistik.
B155: =Skyggetabeller!B71 -> Tabel 1.4: Fordeling af institutionsanbragte for København
B157: =Skyggetabeller!B72 -> Nøgletal 1.4 Fordeling af anbragte for København | D157: 2016-01-01 | E157: 2016-07-01 | F157: 2017-01-01 | G157: 2017-07-01 | H157: 2018-01-01 | I157: 2018-07-01 | J157: 2019-01-01 | K157: 2019-07-01 | L157: 2020-01-01 | M157: 2020-07-01 | N157: 2021-01-01 | O157: 2021-07-01 | P157: 2022-01-01 | Q157: 2022-07-01 | R157: 2023-01-01
B158: =Skyggetabeller!B73 -> Døgninstitutioner | D158: =Skyggetabeller!D73 -> 0.7347826087 | E158: =Skyggetabeller!E73 -> 0.7510729614 | F158: =Skyggetabeller!F73 -> 0.7589285714 | G158: =Skyggetabeller!G73 -> 0.8008849558 | H158: =Skyggetabeller!H73 -> 0.8130841121 | I158: =Skyggetabeller!I73 -> 0.801843318 | J158: =Skyggetabeller!J73 -> 0.7892156863 | K158: =Skyggetabeller!K73 -> 0.792746114 | L158: =Skyggetabeller!L73 -> 0.86875 | M158: =Skyggetabeller!M73 -> 0.8166666667 | N158: =Skyggetabeller!N73 -> 0.7910447761 | O158: =Skyggetabeller!O73 -> 0.7534246575 | P158: =Skyggetabeller!P73 -> 0.797235023 | Q158: =Skyggetabeller!Q73 -> 0.8065843621 | R158: =Skyggetabeller!R73 -> 0.8064516129
B159: =Skyggetabeller!B74 -> Sikrede døgninstitutioner | D159: =Skyggetabeller!D74 -> 0.03043478261 | E159: =Skyggetabeller!E74 -> 0.02575107296 | F159: =Skyggetabeller!F74 -> 0.03125 | G159: =Skyggetabeller!G74 -> 0.02654867257 | H159: =Skyggetabeller!H74 -> 0.02803738318 | I159: =Skyggetabeller!I74 -> 0.04608294931 | J159: =Skyggetabeller!J74 -> 0.04901960784 | K159: =Skyggetabeller!K74 -> 0.02590673575 | L159: =Skyggetabeller!L74 -> * | M159: =Skyggetabeller!M74 -> 0.05 | N159: =Skyggetabeller!N74 -> 0.08457711443 | O159: =Skyggetabeller!O74 -> 0.100456621 | P159: =Skyggetabeller!P74 -> 0.07373271889 | Q159: =Skyggetabeller!Q74 -> 0.06172839506 | R159: =Skyggetabeller!R74 -> 0.04032258065
B160: =Skyggetabeller!B75 -> Socialpædagogiske opholdssteder | D160: =Skyggetabeller!D75 -> 0.2347826087 | E160: =Skyggetabeller!E75 -> 0.2231759657 | F160: =Skyggetabeller!F75 -> 0.2098214286 | G160: =Skyggetabeller!G75 -> 0.1725663717 | H160: =Skyggetabeller!H75 -> 0.1588785047 | I160: =Skyggetabeller!I75 -> 0.1520737327 | J160: =Skyggetabeller!J75 -> 0.1617647059 | K160: =Skyggetabeller!K75 -> 0.1813471503 | L160: =Skyggetabeller!L75 -> * | M160: =Skyggetabeller!M75 -> 0.1333333333 | N160: =Skyggetabeller!N75 -> 0.1243781095 | O160: =Skyggetabeller!O75 -> 0.1461187215 | P160: =Skyggetabeller!P75 -> 0.1290322581 | Q160: =Skyggetabeller!Q75 -> 0.1316872428 | R160: =Skyggetabeller!R75 -> 0.1532258065
B161: Anm.: Hvis de enkelte nedslagspunkter ikke summer til 100 %, skyldes det diskretionerede værdier. Disse udgør marginen til 100 %.
B162: =Registerdata!$B$30 -> Anm.: Hvis nøgletallet er angivet med * er der foretaget en diskretionering af data, da der er for få observationer.
B163: =IF('Dine valg'!$G$24="","Ingen sammenligningsgruppe valgt.","Anm.: Valgte kommuner i sammenligningsgruppen: "&'Dine valg'!$G$24&" "&'Dine valg'!$G$25&" "&'Dine valg'!$G$26&" "&'Dine valg'!$G$27&" "&'Dine valg'!$G$28&" "&'Dine valg'!$G$29&" "&'Dine valg'!$G$30) -> Anm.: Valgte kommuner i sammenligningsgruppen: Aarhus
B164: =Registerdata!$B$32 -> Kilde: Socialstyrelsens egne beregninger baseret på registerdata fra Danmarks Statistik.
B166: =Skyggetabeller!B77 -> Tabel 1.5: Fordeling af institutionsanbragte for Sammenligningsgruppe, gns.
B168: =Skyggetabeller!B77 -> Tabel 1.5: Fordeling af institutionsanbragte for Sammenligningsgruppe, gns. | D168: 2016-01-01 | E168: 2016-07-01 | F168: 2017-01-01 | G168: 2017-07-01 | H168: 2018-01-01 | I168: 2018-07-01 | J168: 2019-01-01 | K168: 2019-07-01 | L168: 2020-01-01 | M168: 2020-07-01 | N168: 2021-01-01 | O168: 2021-07-01 | P168: 2022-01-01 | Q168: 2022-07-01 | R168: 2023-01-01
B169: =Skyggetabeller!B79 -> Døgninstitutioner | D169: =Skyggetabeller!D79 -> 0.671957672 | E169: =Skyggetabeller!E79 -> 0.6798029557 | F169: =Skyggetabeller!F79 -> 0.6963350785 | G169: =Skyggetabeller!G79 -> 0.7 | H169: =Skyggetabeller!H79 -> 0.6611111111 | I169: =Skyggetabeller!I79 -> 0.6904761905 | J169: =Skyggetabeller!J79 -> 0.6781609195 | K169: =Skyggetabeller!K79 -> 0.7134831461 | L169: =Skyggetabeller!L79 -> 0.701754386 | M169: =Skyggetabeller!M79 -> 0.7341040462 | N169: =Skyggetabeller!N79 -> 0.7028571429 | O169: =Skyggetabeller!O79 -> 0.6742857143 | P169: =Skyggetabeller!P79 -> 0.6770186335 | Q169: =Skyggetabeller!Q79 -> 0.6264367816 | R169: =Skyggetabeller!R79 -> 0.6547619048
B170: =Skyggetabeller!B80 -> Sikrede døgninstitutioner | D170: =Skyggetabeller!D80 -> 0.03703703704 | E170: =Skyggetabeller!E80 -> 0.0197044335 | F170: =Skyggetabeller!F80 -> 0.01570680628 | G170: =Skyggetabeller!G80 -> 0.02105263158 | H170: =Skyggetabeller!H80 -> 0.02222222222 | I170: =Skyggetabeller!I80 -> 0.04166666667 | J170: =Skyggetabeller!J80 -> 0.05747126437 | K170: =Skyggetabeller!K80 -> 0.05056179775 | L170: =Skyggetabeller!L80 -> 0.09356725146 | M170: =Skyggetabeller!M80 -> 0.06358381503 | N170: =Skyggetabeller!N80 -> 0.08571428571 | O170: =Skyggetabeller!O80 -> 0.08 | P170: =Skyggetabeller!P80 -> 0.08695652174 | Q170: =Skyggetabeller!Q80 -> 0.09770114943 | R170: =Skyggetabeller!R80 -> 0.08333333333
B171: =Skyggetabeller!B81 -> Socialpædagogiske opholdssteder | D171: =Skyggetabeller!D81 -> 0.291005291 | E171: =Skyggetabeller!E81 -> 0.3004926108 | F171: =Skyggetabeller!F81 -> 0.2879581152 | G171: =Skyggetabeller!G81 -> 0.2789473684 | H171: =Skyggetabeller!H81 -> 0.3166666667 | I171: =Skyggetabeller!I81 -> 0.2678571429 | J171: =Skyggetabeller!J81 -> 0.2643678161 | K171: =Skyggetabeller!K81 -> 0.2359550562 | L171: =Skyggetabeller!L81 -> 0.2046783626 | M171: =Skyggetabeller!M81 -> 0.2023121387 | N171: =Skyggetabeller!N81 -> 0.2114285714 | O171: =Skyggetabeller!O81 -> 0.2457142857 | P171: =Skyggetabeller!P81 -> 0.2360248447 | Q171: =Skyggetabeller!Q81 -> 0.275862069 | R171: =Skyggetabeller!R81 -> 0.2619047619
B172: Anm.: Hvis de enkelte nedslagspunkter ikke summer til 100 %, skyldes det diskretionerede værdier. Disse udgør marginen til 100 %.
B173: =Registerdata!$B$30 -> Anm.: Hvis nøgletallet er angivet med * er der foretaget en diskretionering af data, da der er for få observationer.
B174: =IF('Dine valg'!$G$24="","Ingen sammenligningsgruppe valgt.","Anm.: Valgte kommuner i sammenligningsgruppen: "&'Dine valg'!$G$24&" "&'Dine valg'!$G$25&" "&'Dine valg'!$G$26&" "&'Dine valg'!$G$27&" "&'Dine valg'!$G$28&" "&'Dine valg'!$G$29&" "&'Dine valg'!$G$30) -> Anm.: Valgte kommuner i sammenligningsgruppen: Aarhus
B175: =Registerdata!$B$32 -> Kilde: Socialstyrelsens egne beregninger baseret på registerdata fra Danmarks Statistik.
B177: =Skyggetabeller!B83 -> Tabel 1.6: Fordeling af institutionsanbragte for Hele landet
B179: =Skyggetabeller!B83 -> Tabel 1.6: Fordeling af institutionsanbragte for Hele landet | D179: 2016-01-01 | E179: 2016-07-01 | F179: 2017-01-01 | G179: 2017-07-01 | H179: 2018-01-01 | I179: 2018-07-01 | J179: 2019-01-01 | K179: 2019-07-01 | L179: 2020-01-01 | M179: 2020-07-01 | N179: 2021-01-01 | O179: 2021-07-01 | P179: 2022-01-01 | Q179: 2022-07-01 | R179: 2023-01-01
B180: =Skyggetabeller!B85 -> Døgninstitutioner | D180: =Skyggetabeller!D85 -> 0.5322862129 | E180: =Skyggetabeller!E85 -> 0.5366919045 | F180: =Skyggetabeller!F85 -> 0.536823425 | G180: =Skyggetabeller!G85 -> 0.5223794398 | H180: =Skyggetabeller!H85 -> 0.5214814815 | I180: =Skyggetabeller!I85 -> 0.5207291973 | J180: =Skyggetabeller!J85 -> 0.5118253487 | K180: =Skyggetabeller!K85 -> 0.5146520147 | L180: =Skyggetabeller!L85 -> 0.5125458996 | M180: =Skyggetabeller!M85 -> 0.5001501051 | N180: =Skyggetabeller!N85 -> 0.5016219404 | O180: =Skyggetabeller!O85 -> 0.4851968957 | P180: =Skyggetabeller!P85 -> 0.4910404624 | Q180: =Skyggetabeller!Q85 -> 0.4864790287 | R180: =Skyggetabeller!R85 -> 0.4859581498
B181: =Skyggetabeller!B86 -> Sikrede døgninstitutioner | D181: =Skyggetabeller!D86 -> 0.01687027341 | E181: =Skyggetabeller!E86 -> 0.01805474665 | F181: =Skyggetabeller!F86 -> 0.02366163857 | G181: =Skyggetabeller!G86 -> 0.02281259024 | H181: =Skyggetabeller!H86 -> 0.01896296296 | I181: =Skyggetabeller!I86 -> 0.02469861805 | J181: =Skyggetabeller!J86 -> 0.02304426925 | K181: =Skyggetabeller!K86 -> 0.02197802198 | L181: =Skyggetabeller!L86 -> 0.02417380661 | M181: =Skyggetabeller!M86 -> 0.02521765236 | N181: =Skyggetabeller!N86 -> 0.02801533471 | O181: =Skyggetabeller!O86 -> 0.02816901408 | P181: =Skyggetabeller!P86 -> 0.02427745665 | Q181: =Skyggetabeller!Q86 -> 0.02428256071 | R181: =Skyggetabeller!R86 -> 0.0234030837
B182: =Skyggetabeller!B87 -> Socialpædagogiske opholdssteder | D182: =Skyggetabeller!D87 -> 0.4508435137 | E182: =Skyggetabeller!E87 -> 0.4452533489 | F182: =Skyggetabeller!F87 -> 0.4395149364 | G182: =Skyggetabeller!G87 -> 0.45480797 | H182: =Skyggetabeller!H87 -> 0.4595555556 | I182: =Skyggetabeller!I87 -> 0.4545721847 | J182: =Skyggetabeller!J87 -> 0.465130382 | K182: =Skyggetabeller!K87 -> 0.4633699634 | L182: =Skyggetabeller!L87 -> 0.4632802938 | M182: =Skyggetabeller!M87 -> 0.4746322426 | N182: =Skyggetabeller!N87 -> 0.4703627249 | O182: =Skyggetabeller!O87 -> 0.4866340903 | P182: =Skyggetabeller!P87 -> 0.4846820809 | Q182: =Skyggetabeller!Q87 -> 0.4892384106 | R182: =Skyggetabeller!R87 -> 0.4906387665
B183: Anm.: Hvis de enkelte nedslagspunkter ikke summer til 100 %, skyldes det diskretionerede værdier. Disse udgør marginen til 100 %.
B184: =Registerdata!$B$30 -> Anm.: Hvis nøgletallet er angivet med * er der foretaget en diskretionering af data, da der er for få observationer.
B185: =IF('Dine valg'!$G$24="","Ingen sammenligningsgruppe valgt.","Anm.: Valgte kommuner i sammenligningsgruppen: "&'Dine valg'!$G$24&" "&'Dine valg'!$G$25&" "&'Dine valg'!$G$26&" "&'Dine valg'!$G$27&" "&'Dine valg'!$G$28&" "&'Dine valg'!$G$29&" "&'Dine valg'!$G$30) -> Anm.: Valgte kommuner i sammenligningsgruppen: Aarhus
B186: =Registerdata!$B$32 -> Kilde: Socialstyrelsens egne beregninger baseret på registerdata fra Danmarks Statistik.
B189: =Skyggetabeller!B90 -> Nøgletal 2: Varighed af institutionsanbringelser
B191: Figur 2: Varighed af institutionsanbringelser | M191: Benyt, slet eller erstat gerne følgende tekst til beskrivelse af udviklingen over tid for det pågældende nøgletal. Beskrivelsen vil blive indsat i rapporten (skriv maks 20 linjer):
B215: Anm.: Hvis nøgletallet har værdien 0 i grafen kan det enten betyde 0 %, eller at der er foretaget en diskretionering af data, da der er for få observationer. Se tilhørende tabel for værdien.
B216: =IF('Dine valg'!$G$24="","Ingen sammenligningsgruppe valgt.","Anm.: Valgte kommuner i sammenligningsgruppen: "&'Dine valg'!$G$24&" "&'Dine valg'!$G$25&" "&'Dine valg'!$G$26&" "&'Dine valg'!$G$27&" "&'Dine valg'!$G$28&" "&'Dine valg'!$G$29&" "&'Dine valg'!$G$30) -> Anm.: Valgte kommuner i sammenligningsgruppen: Aarhus
B217: =Registerdata!$B$32 -> Kilde: Socialstyrelsens egne beregninger baseret på registerdata fra Danmarks Statistik.
B220: =Skyggetabeller!B92 -> Tabel 2: Gennemsnitlig varighed af igangværende institutionsanbringelser
B222: =Skyggetabeller!B93 -> Nøgletal 2: Gennemsnitlig varighed af igangværende institutionsanbringelser | D222: 2016-01-01 | E222: 2016-07-01 | F222: 2017-01-01 | G222: 2017-07-01 | H222: 2018-01-01 | I222: 2018-07-01 | J222: 2019-01-01 | K222: 2019-07-01 | L222: 2020-01-01 | M222: 2020-07-01
B223: =Skyggetabeller!B94 -> København
B224: =Skyggetabeller!B97 -> Gennemsnitlig varighed | D224: =Skyggetabeller!D97 -> 806.426087 | E224: =Skyggetabeller!E97 -> 798.4120172 | F224: =Skyggetabeller!F97 -> 790.1428571 | G224: =Skyggetabeller!G97 -> 728.079646 | H224: =Skyggetabeller!H97 -> 723.5841121 | I224: =Skyggetabeller!I97 -> 721.5529954 | J224: =Skyggetabeller!J97 -> 732.495098 | K224: =Skyggetabeller!K97 -> 783.7305699 | L224: =Skyggetabeller!L97 -> 787.25625 | M224: =Skyggetabeller!M97 -> 714.5111111
B225: =Skyggetabeller!B95 -> Samlet antal dage | D225: =Skyggetabeller!D95 -> 185478 | E225: =Skyggetabeller!E95 -> 186030 | F225: =Skyggetabeller!F95 -> 176992 | G225: =Skyggetabeller!G95 -> 164546 | H225: =Skyggetabeller!H95 -> 154847 | I225: =Skyggetabeller!I95 -> 156577 | J225: =Skyggetabeller!J95 -> 149429 | K225: =Skyggetabeller!K95 -> 151260 | L225: =Skyggetabeller!L95 -> 125961 | M225: =Skyggetabeller!M95 -> 128612
B226: =Skyggetabeller!B98 -> Sammenligningsgruppe, gns.
B227: =Skyggetabeller!B101 -> Gennemsnitlig varighed | D227: =Skyggetabeller!D101 -> 1061.396825 | E227: =Skyggetabeller!E101 -> 1026.093596 | F227: =Skyggetabeller!F101 -> 1093.356021 | G227: =Skyggetabeller!G101 -> 1084.689474 | H227: =Skyggetabeller!H101 -> 1078.8 | I227: =Skyggetabeller!I101 -> 1015.053571 | J227: =Skyggetabeller!J101 -> 914.6666667 | K227: =Skyggetabeller!K101 -> 973.2921348 | L227: =Skyggetabeller!L101 -> 1006.169591 | M227: =Skyggetabeller!M101 -> 956.017341
B228: =Skyggetabeller!B99 -> Samlet antal dage | D228: =Skyggetabeller!D99 -> 200604 | E228: =Skyggetabeller!E99 -> 208297 | F228: =Skyggetabeller!F99 -> 208831 | G228: =Skyggetabeller!G99 -> 206091 | H228: =Skyggetabeller!H99 -> 194184 | I228: =Skyggetabeller!I99 -> 170529 | J228: =Skyggetabeller!J99 -> 159152 | K228: =Skyggetabeller!K99 -> 173246 | L228: =Skyggetabeller!L99 -> 172055 | M228: =Skyggetabeller!M99 -> 165391
B229: =Skyggetabeller!B102 -> Hele landet
B230: =Skyggetabeller!B105 -> Gennemsnitlig varighed | D230: =Skyggetabeller!D105 -> 913.7283304 | E230: =Skyggetabeller!E105 -> 873.5221316 | F230: =Skyggetabeller!F105 -> 865.6850044 | G230: =Skyggetabeller!G105 -> 829.5694485 | H230: =Skyggetabeller!H105 -> 826.3623704 | I230: =Skyggetabeller!I105 -> 787.5780653 | J230: =Skyggetabeller!J105 -> 775.211037 | K230: =Skyggetabeller!K105 -> 770.8284493 | L230: =Skyggetabeller!L105 -> 760.1361689 | M230: =Skyggetabeller!M105 -> 763.5788052
B231: =Skyggetabeller!B103 -> Samlet antal dage | D231: =Skyggetabeller!D103 -> 3141398 | E231: =Skyggetabeller!E103 -> 2999675 | F231: =Skyggetabeller!F103 -> 2926881 | G231: =Skyggetabeller!G103 -> 2872799 | H231: =Skyggetabeller!H103 -> 2788973 | I231: =Skyggetabeller!I103 -> 2678553 | J231: =Skyggetabeller!J103 -> 2556646 | K231: =Skyggetabeller!K103 -> 2525234 | L231: =Skyggetabeller!L103 -> 2484125 | M231: =Skyggetabeller!M103 -> 2543481
B232: Anm.: Hvis nøgletallet er angivet med * er der foretaget en diskretionering af data, da der er for få observationer.
B233: =IF('Dine valg'!$G$24="","Ingen sammenligningsgruppe valgt.","Anm.: Valgte kommuner i sammenligningsgruppen: "&'Dine valg'!$G$24&" "&'Dine valg'!$G$25&" "&'Dine valg'!$G$26&" "&'Dine valg'!$G$27&" "&'Dine valg'!$G$28&" "&'Dine valg'!$G$29&" "&'Dine valg'!$G$30) -> Anm.: Valgte kommuner i sammenligningsgruppen: Aarhus
B234: Kilde: Socialstyrelsens egne beregninger baseret på registerdata fra Danmarks Statistik.
B236: Figur 2.1: Varighed af anbringelser på døgninstitution | G236: Figur 2.2: Varighed af anbringelser på sikret døgninstitution | M236: Figur 2.3: Varighed af anbringelser på socialpædagogisk opholdssted
B254: Anm.: Hvis nøgletallet har værdien 0 i grafen kan det enten betyde 0 %, eller at der er foretaget en diskretionering af data, da der er for få observationer. Se tilhørende tabel for værdien.
B255: =IF('Dine valg'!$G$24="","Ingen sammenligningsgruppe valgt.","Anm.: Valgte kommuner i sammenligningsgruppen: "&'Dine valg'!$G$24&" "&'Dine valg'!$G$25&" "&'Dine valg'!$G$26&" "&'Dine valg'!$G$27&" "&'Dine valg'!$G$28&" "&'Dine valg'!$G$29&" "&'Dine valg'!$G$30) -> Anm.: Valgte kommuner i sammenligningsgruppen: Aarhus
B256: =Registerdata!$B$32 -> Kilde: Socialstyrelsens egne beregninger baseret på registerdata fra Danmarks Statistik.
B259: =Skyggetabeller!B107 -> Tabel 2.1: Gennemsnitlig varighed af igangværende anbringelser på døgninstitution
B261: =Skyggetabeller!B108 -> Nøgletal 2.1 Gennemsnitlig varighed af igangværende anbringelser på døgninstitution | D261: 2016-01-01 | E261: 2016-07-01 | F261: 2017-01-01 | G261: 2017-07-01 | H261: 2018-01-01 | I261: 2018-07-01 | J261: 2019-01-01 | K261: 2019-07-01 | L261: 2020-01-01 | M261: 2020-07-01 | N261: 2021-01-01 | O261: 2021-07-01 | P261: 2022-01-01 | Q261: 2022-07-01 | R261: 2023-01-01
B262: =Skyggetabeller!B109 -> København
B263: =Skyggetabeller!B112 -> Gennemsnitlig varighed | D263: =Skyggetabeller!D112 -> 779.4852071 | E263: =Skyggetabeller!E112 -> 764.2228571 | F263: =Skyggetabeller!F112 -> 746.4117647 | G263: =Skyggetabeller!G112 -> 656.5027624 | H263: =Skyggetabeller!H112 -> 627.6494253 | I263: =Skyggetabeller!I112 -> 630.2931034 | J263: =Skyggetabeller!J112 -> 638.9627329 | K263: =Skyggetabeller!K112 -> 662.8888889 | L263: =Skyggetabeller!L112 -> 682.6690647 | M263: =Skyggetabeller!M112 -> 638.5442177 | N263: =Skyggetabeller!N112 -> 600.9433962 | O263: =Skyggetabeller!O112 -> 579.1757576 | P263: =Skyggetabeller!P112 -> 562.1156069 | Q263: =Skyggetabeller!Q112 -> 509.0561224 | R263: =Skyggetabeller!R112 -> 576.65
B264: =Skyggetabeller!B110 -> Samlet antal dage | D264: =Skyggetabeller!D110 -> 131733 | E264: =Skyggetabeller!E110 -> 133739 | F264: =Skyggetabeller!F110 -> 126890 | G264: =Skyggetabeller!G110 -> 118827 | H264: =Skyggetabeller!H110 -> 109211 | I264: =Skyggetabeller!I110 -> 109671 | J264: =Skyggetabeller!J110 -> 102873 | K264: =Skyggetabeller!K110 -> 101422 | L264: =Skyggetabeller!L110 -> 94891 | M264: =Skyggetabeller!M110 -> 93866 | N264: =Skyggetabeller!N110 -> 95550 | O264: =Skyggetabeller!O110 -> 95564 | P264: =Skyggetabeller!P110 -> 97246 | Q264: =Skyggetabeller!Q110 -> 99775 | R264: =Skyggetabeller!R110 -> 115330
B265: =Skyggetabeller!B113 -> Sammenligningsgruppe, gns.
B266: =Skyggetabeller!B116 -> Gennemsnitlig varighed | D266: =Skyggetabeller!D116 -> 1235.952756 | E266: =Skyggetabeller!E116 -> 1181.144928 | F266: =Skyggetabeller!F116 -> 1224.556391 | G266: =Skyggetabeller!G116 -> 1228.406015 | H266: =Skyggetabeller!H116 -> 1249.117647 | I266: =Skyggetabeller!I116 -> 1141.62069 | J266: =Skyggetabeller!J116 -> 1051.423729 | K266: =Skyggetabeller!K116 -> 1075.370079 | L266: =Skyggetabeller!L116 -> 1154.2 | M266: =Skyggetabeller!M116 -> 1095.031496 | N266: =Skyggetabeller!N116 -> 1174.512195 | O266: =Skyggetabeller!O116 -> 1283.70339 | P266: =Skyggetabeller!P116 -> 1406.944954 | Q266: =Skyggetabeller!Q116 -> 1418.100917 | R266: =Skyggetabeller!R116 -> 1343.190909
B267: =Skyggetabeller!B114 -> Samlet antal dage | D267: =Skyggetabeller!D114 -> 156966 | E267: =Skyggetabeller!E114 -> 162998 | F267: =Skyggetabeller!F114 -> 162866 | G267: =Skyggetabeller!G114 -> 163378 | H267: =Skyggetabeller!H114 -> 148645 | I267: =Skyggetabeller!I114 -> 132428 | J267: =Skyggetabeller!J114 -> 124068 | K267: =Skyggetabeller!K114 -> 136572 | L267: =Skyggetabeller!L114 -> 138504 | M267: =Skyggetabeller!M114 -> 139069 | N267: =Skyggetabeller!N114 -> 144465 | O267: =Skyggetabeller!O114 -> 151477 | P267: =Skyggetabeller!P114 -> 153357 | Q267: =Skyggetabeller!Q114 -> 154573 | R267: =Skyggetabeller!R114 -> 147751
B268: =Skyggetabeller!B117 -> Hele landet
B269: =Skyggetabeller!B120 -> Gennemsnitlig varighed | D269: =Skyggetabeller!D120 -> 1002.017486 | E269: =Skyggetabeller!E120 -> 961.5008139 | F269: =Skyggetabeller!F120 -> 962.8997245 | G269: =Skyggetabeller!G120 -> 932.1404091 | H269: =Skyggetabeller!H120 -> 924.4090909 | I269: =Skyggetabeller!I120 -> 877.0067758 | J269: =Skyggetabeller!J120 -> 870.5574645 | K269: =Skyggetabeller!K120 -> 868.3185053 | L269: =Skyggetabeller!L120 -> 861.8877612 | M269: =Skyggetabeller!M120 -> 871.7016807 | N269: =Skyggetabeller!N120 -> 849.1951793 | O269: =Skyggetabeller!O120 -> 850.3400474 | P269: =Skyggetabeller!P120 -> 850.1200706 | Q269: =Skyggetabeller!Q120 -> 833.4747589 | R269: =Skyggetabeller!R120 -> 855.9473088
B270: =Skyggetabeller!B118 -> Samlet antal dage | D270: =Skyggetabeller!D118 -> 1833692 | E270: =Skyggetabeller!E118 -> 1772046 | F270: =Skyggetabeller!F118 -> 1747663 | G270: =Skyggetabeller!G118 -> 1686242 | H270: =Skyggetabeller!H118 -> 1626960 | I270: =Skyggetabeller!I118 -> 1553179 | J270: =Skyggetabeller!J118 -> 1469501 | K270: =Skyggetabeller!K118 -> 1463985 | L270: =Skyggetabeller!L118 -> 1443662 | M270: =Skyggetabeller!M118 -> 1452255 | N270: =Skyggetabeller!N118 -> 1444481 | O270: =Skyggetabeller!O118 -> 1435374 | P270: =Skyggetabeller!P118 -> 1444354 | Q270: =Skyggetabeller!Q118 -> 1469416 | R270: =Skyggetabeller!R118 -> 1510747
B271: Anm.: Hvis nøgletallet er angivet med * er der foretaget en diskretionering af data, da der er for få observationer.
B272: =IF('Dine valg'!$G$24="","Ingen sammenligningsgruppe valgt.","Anm.: Valgte kommuner i sammenligningsgruppen: "&'Dine valg'!$G$24&" "&'Dine valg'!$G$25&" "&'Dine valg'!$G$26&" "&'Dine valg'!$G$27&" "&'Dine valg'!$G$28&" "&'Dine valg'!$G$29&" "&'Dine valg'!$G$30) -> Anm.: Valgte kommuner i sammenligningsgruppen: Aarhus
B273: Kilde: Socialstyrelsens egne beregninger baseret på registerdata fra Danmarks Statistik.
B275: =Skyggetabeller!B122 -> Tabel 2.2: Gennemsnitlig varighed af igangværende anbringelser på sikret døgninstitution
B277: =Skyggetabeller!B123 -> Nøgletal 2.2: Gennemsnitlig varighed af igangværende anbringelser på sikret døgninstitution | D277: 2016-01-01 | E277: 2016-07-01 | F277: 2017-01-01 | G277: 2017-07-01 | H277: 2018-01-01 | I277: 2018-07-01 | J277: 2019-01-01 | K277: 2019-07-01 | L277: 2020-01-01 | M277: 2020-07-01 | N277: 2021-01-01 | O277: 2021-07-01 | P277: 2022-01-01 | Q277: 2022-07-01 | R277: 2023-01-01
B278: =Skyggetabeller!B124 -> København
B279: =Skyggetabeller!B127 -> Gennemsnitlig varighed | D279: =Skyggetabeller!D127 -> 474.7142857 | E279: =Skyggetabeller!E127 -> 531.5 | F279: =Skyggetabeller!F127 -> 295.2857143 | G279: =Skyggetabeller!G127 -> 407.1666667 | H279: =Skyggetabeller!H127 -> 349.6666667 | I279: =Skyggetabeller!I127 -> 283 | J279: =Skyggetabeller!J127 -> 299.3 | K279: =Skyggetabeller!K127 -> 645 | L279: =Skyggetabeller!L127 -> * | M279: =Skyggetabeller!M127 -> 89 | N279: =Skyggetabeller!N127 -> 99.58823529 | O279: =Skyggetabeller!O127 -> 110.8636364 | P279: =Skyggetabeller!P127 -> 145.125 | Q279: =Skyggetabeller!Q127 -> 117.6 | R279: =Skyggetabeller!R127 -> 245.5
B280: =Skyggetabeller!B125 -> Samlet antal dage | D280: =Skyggetabeller!D125 -> 3323 | E280: =Skyggetabeller!E125 -> 3189 | F280: =Skyggetabeller!F125 -> 2067 | G280: =Skyggetabeller!G125 -> 2443 | H280: =Skyggetabeller!H125 -> 2098 | I280: =Skyggetabeller!I125 -> 2830 | J280: =Skyggetabeller!J125 -> 2993 | K280: =Skyggetabeller!K125 -> 3225 | L280: =Skyggetabeller!L125 -> * | M280: =Skyggetabeller!M125 -> 801 | N280: =Skyggetabeller!N125 -> 1693 | O280: =Skyggetabeller!O125 -> 2439 | P280: =Skyggetabeller!P125 -> 2322 | Q280: =Skyggetabeller!Q125 -> 1764 | R280: =Skyggetabeller!R125 -> 2455
B281: =Skyggetabeller!B128 -> Sammenligningsgruppe, gns.
B282: =Skyggetabeller!B131 -> Gennemsnitlig varighed | D282: =Skyggetabeller!D131 -> 119.8571429 | E282: =Skyggetabeller!E131 -> 0 | F282: =Skyggetabeller!F131 -> 0 | G282: =Skyggetabeller!G131 -> 0 | H282: =Skyggetabeller!H131 -> 0 | I282: =Skyggetabeller!I131 -> 128.8571429 | J282: =Skyggetabeller!J131 -> 119.5 | K282: =Skyggetabeller!K131 -> 279.3333333 | L282: =Skyggetabeller!L131 -> 242.875 | M282: =Skyggetabeller!M131 -> 153.4545455 | N282: =Skyggetabeller!N131 -> 122.0666667 | O282: =Skyggetabeller!O131 -> 219.0714286 | P282: =Skyggetabeller!P131 -> 266 | Q282: =Skyggetabeller!Q131 -> 322.4117647 | R282: =Skyggetabeller!R131 -> 411
B283: =Skyggetabeller!B129 -> Samlet antal dage | D283: =Skyggetabeller!D129 -> 839 | E283: =Skyggetabeller!E129 -> 0 | F283: =Skyggetabeller!F129 -> 0 | G283: =Skyggetabeller!G129 -> 0 | H283: =Skyggetabeller!H129 -> 0 | I283: =Skyggetabeller!I129 -> 902 | J283: =Skyggetabeller!J129 -> 1195 | K283: =Skyggetabeller!K129 -> 2514 | L283: =Skyggetabeller!L129 -> 3886 | M283: =Skyggetabeller!M129 -> 1688 | N283: =Skyggetabeller!N129 -> 1831 | O283: =Skyggetabeller!O129 -> 3067 | P283: =Skyggetabeller!P129 -> 3724 | Q283: =Skyggetabeller!Q129 -> 5481 | R283: =Skyggetabeller!R129 -> 5754
B284: =Skyggetabeller!B132 -> Hele landet
B285: =Skyggetabeller!B135 -> Gennemsnitlig varighed | D285: =Skyggetabeller!D135 -> 336.5862069 | E285: =Skyggetabeller!E135 -> 320.2258065 | F285: =Skyggetabeller!F135 -> 298.075 | G285: =Skyggetabeller!G135 -> 327.0759494 | H285: =Skyggetabeller!H135 -> 285.921875 | I285: =Skyggetabeller!I135 -> 215.9285714 | J285: =Skyggetabeller!J135 -> 267.8552632 | K285: =Skyggetabeller!K135 -> 323.0833333 | L285: =Skyggetabeller!L135 -> 262.4936709 | M285: =Skyggetabeller!M135 -> 250.9761905 | N285: =Skyggetabeller!N135 -> 198.0210526 | O285: =Skyggetabeller!O135 -> 227.2040816 | P285: =Skyggetabeller!P135 -> 228.952381 | Q285: =Skyggetabeller!Q135 -> 233.9204545 | R285: =Skyggetabeller!R135 -> 244.6
B286: =Skyggetabeller!B133 -> Samlet antal dage | D286: =Skyggetabeller!D133 -> 19522 | E286: =Skyggetabeller!E133 -> 19854 | F286: =Skyggetabeller!F133 -> 23846 | G286: =Skyggetabeller!G133 -> 25839 | H286: =Skyggetabeller!H133 -> 18299 | I286: =Skyggetabeller!I133 -> 18138 | J286: =Skyggetabeller!J133 -> 20357 | K286: =Skyggetabeller!K133 -> 23262 | L286: =Skyggetabeller!L133 -> 20737 | M286: =Skyggetabeller!M133 -> 21082 | N286: =Skyggetabeller!N133 -> 18812 | O286: =Skyggetabeller!O133 -> 22266 | P286: =Skyggetabeller!P133 -> 19232 | Q286: =Skyggetabeller!Q133 -> 20585 | R286: =Skyggetabeller!R133 -> 20791
B287: Anm.: Hvis nøgletallet er angivet med * er der foretaget en diskretionering af data, da der er for få observationer.
B288: =IF('Dine valg'!$G$24="","Ingen sammenligningsgruppe valgt.","Anm.: Valgte kommuner i sammenligningsgruppen: "&'Dine valg'!$G$24&" "&'Dine valg'!$G$25&" "&'Dine valg'!$G$26&" "&'Dine valg'!$G$27&" "&'Dine valg'!$G$28&" "&'Dine valg'!$G$29&" "&'Dine valg'!$G$30) -> Anm.: Valgte kommuner i sammenligningsgruppen: Aarhus
B289: Kilde: Socialstyrelsens egne beregninger baseret på registerdata fra Danmarks Statistik.
B291: =Skyggetabeller!B137 -> Tabel 2.3: Gennemsnitlig varighed af anbringelser på socialpædagogisk opholdssted
B293: =Skyggetabeller!B138 -> Nøgletal 2.3: Gennemsnitlig varighed af igangværende anbringelser på socialpædagogisk opholdssted | D293: 2016-01-01 | E293: 2016-07-01 | F293: 2017-01-01 | G293: 2017-07-01 | H293: 2018-01-01 | I293: 2018-07-01 | J293: 2019-01-01 | K293: 2019-07-01 | L293: 2020-01-01 | M293: 2020-07-01 | N293: 2021-01-01 | O293: 2021-07-01 | P293: 2022-01-01 | Q293: 2022-07-01 | R293: 2023-01-01
B294: =Skyggetabeller!B139 -> København
B295: =Skyggetabeller!B142 -> Gennemsnitlig varighed | D295: =Skyggetabeller!D142 -> 933.7407407 | E295: =Skyggetabeller!E142 -> 944.2692308 | F295: =Skyggetabeller!F142 -> 1022.021277 | G295: =Skyggetabeller!G142 -> 1109.641026 | H295: =Skyggetabeller!H142 -> 1280.529412 | I295: =Skyggetabeller!I142 -> 1335.636364 | J295: =Skyggetabeller!J142 -> 1320.090909 | K295: =Skyggetabeller!K142 -> 1331.8 | L295: =Skyggetabeller!L142 -> * | M295: =Skyggetabeller!M142 -> 1414.375 | N295: =Skyggetabeller!N142 -> 1250.04 | O295: =Skyggetabeller!O142 -> 1073.625 | P295: =Skyggetabeller!P142 -> 1128.857143 | Q295: =Skyggetabeller!Q142 -> 1087.1875 | R295: =Skyggetabeller!R142 -> 748.9473684
B296: =Skyggetabeller!B140 -> Samlet antal dage | D296: =Skyggetabeller!D140 -> 50422 | E296: =Skyggetabeller!E140 -> 49102 | F296: =Skyggetabeller!F140 -> 48035 | G296: =Skyggetabeller!G140 -> 43276 | H296: =Skyggetabeller!H140 -> 43538 | I296: =Skyggetabeller!I140 -> 44076 | J296: =Skyggetabeller!J140 -> 43563 | K296: =Skyggetabeller!K140 -> 46613 | L296: =Skyggetabeller!L140 -> * | M296: =Skyggetabeller!M140 -> 33945 | N296: =Skyggetabeller!N140 -> 31251 | O296: =Skyggetabeller!O140 -> 34356 | P296: =Skyggetabeller!P140 -> 31608 | Q296: =Skyggetabeller!Q140 -> 34790 | R296: =Skyggetabeller!R140 -> 28460
B297: =Skyggetabeller!B143 -> Sammenligningsgruppe, gns.
B298: =Skyggetabeller!B146 -> Gennemsnitlig varighed | D298: =Skyggetabeller!D146 -> 778.1636364 | E298: =Skyggetabeller!E146 -> 0 | F298: =Skyggetabeller!F146 -> 0 | G298: =Skyggetabeller!G146 -> 0 | H298: =Skyggetabeller!H146 -> 0 | I298: =Skyggetabeller!I146 -> 826.6444444 | J298: =Skyggetabeller!J146 -> 736.7173913 | K298: =Skyggetabeller!K146 -> 813.3333333 | L298: =Skyggetabeller!L146 -> 847.5714286 | M298: =Skyggetabeller!M146 -> 703.8285714 | N298: =Skyggetabeller!N146 -> 719.4324324 | O298: =Skyggetabeller!O146 -> 501.4186047 | P298: =Skyggetabeller!P146 -> 521.6315789 | Q298: =Skyggetabeller!Q146 -> 502.0416667 | R298: =Skyggetabeller!R146 -> 473.4090909
B299: =Skyggetabeller!B144 -> Samlet antal dage | D299: =Skyggetabeller!D144 -> 42799 | E299: =Skyggetabeller!E144 -> 0 | F299: =Skyggetabeller!F144 -> 0 | G299: =Skyggetabeller!G144 -> 0 | H299: =Skyggetabeller!H144 -> 0 | I299: =Skyggetabeller!I144 -> 37199 | J299: =Skyggetabeller!J144 -> 33889 | K299: =Skyggetabeller!K144 -> 34160 | L299: =Skyggetabeller!L144 -> 29665 | M299: =Skyggetabeller!M144 -> 24634 | N299: =Skyggetabeller!N144 -> 26619 | O299: =Skyggetabeller!O144 -> 21561 | P299: =Skyggetabeller!P144 -> 19822 | Q299: =Skyggetabeller!Q144 -> 24098 | R299: =Skyggetabeller!R144 -> 20830
B300: =Skyggetabeller!B147 -> Hele landet
B301: =Skyggetabeller!B150 -> Gennemsnitlig varighed | D301: =Skyggetabeller!D150 -> 831.0864516 | E301: =Skyggetabeller!E150 -> 789.911707 | F301: =Skyggetabeller!F150 -> 777.5047106 | G301: =Skyggetabeller!G150 -> 736.9638095 | H301: =Skyggetabeller!H150 -> 737.4042553 | I301: =Skyggetabeller!I150 -> 716.1940492 | J301: =Skyggetabeller!J150 -> 695.4289439 | K301: =Skyggetabeller!K150 -> 683.7859025 | L301: =Skyggetabeller!L150 -> 673.5310436 | M301: =Skyggetabeller!M150 -> 676.8779254 | N301: =Skyggetabeller!N150 -> 677.5586207 | O301: =Skyggetabeller!O150 -> 654.2764324 | P301: =Skyggetabeller!P150 -> 675.0238521 | Q301: =Skyggetabeller!Q150 -> 646.8747885 | R301: =Skyggetabeller!R150 -> 649.3883277
B302: =Skyggetabeller!B148 -> Samlet antal dage | D302: =Skyggetabeller!D148 -> 1288184 | E302: =Skyggetabeller!E148 -> 1207775 | F302: =Skyggetabeller!F148 -> 1155372 | G302: =Skyggetabeller!G148 -> 1160718 | H302: =Skyggetabeller!H148 -> 1143714 | I302: =Skyggetabeller!I148 -> 1107236 | J302: =Skyggetabeller!J148 -> 1066788 | K302: =Skyggetabeller!K148 -> 1037987 | L302: =Skyggetabeller!L148 -> 1019726 | M302: =Skyggetabeller!M148 -> 1070144 | N302: =Skyggetabeller!N148 -> 1080706 | O302: =Skyggetabeller!O148 -> 1107690 | P302: =Skyggetabeller!P148 -> 1132015 | Q302: =Skyggetabeller!Q148 -> 1146909 | R302: =Skyggetabeller!R148 -> 1157210
B303: Anm.: Hvis nøgletallet er angivet med * er der foretaget en diskretionering af data, da der er for få observationer.
B304: =IF('Dine valg'!$G$24="","Ingen sammenligningsgruppe valgt.","Anm.: Valgte kommuner i sammenligningsgruppen: "&'Dine valg'!$G$24&" "&'Dine valg'!$G$25&" "&'Dine valg'!$G$26&" "&'Dine valg'!$G$27&" "&'Dine valg'!$G$28&" "&'Dine valg'!$G$29&" "&'Dine valg'!$G$30) -> Anm.: Valgte kommuner i sammenligningsgruppen: Aarhus
B305: Kilde: Socialstyrelsens egne beregninger baseret på registerdata fra Danmarks Statistik.
B308: =Skyggetabeller!B153 -> Nøgletal 3: Anbragte i plejefamilie
B310: Figur 3: Anbragte i plejefamilie | M310: Benyt, slet eller erstat gerne følgende tekst til beskrivelse af udviklingen over tid for det pågældende nøgletal. Beskrivelsen vil blive indsat i rapporten (skriv maks 20 linjer):
B333: Anm.: Hvis nøgletallet har værdien 0 i grafen kan det enten betyde 0 %, eller at der er foretaget en diskretionering af data, da der er for få observationer. Se tilhørende tabel for værdien.
B334: =IF('Dine valg'!$G$24="","Ingen sammenligningsgruppe valgt.","Anm.: Valgte kommuner i sammenligningsgruppen: "&'Dine valg'!$G$24&" "&'Dine valg'!$G$25&" "&'Dine valg'!$G$26&" "&'Dine valg'!$G$27&" "&'Dine valg'!$G$28&" "&'Dine valg'!$G$29&" "&'Dine valg'!$G$30) -> Anm.: Valgte kommuner i sammenligningsgruppen: Aarhus
B335: =Registerdata!$B$32 -> Kilde: Socialstyrelsens egne beregninger baseret på registerdata fra Danmarks Statistik.
B337: =Skyggetabeller!B155 -> Tabel 3: Anbragte i plejefamilie
B339: =Skyggetabeller!B156 -> Nøgletal 3: Anbragte i plejefamilie | D339: 2016-01-01 | E339: 2016-07-01 | F339: 2017-01-01 | G339: 2017-07-01 | H339: 2018-01-01 | I339: 2018-07-01 | J339: 2019-01-01 | K339: 2019-07-01 | L339: 2020-01-01 | M339: 2020-07-01 | N339: 2021-01-01 | O339: 2021-07-01 | P339: 2022-01-01 | Q339: 2022-07-01 | R339: 2023-01-01
B340: =Skyggetabeller!B157 -> København
B341: =Skyggetabeller!B160 -> Andel | D341: =Skyggetabeller!D160 -> 3.688041862 | E341: =Skyggetabeller!E160 -> 3.521093161 | F341: =Skyggetabeller!F160 -> 3.35269396 | G341: =Skyggetabeller!G160 -> 3.245629624 | H341: =Skyggetabeller!H160 -> 3.229099007 | I341: =Skyggetabeller!I160 -> 3.22806114 | J341: =Skyggetabeller!J160 -> 3.100562491 | K341: =Skyggetabeller!K160 -> 2.950843487 | L341: =Skyggetabeller!L160 -> 2.815325477 | M341: =Skyggetabeller!M160 -> 2.65603054 | N341: =Skyggetabeller!N160 -> 2.596302073 | O341: =Skyggetabeller!O160 -> 2.576527384 | P341: =Skyggetabeller!P160 -> 2.461248903 | Q341: =Skyggetabeller!Q160 -> 2.384996206 | R341: =Skyggetabeller!R160 -> 2.427031172
B342: =Skyggetabeller!B159 -> Antal 0-17-årige | D342: =Skyggetabeller!D159 -> 103578 | E342: =Skyggetabeller!E159 -> 104797 | F342: =Skyggetabeller!F159 -> 105885 | G342: =Skyggetabeller!G159 -> 106913 | H342: =Skyggetabeller!H159 -> 107770 | I342: =Skyggetabeller!I159 -> 108734 | J342: =Skyggetabeller!J159 -> 109335 | K342: =Skyggetabeller!K159 -> 110138 | L342: =Skyggetabeller!L159 -> 110822 | M342: =Skyggetabeller!M159 -> 111068 | N342: =Skyggetabeller!N159 -> 110927 | O342: =Skyggetabeller!O159 -> 110614 | P342: =Skyggetabeller!P159 -> 110513 | Q342: =Skyggetabeller!Q159 -> 110692 | R342: =Skyggetabeller!R159 -> 110835
B343: =Skyggetabeller!B161 -> Sammenligningsgruppe, gns.
B344: =Skyggetabeller!B164 -> Andel | D344: =Skyggetabeller!D164 -> 3.341848621 | E344: =Skyggetabeller!E164 -> 3.430668581 | F344: =Skyggetabeller!F164 -> 3.513345945 | G344: =Skyggetabeller!G164 -> 3.567068821 | H344: =Skyggetabeller!H164 -> 3.605028065 | I344: =Skyggetabeller!I164 -> 3.778932452 | J344: =Skyggetabeller!J164 -> 3.75744808 | K344: =Skyggetabeller!K164 -> 3.673238729 | L344: =Skyggetabeller!L164 -> 3.631241196 | M344: =Skyggetabeller!M164 -> 3.633358283 | N344: =Skyggetabeller!N164 -> 3.481829204 | O344: =Skyggetabeller!O164 -> 3.327787022 | P344: =Skyggetabeller!P164 -> 3.3411919 | Q344: =Skyggetabeller!Q164 -> 3.371868979 | R344: =Skyggetabeller!R164 -> 3.18224154
B345: =Skyggetabeller!B163 -> Antal 0-17-årige | D345: =Skyggetabeller!D163 -> 62241 | E345: =Skyggetabeller!E163 -> 62670 | F345: =Skyggetabeller!F163 -> 62903 | G345: =Skyggetabeller!G163 -> 63077 | H345: =Skyggetabeller!H163 -> 63245 | I345: =Skyggetabeller!I163 -> 63510 | J345: =Skyggetabeller!J163 -> 63607 | K345: =Skyggetabeller!K163 -> 63704 | L345: =Skyggetabeller!L163 -> 63890 | M345: =Skyggetabeller!M163 -> 64128 | N345: =Skyggetabeller!N163 -> 64334 | O345: =Skyggetabeller!O163 -> 64307 | P345: =Skyggetabeller!P163 -> 64049 | Q345: =Skyggetabeller!Q163 -> 64356 | R345: =Skyggetabeller!R163 -> 64420
B346: =Skyggetabeller!B165 -> Hele landet
B347: =Skyggetabeller!B168 -> Andel | D347: =Skyggetabeller!D168 -> 5.649180333 | E347: =Skyggetabeller!E168 -> 5.713786266 | F347: =Skyggetabeller!F168 -> 5.790955495 | G347: =Skyggetabeller!G168 -> 5.835091727 | H347: =Skyggetabeller!H168 -> 5.803642292 | I347: =Skyggetabeller!I168 -> 5.863043637 | J347: =Skyggetabeller!J168 -> 5.849908649 | K347: =Skyggetabeller!K168 -> 5.851952856 | L347: =Skyggetabeller!L168 -> 5.749423068 | M347: =Skyggetabeller!M168 -> 5.711054468 | N347: =Skyggetabeller!N168 -> 5.659287476 | O347: =Skyggetabeller!O168 -> 5.6532456 | P347: =Skyggetabeller!P168 -> 5.565666178 | Q347: =Skyggetabeller!Q168 -> 5.474165568 | R347: =Skyggetabeller!R168 -> 5.401388113
B348: =Skyggetabeller!B167 -> Antal 0-17-årige | D348: =Skyggetabeller!D167 -> 1167426 | E348: =Skyggetabeller!E167 -> 1167002 | F348: =Skyggetabeller!F167 -> 1168201 | G348: =Skyggetabeller!G167 -> 1165363 | H348: =Skyggetabeller!H167 -> 1165475 | I348: =Skyggetabeller!I167 -> 1162195 | J348: =Skyggetabeller!J167 -> 1160360 | K348: =Skyggetabeller!K167 -> 1156537 | L348: =Skyggetabeller!L167 -> 1156116 | M348: =Skyggetabeller!M167 -> 1153027 | N348: =Skyggetabeller!N167 -> 1152972 | O348: =Skyggetabeller!O167 -> 1151374 | P348: =Skyggetabeller!P167 -> 1151704 | Q348: =Skyggetabeller!Q167 -> 1157254 | R348: =Skyggetabeller!R167 -> 1155814
B349: =Registerdata!$B$30 -> Anm.: Hvis nøgletallet er angivet med * er der foretaget en diskretionering af data, da der er for få observationer.
B350: =IF('Dine valg'!$G$24="","Ingen sammenligningsgruppe valgt.","Anm.: Valgte kommuner i sammenligningsgruppen: "&'Dine valg'!$G$24&" "&'Dine valg'!$G$25&" "&'Dine valg'!$G$26&" "&'Dine valg'!$G$27&" "&'Dine valg'!$G$28&" "&'Dine valg'!$G$29&" "&'Dine valg'!$G$30) -> Anm.: Valgte kommuner i sammenligningsgruppen: Aarhus
B351: =Registerdata!$B$32 -> Kilde: Socialstyrelsens egne beregninger baseret på registerdata fra Danmarks Statistik.
B354: =Skyggetabeller!B171 -> Nøgletal 4: Anbragte i netværksplejefamilie
B356: Figur 4: Anbragte i netværksplejefamilie | M356: Benyt, slet eller erstat gerne følgende tekst til beskrivelse af udviklingen over tid for det pågældende nøgletal. Beskrivelsen vil blive indsat i rapporten (skriv maks 20 linjer):
B378: =Registerdata!$B$30 -> Anm.: Hvis nøgletallet er angivet med * er der foretaget en diskretionering af data, da der er for få observationer.
B379: =IF('Dine valg'!$G$24="","Ingen sammenligningsgruppe valgt.","Anm.: Valgte kommuner i sammenligningsgruppen: "&'Dine valg'!$G$24&" "&'Dine valg'!$G$25&" "&'Dine valg'!$G$26&" "&'Dine valg'!$G$27&" "&'Dine valg'!$G$28&" "&'Dine valg'!$G$29&" "&'Dine valg'!$G$30) -> Anm.: Valgte kommuner i sammenligningsgruppen: Aarhus
B380: =Registerdata!$B$32 -> Kilde: Socialstyrelsens egne beregninger baseret på registerdata fra Danmarks Statistik.
B382: =Skyggetabeller!B173 -> Tabel 4: Anbragte i netværksplejefamilie
B384: =Skyggetabeller!B174 -> Nøgletal 4: Anbragte i netværksplejefamilie | D384: 2016-01-01 | E384: 2016-07-01 | F384: 2017-01-01 | G384: 2017-07-01 | H384: 2018-01-01 | I384: 2018-07-01 | J384: 2019-01-01 | K384: 2019-07-01 | L384: 2020-01-01 | M384: 2020-07-01 | N384: 2021-01-01 | O384: 2021-07-01 | P384: 2022-01-01 | Q384: 2022-07-01 | R384: 2023-01-01
B385: =Skyggetabeller!B175 -> København
B386: =Skyggetabeller!B178 -> Andel | D386: =Skyggetabeller!D178 -> 1.013728784 | E386: =Skyggetabeller!E178 -> 0.9637680468 | F386: =Skyggetabeller!F178 -> 0.9916418756 | G386: =Skyggetabeller!G178 -> 1.047580743 | H386: =Skyggetabeller!H178 -> 1.020692215 | I386: =Skyggetabeller!I178 -> 0.9840528262 | J386: =Skyggetabeller!J178 -> 1.024374628 | K386: =Skyggetabeller!K178 -> 0.9715084712 | L386: =Skyggetabeller!L178 -> 0.974535742 | M386: =Skyggetabeller!M178 -> 0.9723772824 | N386: =Skyggetabeller!N178 -> 1.036717841 | O386: =Skyggetabeller!O178 -> 1.021570506 | P386: =Skyggetabeller!P178 -> 1.02250414 | Q386: =Skyggetabeller!Q178 -> 1.011816572 | R386: =Skyggetabeller!R178 -> 1.028555962
B387: =Skyggetabeller!B177 -> Antal 0-17-årige | D387: =Skyggetabeller!D177 -> 103578 | E387: =Skyggetabeller!E177 -> 104797 | F387: =Skyggetabeller!F177 -> 105885 | G387: =Skyggetabeller!G177 -> 106913 | H387: =Skyggetabeller!H177 -> 107770 | I387: =Skyggetabeller!I177 -> 108734 | J387: =Skyggetabeller!J177 -> 109335 | K387: =Skyggetabeller!K177 -> 110138 | L387: =Skyggetabeller!L177 -> 110822 | M387: =Skyggetabeller!M177 -> 111068 | N387: =Skyggetabeller!N177 -> 110927 | O387: =Skyggetabeller!O177 -> 110614 | P387: =Skyggetabeller!P177 -> 110513 | Q387: =Skyggetabeller!Q177 -> 110692 | R387: =Skyggetabeller!R177 -> 110835
B388: =Skyggetabeller!B179 -> Sammenligningsgruppe, gns.
B389: =Skyggetabeller!B182 -> Andel | D389: =Skyggetabeller!D182 -> 0.5944634566 | E389: =Skyggetabeller!E182 -> 0.606350726 | F389: =Skyggetabeller!F182 -> 0.6676947045 | G389: =Skyggetabeller!G182 -> 0.5865846505 | H389: =Skyggetabeller!H182 -> 0.5217803779 | I389: =Skyggetabeller!I182 -> 0.4251299008 | J389: =Skyggetabeller!J182 -> 0.3930385021 | K389: =Skyggetabeller!K182 -> 0.3767424338 | L389: =Skyggetabeller!L182 -> 0.3443418375 | M389: =Skyggetabeller!M182 -> 0.374251497 | N389: =Skyggetabeller!N182 -> 0.4041408897 | O389: =Skyggetabeller!O182 -> 0.3887601661 | P389: =Skyggetabeller!P182 -> 0.3434870178 | Q389: =Skyggetabeller!Q182 -> 0.3418484679 | R389: =Skyggetabeller!R182 -> 0.3880782366
B390: =Skyggetabeller!B181 -> Antal 0-17-årige | D390: =Skyggetabeller!D181 -> 62241 | E390: =Skyggetabeller!E181 -> 62670 | F390: =Skyggetabeller!F181 -> 62903 | G390: =Skyggetabeller!G181 -> 63077 | H390: =Skyggetabeller!H181 -> 63245 | I390: =Skyggetabeller!I181 -> 63510 | J390: =Skyggetabeller!J181 -> 63607 | K390: =Skyggetabeller!K181 -> 63704 | L390: =Skyggetabeller!L181 -> 63890 | M390: =Skyggetabeller!M181 -> 64128 | N390: =Skyggetabeller!N181 -> 64334 | O390: =Skyggetabeller!O181 -> 64307 | P390: =Skyggetabeller!P181 -> 64049 | Q390: =Skyggetabeller!Q181 -> 64356 | R390: =Skyggetabeller!R181 -> 64420
B391: =Skyggetabeller!B183 -> Hele landet
B392: =Skyggetabeller!B186 -> Andel | D392: =Skyggetabeller!D186 -> 0.8069033926 | E392: =Skyggetabeller!E186 -> 0.8217638016 | F392: =Skyggetabeller!F186 -> 0.8166402871 | G392: =Skyggetabeller!G186 -> 0.8572436228 | H392: =Skyggetabeller!H186 -> 0.8245565113 | I392: =Skyggetabeller!I186 -> 0.811395678 | J392: =Skyggetabeller!J186 -> 0.8118170223 | K392: =Skyggetabeller!K186 -> 0.7928842743 | L392: =Skyggetabeller!L186 -> 0.7776036315 | M392: =Skyggetabeller!M186 -> 0.7970325066 | N392: =Skyggetabeller!N186 -> 0.8178862973 | O392: =Skyggetabeller!O186 -> 0.82162703 | P392: =Skyggetabeller!P186 -> 0.8066308704 | Q392: =Skyggetabeller!Q186 -> 0.8183164629 | R392: =Skyggetabeller!R186 -> 0.8461569076
B393: =Skyggetabeller!B185 -> Antal 0-17-årige | D393: =Skyggetabeller!D185 -> 1167426 | E393: =Skyggetabeller!E185 -> 1167002 | F393: =Skyggetabeller!F185 -> 1168201 | G393: =Skyggetabeller!G185 -> 1165363 | H393: =Skyggetabeller!H185 -> 1165475 | I393: =Skyggetabeller!I185 -> 1162195 | J393: =Skyggetabeller!J185 -> 1160360 | K393: =Skyggetabeller!K185 -> 1156537 | L393: =Skyggetabeller!L185 -> 1156116 | M393: =Skyggetabeller!M185 -> 1153027 | N393: =Skyggetabeller!N185 -> 1152972 | O393: =Skyggetabeller!O185 -> 1151374 | P393: =Skyggetabeller!P185 -> 1151704 | Q393: =Skyggetabeller!Q185 -> 1157254 | R393: =Skyggetabeller!R185 -> 1155814
B394: =Registerdata!$B$30 -> Anm.: Hvis nøgletallet er angivet med * er der foretaget en diskretionering af data, da der er for få observationer.
B395: =IF('Dine valg'!$G$24="","Ingen sammenligningsgruppe valgt.","Anm.: Valgte kommuner i sammenligningsgruppen: "&'Dine valg'!$G$24&" "&'Dine valg'!$G$25&" "&'Dine valg'!$G$26&" "&'Dine valg'!$G$27&" "&'Dine valg'!$G$28&" "&'Dine valg'!$G$29&" "&'Dine valg'!$G$30) -> Anm.: Valgte kommuner i sammenligningsgruppen: Aarhus
B396: =Registerdata!$B$32 -> Kilde: Socialstyrelsens egne beregninger baseret på registerdata fra Danmarks Statistik.
B399: =Skyggetabeller!B189 -> Nøgletal 5: Hjemmebaserede foranstaltninger
B401: Figur 5: Modtagere af hjemmebaserede foranstaltninger | M401: Benyt, slet eller erstat gerne følgende tekst til beskrivelse af udviklingen over tid for det pågældende nøgletal. Beskrivelsen vil blive indsat i rapporten (skriv maks 20 linjer):
B423: =Registerdata!$B$30 -> Anm.: Hvis nøgletallet er angivet med * er der foretaget en diskretionering af data, da der er for få observationer.
B424: =IF('Dine valg'!$G$24="","Ingen sammenligningsgruppe valgt.","Anm.: Valgte kommuner i sammenligningsgruppen: "&'Dine valg'!$G$24&" "&'Dine valg'!$G$25&" "&'Dine valg'!$G$26&" "&'Dine valg'!$G$27&" "&'Dine valg'!$G$28&" "&'Dine valg'!$G$29&" "&'Dine valg'!$G$30) -> Anm.: Valgte kommuner i sammenligningsgruppen: Aarhus
... 246 more rows

Sheet Skyggetabeller (hidden)
B3: Skyggetabeller
B6: Nøgletal 1: Institutionsanbringelser
B8: Tabel 1: Institutionsanbringelser
B9: Nøgletal 1: Institutionsanbringelser | D9: 2016-01-01 | E9: 2016-07-01 | F9: 2017-01-01 | G9: 2017-07-01 | H9: 2018-01-01 | I9: 2018-07-01 | J9: 2019-01-01 | K9: 2019-07-01 | L9: 2020-01-01 | M9: 2020-07-01 | N9: 2021-01-01 | O9: 2021-07-01 | P9: 2022-01-01 | Q9: 2022-07-01 | R9: 2023-01-01
B10: =IF(Kommune="","Kommune",Kommune) -> København
B11: Antal anbragte | D11: =IFERROR(INDEX(Data_kom2,MATCH(1,(komnavn2=Kommune)*(komaar2=D9),0),4),"Data ikke tilføjet") -> 230 | E11: =IFERROR(INDEX(Data_kom2,MATCH(1,(komnavn2=Kommune)*(komaar2=E9),0),4),"Data ikke tilføjet") -> 233 | F11: =IFERROR(INDEX(Data_kom2,MATCH(1,(komnavn2=Kommune)*(komaar2=F9),0),4),"Data ikke tilføjet") -> 224 | G11: =IFERROR(INDEX(Data_kom2,MATCH(1,(komnavn2=Kommune)*(komaar2=G9),0),4),"Data ikke tilføjet") -> 226 | H11: =IFERROR(INDEX(Data_kom2,MATCH(1,(komnavn2=Kommune)*(komaar2=H9),0),4),"Data ikke tilføjet") -> 214 | I11: =IFERROR(INDEX(Data_kom2,MATCH(1,(komnavn2=Kommune)*(komaar2=I9),0),4),"Data ikke tilføjet") -> 217 | J11: =IFERROR(INDEX(Data_kom2,MATCH(1,(komnavn2=Kommune)*(komaar2=J9),0),4),"Data ikke tilføjet") -> 204 | K11: =IFERROR(INDEX(Data_kom2,MATCH(1,(komnavn2=Kommune)*(komaar2=K9),0),4),"Data ikke tilføjet") -> 193 | L11: =IFERROR(INDEX(Data_kom2,MATCH(1,(komnavn2=Kommune)*(komaar2=L9),0),4),"Data ikke tilføjet") -> 160 | M11: =IFERROR(INDEX(Data_kom2,MATCH(1,(komnavn2=Kommune)*(komaar2=M9),0),4),"Data ikke tilføjet") -> 180 | N11: =IFERROR(INDEX(Data_kom2,MATCH(1,(komnavn2=Kommune)*(komaar2=N9),0),4),"Data ikke tilføjet") -> 201 | O11: =IFERROR(INDEX(Data_kom2,MATCH(1,(komnavn2=Kommune)*(komaar2=O9),0),4),"Data ikke tilføjet") -> 219 | P11: =IFERROR(INDEX(Data_kom2,MATCH(1,(komnavn2=Kommune)*(komaar2=P9),0),4),"Data ikke tilføjet") -> 217 | Q11: =IFERROR(INDEX(Data_kom2,MATCH(1,(komnavn2=Kommune)*(komaar2=Q9),0),4),"Data ikke tilføjet") -> 243 | R11: =IFERROR(INDEX(Data_kom2,MATCH(1,(komnavn2=Kommune)*(komaar2=R9),0),4),"Data ikke tilføjet") -> 248
B12: Antal 0-17-årige | D12: =IFERROR(INDEX(Data_kom2,MATCH(1,(komnavn2=Kommune)*(komaar2=D9),0),2),"Data ikke tilføjet") -> 103578 | E12: =IFERROR(INDEX(Data_kom2,MATCH(1,(komnavn2=Kommune)*(komaar2=E9),0),2),"Data ikke tilføjet") -> 104797 | F12: =IFERROR(INDEX(Data_kom2,MATCH(1,(komnavn2=Kommune)*(komaar2=F9),0),2),"Data ikke tilføjet") -> 105885 | G12: =IFERROR(INDEX(Data_kom2,MATCH(1,(komnavn2=Kommune)*(komaar2=G9),0),2),"Data ikke tilføjet") -> 106913 | H12: =IFERROR(INDEX(Data_kom2,MATCH(1,(komnavn2=Kommune)*(komaar2=H9),0),2),"Data ikke tilføjet") -> 107770 | I12: =IFERROR(INDEX(Data_kom2,MATCH(1,(komnavn2=Kommune)*(komaar2=I9),0),2),"Data ikke tilføjet") -> 108734 | J12: =IFERROR(INDEX(Data_kom2,MATCH(1,(komnavn2=Kommune)*(komaar2=J9),0),2),"Data ikke tilføjet") -> 109335 | K12: =IFERROR(INDEX(Data_kom2,MATCH(1,(komnavn2=Kommune)*(komaar2=K9),0),2),"Data ikke tilføjet") -> 110138 | L12: =IFERROR(INDEX(Data_kom2,MATCH(1,(komnavn2=Kommune)*(komaar2=L9),0),2),"Data ikke tilføjet") -> 110822 | M12: =IFERROR(INDEX(Data_kom2,MATCH(1,(komnavn2=Kommune)*(komaar2=M9),0),2),"Data ikke tilføjet") -> 111068 | N12: =IFERROR(INDEX(Data_kom2,MATCH(1,(komnavn2=Kommune)*(komaar2=N9),0),2),"Data ikke tilføjet") -> 110927 | O12: =IFERROR(INDEX(Data_kom2,MATCH(1,(komnavn2=Kommune)*(komaar2=O9),0),2),"Data ikke tilføjet") -> 110614 | P12: =IFERROR(INDEX(Data_kom2,MATCH(1,(komnavn2=Kommune)*(komaar2=P9),0),2),"Data ikke tilføjet") -> 110513 | Q12: =IFERROR(INDEX(Data_kom2,MATCH(1,(komnavn2=Kommune)*(komaar2=Q9),0),2),"Data ikke tilføjet") -> 110692 | R12: =IFERROR(INDEX(Data_kom2,MATCH(1,(komnavn2=Kommune)*(komaar2=R9),0),2),"Data ikke tilføjet") -> 110835
B13: Andel | D13: =IFERROR(IF(D11="*","*",IF(D12=0,"#I/T",(D11/D12*1000))),"Data ikke tilføjet") -> 2.220548765 | E13: 2.223346088 | F13: 2.115502668 | G13: 2.113868285 | H13: 1.985710309 | I13: 1.995695918 | J13: 1.865825216 | K13: 1.752347056 | L13: 1.443756655 | M13: =IFERROR(IF(M11="*","*",IF(M12=0,"#I/T",(M11/M12*1000))),"Data ikke tilføjet") -> 1.620628804 | N13: 1.812002488 | O13: 1.979857884 | P13: 1.963569897 | Q13: 2.195280598 | R13: 2.237560337
B14: Sammenligningsgruppe, gns.
B15: Antal anbragte | D15: =IF('Dine valg'!$G$24="","-",SUMIF(Hjælpefane!$D$7:$D$111,"="&D$9,Hjælpefane!$E$7:$E$111)) -> 189 | E15: =IF('Dine valg'!$G$24="","-",SUMIF(Hjælpefane!$D$7:$D$111,"="&E$9,Hjælpefane!$E$7:$E$111)) -> 203 | F15: =IF('Dine valg'!$G$24="","-",SUMIF(Hjælpefane!$D$7:$D$111,"="&F$9,Hjælpefane!$E$7:$E$111)) -> 191 | G15: =IF('Dine valg'!$G$24="","-",SUMIF(Hjælpefane!$D$7:$D$111,"="&G$9,Hjælpefane!$E$7:$E$111)) -> 190 | H15: =IF('Dine valg'!$G$24="","-",SUMIF(Hjælpefane!$D$7:$D$111,"="&H$9,Hjælpefane!$E$7:$E$111)) -> 180 | I15: =IF('Dine valg'!$G$24="","-",SUMIF(Hjælpefane!$D$7:$D$111,"="&I$9,Hjælpefane!$E$7:$E$111)) -> 168 | J15: =IF('Dine valg'!$G$24="","-",SUMIF(Hjælpefane!$D$7:$D$111,"="&J$9,Hjælpefane!$E$7:$E$111)) -> 174 | K15: =IF('Dine valg'!$G$24="","-",SUMIF(Hjælpefane!$D$7:$D$111,"="&K$9,Hjælpefane!$E$7:$E$111)) -> 178 | L15: =IF('Dine valg'!$G$24="","-",SUMIF(Hjælpefane!$D$7:$D$111,"="&L$9,Hjælpefane!$E$7:$E$111)) -> 171 | M15: =IF('Dine valg'!$G$24="","-",SUMIF(Hjælpefane!$D$7:$D$111,"="&M$9,Hjælpefane!$E$7:$E$111)) -> 173 | N15: =IF('Dine valg'!$G$24="","-",SUMIF(Hjælpefane!$D$7:$D$111,"="&N$9,Hjælpefane!$E$7:$E$111)) -> 175 | O15: =IF('Dine valg'!$G$24="","-",SUMIF(Hjælpefane!$D$7:$D$111,"="&O$9,Hjælpefane!$E$7:$E$111)) -> 175 | P15: =IF('Dine valg'!$G$24="","-",SUMIF(Hjælpefane!$D$7:$D$111,"="&P$9,Hjælpefane!$E$7:$E$111)) -> 161 | Q15: =IF('Dine valg'!$G$24="","-",SUMIF(Hjælpefane!$D$7:$D$111,"="&Q$9,Hjælpefane!$E$7:$E$111)) -> 174 | R15: =IF('Dine valg'!$G$24="","-",SUMIF(Hjælpefane!$D$7:$D$111,"="&R$9,Hjælpefane!$E$7:$E$111)) -> 168
B16: Antal 0-17-årige | D16: =IF('Dine valg'!$G$24="","-",SUMIF(Hjælpefane!$D$7:$D$111,"="&D$9,Hjælpefane!$C$7:$C$111)) -> 62241 | E16: =IF('Dine valg'!$G$24="","-",SUMIF(Hjælpefane!$D$7:$D$111,"="&E$9,Hjælpefane!$C$7:$C$111)) -> 62670 | F16: =IF('Dine valg'!$G$24="","-",SUMIF(Hjælpefane!$D$7:$D$111,"="&F$9,Hjælpefane!$C$7:$C$111)) -> 62903 | G16: =IF('Dine valg'!$G$24="","-",SUMIF(Hjælpefane!$D$7:$D$111,"="&G$9,Hjælpefane!$C$7:$C$111)) -> 63077 | H16: =IF('Dine valg'!$G$24="","-",SUMIF(Hjælpefane!$D$7:$D$111,"="&H$9,Hjælpefane!$C$7:$C$111)) -> 63245 | I16: =IF('Dine valg'!$G$24="","-",SUMIF(Hjælpefane!$D$7:$D$111,"="&I$9,Hjælpefane!$C$7:$C$111)) -> 63510 | J16: =IF('Dine valg'!$G$24="","-",SUMIF(Hjælpefane!$D$7:$D$111,"="&J$9,Hjælpefane!$C$7:$C$111)) -> 63607 | K16: =IF('Dine valg'!$G$24="","-",SUMIF(Hjælpefane!$D$7:$D$111,"="&K$9,Hjælpefane!$C$7:$C$111)) -> 63704 | L16: =IF('Dine valg'!$G$24="","-",SUMIF(Hjælpefane!$D$7:$D$111,"="&L$9,Hjælpefane!$C$7:$C$111)) -> 63890 | M16: =IF('Dine valg'!$G$24="","-",SUMIF(Hjælpefane!$D$7:$D$111,"="&M$9,Hjælpefane!$C$7:$C$111)) -> 64128 | N16: =IF('Dine valg'!$G$24="","-",SUMIF(Hjælpefane!$D$7:$D$111,"="&N$9,Hjælpefane!$C$7:$C$111)) -> 64334 | O16: =IF('Dine valg'!$G$24="","-",SUMIF(Hjælpefane!$D$7:$D$111,"="&O$9,Hjælpefane!$C$7:$C$111)) -> 64307 | P16: =IF('Dine valg'!$G$24="","-",SUMIF(Hjælpefane!$D$7:$D$111,"="&P$9,Hjælpefane!$C$7:$C$111)) -> 64049 | Q16: =IF('Dine valg'!$G$24="","-",SUMIF(Hjælpefane!$D$7:$D$111,"="&Q$9,Hjælpefane!$C$7:$C$111)) -> 64356 | R16: =IF('Dine valg'!$G$24="","-",SUMIF(Hjælpefane!$D$7:$D$111,"="&R$9,Hjælpefane!$C$7:$C$111)) -> 64420
B17: Andel | D17: =IFERROR(IF(D15="*","*",IF(D16="","Indtast data",(D15/D16*1000))),"-") -> 3.036583602 | E17: =IFERROR(IF(E15="*","*",IF(E16="","Indtast data",(E15/E16*1000))),"-") -> 3.239189405 | F17: 3.036421156 | G17: 3.012191449 | H17: 2.846074789 | I17: 2.645252716 | J17: 2.735547974 | K17: 2.79417305 | L17: 2.676475192 | M17: =IFERROR(IF(M15="*","*",IF(M16="","Indtast data",(M15/M16*1000))),"-") -> 2.697729541 | N17: 2.720179066 | O17: 2.721321163 | P17: 2.513700448 | Q17: 2.70371061 | R17: 2.60788575
B18: Hele landet
B19: Antal anbragte | D19: =INDEX(Data_land,MATCH(Skyggetabeller!D9,Data!landaar,0),4) -> 3438 | E19: =INDEX(Data_land,MATCH(Skyggetabeller!E9,Data!landaar,0),4) -> 3434 | F19: =INDEX(Data_land,MATCH(Skyggetabeller!F9,Data!landaar,0),4) -> 3381 | G19: =INDEX(Data_land,MATCH(Skyggetabeller!G9,Data!landaar,0),4) -> 3463 | H19: =INDEX(Data_land,MATCH(Skyggetabeller!H9,Data!landaar,0),4) -> 3375 | I19: =INDEX(Data_land,MATCH(Skyggetabeller!I9,Data!landaar,0),4) -> 3401 | J19: =INDEX(Data_land,MATCH(Skyggetabeller!J9,Data!landaar,0),4) -> 3298 | K19: =INDEX(Data_land,MATCH(Skyggetabeller!K9,Data!landaar,0),4) -> 3276 | L19: =INDEX(Data_land,MATCH(Skyggetabeller!L9,Data!landaar,0),4) -> 3268 | M19: =INDEX(Data_land,MATCH(Skyggetabeller!M9,Data!landaar,0),4) -> 3331 | N19: =INDEX(Data_land,MATCH(Skyggetabeller!N9,Data!landaar,0),4) -> 3391 | O19: =INDEX(Data_land,MATCH(Skyggetabeller!O9,Data!landaar,0),4) -> 3479 | P19: =INDEX(Data_land,MATCH(Skyggetabeller!P9,Data!landaar,0),4) -> 3460 | Q19: =INDEX(Data_land,MATCH(Skyggetabeller!Q9,Data!landaar,0),4) -> 3624 | R19: =INDEX(Data_land,MATCH(Skyggetabeller!R9,Data!landaar,0),4) -> 3632
B20: Antal 0-17-årige | D20: =INDEX(Data_land,MATCH(Skyggetabeller!D9,Data!landaar,0),2) -> 1167426 | E20: =INDEX(Data_land,MATCH(Skyggetabeller!E9,Data!landaar,0),2) -> 1167002 | F20: =INDEX(Data_land,MATCH(Skyggetabeller!F9,Data!landaar,0),2) -> 1168201 | G20: =INDEX(Data_land,MATCH(Skyggetabeller!G9,Data!landaar,0),2) -> 1165363 | H20: =INDEX(Data_land,MATCH(Skyggetabeller!H9,Data!landaar,0),2) -> 1165475 | I20: =INDEX(Data_land,MATCH(Skyggetabeller!I9,Data!landaar,0),2) -> 1162195 | J20: =INDEX(Data_land,MATCH(Skyggetabeller!J9,Data!landaar,0),2) -> 1160360 | K20: =INDEX(Data_land,MATCH(Skyggetabeller!K9,Data!landaar,0),2) -> 1156537 | L20: =INDEX(Data_land,MATCH(Skyggetabeller!L9,Data!landaar,0),2) -> 1156116 | M20: =INDEX(Data_land,MATCH(Skyggetabeller!M9,Data!landaar,0),2) -> 1153027 | N20: =INDEX(Data_land,MATCH(Skyggetabeller!N9,Data!landaar,0),2) -> 1152972 | O20: =INDEX(Data_land,MATCH(Skyggetabeller!O9,Data!landaar,0),2) -> 1151374 | P20: =INDEX(Data_land,MATCH(Skyggetabeller!P9,Data!landaar,0),2) -> 1151704 | Q20: =INDEX(Data_land,MATCH(Skyggetabeller!Q9,Data!landaar,0),2) -> 1157254 | R20: =INDEX(Data_land,MATCH(Skyggetabeller!R9,Data!landaar,0),2) -> 1155814
B21: Andel | D21: =IFERROR(IF(D19="*","*",IF(D20=0,"#I/T",(D19/D20*1000))),"Data ikke tilføjet") -> 2.944940407 | E21: 2.942582789 | F21: 2.894193722 | G21: 2.971606272 | H21: 2.895815011 | I21: 2.926359174 | J21: 2.84222138 | K21: 2.832594201 | L21: 2.826705971 | M21: =IFERROR(IF(M19="*","*",IF(M20=0,"#I/T",(M19/M20*1000))),"Data ikke tilføjet") -> 2.888917606 | N21: 2.94109484 | O21: 3.021607228 | P21: 3.004244146 | Q21: 3.131551068 | R21: 3.142374119
B23: Tabel 1.1: Anbragte på døgninstitutioner
B24: Nøgletal 1.1 Anbragte på døgninstitutioner | D24: 2016-01-01 | E24: 2016-07-01 | F24: 2017-01-01 | G24: 2017-07-01 | H24: 2018-01-01 | I24: 2018-07-01 | J24: 2019-01-01 | K24: 2019-07-01 | L24: 2020-01-01 | M24: 2020-07-01 | N24: 2021-01-01 | O24: 2021-07-01 | P24: 2022-01-01 | Q24: 2022-07-01 | R24: 2023-01-01
B25: =IF(Kommune="","Kommune",Kommune) -> København
B26: Antal anbragte | D26: =IFERROR(IF(INDEX(Data_kom2,MATCH(1,(komnavn2=Kommune)*(komaar2=D24),0),5)="*","*",INDEX(Data_kom2,MATCH(1,(komnavn2=Kommune)*(komaar2=D24),0),5)),"Data ikke tilføjet") -> 169 | E26: =IFERROR(IF(INDEX(Data_kom2,MATCH(1,(komnavn2=Kommune)*(komaar2=E24),0),5)="*","*",INDEX(Data_kom2,MATCH(1,(komnavn2=Kommune)*(komaar2=E24),0),5)),"Data ikke tilføjet") -> 175 | F26: =IFERROR(IF(INDEX(Data_kom2,MATCH(1,(komnavn2=Kommune)*(komaar2=F24),0),5)="*","*",INDEX(Data_kom2,MATCH(1,(komnavn2=Kommune)*(komaar2=F24),0),5)),"Data ikke tilføjet") -> 170 | G26: =IFERROR(IF(INDEX(Data_kom2,MATCH(1,(komnavn2=Kommune)*(komaar2=G24),0),5)="*","*",INDEX(Data_kom2,MATCH(1,(komnavn2=Kommune)*(komaar2=G24),0),5)),"Data ikke tilføjet") -> 181 | H26: =IFERROR(IF(INDEX(Data_kom2,MATCH(1,(komnavn2=Kommune)*(komaar2=H24),0),5)="*","*",INDEX(Data_kom2,MATCH(1,(komnavn2=Kommune)*(komaar2=H24),0),5)),"Data ikke tilføjet") -> 174 | I26: =IFERROR(IF(INDEX(Data_kom2,MATCH(1,(komnavn2=Kommune)*(komaar2=I24),0),5)="*","*",INDEX(Data_kom2,MATCH(1,(komnavn2=Kommune)*(komaar2=I24),0),5)),"Data ikke tilføjet") -> 174 | J26: =IFERROR(IF(INDEX(Data_kom2,MATCH(1,(komnavn2=Kommune)*(komaar2=J24),0),5)="*","*",INDEX(Data_kom2,MATCH(1,(komnavn2=Kommune)*(komaar2=J24),0),5)),"Data ikke tilføjet") -> 161 | K26: =IFERROR(IF(INDEX(Data_kom2,MATCH(1,(komnavn2=Kommune)*(komaar2=K24),0),5)="*","*",INDEX(Data_kom2,MATCH(1,(komnavn2=Kommune)*(komaar2=K24),0),5)),"Data ikke tilføjet") -> 153 | L26: =IFERROR(IF(INDEX(Data_kom2,MATCH(1,(komnavn2=Kommune)*(komaar2=L24),0),5)="*","*",INDEX(Data_kom2,MATCH(1,(komnavn2=Kommune)*(komaar2=L24),0),5)),"Data ikke tilføjet") -> 139 | M26: =IFERROR(IF(INDEX(Data_kom2,MATCH(1,(komnavn2=Kommune)*(komaar2=M24),0),5)="*","*",INDEX(Data_kom2,MATCH(1,(komnavn2=Kommune)*(komaar2=M24),0),5)),"Data ikke tilføjet") -> 147 | N26: =IFERROR(IF(INDEX(Data_kom2,MATCH(1,(komnavn2=Kommune)*(komaar2=N24),0),5)="*","*",INDEX(Data_kom2,MATCH(1,(komnavn2=Kommune)*(komaar2=N24),0),5)),"Data ikke tilføjet") -> 159 | O26: =IFERROR(IF(INDEX(Data_kom2,MATCH(1,(komnavn2=Kommune)*(komaar2=O24),0),5)="*","*",INDEX(Data_kom2,MATCH(1,(komnavn2=Kommune)*(komaar2=O24),0),5)),"Data ikke tilføjet") -> 165 | P26: =IFERROR(IF(INDEX(Data_kom2,MATCH(1,(komnavn2=Kommune)*(komaar2=P24),0),5)="*","*",INDEX(Data_kom2,MATCH(1,(komnavn2=Kommune)*(komaar2=P24),0),5)),"Data ikke tilføjet") -> 173 | Q26: =IFERROR(IF(INDEX(Data_kom2,MATCH(1,(komnavn2=Kommune)*(komaar2=Q24),0),5)="*","*",INDEX(Data_kom2,MATCH(1,(komnavn2=Kommune)*(komaar2=Q24),0),5)),"Data ikke tilføjet") -> 196 | R26: =IFERROR(IF(INDEX(Data_kom2,MATCH(1,(komnavn2=Kommune)*(komaar2=R24),0),5)="*","*",INDEX(Data_kom2,MATCH(1,(komnavn2=Kommune)*(komaar2=R24),0),5)),"Data ikke tilføjet") -> 200
B27: Antal 0-17-årige | D27: =D$11 -> 230 | E27: =E$11 -> 233 | F27: 224 | G27: 226 | H27: 214 | I27: 217 | J27: 204 | K27: 193 | L27: 160 | M27: 180 | N27: 201 | O27: 219 | P27: 217 | Q27: 243 | R27: 248
B28: Andel | D28: =IFERROR(IF(D26="*","*",IF(D27=0,"#I/T",(D26/D27))),"Data ikke tilføjet") -> 0.7347826087 | E28: =IFERROR(IF(E26="*","*",IF(E27=0,"#I/T",(E26/E27))),"Data ikke tilføjet") -> 0.7510729614 | F28: =IFERROR(IF(F26="*","*",IF(F27=0,"#I/T",(F26/F27))),"Data ikke tilføjet") -> 0.7589285714 | G28: =IFERROR(IF(G26="*","*",IF(G27=0,"#I/T",(G26/G27))),"Data ikke tilføjet") -> 0.8008849558 | H28: =IFERROR(IF(H26="*","*",IF(H27=0,"#I/T",(H26/H27))),"Data ikke tilføjet") -> 0.8130841121 | I28: =IFERROR(IF(I26="*","*",IF(I27=0,"#I/T",(I26/I27))),"Data ikke tilføjet") -> 0.801843318 | J28: =IFERROR(IF(J26="*","*",IF(J27=0,"#I/T",(J26/J27))),"Data ikke tilføjet") -> 0.7892156863 | K28: =IFERROR(IF(K26="*","*",IF(K27=0,"#I/T",(K26/K27))),"Data ikke tilføjet") -> 0.792746114 | L28: =IFERROR(IF(L26="*","*",IF(L27=0,"#I/T",(L26/L27))),"Data ikke tilføjet") -> 0.86875 | M28: =IFERROR(IF(M26="*","*",IF(M27=0,"#I/T",(M26/M27))),"Data ikke tilføjet") -> 0.8166666667 | N28: =IFERROR(IF(N26="*","*",IF(N27=0,"#I/T",(N26/N27))),"Data ikke tilføjet") -> 0.7910447761 | O28: =IFERROR(IF(O26="*","*",IF(O27=0,"#I/T",(O26/O27))),"Data ikke tilføjet") -> 0.7534246575 | P28: =IFERROR(IF(P26="*","*",IF(P27=0,"#I/T",(P26/P27))),"Data ikke tilføjet") -> 0.797235023 | Q28: =IFERROR(IF(Q26="*","*",IF(Q27=0,"#I/T",(Q26/Q27))),"Data ikke tilføjet") -> 0.8065843621 | R28: =IFERROR(IF(R26="*","*",IF(R27=0,"#I/T",(R26/R27))),"Data ikke tilføjet") -> 0.8064516129
B29: Sammenligningsgruppe, gns.
B30: Antal anbragte | D30: =IF('Dine valg'!$G$24="","-",SUMIF(Hjælpefane!$D$7:$D$111,"="&D$9,Hjælpefane!$F$7:$F$111)) -> 127 | E30: =IF('Dine valg'!$G$24="","-",SUMIF(Hjælpefane!$D$7:$D$111,"="&E$9,Hjælpefane!$F$7:$F$111)) -> 138 | F30: =IF('Dine valg'!$G$24="","-",SUMIF(Hjælpefane!$D$7:$D$111,"="&F$9,Hjælpefane!$F$7:$F$111)) -> 133 | G30: =IF('Dine valg'!$G$24="","-",SUMIF(Hjælpefane!$D$7:$D$111,"="&G$9,Hjælpefane!$F$7:$F$111)) -> 133 | H30: =IF('Dine valg'!$G$24="","-",SUMIF(Hjælpefane!$D$7:$D$111,"="&H$9,Hjælpefane!$F$7:$F$111)) -> 119 | I30: =IF('Dine valg'!$G$24="","-",SUMIF(Hjælpefane!$D$7:$D$111,"="&I$9,Hjælpefane!$F$7:$F$111)) -> 116 | J30: =IF('Dine valg'!$G$24="","-",SUMIF(Hjælpefane!$D$7:$D$111,"="&J$9,Hjælpefane!$F$7:$F$111)) -> 118 | K30: =IF('Dine valg'!$G$24="","-",SUMIF(Hjælpefane!$D$7:$D$111,"="&K$9,Hjælpefane!$F$7:$F$111)) -> 127 | L30: =IF('Dine valg'!$G$24="","-",SUMIF(Hjælpefane!$D$7:$D$111,"="&L$9,Hjælpefane!$F$7:$F$111)) -> 120 | M30: =IF('Dine valg'!$G$24="","-",SUMIF(Hjælpefane!$D$7:$D$111,"="&M$9,Hjælpefane!$F$7:$F$111)) -> 127 | N30: =IF('Dine valg'!$G$24="","-",SUMIF(Hjælpefane!$D$7:$D$111,"="&N$9,Hjælpefane!$F$7:$F$111)) -> 123 | O30: =IF('Dine valg'!$G$24="","-",SUMIF(Hjælpefane!$D$7:$D$111,"="&O$9,Hjælpefane!$F$7:$F$111)) -> 118 | P30: =IF('Dine valg'!$G$24="","-",SUMIF(Hjælpefane!$D$7:$D$111,"="&P$9,Hjælpefane!$F$7:$F$111)) -> 109 | Q30: =IF('Dine valg'!$G$24="","-",SUMIF(Hjælpefane!$D$7:$D$111,"="&Q$9,Hjælpefane!$F$7:$F$111)) -> 109 | R30: =IF('Dine valg'!$G$24="","-",SUMIF(Hjælpefane!$D$7:$D$111,"="&R$9,Hjælpefane!$F$7:$F$111)) -> 110
B31: Antal 0-17-årige | D31: =D$15 -> 189 | E31: =E$15 -> 203 | F31: 191 | G31: 190 | H31: 180 | I31: 168 | J31: 174 | K31: 178 | L31: 171 | M31: 173 | N31: 175 | O31: 175 | P31: 161 | Q31: 174 | R31: 168
B32: Andel | D32: =IFERROR(IF(D30="*","*",IF(D31="","Indtast data",(D30/D31))),"-") -> 0.671957672 | E32: =IFERROR(IF(E30="*","*",IF(E31="","Indtast data",(E30/E31))),"-") -> 0.6798029557 | F32: 0.6963350785 | G32: 0.7 | H32: 0.6611111111 | I32: 0.6904761905 | J32: 0.6781609195 | K32: 0.7134831461 | L32: 0.701754386 | M32: =IFERROR(IF(M30="*","*",IF(M31="","Indtast data",(M30/M31))),"-") -> 0.7341040462 | N32: 0.7028571429 | O32: 0.6742857143 | P32: 0.6770186335 | Q32: 0.6264367816 | R32: 0.6547619048
B33: Hele landet
B34: Antal anbragte | D34: =INDEX(Data_land,MATCH(Skyggetabeller!D24,Data!landaar,0),5) -> 1830 | E34: =INDEX(Data_land,MATCH(Skyggetabeller!E24,Data!landaar,0),5) -> 1843 | F34: =INDEX(Data_land,MATCH(Skyggetabeller!F24,Data!landaar,0),5) -> 1815 | G34: =INDEX(Data_land,MATCH(Skyggetabeller!G24,Data!landaar,0),5) -> 1809 | H34: =INDEX(Data_land,MATCH(Skyggetabeller!H24,Data!landaar,0),5) -> 1760 | I34: =INDEX(Data_land,MATCH(Skyggetabeller!I24,Data!landaar,0),5) -> 1771 | J34: =INDEX(Data_land,MATCH(Skyggetabeller!J24,Data!landaar,0),5) -> 1688 | K34: =INDEX(Data_land,MATCH(Skyggetabeller!K24,Data!landaar,0),5) -> 1686 | L34: =INDEX(Data_land,MATCH(Skyggetabeller!L24,Data!landaar,0),5) -> 1675 | M34: =INDEX(Data_land,MATCH(Skyggetabeller!M24,Data!landaar,0),5) -> 1666 | N34: =INDEX(Data_land,MATCH(Skyggetabeller!N24,Data!landaar,0),5) -> 1701 | O34: =INDEX(Data_land,MATCH(Skyggetabeller!O24,Data!landaar,0),5) -> 1688 | P34: =INDEX(Data_land,MATCH(Skyggetabeller!P24,Data!landaar,0),5) -> 1699 | Q34: =INDEX(Data_land,MATCH(Skyggetabeller!Q24,Data!landaar,0),5) -> 1763 | R34: =INDEX(Data_land,MATCH(Skyggetabeller!R24,Data!landaar,0),5) -> 1765
B35: Antal 0-17-årige | D35: =INDEX(Data_land,MATCH(Skyggetabeller!D24,Data!landaar,0),4) -> 3438 | E35: =INDEX(Data_land,MATCH(Skyggetabeller!E24,Data!landaar,0),4) -> 3434 | F35: =INDEX(Data_land,MATCH(Skyggetabeller!F24,Data!landaar,0),4) -> 3381 | G35: =INDEX(Data_land,MATCH(Skyggetabeller!G24,Data!landaar,0),4) -> 3463 | H35: =INDEX(Data_land,MATCH(Skyggetabeller!H24,Data!landaar,0),4) -> 3375 | I35: =INDEX(Data_land,MATCH(Skyggetabeller!I24,Data!landaar,0),4) -> 3401 | J35: =INDEX(Data_land,MATCH(Skyggetabeller!J24,Data!landaar,0),4) -> 3298 | K35: =INDEX(Data_land,MATCH(Skyggetabeller!K24,Data!landaar,0),4) -> 3276 | L35: =INDEX(Data_land,MATCH(Skyggetabeller!L24,Data!landaar,0),4) -> 3268 | M35: =INDEX(Data_land,MATCH(Skyggetabeller!M24,Data!landaar,0),4) -> 3331 | N35: =INDEX(Data_land,MATCH(Skyggetabeller!N24,Data!landaar,0),4) -> 3391 | O35: =INDEX(Data_land,MATCH(Skyggetabeller!O24,Data!landaar,0),4) -> 3479 | P35: =INDEX(Data_land,MATCH(Skyggetabeller!P24,Data!landaar,0),4) -> 3460 | Q35: =INDEX(Data_land,MATCH(Skyggetabeller!Q24,Data!landaar,0),4) -> 3624 | R35: =INDEX(Data_land,MATCH(Skyggetabeller!R24,Data!landaar,0),4) -> 3632
B36: Andel | D36: =IFERROR(IF(D34="*","*",IF(D35=0,"#I/T",(D34/D35))),"Data ikke tilføjet") -> 0.5322862129 | E36: =IFERROR(IF(E34="*","*",IF(E35=0,"#I/T",(E34/E35))),"Data ikke tilføjet") -> 0.5366919045 | F36: =IFERROR(IF(F34="*","*",IF(F35=0,"#I/T",(F34/F35))),"Data ikke tilføjet") -> 0.536823425 | G36: =IFERROR(IF(G34="*","*",IF(G35=0,"#I/T",(G34/G35))),"Data ikke tilføjet") -> 0.5223794398 | H36: =IFERROR(IF(H34="*","*",IF(H35=0,"#I/T",(H34/H35))),"Data ikke tilføjet") -> 0.5214814815 | I36: =IFERROR(IF(I34="*","*",IF(I35=0,"#I/T",(I34/I35))),"Data ikke tilføjet") -> 0.5207291973 | J36: =IFERROR(IF(J34="*","*",IF(J35=0,"#I/T",(J34/J35))),"Data ikke tilføjet") -> 0.5118253487 | K36: =IFERROR(IF(K34="*","*",IF(K35=0,"#I/T",(K34/K35))),"Data ikke tilføjet") -> 0.5146520147 | L36: =IFERROR(IF(L34="*","*",IF(L35=0,"#I/T",(L34/L35))),"Data ikke tilføjet") -> 0.5125458996 | M36: =IFERROR(IF(M34="*","*",IF(M35=0,"#I/T",(M34/M35))),"Data ikke tilføjet") -> 0.5001501051 | N36: =IFERROR(IF(N34="*","*",IF(N35=0,"#I/T",(N34/N35))),"Data ikke tilføjet") -> 0.5016219404 | O36: =IFERROR(IF(O34="*","*",IF(O35=0,"#I/T",(O34/O35))),"Data ikke tilføjet") -> 0.4851968957 | P36: =IFERROR(IF(P34="*","*",IF(P35=0,"#I/T",(P34/P35))),"Data ikke tilføjet") -> 0.4910404624 | Q36: =IFERROR(IF(Q34="*","*",IF(Q35=0,"#I/T",(Q34/Q35))),"Data ikke tilføjet") -> 0.4864790287 | R36: =IFERROR(IF(R34="*","*",IF(R35=0,"#I/T",(R34/R35))),"Data ikke tilføjet") -> 0.4859581498
B38: Tabel 1.2: Anbragte på sikrede døgninstitutioner
B39: Nøgletal 1.2 Anbragte på sikrede døgninstitutioner | D39: 2016-01-01 | E39: 2016-07-01 | F39: 2017-01-01 | G39: 2017-07-01 | H39: 2018-01-01 | I39: 2018-07-01 | J39: 2019-01-01 | K39: 2019-07-01 | L39: 2020-01-01 | M39: 2020-07-01 | N39: 2021-01-01 | O39: 2021-07-01 | P39: 2022-01-01 | Q39: 2022-07-01 | R39: 2023-01-01
B40: =IF(Kommune="","Kommune",Kommune) -> København
B41: Antal anbragte | D41: =IFERROR(IF(INDEX(Data_kom2,MATCH(1,(komnavn2=Kommune)*(komaar2=D39),0),6)="*","*",INDEX(Data_kom2,MATCH(1,(komnavn2=Kommune)*(komaar2=D39),0),6)),"Data ikke tilføjet") -> 7 | E41: =IFERROR(IF(INDEX(Data_kom2,MATCH(1,(komnavn2=Kommune)*(komaar2=E39),0),6)="*","*",INDEX(Data_kom2,MATCH(1,(komnavn2=Kommune)*(komaar2=E39),0),6)),"Data ikke tilføjet") -> 6 | F41: =IFERROR(IF(INDEX(Data_kom2,MATCH(1,(komnavn2=Kommune)*(komaar2=F39),0),6)="*","*",INDEX(Data_kom2,MATCH(1,(komnavn2=Kommune)*(komaar2=F39),0),6)),"Data ikke tilføjet") -> 7 | G41: =IFERROR(IF(INDEX(Data_kom2,MATCH(1,(komnavn2=Kommune)*(komaar2=G39),0),6)="*","*",INDEX(Data_kom2,MATCH(1,(komnavn2=Kommune)*(komaar2=G39),0),6)),"Data ikke tilføjet") -> 6 | H41: =IFERROR(IF(INDEX(Data_kom2,MATCH(1,(komnavn2=Kommune)*(komaar2=H39),0),6)="*","*",INDEX(Data_kom2,MATCH(1,(komnavn2=Kommune)*(komaar2=H39),0),6)),"Data ikke tilføjet") -> 6 | I41: =IFERROR(IF(INDEX(Data_kom2,MATCH(1,(komnavn2=Kommune)*(komaar2=I39),0),6)="*","*",INDEX(Data_kom2,MATCH(1,(komnavn2=Kommune)*(komaar2=I39),0),6)),"Data ikke tilføjet") -> 10 | J41: =IFERROR(IF(INDEX(Data_kom2,MATCH(1,(komnavn2=Kommune)*(komaar2=J39),0),6)="*","*",INDEX(Data_kom2,MATCH(1,(komnavn2=Kommune)*(komaar2=J39),0),6)),"Data ikke tilføjet") -> 10 | K41: =IFERROR(IF(INDEX(Data_kom2,MATCH(1,(komnavn2=Kommune)*(komaar2=K39),0),6)="*","*",INDEX(Data_kom2,MATCH(1,(komnavn2=Kommune)*(komaar2=K39),0),6)),"Data ikke tilføjet") -> 5 | L41: =IFERROR(IF(INDEX(Data_kom2,MATCH(1,(komnavn2=Kommune)*(komaar2=L39),0),6)="*","*",INDEX(Data_kom2,MATCH(1,(komnavn2=Kommune)*(komaar2=L39),0),6)),"Data ikke tilføjet") -> * | M41: =IFERROR(IF(INDEX(Data_kom2,MATCH(1,(komnavn2=Kommune)*(komaar2=M39),0),6)="*","*",INDEX(Data_kom2,MATCH(1,(komnavn2=Kommune)*(komaar2=M39),0),6)),"Data ikke tilføjet") -> 9 | N41: =IFERROR(IF(INDEX(Data_kom2,MATCH(1,(komnavn2=Kommune)*(komaar2=N39),0),6)="*","*",INDEX(Data_kom2,MATCH(1,(komnavn2=Kommune)*(komaar2=N39),0),6)),"Data ikke tilføjet") -> 17 | O41: =IFERROR(IF(INDEX(Data_kom2,MATCH(1,(komnavn2=Kommune)*(komaar2=O39),0),6)="*","*",INDEX(Data_kom2,MATCH(1,(komnavn2=Kommune)*(komaar2=O39),0),6)),"Data ikke tilføjet") -> 22 | P41: =IFERROR(IF(INDEX(Data_kom2,MATCH(1,(komnavn2=Kommune)*(komaar2=P39),0),6)="*","*",INDEX(Data_kom2,MATCH(1,(komnavn2=Kommune)*(komaar2=P39),0),6)),"Data ikke tilføjet") -> 16 | Q41: =IFERROR(IF(INDEX(Data_kom2,MATCH(1,(komnavn2=Kommune)*(komaar2=Q39),0),6)="*","*",INDEX(Data_kom2,MATCH(1,(komnavn2=Kommune)*(komaar2=Q39),0),6)),"Data ikke tilføjet") -> 15 | R41: =IFERROR(IF(INDEX(Data_kom2,MATCH(1,(komnavn2=Kommune)*(komaar2=R39),0),6)="*","*",INDEX(Data_kom2,MATCH(1,(komnavn2=Kommune)*(komaar2=R39),0),6)),"Data ikke tilføjet") -> 10
B42: Antal 0-17-årige | D42: =D$11 -> 230 | E42: =E$11 -> 233 | F42: 224 | G42: 226 | H42: 214 | I42: 217 | J42: 204 | K42: 193 | L42: 160 | M42: 180 | N42: 201 | O42: 219 | P42: 217 | Q42: 243 | R42: 248
B43: Andel | D43: =IFERROR(IF(D41="*","*",IF(D42=0,"#I/T",(D41/D42))),"Data ikke tilføjet") -> 0.03043478261 | E43: =IFERROR(IF(E41="*","*",IF(E42=0,"#I/T",(E41/E42))),"Data ikke tilføjet") -> 0.02575107296 | F43: =IFERROR(IF(F41="*","*",IF(F42=0,"#I/T",(F41/F42))),"Data ikke tilføjet") -> 0.03125 | G43: =IFERROR(IF(G41="*","*",IF(G42=0,"#I/T",(G41/G42))),"Data ikke tilføjet") -> 0.02654867257 | H43: =IFERROR(IF(H41="*","*",IF(H42=0,"#I/T",(H41/H42))),"Data ikke tilføjet") -> 0.02803738318 | I43: =IFERROR(IF(I41="*","*",IF(I42=0,"#I/T",(I41/I42))),"Data ikke tilføjet") -> 0.04608294931 | J43: =IFERROR(IF(J41="*","*",IF(J42=0,"#I/T",(J41/J42))),"Data ikke tilføjet") -> 0.04901960784 | K43: =IFERROR(IF(K41="*","*",IF(K42=0,"#I/T",(K41/K42))),"Data ikke tilføjet") -> 0.02590673575 | L43: =IFERROR(IF(L41="*","*",IF(L42=0,"#I/T",(L41/L42))),"Data ikke tilføjet") -> * | M43: =IFERROR(IF(M41="*","*",IF(M42=0,"#I/T",(M41/M42))),"Data ikke tilføjet") -> 0.05 | N43: =IFERROR(IF(N41="*","*",IF(N42=0,"#I/T",(N41/N42))),"Data ikke tilføjet") -> 0.08457711443 | O43: =IFERROR(IF(O41="*","*",IF(O42=0,"#I/T",(O41/O42))),"Data ikke tilføjet") -> 0.100456621 | P43: =IFERROR(IF(P41="*","*",IF(P42=0,"#I/T",(P41/P42))),"Data ikke tilføjet") -> 0.07373271889 | Q43: =IFERROR(IF(Q41="*","*",IF(Q42=0,"#I/T",(Q41/Q42))),"Data ikke tilføjet") -> 0.06172839506 | R43: =IFERROR(IF(R41="*","*",IF(R42=0,"#I/T",(R41/R42))),"Data ikke tilføjet") -> 0.04032258065
B44: Sammenligningsgruppe, gns.
B45: Antal anbragte | D45: =IF('Dine valg'!$G$24="","-",SUMIF(Hjælpefane!$D$7:$D$111,"="&D$9,Hjælpefane!$G$7:$G$111)) -> 7 | E45: =IF('Dine valg'!$G$24="","-",SUMIF(Hjælpefane!$D$7:$D$111,"="&E$9,Hjælpefane!$G$7:$G$111)) -> 4 | F45: =IF('Dine valg'!$G$24="","-",SUMIF(Hjælpefane!$D$7:$D$111,"="&F$9,Hjælpefane!$G$7:$G$111)) -> 3 | G45: =IF('Dine valg'!$G$24="","-",SUMIF(Hjælpefane!$D$7:$D$111,"="&G$9,Hjælpefane!$G$7:$G$111)) -> 4 | H45: =IF('Dine valg'!$G$24="","-",SUMIF(Hjælpefane!$D$7:$D$111,"="&H$9,Hjælpefane!$G$7:$G$111)) -> 4 | I45: =IF('Dine valg'!$G$24="","-",SUMIF(Hjælpefane!$D$7:$D$111,"="&I$9,Hjælpefane!$G$7:$G$111)) -> 7 | J45: =IF('Dine valg'!$G$24="","-",SUMIF(Hjælpefane!$D$7:$D$111,"="&J$9,Hjælpefane!$G$7:$G$111)) -> 10 | K45: =IF('Dine valg'!$G$24="","-",SUMIF(Hjælpefane!$D$7:$D$111,"="&K$9,Hjælpefane!$G$7:$G$111)) -> 9 | L45: =IF('Dine valg'!$G$24="","-",SUMIF(Hjælpefane!$D$7:$D$111,"="&L$9,Hjælpefane!$G$7:$G$111)) -> 16 | M45: =IF('Dine valg'!$G$24="","-",SUMIF(Hjælpefane!$D$7:$D$111,"="&M$9,Hjælpefane!$G$7:$G$111)) -> 11 | N45: =IF('Dine valg'!$G$24="","-",SUMIF(Hjælpefane!$D$7:$D$111,"="&N$9,Hjælpefane!$G$7:$G$111)) -> 15 | O45: =IF('Dine valg'!$G$24="","-",SUMIF(Hjælpefane!$D$7:$D$111,"="&O$9,Hjælpefane!$G$7:$G$111)) -> 14 | P45: =IF('Dine valg'!$G$24="","-",SUMIF(Hjælpefane!$D$7:$D$111,"="&P$9,Hjælpefane!$G$7:$G$111)) -> 14 | Q45: =IF('Dine valg'!$G$24="","-",SUMIF(Hjælpefane!$D$7:$D$111,"="&Q$9,Hjælpefane!$G$7:$G$111)) -> 17 | R45: =IF('Dine valg'!$G$24="","-",SUMIF(Hjælpefane!$D$7:$D$111,"="&R$9,Hjælpefane!$G$7:$G$111)) -> 14
B46: Antal 0-17-årige | D46: =D$15 -> 189 | E46: =E$15 -> 203 | F46: 191 | G46: 190 | H46: 180 | I46: 168 | J46: 174 | K46: 178 | L46: 171 | M46: 173 | N46: 175 | O46: 175 | P46: 161 | Q46: 174 | R46: 168
B47: Andel | D47: =IFERROR(IF(D45="*","*",IF(D46="","Indtast data",(D45/D46))),"-") -> 0.03703703704 | E47: =IFERROR(IF(E45="*","*",IF(E46="","Indtast data",(E45/E46))),"-") -> 0.0197044335 | F47: 0.01570680628 | G47: 0.02105263158 | H47: 0.02222222222 | I47: 0.04166666667 | J47: 0.05747126437 | K47: 0.05056179775 | L47: 0.09356725146 | M47: =IFERROR(IF(M45="*","*",IF(M46="","Indtast data",(M45/M46))),"-") -> 0.06358381503 | N47: 0.08571428571 | O47: 0.08 | P47: 0.08695652174 | Q47: 0.09770114943 | R47: 0.08333333333
B48: Hele landet
B49: Antal anbragte | D49: =INDEX(Data_land,MATCH(Skyggetabeller!D39,Data!landaar,0),6) -> 58 | E49: =INDEX(Data_land,MATCH(Skyggetabeller!E39,Data!landaar,0),6) -> 62 | F49: =INDEX(Data_land,MATCH(Skyggetabeller!F39,Data!landaar,0),6) -> 80 | G49: =INDEX(Data_land,MATCH(Skyggetabeller!G39,Data!landaar,0),6) -> 79 | H49: =INDEX(Data_land,MATCH(Skyggetabeller!H39,Data!landaar,0),6) -> 64 | I49: =INDEX(Data_land,MATCH(Skyggetabeller!I39,Data!landaar,0),6) -> 84 | J49: =INDEX(Data_land,MATCH(Skyggetabeller!J39,Data!landaar,0),6) -> 76 | K49: =INDEX(Data_land,MATCH(Skyggetabeller!K39,Data!landaar,0),6) -> 72 | L49: =INDEX(Data_land,MATCH(Skyggetabeller!L39,Data!landaar,0),6) -> 79 | M49: =INDEX(Data_land,MATCH(Skyggetabeller!M39,Data!landaar,0),6) -> 84 | N49: =INDEX(Data_land,MATCH(Skyggetabeller!N39,Data!landaar,0),6) -> 95 | O49: =INDEX(Data_land,MATCH(Skyggetabeller!O39,Data!landaar,0),6) -> 98 | P49: =INDEX(Data_land,MATCH(Skyggetabeller!P39,Data!landaar,0),6) -> 84 | Q49: =INDEX(Data_land,MATCH(Skyggetabeller!Q39,Data!landaar,0),6) -> 88 | R49: =INDEX(Data_land,MATCH(Skyggetabeller!R39,Data!landaar,0),6) -> 85
B50: Antal 0-17-årige | D50: =INDEX(Data_land,MATCH(Skyggetabeller!D39,Data!landaar,0),4) -> 3438 | E50: =INDEX(Data_land,MATCH(Skyggetabeller!E39,Data!landaar,0),4) -> 3434 | F50: =INDEX(Data_land,MATCH(Skyggetabeller!F39,Data!landaar,0),4) -> 3381 | G50: =INDEX(Data_land,MATCH(Skyggetabeller!G39,Data!landaar,0),4) -> 3463 | H50: =INDEX(Data_land,MATCH(Skyggetabeller!H39,Data!landaar,0),4) -> 3375 | I50: =INDEX(Data_land,MATCH(Skyggetabeller!I39,Data!landaar,0),4) -> 3401 | J50: =INDEX(Data_land,MATCH(Skyggetabeller!J39,Data!landaar,0),4) -> 3298 | K50: =INDEX(Data_land,MATCH(Skyggetabeller!K39,Data!landaar,0),4) -> 3276 | L50: =INDEX(Data_land,MATCH(Skyggetabeller!L39,Data!landaar,0),4) -> 3268 | M50: =INDEX(Data_land,MATCH(Skyggetabeller!M39,Data!landaar,0),4) -> 3331 | N50: =INDEX(Data_land,MATCH(Skyggetabeller!N39,Data!landaar,0),4) -> 3391 | O50: =INDEX(Data_land,MATCH(Skyggetabeller!O39,Data!landaar,0),4) -> 3479 | P50: =INDEX(Data_land,MATCH(Skyggetabeller!P39,Data!landaar,0),4) -> 3460 | Q50: =INDEX(Data_land,MATCH(Skyggetabeller!Q39,Data!landaar,0),4) -> 3624 | R50: =INDEX(Data_land,MATCH(Skyggetabeller!R39,Data!landaar,0),4) -> 3632
B51: Andel | D51: =IFERROR(IF(D49="*","*",IF(D50=0,"#I/T",(D49/D50))),"Data ikke tilføjet") -> 0.01687027341 | E51: =IFERROR(IF(E49="*","*",IF(E50=0,"#I/T",(E49/E50))),"Data ikke tilføjet") -> 0.01805474665 | F51: =IFERROR(IF(F49="*","*",IF(F50=0,"#I/T",(F49/F50))),"Data ikke tilføjet") -> 0.02366163857 | G51: =IFERROR(IF(G49="*","*",IF(G50=0,"#I/T",(G49/G50))),"Data ikke tilføjet") -> 0.02281259024 | H51: =IFERROR(IF(H49="*","*",IF(H50=0,"#I/T",(H49/H50))),"Data ikke tilføjet") -> 0.01896296296 | I51: =IFERROR(IF(I49="*","*",IF(I50=0,"#I/T",(I49/I50))),"Data ikke tilføjet") -> 0.02469861805 | J51: =IFERROR(IF(J49="*","*",IF(J50=0,"#I/T",(J49/J50))),"Data ikke tilføjet") -> 0.02304426925 | K51: =IFERROR(IF(K49="*","*",IF(K50=0,"#I/T",(K49/K50))),"Data ikke tilføjet") -> 0.02197802198 | L51: =IFERROR(IF(L49="*","*",IF(L50=0,"#I/T",(L49/L50))),"Data ikke tilføjet") -> 0.02417380661 | M51: =IFERROR(IF(M49="*","*",IF(M50=0,"#I/T",(M49/M50))),"Data ikke tilføjet") -> 0.02521765236 | N51: =IFERROR(IF(N49="*","*",IF(N50=0,"#I/T",(N49/N50))),"Data ikke tilføjet") -> 0.02801533471 | O51: =IFERROR(IF(O49="*","*",IF(O50=0,"#I/T",(O49/O50))),"Data ikke tilføjet") -> 0.02816901408 | P51: =IFERROR(IF(P49="*","*",IF(P50=0,"#I/T",(P49/P50))),"Data ikke tilføjet") -> 0.02427745665 | Q51: =IFERROR(IF(Q49="*","*",IF(Q50=0,"#I/T",(Q49/Q50))),"Data ikke tilføjet") -> 0.02428256071 | R51: =IFERROR(IF(R49="*","*",IF(R50=0,"#I/T",(R49/R50))),"Data ikke tilføjet") -> 0.0234030837
B54: Tabel 1.3: Anbragte på socialpædagogiske opholdssteder
B55: Nøgletal 1.3 Anbragte på socialpædagogiske opholdssteder | D55: 2016-01-01 | E55: 2016-07-01 | F55: 2017-01-01 | G55: 2017-07-01 | H55: 2018-01-01 | I55: 2018-07-01 | J55: 2019-01-01 | K55: 2019-07-01 | L55: 2020-01-01 | M55: 2020-07-01 | N55: 2021-01-01 | O55: 2021-07-01 | P55: 2022-01-01 | Q55: 2022-07-01 | R55: 2023-01-01
B56: =IF(Kommune="","Kommune",Kommune) -> København
B57: Antal anbragte | D57: =IFERROR(IF(INDEX(Data_kom2,MATCH(1,(komnavn2=Kommune)*(komaar2=D55),0),7)="*","*",INDEX(Data_kom2,MATCH(1,(komnavn2=Kommune)*(komaar2=D55),0),7)),"Data ikke tilføjet") -> 54 | E57: =IFERROR(IF(INDEX(Data_kom2,MATCH(1,(komnavn2=Kommune)*(komaar2=E55),0),7)="*","*",INDEX(Data_kom2,MATCH(1,(komnavn2=Kommune)*(komaar2=E55),0),7)),"Data ikke tilføjet") -> 52 | F57: =IFERROR(IF(INDEX(Data_kom2,MATCH(1,(komnavn2=Kommune)*(komaar2=F55),0),7)="*","*",INDEX(Data_kom2,MATCH(1,(komnavn2=Kommune)*(komaar2=F55),0),7)),"Data ikke tilføjet") -> 47 | G57: =IFERROR(IF(INDEX(Data_kom2,MATCH(1,(komnavn2=Kommune)*(komaar2=G55),0),7)="*","*",INDEX(Data_kom2,MATCH(1,(komnavn2=Kommune)*(komaar2=G55),0),7)),"Data ikke tilføjet") -> 39 | H57: =IFERROR(IF(INDEX(Data_kom2,MATCH(1,(komnavn2=Kommune)*(komaar2=H55),0),7)="*","*",INDEX(Data_kom2,MATCH(1,(komnavn2=Kommune)*(komaar2=H55),0),7)),"Data ikke tilføjet") -> 34 | I57: =IFERROR(IF(INDEX(Data_kom2,MATCH(1,(komnavn2=Kommune)*(komaar2=I55),0),7)="*","*",INDEX(Data_kom2,MATCH(1,(komnavn2=Kommune)*(komaar2=I55),0),7)),"Data ikke tilføjet") -> 33 | J57: =IFERROR(IF(INDEX(Data_kom2,MATCH(1,(komnavn2=Kommune)*(komaar2=J55),0),7)="*","*",INDEX(Data_kom2,MATCH(1,(komnavn2=Kommune)*(komaar2=J55),0),7)),"Data ikke tilføjet") -> 33 | K57: =IFERROR(IF(INDEX(Data_kom2,MATCH(1,(komnavn2=Kommune)*(komaar2=K55),0),7)="*","*",INDEX(Data_kom2,MATCH(1,(komnavn2=Kommune)*(komaar2=K55),0),7)),"Data ikke tilføjet") -> 35 | L57: =IFERROR(IF(INDEX(Data_kom2,MATCH(1,(komnavn2=Kommune)*(komaar2=L55),0),7)="*","*",INDEX(Data_kom2,MATCH(1,(komnavn2=Kommune)*(komaar2=L55),0),7)),"Data ikke tilføjet") -> * | M57: =IFERROR(IF(INDEX(Data_kom2,MATCH(1,(komnavn2=Kommune)*(komaar2=M55),0),7)="*","*",INDEX(Data_kom2,MATCH(1,(komnavn2=Kommune)*(komaar2=M55),0),7)),"Data ikke tilføjet") -> 24 | N57: =IFERROR(IF(INDEX(Data_kom2,MATCH(1,(komnavn2=Kommune)*(komaar2=N55),0),7)="*","*",INDEX(Data_kom2,MATCH(1,(komnavn2=Kommune)*(komaar2=N55),0),7)),"Data ikke tilføjet") -> 25 | O57: =IFERROR(IF(INDEX(Data_kom2,MATCH(1,(komnavn2=Kommune)*(komaar2=O55),0),7)="*","*",INDEX(Data_kom2,MATCH(1,(komnavn2=Kommune)*(komaar2=O55),0),7)),"Data ikke tilføjet") -> 32 | P57: =IFERROR(IF(INDEX(Data_kom2,MATCH(1,(komnavn2=Kommune)*(komaar2=P55),0),7)="*","*",INDEX(Data_kom2,MATCH(1,(komnavn2=Kommune)*(komaar2=P55),0),7)),"Data ikke tilføjet") -> 28 | Q57: =IFERROR(IF(INDEX(Data_kom2,MATCH(1,(komnavn2=Kommune)*(komaar2=Q55),0),7)="*","*",INDEX(Data_kom2,MATCH(1,(komnavn2=Kommune)*(komaar2=Q55),0),7)),"Data ikke tilføjet") -> 32 | R57: =IFERROR(IF(INDEX(Data_kom2,MATCH(1,(komnavn2=Kommune)*(komaar2=R55),0),7)="*","*",INDEX(Data_kom2,MATCH(1,(komnavn2=Kommune)*(komaar2=R55),0),7)),"Data ikke tilføjet") -> 38
B58: Antal 0-17-årige | D58: =D$11 -> 230 | E58: =E$11 -> 233 | F58: 224 | G58: 226 | H58: 214 | I58: 217 | J58: 204 | K58: 193 | L58: 160 | M58: 180 | N58: 201 | O58: 219 | P58: 217 | Q58: 243 | R58: 248
B59: Andel | D59: =IFERROR(IF(D57="*","*",IF(D58=0,"#I/T",(D57/D58))),"Data ikke tilføjet") -> 0.2347826087 | E59: =IFERROR(IF(E57="*","*",IF(E58=0,"#I/T",(E57/E58))),"Data ikke tilføjet") -> 0.2231759657 | F59: =IFERROR(IF(F57="*","*",IF(F58=0,"#I/T",(F57/F58))),"Data ikke tilføjet") -> 0.2098214286 | G59: =IFERROR(IF(G57="*","*",IF(G58=0,"#I/T",(G57/G58))),"Data ikke tilføjet") -> 0.1725663717 | H59: =IFERROR(IF(H57="*","*",IF(H58=0,"#I/T",(H57/H58))),"Data ikke tilføjet") -> 0.1588785047 | I59: =IFERROR(IF(I57="*","*",IF(I58=0,"#I/T",(I57/I58))),"Data ikke tilføjet") -> 0.1520737327 | J59: =IFERROR(IF(J57="*","*",IF(J58=0,"#I/T",(J57/J58))),"Data ikke tilføjet") -> 0.1617647059 | K59: =IFERROR(IF(K57="*","*",IF(K58=0,"#I/T",(K57/K58))),"Data ikke tilføjet") -> 0.1813471503 | L59: =IFERROR(IF(L57="*","*",IF(L58=0,"#I/T",(L57/L58))),"Data ikke tilføjet") -> * | M59: =IFERROR(IF(M57="*","*",IF(M58=0,"#I/T",(M57/M58))),"Data ikke tilføjet") -> 0.1333333333 | N59: =IFERROR(IF(N57="*","*",IF(N58=0,"#I/T",(N57/N58))),"Data ikke tilføjet") -> 0.1243781095 | O59: =IFERROR(IF(O57="*","*",IF(O58=0,"#I/T",(O57/O58))),"Data ikke tilføjet") -> 0.1461187215 | P59: =IFERROR(IF(P57="*","*",IF(P58=0,"#I/T",(P57/P58))),"Data ikke tilføjet") -> 0.1290322581 | Q59: =IFERROR(IF(Q57="*","*",IF(Q58=0,"#I/T",(Q57/Q58))),"Data ikke tilføjet") -> 0.1316872428 | R59: =IFERROR(IF(R57="*","*",IF(R58=0,"#I/T",(R57/R58))),"Data ikke tilføjet") -> 0.1532258065
B60: Sammenligningsgruppe, gns.
B61: Antal anbragte | D61: =IF('Dine valg'!$G$24="","-",SUMIF(Hjælpefane!$D$7:$D$111,"="&D$9,Hjælpefane!$H$7:$H$111)) -> 55 | E61: =IF('Dine valg'!$G$24="","-",SUMIF(Hjælpefane!$D$7:$D$111,"="&E$9,Hjælpefane!$H$7:$H$111)) -> 61 | F61: =IF('Dine valg'!$G$24="","-",SUMIF(Hjælpefane!$D$7:$D$111,"="&F$9,Hjælpefane!$H$7:$H$111)) -> 55 | G61: =IF('Dine valg'!$G$24="","-",SUMIF(Hjælpefane!$D$7:$D$111,"="&G$9,Hjælpefane!$H$7:$H$111)) -> 53 | H61: =IF('Dine valg'!$G$24="","-",SUMIF(Hjælpefane!$D$7:$D$111,"="&H$9,Hjælpefane!$H$7:$H$111)) -> 57 | I61: =IF('Dine valg'!$G$24="","-",SUMIF(Hjælpefane!$D$7:$D$111,"="&I$9,Hjælpefane!$H$7:$H$111)) -> 45 | J61: =IF('Dine valg'!$G$24="","-",SUMIF(Hjælpefane!$D$7:$D$111,"="&J$9,Hjælpefane!$H$7:$H$111)) -> 46 | K61: =IF('Dine valg'!$G$24="","-",SUMIF(Hjælpefane!$D$7:$D$111,"="&K$9,Hjælpefane!$H$7:$H$111)) -> 42 | L61: =IF('Dine valg'!$G$24="","-",SUMIF(Hjælpefane!$D$7:$D$111,"="&L$9,Hjælpefane!$H$7:$H$111)) -> 35 | M61: =IF('Dine valg'!$G$24="","-",SUMIF(Hjælpefane!$D$7:$D$111,"="&M$9,Hjælpefane!$H$7:$H$111)) -> 35 | N61: =IF('Dine valg'!$G$24="","-",SUMIF(Hjælpefane!$D$7:$D$111,"="&N$9,Hjælpefane!$H$7:$H$111)) -> 37 | O61: =IF('Dine valg'!$G$24="","-",SUMIF(Hjælpefane!$D$7:$D$111,"="&O$9,Hjælpefane!$H$7:$H$111)) -> 43 | P61: =IF('Dine valg'!$G$24="","-",SUMIF(Hjælpefane!$D$7:$D$111,"="&P$9,Hjælpefane!$H$7:$H$111)) -> 38 | Q61: =IF('Dine valg'!$G$24="","-",SUMIF(Hjælpefane!$D$7:$D$111,"="&Q$9,Hjælpefane!$H$7:$H$111)) -> 48 | R61: =IF('Dine valg'!$G$24="","-",SUMIF(Hjælpefane!$D$7:$D$111,"="&R$9,Hjælpefane!$H$7:$H$111)) -> 44
B62: Antal 0-17-årige | D62: =D$15 -> 189 | E62: =E$15 -> 203 | F62: 191 | G62: 190 | H62: 180 | I62: 168 | J62: 174 | K62: 178 | L62: 171 | M62: 173 | N62: 175 | O62: 175 | P62: 161 | Q62: 174 | R62: 168
B63: Andel | D63: =IFERROR(IF(D61="*","*",IF(D62="","Indtast data",(D61/D62))),"-") -> 0.291005291 | E63: =IFERROR(IF(E61="*","*",IF(E62="","Indtast data",(E61/E62))),"-") -> 0.3004926108 | F63: =IFERROR(IF(F61="*","*",IF(F62="","Indtast data",(F61/F62))),"-") -> 0.2879581152 | G63: =IFERROR(IF(G61="*","*",IF(G62="","Indtast data",(G61/G62))),"-") -> 0.2789473684 | H63: =IFERROR(IF(H61="*","*",IF(H62="","Indtast data",(H61/H62))),"-") -> 0.3166666667 | I63: =IFERROR(IF(I61="*","*",IF(I62="","Indtast data",(I61/I62))),"-") -> 0.2678571429 | J63: =IFERROR(IF(J61="*","*",IF(J62="","Indtast data",(J61/J62))),"-") -> 0.2643678161 | K63: =IFERROR(IF(K61="*","*",IF(K62="","Indtast data",(K61/K62))),"-") -> 0.2359550562 | L63: =IFERROR(IF(L61="*","*",IF(L62="","Indtast data",(L61/L62))),"-") -> 0.2046783626 | M63: 0.2023121387 | N63: 0.2114285714 | O63: 0.2457142857 | P63: 0.2360248447 | Q63: 0.275862069 | R63: 0.2619047619
B64: Hele landet
B65: Antal anbragte | D65: =INDEX(Data_land,MATCH(Skyggetabeller!D55,Data!landaar,0),7) -> 1550 | E65: =INDEX(Data_land,MATCH(Skyggetabeller!E55,Data!landaar,0),7) -> 1529 | F65: =INDEX(Data_land,MATCH(Skyggetabeller!F55,Data!landaar,0),7) -> 1486 | G65: =INDEX(Data_land,MATCH(Skyggetabeller!G55,Data!landaar,0),7) -> 1575 | H65: =INDEX(Data_land,MATCH(Skyggetabeller!H55,Data!landaar,0),7) -> 1551 | I65: =INDEX(Data_land,MATCH(Skyggetabeller!I55,Data!landaar,0),7) -> 1546 | J65: =INDEX(Data_land,MATCH(Skyggetabeller!J55,Data!landaar,0),7) -> 1534 | K65: =INDEX(Data_land,MATCH(Skyggetabeller!K55,Data!landaar,0),7) -> 1518 | L65: =INDEX(Data_land,MATCH(Skyggetabeller!L55,Data!landaar,0),7) -> 1514 | M65: =INDEX(Data_land,MATCH(Skyggetabeller!M55,Data!landaar,0),7) -> 1581 | N65: =INDEX(Data_land,MATCH(Skyggetabeller!N55,Data!landaar,0),7) -> 1595 | O65: =INDEX(Data_land,MATCH(Skyggetabeller!O55,Data!landaar,0),7) -> 1693 | P65: =INDEX(Data_land,MATCH(Skyggetabeller!P55,Data!landaar,0),7) -> 1677 | Q65: =INDEX(Data_land,MATCH(Skyggetabeller!Q55,Data!landaar,0),7) -> 1773 | R65: =INDEX(Data_land,MATCH(Skyggetabeller!R55,Data!landaar,0),7) -> 1782
B66: Antal 0-17-årige | D66: =INDEX(Data_land,MATCH(Skyggetabeller!D55,Data!landaar,0),4) -> 3438 | E66: =INDEX(Data_land,MATCH(Skyggetabeller!E55,Data!landaar,0),4) -> 3434 | F66: =INDEX(Data_land,MATCH(Skyggetabeller!F55,Data!landaar,0),4) -> 3381 | G66: =INDEX(Data_land,MATCH(Skyggetabeller!G55,Data!landaar,0),4) -> 3463 | H66: =INDEX(Data_land,MATCH(Skyggetabeller!H55,Data!landaar,0),4) -> 3375 | I66: =INDEX(Data_land,MATCH(Skyggetabeller!I55,Data!landaar,0),4) -> 3401 | J66: =INDEX(Data_land,MATCH(Skyggetabeller!J55,Data!landaar,0),4) -> 3298 | K66: =INDEX(Data_land,MATCH(Skyggetabeller!K55,Data!landaar,0),4) -> 3276 | L66: =INDEX(Data_land,MATCH(Skyggetabeller!L55,Data!landaar,0),4) -> 3268 | M66: =INDEX(Data_land,MATCH(Skyggetabeller!M55,Data!landaar,0),4) -> 3331 | N66: =INDEX(Data_land,MATCH(Skyggetabeller!N55,Data!landaar,0),4) -> 3391 | O66: =INDEX(Data_land,MATCH(Skyggetabeller!O55,Data!landaar,0),4) -> 3479 | P66: =INDEX(Data_land,MATCH(Skyggetabeller!P55,Data!landaar,0),4) -> 3460 | Q66: =INDEX(Data_land,MATCH(Skyggetabeller!Q55,Data!landaar,0),4) -> 3624 | R66: =INDEX(Data_land,MATCH(Skyggetabeller!R55,Data!landaar,0),4) -> 3632
B67: Andel | D67: =IFERROR(IF(D65="*","*",IF(D66=0,"#I/T",(D65/D66))),"Data ikke tilføjet") -> 0.4508435137 | E67: =IFERROR(IF(E65="*","*",IF(E66=0,"#I/T",(E65/E66))),"Data ikke tilføjet") -> 0.4452533489 | F67: =IFERROR(IF(F65="*","*",IF(F66=0,"#I/T",(F65/F66))),"Data ikke tilføjet") -> 0.4395149364 | G67: =IFERROR(IF(G65="*","*",IF(G66=0,"#I/T",(G65/G66))),"Data ikke tilføjet") -> 0.45480797 | H67: =IFERROR(IF(H65="*","*",IF(H66=0,"#I/T",(H65/H66))),"Data ikke tilføjet") -> 0.4595555556 | I67: =IFERROR(IF(I65="*","*",IF(I66=0,"#I/T",(I65/I66))),"Data ikke tilføjet") -> 0.4545721847 | J67: =IFERROR(IF(J65="*","*",IF(J66=0,"#I/T",(J65/J66))),"Data ikke tilføjet") -> 0.465130382 | K67: =IFERROR(IF(K65="*","*",IF(K66=0,"#I/T",(K65/K66))),"Data ikke tilføjet") -> 0.4633699634 | L67: =IFERROR(IF(L65="*","*",IF(L66=0,"#I/T",(L65/L66))),"Data ikke tilføjet") -> 0.4632802938 | M67: =IFERROR(IF(M65="*","*",IF(M66=0,"#I/T",(M65/M66))),"Data ikke tilføjet") -> 0.4746322426 | N67: =IFERROR(IF(N65="*","*",IF(N66=0,"#I/T",(N65/N66))),"Data ikke tilføjet") -> 0.4703627249 | O67: =IFERROR(IF(O65="*","*",IF(O66=0,"#I/T",(O65/O66))),"Data ikke tilføjet") -> 0.4866340903 | P67: =IFERROR(IF(P65="*","*",IF(P66=0,"#I/T",(P65/P66))),"Data ikke tilføjet") -> 0.4846820809 | Q67: =IFERROR(IF(Q65="*","*",IF(Q66=0,"#I/T",(Q65/Q66))),"Data ikke tilføjet") -> 0.4892384106 | R67: =IFERROR(IF(R65="*","*",IF(R66=0,"#I/T",(R65/R66))),"Data ikke tilføjet") -> 0.4906387665
B69: Tabel 1.4 - 1.6: Fordeling af institutionsanbragte for hver aktør
B71: ="Tabel 1.4: Fordeling af institutionsanbragte for "&Kommune -> Tabel 1.4: Fordeling af institutionsanbragte for København
B72: ="Nøgletal 1.4 Fordeling af anbragte for "&Kommune -> Nøgletal 1.4 Fordeling af anbragte for København | D72: 2016-01-01 | E72: 2016-07-01 | F72: 2017-01-01 | G72: 2017-07-01 | H72: 2018-01-01 | I72: 2018-07-01 | J72: 2019-01-01 | K72: 2019-07-01 | L72: 2020-01-01 | M72: 2020-07-01 | N72: 2021-01-01 | O72: 2021-07-01 | P72: 2022-01-01 | Q72: 2022-07-01 | R72: 2023-01-01
B73: Døgninstitutioner | D73: =D28 -> 0.7347826087 | E73: 0.7510729614 | F73: 0.7589285714 | G73: 0.8008849558 | H73: 0.8130841121 | I73: 0.801843318 | J73: 0.7892156863 | K73: 0.792746114 | L73: 0.86875 | M73: 0.8166666667 | N73: =N28 -> 0.7910447761 | O73: 0.7534246575 | P73: 0.797235023 | Q73: =Q28 -> 0.8065843621 | R73: 0.8064516129
B74: Sikrede døgninstitutioner | D74: =D43 -> 0.03043478261 | E74: 0.02575107296 | F74: 0.03125 | G74: 0.02654867257 | H74: 0.02803738318 | I74: 0.04608294931 | J74: 0.04901960784 | K74: 0.02590673575 | L74: * | M74: 0.05 | N74: =N43 -> 0.08457711443 | O74: 0.100456621 | P74: 0.07373271889 | Q74: =Q43 -> 0.06172839506 | R74: 0.04032258065
B75: Socialpædagogiske opholdssteder | D75: =D59 -> 0.2347826087 | E75: 0.2231759657 | F75: 0.2098214286 | G75: 0.1725663717 | H75: 0.1588785047 | I75: 0.1520737327 | J75: 0.1617647059 | K75: 0.1813471503 | L75: * | M75: 0.1333333333 | N75: =N59 -> 0.1243781095 | O75: 0.1461187215 | P75: 0.1290322581 | Q75: =Q59 -> 0.1316872428 | R75: 0.1532258065
B77: ="Tabel 1.5: Fordeling af institutionsanbragte for "&B60 -> Tabel 1.5: Fordeling af institutionsanbragte for Sammenligningsgruppe, gns.
B78: ="Nøgletal 1.5 Fordeling af anbragte for "&B60 -> Nøgletal 1.5 Fordeling af anbragte for Sammenligningsgruppe, gns. | D78: 2016-01-01 | E78: 2016-07-01 | F78: 2017-01-01 | G78: 2017-07-01 | H78: 2018-01-01 | I78: 2018-07-01 | J78: 2019-01-01 | K78: 2019-07-01 | L78: 2020-01-01 | M78: 2020-07-01 | N78: 2021-01-01 | O78: 2021-07-01 | P78: 2022-01-01 | Q78: 2022-07-01 | R78: 2023-01-01
B79: Døgninstitutioner | D79: =D32 -> 0.671957672 | E79: =E32 -> 0.6798029557 | F79: 0.6963350785 | G79: 0.7 | H79: 0.6611111111 | I79: 0.6904761905 | J79: 0.6781609195 | K79: 0.7134831461 | L79: 0.701754386 | M79: 0.7341040462 | N79: =N32 -> 0.7028571429 | O79: 0.6742857143 | P79: 0.6770186335 | Q79: =Q32 -> 0.6264367816 | R79: 0.6547619048
B80: Sikrede døgninstitutioner | D80: =D47 -> 0.03703703704 | E80: 0.0197044335 | F80: 0.01570680628 | G80: 0.02105263158 | H80: 0.02222222222 | I80: 0.04166666667 | J80: 0.05747126437 | K80: 0.05056179775 | L80: 0.09356725146 | M80: 0.06358381503 | N80: =N47 -> 0.08571428571 | O80: 0.08 | P80: 0.08695652174 | Q80: =Q47 -> 0.09770114943 | R80: 0.08333333333
B81: Socialpædagogiske opholdssteder | D81: =D63 -> 0.291005291 | E81: 0.3004926108 | F81: 0.2879581152 | G81: 0.2789473684 | H81: 0.3166666667 | I81: 0.2678571429 | J81: 0.2643678161 | K81: 0.2359550562 | L81: 0.2046783626 | M81: 0.2023121387 | N81: =N63 -> 0.2114285714 | O81: 0.2457142857 | P81: 0.2360248447 | Q81: =Q63 -> 0.275862069 | R81: 0.2619047619
B83: ="Tabel 1.6: Fordeling af institutionsanbragte for "&B64 -> Tabel 1.6: Fordeling af institutionsanbragte for Hele landet
B84: ="Nøgletal 1.6 Fordeling af anbragte for "&B64&"en" -> Nøgletal 1.6 Fordeling af anbragte for Hele landeten | D84: 2016-01-01 | E84: 2016-07-01 | F84: 2017-01-01 | G84: 2017-07-01 | H84: 2018-01-01 | I84: 2018-07-01 | J84: 2019-01-01 | K84: 2019-07-01 | L84: 2020-01-01 | M84: 2020-07-01 | N84: 2021-01-01 | O84: 2021-07-01 | P84: 2022-01-01 | Q84: 2022-07-01 | R84: 2023-01-01
B85: Døgninstitutioner | D85: =D36 -> 0.5322862129 | E85: 0.5366919045 | F85: 0.536823425 | G85: 0.5223794398 | H85: 0.5214814815 | I85: 0.5207291973 | J85: 0.5118253487 | K85: 0.5146520147 | L85: 0.5125458996 | M85: 0.5001501051 | N85: =N36 -> 0.5016219404 | O85: 0.4851968957 | P85: 0.4910404624 | Q85: 0.4864790287 | R85: 0.4859581498
B86: Sikrede døgninstitutioner | D86: =D51 -> 0.01687027341 | E86: 0.01805474665 | F86: 0.02366163857 | G86: 0.02281259024 | H86: 0.01896296296 | I86: 0.02469861805 | J86: 0.02304426925 | K86: 0.02197802198 | L86: 0.02417380661 | M86: 0.02521765236 | N86: =N51 -> 0.02801533471 | O86: 0.02816901408 | P86: 0.02427745665 | Q86: 0.02428256071 | R86: 0.0234030837
B87: Socialpædagogiske opholdssteder | D87: =D67 -> 0.4508435137 | E87: 0.4452533489 | F87: 0.4395149364 | G87: 0.45480797 | H87: 0.4595555556 | I87: 0.4545721847 | J87: 0.465130382 | K87: 0.4633699634 | L87: 0.4632802938 | M87: 0.4746322426 | N87: =N67 -> 0.4703627249 | O87: 0.4866340903 | P87: 0.4846820809 | Q87: 0.4892384106 | R87: 0.4906387665
B90: Nøgletal 2: Varighed af institutionsanbringelser
B92: Tabel 2: Gennemsnitlig varighed af igangværende institutionsanbringelser
B93: Nøgletal 2: Gennemsnitlig varighed af igangværende institutionsanbringelser | D93: 2016-01-01 | E93: 2016-07-01 | F93: 2017-01-01 | G93: 2017-07-01 | H93: 2018-01-01 | I93: 2018-07-01 | J93: 2019-01-01 | K93: 2019-07-01 | L93: 2020-01-01 | M93: 2020-07-01 | N93: 2021-01-01 | O93: 2021-07-01 | P93: 2022-01-01 | Q93: 2022-07-01 | R93: 2023-01-01
B94: =IF(Kommune="","Kommune",Kommune) -> København
B95: Samlet antal dage | D95: =IFERROR(IF(INDEX(Data_kom2,MATCH(1,(komnavn2=Kommune)*(komaar2=D93),0),8)="*","*",INDEX(Data_kom2,MATCH(1,(komnavn2=Kommune)*(komaar2=D93),0),8)),"Data ikke tilføjet") -> 185478 | E95: =IFERROR(IF(INDEX(Data_kom2,MATCH(1,(komnavn2=Kommune)*(komaar2=E93),0),8)="*","*",INDEX(Data_kom2,MATCH(1,(komnavn2=Kommune)*(komaar2=E93),0),8)),"Data ikke tilføjet") -> 186030 | F95: =IFERROR(IF(INDEX(Data_kom2,MATCH(1,(komnavn2=Kommune)*(komaar2=F93),0),8)="*","*",INDEX(Data_kom2,MATCH(1,(komnavn2=Kommune)*(komaar2=F93),0),8)),"Data ikke tilføjet") -> 176992 | G95: =IFERROR(IF(INDEX(Data_kom2,MATCH(1,(komnavn2=Kommune)*(komaar2=G93),0),8)="*","*",INDEX(Data_kom2,MATCH(1,(komnavn2=Kommune)*(komaar2=G93),0),8)),"Data ikke tilføjet") -> 164546 | H95: =IFERROR(IF(INDEX(Data_kom2,MATCH(1,(komnavn2=Kommune)*(komaar2=H93),0),8)="*","*",INDEX(Data_kom2,MATCH(1,(komnavn2=Kommune)*(komaar2=H93),0),8)),"Data ikke tilføjet") -> 154847 | I95: =IFERROR(IF(INDEX(Data_kom2,MATCH(1,(komnavn2=Kommune)*(komaar2=I93),0),8)="*","*",INDEX(Data_kom2,MATCH(1,(komnavn2=Kommune)*(komaar2=I93),0),8)),"Data ikke tilføjet") -> 156577 | J95: =IFERROR(IF(INDEX(Data_kom2,MATCH(1,(komnavn2=Kommune)*(komaar2=J93),0),8)="*","*",INDEX(Data_kom2,MATCH(1,(komnavn2=Kommune)*(komaar2=J93),0),8)),"Data ikke tilføjet") -> 149429 | K95: =IFERROR(IF(INDEX(Data_kom2,MATCH(1,(komnavn2=Kommune)*(komaar2=K93),0),8)="*","*",INDEX(Data_kom2,MATCH(1,(komnavn2=Kommune)*(komaar2=K93),0),8)),"Data ikke tilføjet") -> 151260 | L95: =IFERROR(IF(INDEX(Data_kom2,MATCH(1,(komnavn2=Kommune)*(komaar2=L93),0),8)="*","*",INDEX(Data_kom2,MATCH(1,(komnavn2=Kommune)*(komaar2=L93),0),8)),"Data ikke tilføjet") -> 125961 | M95: =IFERROR(IF(INDEX(Data_kom2,MATCH(1,(komnavn2=Kommune)*(komaar2=M93),0),8)="*","*",INDEX(Data_kom2,MATCH(1,(komnavn2=Kommune)*(komaar2=M93),0),8)),"Data ikke tilføjet") -> 128612 | N95: =IFERROR(IF(INDEX(Data_kom2,MATCH(1,(komnavn2=Kommune)*(komaar2=N93),0),8)="*","*",INDEX(Data_kom2,MATCH(1,(komnavn2=Kommune)*(komaar2=N93),0),8)),"Data ikke tilføjet") -> 128494 | O95: =IFERROR(IF(INDEX(Data_kom2,MATCH(1,(komnavn2=Kommune)*(komaar2=O93),0),8)="*","*",INDEX(Data_kom2,MATCH(1,(komnavn2=Kommune)*(komaar2=O93),0),8)),"Data ikke tilføjet") -> 132359 | P95: =IFERROR(IF(INDEX(Data_kom2,MATCH(1,(komnavn2=Kommune)*(komaar2=P93),0),8)="*","*",INDEX(Data_kom2,MATCH(1,(komnavn2=Kommune)*(komaar2=P93),0),8)),"Data ikke tilføjet") -> 131176 | Q95: =IFERROR(IF(INDEX(Data_kom2,MATCH(1,(komnavn2=Kommune)*(komaar2=Q93),0),8)="*","*",INDEX(Data_kom2,MATCH(1,(komnavn2=Kommune)*(komaar2=Q93),0),8)),"Data ikke tilføjet") -> 136329 | R95: =IFERROR(IF(INDEX(Data_kom2,MATCH(1,(komnavn2=Kommune)*(komaar2=R93),0),8)="*","*",INDEX(Data_kom2,MATCH(1,(komnavn2=Kommune)*(komaar2=R93),0),8)),"Data ikke tilføjet") -> 146245
B96: Antal anbragte | D96: =IFERROR(INDEX(Data_kom2,MATCH(1,(komnavn2=Kommune)*(komaar2=D$93),0),4),"Data ikke tilføjet") -> 230 | E96: =IFERROR(INDEX(Data_kom2,MATCH(1,(komnavn2=Kommune)*(komaar2=E$93),0),4),"Data ikke tilføjet") -> 233 | F96: =IFERROR(INDEX(Data_kom2,MATCH(1,(komnavn2=Kommune)*(komaar2=F$93),0),4),"Data ikke tilføjet") -> 224 | G96: =IFERROR(INDEX(Data_kom2,MATCH(1,(komnavn2=Kommune)*(komaar2=G$93),0),4),"Data ikke tilføjet") -> 226 | H96: =IFERROR(INDEX(Data_kom2,MATCH(1,(komnavn2=Kommune)*(komaar2=H$93),0),4),"Data ikke tilføjet") -> 214 | I96: =IFERROR(INDEX(Data_kom2,MATCH(1,(komnavn2=Kommune)*(komaar2=I$93),0),4),"Data ikke tilføjet") -> 217 | J96: =IFERROR(INDEX(Data_kom2,MATCH(1,(komnavn2=Kommune)*(komaar2=J$93),0),4),"Data ikke tilføjet") -> 204 | K96: =IFERROR(INDEX(Data_kom2,MATCH(1,(komnavn2=Kommune)*(komaar2=K$93),0),4),"Data ikke tilføjet") -> 193 | L96: =IFERROR(INDEX(Data_kom2,MATCH(1,(komnavn2=Kommune)*(komaar2=L$93),0),4),"Data ikke tilføjet") -> 160 | M96: =IFERROR(INDEX(Data_kom2,MATCH(1,(komnavn2=Kommune)*(komaar2=M$93),0),4),"Data ikke tilføjet") -> 180 | N96: =IFERROR(INDEX(Data_kom2,MATCH(1,(komnavn2=Kommune)*(komaar2=N$93),0),4),"Data ikke tilføjet") -> 201 | O96: =IFERROR(INDEX(Data_kom2,MATCH(1,(komnavn2=Kommune)*(komaar2=O$93),0),4),"Data ikke tilføjet") -> 219 | P96: =IFERROR(INDEX(Data_kom2,MATCH(1,(komnavn2=Kommune)*(komaar2=P$93),0),4),"Data ikke tilføjet") -> 217 | Q96: =IFERROR(INDEX(Data_kom2,MATCH(1,(komnavn2=Kommune)*(komaar2=Q$93),0),4),"Data ikke tilføjet") -> 243 | R96: =IFERROR(INDEX(Data_kom2,MATCH(1,(komnavn2=Kommune)*(komaar2=R$93),0),4),"Data ikke tilføjet") -> 248
B97: Gennemsnitlig varighed | D97: =IFERROR(IF(D95="*","*",IF(D96=0,"#I/T",(D95/D96))),"Data ikke tilføjet") -> 806.426087 | E97: =IFERROR(IF(E95="*","*",IF(E96=0,"#I/T",(E95/E96))),"Data ikke tilføjet") -> 798.4120172 | F97: =IFERROR(IF(F95="*","*",IF(F96=0,"#I/T",(F95/F96))),"Data ikke tilføjet") -> 790.1428571 | G97: =IFERROR(IF(G95="*","*",IF(G96=0,"#I/T",(G95/G96))),"Data ikke tilføjet") -> 728.079646 | H97: =IFERROR(IF(H95="*","*",IF(H96=0,"#I/T",(H95/H96))),"Data ikke tilføjet") -> 723.5841121 | I97: =IFERROR(IF(I95="*","*",IF(I96=0,"#I/T",(I95/I96))),"Data ikke tilføjet") -> 721.5529954 | J97: =IFERROR(IF(J95="*","*",IF(J96=0,"#I/T",(J95/J96))),"Data ikke tilføjet") -> 732.495098 | K97: =IFERROR(IF(K95="*","*",IF(K96=0,"#I/T",(K95/K96))),"Data ikke tilføjet") -> 783.7305699 | L97: =IFERROR(IF(L95="*","*",IF(L96=0,"#I/T",(L95/L96))),"Data ikke tilføjet") -> 787.25625 | M97: =IFERROR(IF(M95="*","*",IF(M96=0,"#I/T",(M95/M96))),"Data ikke tilføjet") -> 714.5111111 | N97: =IFERROR(IF(N95="*","*",IF(N96=0,"#I/T",(N95/N96))),"Data ikke tilføjet") -> 639.2736318 | O97: =IFERROR(IF(O95="*","*",IF(O96=0,"#I/T",(O95/O96))),"Data ikke tilføjet") -> 604.3789954 | P97: =IFERROR(IF(P95="*","*",IF(P96=0,"#I/T",(P95/P96))),"Data ikke tilføjet") -> 604.4976959 | Q97: =IFERROR(IF(Q95="*","*",IF(Q96=0,"#I/T",(Q95/Q96))),"Data ikke tilføjet") -> 561.0246914 | R97: =IFERROR(IF(R95="*","*",IF(R96=0,"#I/T",(R95/R96))),"Data ikke tilføjet") -> 589.6975806
B98: Sammenligningsgruppe, gns.
B99: Samlet antal dage | D99: =IF('Dine valg'!$G$24="","-",SUMIF(Hjælpefane!$D$7:$D$111,"="&D$9,Hjælpefane!$I$7:$I$111)) -> 200604 | E99: =IF('Dine valg'!$G$24="","-",SUMIF(Hjælpefane!$D$7:$D$111,"="&E$9,Hjælpefane!$I$7:$I$111)) -> 208297 | F99: =IF('Dine valg'!$G$24="","-",SUMIF(Hjælpefane!$D$7:$D$111,"="&F$9,Hjælpefane!$I$7:$I$111)) -> 208831 | G99: =IF('Dine valg'!$G$24="","-",SUMIF(Hjælpefane!$D$7:$D$111,"="&G$9,Hjælpefane!$I$7:$I$111)) -> 206091 | H99: =IF('Dine valg'!$G$24="","-",SUMIF(Hjælpefane!$D$7:$D$111,"="&H$9,Hjælpefane!$I$7:$I$111)) -> 194184 | I99: =IF('Dine valg'!$G$24="","-",SUMIF(Hjælpefane!$D$7:$D$111,"="&I$9,Hjælpefane!$I$7:$I$111)) -> 170529 | J99: =IF('Dine valg'!$G$24="","-",SUMIF(Hjælpefane!$D$7:$D$111,"="&J$9,Hjælpefane!$I$7:$I$111)) -> 159152 | K99: =IF('Dine valg'!$G$24="","-",SUMIF(Hjælpefane!$D$7:$D$111,"="&K$9,Hjælpefane!$I$7:$I$111)) -> 173246 | L99: =IF('Dine valg'!$G$24="","-",SUMIF(Hjælpefane!$D$7:$D$111,"="&L$9,Hjælpefane!$I$7:$I$111)) -> 172055 | M99: =IF('Dine valg'!$G$24="","-",SUMIF(Hjælpefane!$D$7:$D$111,"="&M$9,Hjælpefane!$I$7:$I$111)) -> 165391 | N99: =IF('Dine valg'!$G$24="","-",SUMIF(Hjælpefane!$D$7:$D$111,"="&N$9,Hjælpefane!$I$7:$I$111)) -> 172915 | O99: =IF('Dine valg'!$G$24="","-",SUMIF(Hjælpefane!$D$7:$D$111,"="&O$9,Hjælpefane!$I$7:$I$111)) -> 176105 | P99: =IF('Dine valg'!$G$24="","-",SUMIF(Hjælpefane!$D$7:$D$111,"="&P$9,Hjælpefane!$I$7:$I$111)) -> 176903 | Q99: =IF('Dine valg'!$G$24="","-",SUMIF(Hjælpefane!$D$7:$D$111,"="&Q$9,Hjælpefane!$I$7:$I$111)) -> 184152 | R99: =IF('Dine valg'!$G$24="","-",SUMIF(Hjælpefane!$D$7:$D$111,"="&R$9,Hjælpefane!$I$7:$I$111)) -> 174335
B100: Antal anbragte | D100: =IF('Dine valg'!$G$24="","-",SUMIF(Hjælpefane!$D$7:$D$111,"="&D$9,Hjælpefane!$E$7:$E$111)) -> 189 | E100: =IF('Dine valg'!$G$24="","-",SUMIF(Hjælpefane!$D$7:$D$111,"="&E$9,Hjælpefane!$E$7:$E$111)) -> 203 | F100: =IF('Dine valg'!$G$24="","-",SUMIF(Hjælpefane!$D$7:$D$111,"="&F$9,Hjælpefane!$E$7:$E$111)) -> 191 | G100: =IF('Dine valg'!$G$24="","-",SUMIF(Hjælpefane!$D$7:$D$111,"="&G$9,Hjælpefane!$E$7:$E$111)) -> 190 | H100: =IF('Dine valg'!$G$24="","-",SUMIF(Hjælpefane!$D$7:$D$111,"="&H$9,Hjælpefane!$E$7:$E$111)) -> 180 | I100: =IF('Dine valg'!$G$24="","-",SUMIF(Hjælpefane!$D$7:$D$111,"="&I$9,Hjælpefane!$E$7:$E$111)) -> 168 | J100: =IF('Dine valg'!$G$24="","-",SUMIF(Hjælpefane!$D$7:$D$111,"="&J$9,Hjælpefane!$E$7:$E$111)) -> 174 | K100: =IF('Dine valg'!$G$24="","-",SUMIF(Hjælpefane!$D$7:$D$111,"="&K$9,Hjælpefane!$E$7:$E$111)) -> 178 | L100: =IF('Dine valg'!$G$24="","-",SUMIF(Hjælpefane!$D$7:$D$111,"="&L$9,Hjælpefane!$E$7:$E$111)) -> 171 | M100: =IF('Dine valg'!$G$24="","-",SUMIF(Hjælpefane!$D$7:$D$111,"="&M$9,Hjælpefane!$E$7:$E$111)) -> 173 | N100: =IF('Dine valg'!$G$24="","-",SUMIF(Hjælpefane!$D$7:$D$111,"="&N$9,Hjælpefane!$E$7:$E$111)) -> 175 | O100: =IF('Dine valg'!$G$24="","-",SUMIF(Hjælpefane!$D$7:$D$111,"="&O$9,Hjælpefane!$E$7:$E$111)) -> 175 | P100: =IF('Dine valg'!$G$24="","-",SUMIF(Hjælpefane!$D$7:$D$111,"="&P$9,Hjælpefane!$E$7:$E$111)) -> 161 | Q100: =IF('Dine valg'!$G$24="","-",SUMIF(Hjælpefane!$D$7:$D$111,"="&Q$9,Hjælpefane!$E$7:$E$111)) -> 174 | R100: =IF('Dine valg'!$G$24="","-",SUMIF(Hjælpefane!$D$7:$D$111,"="&R$9,Hjælpefane!$E$7:$E$111)) -> 168
B101: Gennemsnitlig varighed | D101: =IFERROR(IF(D99="*","*",IF(D100="","Indtast data",(D99/D100))),"-") -> 1061.396825 | E101: =IFERROR(IF(E99="*","*",IF(E100="","Indtast data",(E99/E100))),"-") -> 1026.093596 | F101: =IFERROR(IF(F99="*","*",IF(F100="","Indtast data",(F99/F100))),"-") -> 1093.356021 | G101: =IFERROR(IF(G99="*","*",IF(G100="","Indtast data",(G99/G100))),"-") -> 1084.689474 | H101: =IFERROR(IF(H99="*","*",IF(H100="","Indtast data",(H99/H100))),"-") -> 1078.8 | I101: =IFERROR(IF(I99="*","*",IF(I100="","Indtast data",(I99/I100))),"-") -> 1015.053571 | J101: =IFERROR(IF(J99="*","*",IF(J100="","Indtast data",(J99/J100))),"-") -> 914.6666667 | K101: =IFERROR(IF(K99="*","*",IF(K100="","Indtast data",(K99/K100))),"-") -> 973.2921348 | L101: =IFERROR(IF(L99="*","*",IF(L100="","Indtast data",(L99/L100))),"-") -> 1006.169591 | M101: 956.017341 | N101: 988.0857143 | O101: 1006.314286 | P101: 1098.776398 | Q101: 1058.344828 | R101: 1037.708333
B102: Hele landet
B103: Samlet antal dage | D103: =INDEX(Data_land,MATCH(Skyggetabeller!D93,Data!landaar,0),8) -> 3141398 | E103: =INDEX(Data_land,MATCH(Skyggetabeller!E93,Data!landaar,0),8) -> 2999675 | F103: =INDEX(Data_land,MATCH(Skyggetabeller!F93,Data!landaar,0),8) -> 2926881 | G103: =INDEX(Data_land,MATCH(Skyggetabeller!G93,Data!landaar,0),8) -> 2872799 | H103: =INDEX(Data_land,MATCH(Skyggetabeller!H93,Data!landaar,0),8) -> 2788973 | I103: =INDEX(Data_land,MATCH(Skyggetabeller!I93,Data!landaar,0),8) -> 2678553 | J103: =INDEX(Data_land,MATCH(Skyggetabeller!J93,Data!landaar,0),8) -> 2556646 | K103: =INDEX(Data_land,MATCH(Skyggetabeller!K93,Data!landaar,0),8) -> 2525234 | L103: =INDEX(Data_land,MATCH(Skyggetabeller!L93,Data!landaar,0),8) -> 2484125 | M103: =INDEX(Data_land,MATCH(Skyggetabeller!M93,Data!landaar,0),8) -> 2543481 | N103: =INDEX(Data_land,MATCH(Skyggetabeller!N93,Data!landaar,0),8) -> 2543999 | O103: =INDEX(Data_land,MATCH(Skyggetabeller!O93,Data!landaar,0),8) -> 2565330 | P103: =INDEX(Data_land,MATCH(Skyggetabeller!P93,Data!landaar,0),8) -> 2595601 | Q103: =INDEX(Data_land,MATCH(Skyggetabeller!Q93,Data!landaar,0),8) -> 2636910 | R103: =INDEX(Data_land,MATCH(Skyggetabeller!R93,Data!landaar,0),8) -> 2688748
B104: Antal anbragte | D104: =INDEX(Data_land,MATCH(Skyggetabeller!D93,Data!landaar,0),4) -> 3438 | E104: =INDEX(Data_land,MATCH(Skyggetabeller!E93,Data!landaar,0),4) -> 3434 | F104: =INDEX(Data_land,MATCH(Skyggetabeller!F93,Data!landaar,0),4) -> 3381 | G104: =INDEX(Data_land,MATCH(Skyggetabeller!G93,Data!landaar,0),4) -> 3463 | H104: =INDEX(Data_land,MATCH(Skyggetabeller!H93,Data!landaar,0),4) -> 3375 | I104: =INDEX(Data_land,MATCH(Skyggetabeller!I93,Data!landaar,0),4) -> 3401 | J104: =INDEX(Data_land,MATCH(Skyggetabeller!J93,Data!landaar,0),4) -> 3298 | K104: =INDEX(Data_land,MATCH(Skyggetabeller!K93,Data!landaar,0),4) -> 3276 | L104: =INDEX(Data_land,MATCH(Skyggetabeller!L93,Data!landaar,0),4) -> 3268 | M104: =INDEX(Data_land,MATCH(Skyggetabeller!M93,Data!landaar,0),4) -> 3331 | N104: =INDEX(Data_land,MATCH(Skyggetabeller!N93,Data!landaar,0),4) -> 3391 | O104: =INDEX(Data_land,MATCH(Skyggetabeller!O93,Data!landaar,0),4) -> 3479 | P104: =INDEX(Data_land,MATCH(Skyggetabeller!P93,Data!landaar,0),4) -> 3460 | Q104: =INDEX(Data_land,MATCH(Skyggetabeller!Q93,Data!landaar,0),4) -> 3624 | R104: =INDEX(Data_land,MATCH(Skyggetabeller!R93,Data!landaar,0),4) -> 3632
B105: Gennemsnitlig varighed | D105: =IFERROR(IF(D103="*","*",IF(D104=0,"#I/T",(D103/D104))),"Data ikke tilføjet") -> 913.7283304 | E105: =IFERROR(IF(E103="*","*",IF(E104=0,"#I/T",(E103/E104))),"Data ikke tilføjet") -> 873.5221316 | F105: =IFERROR(IF(F103="*","*",IF(F104=0,"#I/T",(F103/F104))),"Data ikke tilføjet") -> 865.6850044 | G105: =IFERROR(IF(G103="*","*",IF(G104=0,"#I/T",(G103/G104))),"Data ikke tilføjet") -> 829.5694485 | H105: =IFERROR(IF(H103="*","*",IF(H104=0,"#I/T",(H103/H104))),"Data ikke tilføjet") -> 826.3623704 | I105: =IFERROR(IF(I103="*","*",IF(I104=0,"#I/T",(I103/I104))),"Data ikke tilføjet") -> 787.5780653 | J105: =IFERROR(IF(J103="*","*",IF(J104=0,"#I/T",(J103/J104))),"Data ikke tilføjet") -> 775.211037 | K105: =IFERROR(IF(K103="*","*",IF(K104=0,"#I/T",(K103/K104))),"Data ikke tilføjet") -> 770.8284493 | L105: =IFERROR(IF(L103="*","*",IF(L104=0,"#I/T",(L103/L104))),"Data ikke tilføjet") -> 760.1361689 | M105: =IFERROR(IF(M103="*","*",IF(M104=0,"#I/T",(M103/M104))),"Data ikke tilføjet") -> 763.5788052 | N105: =IFERROR(IF(N103="*","*",IF(N104=0,"#I/T",(N103/N104))),"Data ikke tilføjet") -> 750.2208788 | O105: =IFERROR(IF(O103="*","*",IF(O104=0,"#I/T",(O103/O104))),"Data ikke tilføjet") -> 737.3756827 | P105: =IFERROR(IF(P103="*","*",IF(P104=0,"#I/T",(P103/P104))),"Data ikke tilføjet") -> 750.1736994 | Q105: =IFERROR(IF(Q103="*","*",IF(Q104=0,"#I/T",(Q103/Q104))),"Data ikke tilføjet") -> 727.6241722 | R105: =IFERROR(IF(R103="*","*",IF(R104=0,"#I/T",(R103/R104))),"Data ikke tilføjet") -> 740.2940529
B107: Tabel 2.1: Gennemsnitlig varighed af igangværende anbringelser på døgninstitution
B108: Nøgletal 2.1 Gennemsnitlig varighed af igangværende anbringelser på døgninstitution | D108: 2016-01-01 | E108: 2016-07-01 | F108: 2017-01-01 | G108: 2017-07-01 | H108: 2018-01-01 | I108: 2018-07-01 | J108: 2019-01-01 | K108: 2019-07-01 | L108: 2020-01-01 | M108: 2020-07-01 | N108: 2021-01-01 | O108: 2021-07-01 | P108: 2022-01-01 | Q108: 2022-07-01 | R108: 2023-01-01
B109: =IF(Kommune="","Kommune",Kommune) -> København
B110: Samlet antal dage | D110: =IFERROR(IF(INDEX(Data_kom2,MATCH(1,(komnavn2=Kommune)*(komaar2=D108),0),9)="*","*",INDEX(Data_kom2,MATCH(1,(komnavn2=Kommune)*(komaar2=D108),0),9)),"Data ikke tilføjet") -> 131733 | E110: =IFERROR(IF(INDEX(Data_kom2,MATCH(1,(komnavn2=Kommune)*(komaar2=E108),0),9)="*","*",INDEX(Data_kom2,MATCH(1,(komnavn2=Kommune)*(komaar2=E108),0),9)),"Data ikke tilføjet") -> 133739 | F110: =IFERROR(IF(INDEX(Data_kom2,MATCH(1,(komnavn2=Kommune)*(komaar2=F108),0),9)="*","*",INDEX(Data_kom2,MATCH(1,(komnavn2=Kommune)*(komaar2=F108),0),9)),"Data ikke tilføjet") -> 126890 | G110: =IFERROR(IF(INDEX(Data_kom2,MATCH(1,(komnavn2=Kommune)*(komaar2=G108),0),9)="*","*",INDEX(Data_kom2,MATCH(1,(komnavn2=Kommune)*(komaar2=G108),0),9)),"Data ikke tilføjet") -> 118827 | H110: =IFERROR(IF(INDEX(Data_kom2,MATCH(1,(komnavn2=Kommune)*(komaar2=H108),0),9)="*","*",INDEX(Data_kom2,MATCH(1,(komnavn2=Kommune)*(komaar2=H108),0),9)),"Data ikke tilføjet") -> 109211 | I110: =IFERROR(IF(INDEX(Data_kom2,MATCH(1,(komnavn2=Kommune)*(komaar2=I108),0),9)="*","*",INDEX(Data_kom2,MATCH(1,(komnavn2=Kommune)*(komaar2=I108),0),9)),"Data ikke tilføjet") -> 109671 | J110: =IFERROR(IF(INDEX(Data_kom2,MATCH(1,(komnavn2=Kommune)*(komaar2=J108),0),9)="*","*",INDEX(Data_kom2,MATCH(1,(komnavn2=Kommune)*(komaar2=J108),0),9)),"Data ikke tilføjet") -> 102873 | K110: =IFERROR(IF(INDEX(Data_kom2,MATCH(1,(komnavn2=Kommune)*(komaar2=K108),0),9)="*","*",INDEX(Data_kom2,MATCH(1,(komnavn2=Kommune)*(komaar2=K108),0),9)),"Data ikke tilføjet") -> 101422 | L110: =IFERROR(IF(INDEX(Data_kom2,MATCH(1,(komnavn2=Kommune)*(komaar2=L108),0),9)="*","*",INDEX(Data_kom2,MATCH(1,(komnavn2=Kommune)*(komaar2=L108),0),9)),"Data ikke tilføjet") -> 94891 | M110: =IFERROR(IF(INDEX(Data_kom2,MATCH(1,(komnavn2=Kommune)*(komaar2=M108),0),9)="*","*",INDEX(Data_kom2,MATCH(1,(komnavn2=Kommune)*(komaar2=M108),0),9)),"Data ikke tilføjet") -> 93866 | N110: =IFERROR(IF(INDEX(Data_kom2,MATCH(1,(komnavn2=Kommune)*(komaar2=N108),0),9)="*","*",INDEX(Data_kom2,MATCH(1,(komnavn2=Kommune)*(komaar2=N108),0),9)),"Data ikke tilføjet") -> 95550 | O110: =IFERROR(IF(INDEX(Data_kom2,MATCH(1,(komnavn2=Kommune)*(komaar2=O108),0),9)="*","*",INDEX(Data_kom2,MATCH(1,(komnavn2=Kommune)*(komaar2=O108),0),9)),"Data ikke tilføjet") -> 95564 | P110: =IFERROR(IF(INDEX(Data_kom2,MATCH(1,(komnavn2=Kommune)*(komaar2=P108),0),9)="*","*",INDEX(Data_kom2,MATCH(1,(komnavn2=Kommune)*(komaar2=P108),0),9)),"Data ikke tilføjet") -> 97246 | Q110: =IFERROR(IF(INDEX(Data_kom2,MATCH(1,(komnavn2=Kommune)*(komaar2=Q108),0),9)="*","*",INDEX(Data_kom2,MATCH(1,(komnavn2=Kommune)*(komaar2=Q108),0),9)),"Data ikke tilføjet") -> 99775 | R110: =IFERROR(IF(INDEX(Data_kom2,MATCH(1,(komnavn2=Kommune)*(komaar2=R108),0),9)="*","*",INDEX(Data_kom2,MATCH(1,(komnavn2=Kommune)*(komaar2=R108),0),9)),"Data ikke tilføjet") -> 115330
B111: Antal anbragte | D111: =D26 -> 169 | E111: 175 | F111: 170 | G111: 181 | H111: 174 | I111: 174 | J111: 161 | K111: 153 | L111: 139 | M111: =M26 -> 147 | N111: 159 | O111: 165 | P111: 173 | Q111: 196 | R111: 200
B112: Gennemsnitlig varighed | D112: =IFERROR(IF(D110="*","*",IF(D111=0,"#I/T",(D110/D111))),"Data ikke tilføjet") -> 779.4852071 | E112: =IFERROR(IF(E110="*","*",IF(E111=0,"#I/T",(E110/E111))),"Data ikke tilføjet") -> 764.2228571 | F112: =IFERROR(IF(F110="*","*",IF(F111=0,"#I/T",(F110/F111))),"Data ikke tilføjet") -> 746.4117647 | G112: =IFERROR(IF(G110="*","*",IF(G111=0,"#I/T",(G110/G111))),"Data ikke tilføjet") -> 656.5027624 | H112: =IFERROR(IF(H110="*","*",IF(H111=0,"#I/T",(H110/H111))),"Data ikke tilføjet") -> 627.6494253 | I112: =IFERROR(IF(I110="*","*",IF(I111=0,"#I/T",(I110/I111))),"Data ikke tilføjet") -> 630.2931034 | J112: =IFERROR(IF(J110="*","*",IF(J111=0,"#I/T",(J110/J111))),"Data ikke tilføjet") -> 638.9627329 | K112: =IFERROR(IF(K110="*","*",IF(K111=0,"#I/T",(K110/K111))),"Data ikke tilføjet") -> 662.8888889 | L112: =IFERROR(IF(L110="*","*",IF(L111=0,"#I/T",(L110/L111))),"Data ikke tilføjet") -> 682.6690647 | M112: =IFERROR(IF(M110="*","*",IF(M111=0,"#I/T",(M110/M111))),"Data ikke tilføjet") -> 638.5442177 | N112: =IFERROR(IF(N110="*","*",IF(N111=0,"#I/T",(N110/N111))),"Data ikke tilføjet") -> 600.9433962 | O112: =IFERROR(IF(O110="*","*",IF(O111=0,"#I/T",(O110/O111))),"Data ikke tilføjet") -> 579.1757576 | P112: =IFERROR(IF(P110="*","*",IF(P111=0,"#I/T",(P110/P111))),"Data ikke tilføjet") -> 562.1156069 | Q112: =IFERROR(IF(Q110="*","*",IF(Q111=0,"#I/T",(Q110/Q111))),"Data ikke tilføjet") -> 509.0561224 | R112: =IFERROR(IF(R110="*","*",IF(R111=0,"#I/T",(R110/R111))),"Data ikke tilføjet") -> 576.65
B113: Sammenligningsgruppe, gns.
B114: Samlet antal dage | D114: =IF('Dine valg'!$G$24="","-",SUMIF(Hjælpefane!$D$7:$D$111,"="&D$9,Hjælpefane!$J$7:$J$111)) -> 156966 | E114: =IF('Dine valg'!$G$24="","-",SUMIF(Hjælpefane!$D$7:$D$111,"="&E$9,Hjælpefane!$J$7:$J$111)) -> 162998 | F114: =IF('Dine valg'!$G$24="","-",SUMIF(Hjælpefane!$D$7:$D$111,"="&F$9,Hjælpefane!$J$7:$J$111)) -> 162866 | G114: =IF('Dine valg'!$G$24="","-",SUMIF(Hjælpefane!$D$7:$D$111,"="&G$9,Hjælpefane!$J$7:$J$111)) -> 163378 | H114: =IF('Dine valg'!$G$24="","-",SUMIF(Hjælpefane!$D$7:$D$111,"="&H$9,Hjælpefane!$J$7:$J$111)) -> 148645 | I114: =IF('Dine valg'!$G$24="","-",SUMIF(Hjælpefane!$D$7:$D$111,"="&I$9,Hjælpefane!$J$7:$J$111)) -> 132428 | J114: =IF('Dine valg'!$G$24="","-",SUMIF(Hjælpefane!$D$7:$D$111,"="&J$9,Hjælpefane!$J$7:$J$111)) -> 124068 | K114: =IF('Dine valg'!$G$24="","-",SUMIF(Hjælpefane!$D$7:$D$111,"="&K$9,Hjælpefane!$J$7:$J$111)) -> 136572 | L114: =IF('Dine valg'!$G$24="","-",SUMIF(Hjælpefane!$D$7:$D$111,"="&L$9,Hjælpefane!$J$7:$J$111)) -> 138504 | M114: =IF('Dine valg'!$G$24="","-",SUMIF(Hjælpefane!$D$7:$D$111,"="&M$9,Hjælpefane!$J$7:$J$111)) -> 139069 | N114: =IF('Dine valg'!$G$24="","-",SUMIF(Hjælpefane!$D$7:$D$111,"="&N$9,Hjælpefane!$J$7:$J$111)) -> 144465 | O114: =IF('Dine valg'!$G$24="","-",SUMIF(Hjælpefane!$D$7:$D$111,"="&O$9,Hjælpefane!$J$7:$J$111)) -> 151477 | P114: =IF('Dine valg'!$G$24="","-",SUMIF(Hjælpefane!$D$7:$D$111,"="&P$9,Hjælpefane!$J$7:$J$111)) -> 153357 | Q114: =IF('Dine valg'!$G$24="","-",SUMIF(Hjælpefane!$D$7:$D$111,"="&Q$9,Hjælpefane!$J$7:$J$111)) -> 154573 | R114: =IF('Dine valg'!$G$24="","-",SUMIF(Hjælpefane!$D$7:$D$111,"="&R$9,Hjælpefane!$J$7:$J$111)) -> 147751
B115: Antal anbragte | D115: =IF('Dine valg'!$G$24="","-",SUMIF(Hjælpefane!$D$7:$D$111,"="&D$9,Hjælpefane!$F$7:$F$111)) -> 127 | E115: =IF('Dine valg'!$G$24="","-",SUMIF(Hjælpefane!$D$7:$D$111,"="&E$9,Hjælpefane!$F$7:$F$111)) -> 138 | F115: =IF('Dine valg'!$G$24="","-",SUMIF(Hjælpefane!$D$7:$D$111,"="&F$9,Hjælpefane!$F$7:$F$111)) -> 133 | G115: =IF('Dine valg'!$G$24="","-",SUMIF(Hjælpefane!$D$7:$D$111,"="&G$9,Hjælpefane!$F$7:$F$111)) -> 133 | H115: =IF('Dine valg'!$G$24="","-",SUMIF(Hjælpefane!$D$7:$D$111,"="&H$9,Hjælpefane!$F$7:$F$111)) -> 119 | I115: =IF('Dine valg'!$G$24="","-",SUMIF(Hjælpefane!$D$7:$D$111,"="&I$9,Hjælpefane!$F$7:$F$111)) -> 116 | J115: =IF('Dine valg'!$G$24="","-",SUMIF(Hjælpefane!$D$7:$D$111,"="&J$9,Hjælpefane!$F$7:$F$111)) -> 118 | K115: =IF('Dine valg'!$G$24="","-",SUMIF(Hjælpefane!$D$7:$D$111,"="&K$9,Hjælpefane!$F$7:$F$111)) -> 127 | L115: =IF('Dine valg'!$G$24="","-",SUMIF(Hjælpefane!$D$7:$D$111,"="&L$9,Hjælpefane!$F$7:$F$111)) -> 120 | M115: =IF('Dine valg'!$G$24="","-",SUMIF(Hjælpefane!$D$7:$D$111,"="&M$9,Hjælpefane!$F$7:$F$111)) -> 127 | N115: =IF('Dine valg'!$G$24="","-",SUMIF(Hjælpefane!$D$7:$D$111,"="&N$9,Hjælpefane!$F$7:$F$111)) -> 123 | O115: =IF('Dine valg'!$G$24="","-",SUMIF(Hjælpefane!$D$7:$D$111,"="&O$9,Hjælpefane!$F$7:$F$111)) -> 118 | P115: =IF('Dine valg'!$G$24="","-",SUMIF(Hjælpefane!$D$7:$D$111,"="&P$9,Hjælpefane!$F$7:$F$111)) -> 109 | Q115: =IF('Dine valg'!$G$24="","-",SUMIF(Hjælpefane!$D$7:$D$111,"="&Q$9,Hjælpefane!$F$7:$F$111)) -> 109 | R115: =IF('Dine valg'!$G$24="","-",SUMIF(Hjælpefane!$D$7:$D$111,"="&R$9,Hjælpefane!$F$7:$F$111)) -> 110
B116: Gennemsnitlig varighed | D116: =IFERROR(IF(D114="*","*",IF(D115="","Indtast data",(D114/D115))),"-") -> 1235.952756 | E116: =IFERROR(IF(E114="*","*",IF(E115="","Indtast data",(E114/E115))),"-") -> 1181.144928 | F116: =IFERROR(IF(F114="*","*",IF(F115="","Indtast data",(F114/F115))),"-") -> 1224.556391 | G116: =IFERROR(IF(G114="*","*",IF(G115="","Indtast data",(G114/G115))),"-") -> 1228.406015 | H116: =IFERROR(IF(H114="*","*",IF(H115="","Indtast data",(H114/H115))),"-") -> 1249.117647 | I116: =IFERROR(IF(I114="*","*",IF(I115="","Indtast data",(I114/I115))),"-") -> 1141.62069 | J116: =IFERROR(IF(J114="*","*",IF(J115="","Indtast data",(J114/J115))),"-") -> 1051.423729 | K116: =IFERROR(IF(K114="*","*",IF(K115="","Indtast data",(K114/K115))),"-") -> 1075.370079 | L116: =IFERROR(IF(L114="*","*",IF(L115="","Indtast data",(L114/L115))),"-") -> 1154.2 | M116: 1095.031496 | N116: 1174.512195 | O116: 1283.70339 | P116: 1406.944954 | Q116: 1418.100917 | R116: 1343.190909
B117: Hele landet
B118: Samlet antal dage | D118: =INDEX(Data_land,MATCH(Skyggetabeller!D108,Data!landaar,0),9) -> 1833692 | E118: =INDEX(Data_land,MATCH(Skyggetabeller!E108,Data!landaar,0),9) -> 1772046 | F118: =INDEX(Data_land,MATCH(Skyggetabeller!F108,Data!landaar,0),9) -> 1747663 | G118: =INDEX(Data_land,MATCH(Skyggetabeller!G108,Data!landaar,0),9) -> 1686242 | H118: =INDEX(Data_land,MATCH(Skyggetabeller!H108,Data!landaar,0),9) -> 1626960 | I118: =INDEX(Data_land,MATCH(Skyggetabeller!I108,Data!landaar,0),9) -> 1553179 | J118: =INDEX(Data_land,MATCH(Skyggetabeller!J108,Data!landaar,0),9) -> 1469501 | K118: =INDEX(Data_land,MATCH(Skyggetabeller!K108,Data!landaar,0),9) -> 1463985 | L118: =INDEX(Data_land,MATCH(Skyggetabeller!L108,Data!landaar,0),9) -> 1443662 | M118: =INDEX(Data_land,MATCH(Skyggetabeller!M108,Data!landaar,0),9) -> 1452255 | N118: =INDEX(Data_land,MATCH(Skyggetabeller!N108,Data!landaar,0),9) -> 1444481 | O118: =INDEX(Data_land,MATCH(Skyggetabeller!O108,Data!landaar,0),9) -> 1435374 | P118: =INDEX(Data_land,MATCH(Skyggetabeller!P108,Data!landaar,0),9) -> 1444354 | Q118: =INDEX(Data_land,MATCH(Skyggetabeller!Q108,Data!landaar,0),9) -> 1469416 | R118: =INDEX(Data_land,MATCH(Skyggetabeller!R108,Data!landaar,0),9) -> 1510747
B119: Antal anbragte | D119: =INDEX(Data_land,MATCH(Skyggetabeller!D108,Data!landaar,0),5) -> 1830 | E119: =INDEX(Data_land,MATCH(Skyggetabeller!E108,Data!landaar,0),5) -> 1843 | F119: =INDEX(Data_land,MATCH(Skyggetabeller!F108,Data!landaar,0),5) -> 1815 | G119: =INDEX(Data_land,MATCH(Skyggetabeller!G108,Data!landaar,0),5) -> 1809 | H119: =INDEX(Data_land,MATCH(Skyggetabeller!H108,Data!landaar,0),5) -> 1760 | I119: =INDEX(Data_land,MATCH(Skyggetabeller!I108,Data!landaar,0),5) -> 1771 | J119: =INDEX(Data_land,MATCH(Skyggetabeller!J108,Data!landaar,0),5) -> 1688 | K119: =INDEX(Data_land,MATCH(Skyggetabeller!K108,Data!landaar,0),5) -> 1686 | L119: =INDEX(Data_land,MATCH(Skyggetabeller!L108,Data!landaar,0),5) -> 1675 | M119: =INDEX(Data_land,MATCH(Skyggetabeller!M108,Data!landaar,0),5) -> 1666 | N119: =INDEX(Data_land,MATCH(Skyggetabeller!N108,Data!landaar,0),5) -> 1701 | O119: =INDEX(Data_land,MATCH(Skyggetabeller!O108,Data!landaar,0),5) -> 1688 | P119: =INDEX(Data_land,MATCH(Skyggetabeller!P108,Data!landaar,0),5) -> 1699 | Q119: =INDEX(Data_land,MATCH(Skyggetabeller!Q108,Data!landaar,0),5) -> 1763 | R119: =INDEX(Data_land,MATCH(Skyggetabeller!R108,Data!landaar,0),5) -> 1765
B120: Gennemsnitlig varighed | D120: =IFERROR(IF(D118="*","*",IF(D119=0,"#I/T",(D118/D119))),"Data ikke tilføjet") -> 1002.017486 | E120: =IFERROR(IF(E118="*","*",IF(E119=0,"#I/T",(E118/E119))),"Data ikke tilføjet") -> 961.5008139 | F120: =IFERROR(IF(F118="*","*",IF(F119=0,"#I/T",(F118/F119))),"Data ikke tilføjet") -> 962.8997245 | G120: =IFERROR(IF(G118="*","*",IF(G119=0,"#I/T",(G118/G119))),"Data ikke tilføjet") -> 932.1404091 | H120: =IFERROR(IF(H118="*","*",IF(H119=0,"#I/T",(H118/H119))),"Data ikke tilføjet") -> 924.4090909 | I120: =IFERROR(IF(I118="*","*",IF(I119=0,"#I/T",(I118/I119))),"Data ikke tilføjet") -> 877.0067758 | J120: =IFERROR(IF(J118="*","*",IF(J119=0,"#I/T",(J118/J119))),"Data ikke tilføjet") -> 870.5574645 | K120: =IFERROR(IF(K118="*","*",IF(K119=0,"#I/T",(K118/K119))),"Data ikke tilføjet") -> 868.3185053 | L120: =IFERROR(IF(L118="*","*",IF(L119=0,"#I/T",(L118/L119))),"Data ikke tilføjet") -> 861.8877612 | M120: =IFERROR(IF(M118="*","*",IF(M119=0,"#I/T",(M118/M119))),"Data ikke tilføjet") -> 871.7016807 | N120: =IFERROR(IF(N118="*","*",IF(N119=0,"#I/T",(N118/N119))),"Data ikke tilføjet") -> 849.1951793 | O120: =IFERROR(IF(O118="*","*",IF(O119=0,"#I/T",(O118/O119))),"Data ikke tilføjet") -> 850.3400474 | P120: =IFERROR(IF(P118="*","*",IF(P119=0,"#I/T",(P118/P119))),"Data ikke tilføjet") -> 850.1200706 | Q120: =IFERROR(IF(Q118="*","*",IF(Q119=0,"#I/T",(Q118/Q119))),"Data ikke tilføjet") -> 833.4747589 | R120: =IFERROR(IF(R118="*","*",IF(R119=0,"#I/T",(R118/R119))),"Data ikke tilføjet") -> 855.9473088
B122: Tabel 2.2: Gennemsnitlig varighed af igangværende anbringelser på sikret døgninstitution
B123: Nøgletal 2.2: Gennemsnitlig varighed af igangværende anbringelser på sikret døgninstitution | D123: 2016-01-01 | E123: 2016-07-01 | F123: 2017-01-01 | G123: 2017-07-01 | H123: 2018-01-01 | I123: 2018-07-01 | J123: 2019-01-01 | K123: 2019-07-01 | L123: 2020-01-01 | M123: 2020-07-01 | N123: 2021-01-01 | O123: 2021-07-01 | P123: 2022-01-01 | Q123: 2022-07-01 | R123: 2023-01-01
B124: =IF(Kommune="","Kommune",Kommune) -> København
B125: Samlet antal dage | D125: =IFERROR(IF(INDEX(Data_kom2,MATCH(1,(komnavn2=Kommune)*(komaar2=D123),0),10)="*","*",INDEX(Data_kom2,MATCH(1,(komnavn2=Kommune)*(komaar2=D123),0),10)),"Data ikke tilføjet") -> 3323 | E125: =IFERROR(IF(INDEX(Data_kom2,MATCH(1,(komnavn2=Kommune)*(komaar2=E123),0),10)="*","*",INDEX(Data_kom2,MATCH(1,(komnavn2=Kommune)*(komaar2=E123),0),10)),"Data ikke tilføjet") -> 3189 | F125: =IFERROR(IF(INDEX(Data_kom2,MATCH(1,(komnavn2=Kommune)*(komaar2=F123),0),10)="*","*",INDEX(Data_kom2,MATCH(1,(komnavn2=Kommune)*(komaar2=F123),0),10)),"Data ikke tilføjet") -> 2067 | G125: =IFERROR(IF(INDEX(Data_kom2,MATCH(1,(komnavn2=Kommune)*(komaar2=G123),0),10)="*","*",INDEX(Data_kom2,MATCH(1,(komnavn2=Kommune)*(komaar2=G123),0),10)),"Data ikke tilføjet") -> 2443 | H125: =IFERROR(IF(INDEX(Data_kom2,MATCH(1,(komnavn2=Kommune)*(komaar2=H123),0),10)="*","*",INDEX(Data_kom2,MATCH(1,(komnavn2=Kommune)*(komaar2=H123),0),10)),"Data ikke tilføjet") -> 2098 | I125: =IFERROR(IF(INDEX(Data_kom2,MATCH(1,(komnavn2=Kommune)*(komaar2=I123),0),10)="*","*",INDEX(Data_kom2,MATCH(1,(komnavn2=Kommune)*(komaar2=I123),0),10)),"Data ikke tilføjet") -> 2830 | J125: =IFERROR(IF(INDEX(Data_kom2,MATCH(1,(komnavn2=Kommune)*(komaar2=J123),0),10)="*","*",INDEX(Data_kom2,MATCH(1,(komnavn2=Kommune)*(komaar2=J123),0),10)),"Data ikke tilføjet") -> 2993 | K125: =IFERROR(IF(INDEX(Data_kom2,MATCH(1,(komnavn2=Kommune)*(komaar2=K123),0),10)="*","*",INDEX(Data_kom2,MATCH(1,(komnavn2=Kommune)*(komaar2=K123),0),10)),"Data ikke tilføjet") -> 3225 | L125: =IFERROR(IF(INDEX(Data_kom2,MATCH(1,(komnavn2=Kommune)*(komaar2=L123),0),10)="*","*",INDEX(Data_kom2,MATCH(1,(komnavn2=Kommune)*(komaar2=L123),0),10)),"Data ikke tilføjet") -> * | M125: =IFERROR(IF(INDEX(Data_kom2,MATCH(1,(komnavn2=Kommune)*(komaar2=M123),0),10)="*","*",INDEX(Data_kom2,MATCH(1,(komnavn2=Kommune)*(komaar2=M123),0),10)),"Data ikke tilføjet") -> 801 | N125: =IFERROR(IF(INDEX(Data_kom2,MATCH(1,(komnavn2=Kommune)*(komaar2=N123),0),10)="*","*",INDEX(Data_kom2,MATCH(1,(komnavn2=Kommune)*(komaar2=N123),0),10)),"Data ikke tilføjet") -> 1693 | O125: =IFERROR(IF(INDEX(Data_kom2,MATCH(1,(komnavn2=Kommune)*(komaar2=O123),0),10)="*","*",INDEX(Data_kom2,MATCH(1,(komnavn2=Kommune)*(komaar2=O123),0),10)),"Data ikke tilføjet") -> 2439 | P125: =IFERROR(IF(INDEX(Data_kom2,MATCH(1,(komnavn2=Kommune)*(komaar2=P123),0),10)="*","*",INDEX(Data_kom2,MATCH(1,(komnavn2=Kommune)*(komaar2=P123),0),10)),"Data ikke tilføjet") -> 2322 | Q125: =IFERROR(IF(INDEX(Data_kom2,MATCH(1,(komnavn2=Kommune)*(komaar2=Q123),0),10)="*","*",INDEX(Data_kom2,MATCH(1,(komnavn2=Kommune)*(komaar2=Q123),0),10)),"Data ikke tilføjet") -> 1764 | R125: =IFERROR(IF(INDEX(Data_kom2,MATCH(1,(komnavn2=Kommune)*(komaar2=R123),0),10)="*","*",INDEX(Data_kom2,MATCH(1,(komnavn2=Kommune)*(komaar2=R123),0),10)),"Data ikke tilføjet") -> 2455
B126: Antal anbragte | D126: =D41 -> 7 | E126: 6 | F126: 7 | G126: 6 | H126: 6 | I126: 10 | J126: 10 | K126: 5 | L126: * | M126: =M41 -> 9 | N126: 17 | O126: 22 | P126: 16 | Q126: 15 | R126: 10
B127: Gennemsnitlig varighed | D127: =IFERROR(IF(D125="*","*",IF(D126=0,"#I/T",(D125/D126))),"Data ikke tilføjet") -> 474.7142857 | E127: =IFERROR(IF(E125="*","*",IF(E126=0,"#I/T",(E125/E126))),"Data ikke tilføjet") -> 531.5 | F127: =IFERROR(IF(F125="*","*",IF(F126=0,"#I/T",(F125/F126))),"Data ikke tilføjet") -> 295.2857143 | G127: =IFERROR(IF(G125="*","*",IF(G126=0,"#I/T",(G125/G126))),"Data ikke tilføjet") -> 407.1666667 | H127: =IFERROR(IF(H125="*","*",IF(H126=0,"#I/T",(H125/H126))),"Data ikke tilføjet") -> 349.6666667 | I127: =IFERROR(IF(I125="*","*",IF(I126=0,"#I/T",(I125/I126))),"Data ikke tilføjet") -> 283 | J127: =IFERROR(IF(J125="*","*",IF(J126=0,"#I/T",(J125/J126))),"Data ikke tilføjet") -> 299.3 | K127: =IFERROR(IF(K125="*","*",IF(K126=0,"#I/T",(K125/K126))),"Data ikke tilføjet") -> 645 | L127: =IFERROR(IF(L125="*","*",IF(L126=0,"#I/T",(L125/L126))),"Data ikke tilføjet") -> * | M127: =IFERROR(IF(M125="*","*",IF(M126=0,"#I/T",(M125/M126))),"Data ikke tilføjet") -> 89 | N127: =IFERROR(IF(N125="*","*",IF(N126=0,"#I/T",(N125/N126))),"Data ikke tilføjet") -> 99.58823529 | O127: =IFERROR(IF(O125="*","*",IF(O126=0,"#I/T",(O125/O126))),"Data ikke tilføjet") -> 110.8636364 | P127: =IFERROR(IF(P125="*","*",IF(P126=0,"#I/T",(P125/P126))),"Data ikke tilføjet") -> 145.125 | Q127: =IFERROR(IF(Q125="*","*",IF(Q126=0,"#I/T",(Q125/Q126))),"Data ikke tilføjet") -> 117.6 | R127: =IFERROR(IF(R125="*","*",IF(R126=0,"#I/T",(R125/R126))),"Data ikke tilføjet") -> 245.5
B128: Sammenligningsgruppe, gns.
B129: Samlet antal dage | D129: =IF('Dine valg'!$G$24="","-",SUMIF(Hjælpefane!$D$7:$D$111,"="&D$9,Hjælpefane!$K$7:$K$111)) -> 839 | E129: =IF('Dine valg'!$G$24="","-",SUMIF(Hjælpefane!$D$7:$D$111,"="&E$9,Hjælpefane!$K$7:$K$111)) -> 0 | F129: =IF('Dine valg'!$G$24="","-",SUMIF(Hjælpefane!$D$7:$D$111,"="&F$9,Hjælpefane!$K$7:$K$111)) -> 0 | G129: =IF('Dine valg'!$G$24="","-",SUMIF(Hjælpefane!$D$7:$D$111,"="&G$9,Hjælpefane!$K$7:$K$111)) -> 0 | H129: =IF('Dine valg'!$G$24="","-",SUMIF(Hjælpefane!$D$7:$D$111,"="&H$9,Hjælpefane!$K$7:$K$111)) -> 0 | I129: =IF('Dine valg'!$G$24="","-",SUMIF(Hjælpefane!$D$7:$D$111,"="&I$9,Hjælpefane!$K$7:$K$111)) -> 902 | J129: =IF('Dine valg'!$G$24="","-",SUMIF(Hjælpefane!$D$7:$D$111,"="&J$9,Hjælpefane!$K$7:$K$111)) -> 1195 | K129: =IF('Dine valg'!$G$24="","-",SUMIF(Hjælpefane!$D$7:$D$111,"="&K$9,Hjælpefane!$K$7:$K$111)) -> 2514 | L129: =IF('Dine valg'!$G$24="","-",SUMIF(Hjælpefane!$D$7:$D$111,"="&L$9,Hjælpefane!$K$7:$K$111)) -> 3886 | M129: =IF('Dine valg'!$G$24="","-",SUMIF(Hjælpefane!$D$7:$D$111,"="&M$9,Hjælpefane!$K$7:$K$111)) -> 1688 | N129: =IF('Dine valg'!$G$24="","-",SUMIF(Hjælpefane!$D$7:$D$111,"="&N$9,Hjælpefane!$K$7:$K$111)) -> 1831 | O129: =IF('Dine valg'!$G$24="","-",SUMIF(Hjælpefane!$D$7:$D$111,"="&O$9,Hjælpefane!$K$7:$K$111)) -> 3067 | P129: =IF('Dine valg'!$G$24="","-",SUMIF(Hjælpefane!$D$7:$D$111,"="&P$9,Hjælpefane!$K$7:$K$111)) -> 3724 | Q129: =IF('Dine valg'!$G$24="","-",SUMIF(Hjælpefane!$D$7:$D$111,"="&Q$9,Hjælpefane!$K$7:$K$111)) -> 5481 | R129: =IF('Dine valg'!$G$24="","-",SUMIF(Hjælpefane!$D$7:$D$111,"="&R$9,Hjælpefane!$K$7:$K$111)) -> 5754
B130: Antal anbragte | D130: =IF('Dine valg'!$G$24="","-",SUMIF(Hjælpefane!$D$7:$D$111,"="&D$9,Hjælpefane!$G$7:$G$111)) -> 7 | E130: =IF('Dine valg'!$G$24="","-",SUMIF(Hjælpefane!$D$7:$D$111,"="&E$9,Hjælpefane!$G$7:$G$111)) -> 4 | F130: =IF('Dine valg'!$G$24="","-",SUMIF(Hjælpefane!$D$7:$D$111,"="&F$9,Hjælpefane!$G$7:$G$111)) -> 3 | G130: =IF('Dine valg'!$G$24="","-",SUMIF(Hjælpefane!$D$7:$D$111,"="&G$9,Hjælpefane!$G$7:$G$111)) -> 4 | H130: =IF('Dine valg'!$G$24="","-",SUMIF(Hjælpefane!$D$7:$D$111,"="&H$9,Hjælpefane!$G$7:$G$111)) -> 4 | I130: =IF('Dine valg'!$G$24="","-",SUMIF(Hjælpefane!$D$7:$D$111,"="&I$9,Hjælpefane!$G$7:$G$111)) -> 7 | J130: =IF('Dine valg'!$G$24="","-",SUMIF(Hjælpefane!$D$7:$D$111,"="&J$9,Hjælpefane!$G$7:$G$111)) -> 10 | K130: =IF('Dine valg'!$G$24="","-",SUMIF(Hjælpefane!$D$7:$D$111,"="&K$9,Hjælpefane!$G$7:$G$111)) -> 9 | L130: =IF('Dine valg'!$G$24="","-",SUMIF(Hjælpefane!$D$7:$D$111,"="&L$9,Hjælpefane!$G$7:$G$111)) -> 16 | M130: =IF('Dine valg'!$G$24="","-",SUMIF(Hjælpefane!$D$7:$D$111,"="&M$9,Hjælpefane!$G$7:$G$111)) -> 11 | N130: =IF('Dine valg'!$G$24="","-",SUMIF(Hjælpefane!$D$7:$D$111,"="&N$9,Hjælpefane!$G$7:$G$111)) -> 15 | O130: =IF('Dine valg'!$G$24="","-",SUMIF(Hjælpefane!$D$7:$D$111,"="&O$9,Hjælpefane!$G$7:$G$111)) -> 14 | P130: =IF('Dine valg'!$G$24="","-",SUMIF(Hjælpefane!$D$7:$D$111,"="&P$9,Hjælpefane!$G$7:$G$111)) -> 14 | Q130: =IF('Dine valg'!$G$24="","-",SUMIF(Hjælpefane!$D$7:$D$111,"="&Q$9,Hjælpefane!$G$7:$G$111)) -> 17 | R130: =IF('Dine valg'!$G$24="","-",SUMIF(Hjælpefane!$D$7:$D$111,"="&R$9,Hjælpefane!$G$7:$G$111)) -> 14
B131: Gennemsnitlig varighed | D131: =IFERROR(IF(D129="*","*",IF(D130="","Indtast data",(D129/D130))),"-") -> 119.8571429 | E131: =IFERROR(IF(E129="*","*",IF(E130="","Indtast data",(E129/E130))),"-") -> 0 | F131: =IFERROR(IF(F129="*","*",IF(F130="","Indtast data",(F129/F130))),"-") -> 0 | G131: =IFERROR(IF(G129="*","*",IF(G130="","Indtast data",(G129/G130))),"-") -> 0 | H131: =IFERROR(IF(H129="*","*",IF(H130="","Indtast data",(H129/H130))),"-") -> 0 | I131: =IFERROR(IF(I129="*","*",IF(I130="","Indtast data",(I129/I130))),"-") -> 128.8571429 | J131: =IFERROR(IF(J129="*","*",IF(J130="","Indtast data",(J129/J130))),"-") -> 119.5 | K131: =IFERROR(IF(K129="*","*",IF(K130="","Indtast data",(K129/K130))),"-") -> 279.3333333 | L131: =IFERROR(IF(L129="*","*",IF(L130="","Indtast data",(L129/L130))),"-") -> 242.875 | M131: 153.4545455 | N131: 122.0666667 | O131: 219.0714286 | P131: 266 | Q131: 322.4117647 | R131: 411
B132: Hele landet
B133: Samlet antal dage | D133: =INDEX(Data_land,MATCH(Skyggetabeller!D123,Data!landaar,0),10) -> 19522 | E133: =INDEX(Data_land,MATCH(Skyggetabeller!E123,Data!landaar,0),10) -> 19854 | F133: =INDEX(Data_land,MATCH(Skyggetabeller!F123,Data!landaar,0),10) -> 23846 | G133: =INDEX(Data_land,MATCH(Skyggetabeller!G123,Data!landaar,0),10) -> 25839 | H133: =INDEX(Data_land,MATCH(Skyggetabeller!H123,Data!landaar,0),10) -> 18299 | I133: =INDEX(Data_land,MATCH(Skyggetabeller!I123,Data!landaar,0),10) -> 18138 | J133: =INDEX(Data_land,MATCH(Skyggetabeller!J123,Data!landaar,0),10) -> 20357 | K133: =INDEX(Data_land,MATCH(Skyggetabeller!K123,Data!landaar,0),10) -> 23262 | L133: =INDEX(Data_land,MATCH(Skyggetabeller!L123,Data!landaar,0),10) -> 20737 | M133: =INDEX(Data_land,MATCH(Skyggetabeller!M123,Data!landaar,0),10) -> 21082 | N133: =INDEX(Data_land,MATCH(Skyggetabeller!N123,Data!landaar,0),10) -> 18812 | O133: =INDEX(Data_land,MATCH(Skyggetabeller!O123,Data!landaar,0),10) -> 22266 | P133: =INDEX(Data_land,MATCH(Skyggetabeller!P123,Data!landaar,0),10) -> 19232 | Q133: =INDEX(Data_land,MATCH(Skyggetabeller!Q123,Data!landaar,0),10) -> 20585 | R133: =INDEX(Data_land,MATCH(Skyggetabeller!R123,Data!landaar,0),10) -> 20791
B134: Antal anbragte | D134: =INDEX(Data_land,MATCH(Skyggetabeller!D123,Data!landaar,0),6) -> 58 | E134: =INDEX(Data_land,MATCH(Skyggetabeller!E123,Data!landaar,0),6) -> 62 | F134: =INDEX(Data_land,MATCH(Skyggetabeller!F123,Data!landaar,0),6) -> 80 | G134: =INDEX(Data_land,MATCH(Skyggetabeller!G123,Data!landaar,0),6) -> 79 | H134: =INDEX(Data_land,MATCH(Skyggetabeller!H123,Data!landaar,0),6) -> 64 | I134: =INDEX(Data_land,MATCH(Skyggetabeller!I123,Data!landaar,0),6) -> 84 | J134: =INDEX(Data_land,MATCH(Skyggetabeller!J123,Data!landaar,0),6) -> 76 | K134: =INDEX(Data_land,MATCH(Skyggetabeller!K123,Data!landaar,0),6) -> 72 | L134: =INDEX(Data_land,MATCH(Skyggetabeller!L123,Data!landaar,0),6) -> 79 | M134: =INDEX(Data_land,MATCH(Skyggetabeller!M123,Data!landaar,0),6) -> 84 | N134: =INDEX(Data_land,MATCH(Skyggetabeller!N123,Data!landaar,0),6) -> 95 | O134: =INDEX(Data_land,MATCH(Skyggetabeller!O123,Data!landaar,0),6) -> 98 | P134: =INDEX(Data_land,MATCH(Skyggetabeller!P123,Data!landaar,0),6) -> 84 | Q134: =INDEX(Data_land,MATCH(Skyggetabeller!Q123,Data!landaar,0),6) -> 88 | R134: =INDEX(Data_land,MATCH(Skyggetabeller!R123,Data!landaar,0),6) -> 85
B135: Gennemsnitlig varighed | D135: =IFERROR(IF(D133="*","*",IF(D134=0,"#I/T",(D133/D134))),"Data ikke tilføjet") -> 336.5862069 | E135: =IFERROR(IF(E133="*","*",IF(E134=0,"#I/T",(E133/E134))),"Data ikke tilføjet") -> 320.2258065 | F135: =IFERROR(IF(F133="*","*",IF(F134=0,"#I/T",(F133/F134))),"Data ikke tilføjet") -> 298.075 | G135: =IFERROR(IF(G133="*","*",IF(G134=0,"#I/T",(G133/G134))),"Data ikke tilføjet") -> 327.0759494 | H135: =IFERROR(IF(H133="*","*",IF(H134=0,"#I/T",(H133/H134))),"Data ikke tilføjet") -> 285.921875 | I135: =IFERROR(IF(I133="*","*",IF(I134=0,"#I/T",(I133/I134))),"Data ikke tilføjet") -> 215.9285714 | J135: =IFERROR(IF(J133="*","*",IF(J134=0,"#I/T",(J133/J134))),"Data ikke tilføjet") -> 267.8552632 | K135: =IFERROR(IF(K133="*","*",IF(K134=0,"#I/T",(K133/K134))),"Data ikke tilføjet") -> 323.0833333 | L135: =IFERROR(IF(L133="*","*",IF(L134=0,"#I/T",(L133/L134))),"Data ikke tilføjet") -> 262.4936709 | M135: =IFERROR(IF(M133="*","*",IF(M134=0,"#I/T",(M133/M134))),"Data ikke tilføjet") -> 250.9761905 | N135: =IFERROR(IF(N133="*","*",IF(N134=0,"#I/T",(N133/N134))),"Data ikke tilføjet") -> 198.0210526 | O135: =IFERROR(IF(O133="*","*",IF(O134=0,"#I/T",(O133/O134))),"Data ikke tilføjet") -> 227.2040816 | P135: =IFERROR(IF(P133="*","*",IF(P134=0,"#I/T",(P133/P134))),"Data ikke tilføjet") -> 228.952381 | Q135: =IFERROR(IF(Q133="*","*",IF(Q134=0,"#I/T",(Q133/Q134))),"Data ikke tilføjet") -> 233.9204545 | R135: =IFERROR(IF(R133="*","*",IF(R134=0,"#I/T",(R133/R134))),"Data ikke tilføjet") -> 244.6
B137: Tabel 2.3: Gennemsnitlig varighed af anbringelser på socialpædagogisk opholdssted
B138: Nøgletal 2.3: Gennemsnitlig varighed af igangværende anbringelser på socialpædagogisk opholdssted | D138: 2016-01-01 | E138: 2016-07-01 | F138: 2017-01-01 | G138: 2017-07-01 | H138: 2018-01-01 | I138: 2018-07-01 | J138: 2019-01-01 | K138: 2019-07-01 | L138: 2020-01-01 | M138: 2020-07-01 | N138: 2021-01-01 | O138: 2021-07-01 | P138: 2022-01-01 | Q138: 2022-07-01 | R138: 2023-01-01
B139: =IF(Kommune="","Kommune",Kommune) -> København
B140: Samlet antal dage | D140: =IFERROR(IF(INDEX(Data_kom2,MATCH(1,(komnavn2=Kommune)*(komaar2=D138),0),11)="*","*",INDEX(Data_kom2,MATCH(1,(komnavn2=Kommune)*(komaar2=D138),0),11)),"Data ikke tilføjet") -> 50422 | E140: =IFERROR(IF(INDEX(Data_kom2,MATCH(1,(komnavn2=Kommune)*(komaar2=E138),0),11)="*","*",INDEX(Data_kom2,MATCH(1,(komnavn2=Kommune)*(komaar2=E138),0),11)),"Data ikke tilføjet") -> 49102 | F140: =IFERROR(IF(INDEX(Data_kom2,MATCH(1,(komnavn2=Kommune)*(komaar2=F138),0),11)="*","*",INDEX(Data_kom2,MATCH(1,(komnavn2=Kommune)*(komaar2=F138),0),11)),"Data ikke tilføjet") -> 48035 | G140: =IFERROR(IF(INDEX(Data_kom2,MATCH(1,(komnavn2=Kommune)*(komaar2=G138),0),11)="*","*",INDEX(Data_kom2,MATCH(1,(komnavn2=Kommune)*(komaar2=G138),0),11)),"Data ikke tilføjet") -> 43276 | H140: =IFERROR(IF(INDEX(Data_kom2,MATCH(1,(komnavn2=Kommune)*(komaar2=H138),0),11)="*","*",INDEX(Data_kom2,MATCH(1,(komnavn2=Kommune)*(komaar2=H138),0),11)),"Data ikke tilføjet") -> 43538 | I140: =IFERROR(IF(INDEX(Data_kom2,MATCH(1,(komnavn2=Kommune)*(komaar2=I138),0),11)="*","*",INDEX(Data_kom2,MATCH(1,(komnavn2=Kommune)*(komaar2=I138),0),11)),"Data ikke tilføjet") -> 44076 | J140: =IFERROR(IF(INDEX(Data_kom2,MATCH(1,(komnavn2=Kommune)*(komaar2=J138),0),11)="*","*",INDEX(Data_kom2,MATCH(1,(komnavn2=Kommune)*(komaar2=J138),0),11)),"Data ikke tilføjet") -> 43563 | K140: =IFERROR(IF(INDEX(Data_kom2,MATCH(1,(komnavn2=Kommune)*(komaar2=K138),0),11)="*","*",INDEX(Data_kom2,MATCH(1,(komnavn2=Kommune)*(komaar2=K138),0),11)),"Data ikke tilføjet") -> 46613 | L140: =IFERROR(IF(INDEX(Data_kom2,MATCH(1,(komnavn2=Kommune)*(komaar2=L138),0),11)="*","*",INDEX(Data_kom2,MATCH(1,(komnavn2=Kommune)*(komaar2=L138),0),11)),"Data ikke tilføjet") -> * | M140: =IFERROR(IF(INDEX(Data_kom2,MATCH(1,(komnavn2=Kommune)*(komaar2=M138),0),11)="*","*",INDEX(Data_kom2,MATCH(1,(komnavn2=Kommune)*(komaar2=M138),0),11)),"Data ikke tilføjet") -> 33945 | N140: =IFERROR(IF(INDEX(Data_kom2,MATCH(1,(komnavn2=Kommune)*(komaar2=N138),0),11)="*","*",INDEX(Data_kom2,MATCH(1,(komnavn2=Kommune)*(komaar2=N138),0),11)),"Data ikke tilføjet") -> 31251 | O140: =IFERROR(IF(INDEX(Data_kom2,MATCH(1,(komnavn2=Kommune)*(komaar2=O138),0),11)="*","*",INDEX(Data_kom2,MATCH(1,(komnavn2=Kommune)*(komaar2=O138),0),11)),"Data ikke tilføjet") -> 34356 | P140: =IFERROR(IF(INDEX(Data_kom2,MATCH(1,(komnavn2=Kommune)*(komaar2=P138),0),11)="*","*",INDEX(Data_kom2,MATCH(1,(komnavn2=Kommune)*(komaar2=P138),0),11)),"Data ikke tilføjet") -> 31608 | Q140: =IFERROR(IF(INDEX(Data_kom2,MATCH(1,(komnavn2=Kommune)*(komaar2=Q138),0),11)="*","*",INDEX(Data_kom2,MATCH(1,(komnavn2=Kommune)*(komaar2=Q138),0),11)),"Data ikke tilføjet") -> 34790 | R140: =IFERROR(IF(INDEX(Data_kom2,MATCH(1,(komnavn2=Kommune)*(komaar2=R138),0),11)="*","*",INDEX(Data_kom2,MATCH(1,(komnavn2=Kommune)*(komaar2=R138),0),11)),"Data ikke tilføjet") -> 28460
B141: Antal anbragte | D141: =D57 -> 54 | E141: 52 | F141: 47 | G141: 39 | H141: 34 | I141: 33 | J141: 33 | K141: 35 | L141: * | M141: =M57 -> 24 | N141: 25 | O141: 32 | P141: 28 | Q141: 32 | R141: 38
B142: Gennemsnitlig varighed | D142: =IFERROR(IF(D140="*","*",IF(D141=0,"#I/T",(D140/D141))),"Data ikke tilføjet") -> 933.7407407 | E142: =IFERROR(IF(E140="*","*",IF(E141=0,"#I/T",(E140/E141))),"Data ikke tilføjet") -> 944.2692308 | F142: =IFERROR(IF(F140="*","*",IF(F141=0,"#I/T",(F140/F141))),"Data ikke tilføjet") -> 1022.021277 | G142: =IFERROR(IF(G140="*","*",IF(G141=0,"#I/T",(G140/G141))),"Data ikke tilføjet") -> 1109.641026 | H142: =IFERROR(IF(H140="*","*",IF(H141=0,"#I/T",(H140/H141))),"Data ikke tilføjet") -> 1280.529412 | I142: =IFERROR(IF(I140="*","*",IF(I141=0,"#I/T",(I140/I141))),"Data ikke tilføjet") -> 1335.636364 | J142: =IFERROR(IF(J140="*","*",IF(J141=0,"#I/T",(J140/J141))),"Data ikke tilføjet") -> 1320.090909 | K142: =IFERROR(IF(K140="*","*",IF(K141=0,"#I/T",(K140/K141))),"Data ikke tilføjet") -> 1331.8 | L142: =IFERROR(IF(L140="*","*",IF(L141=0,"#I/T",(L140/L141))),"Data ikke tilføjet") -> * | M142: =IFERROR(IF(M140="*","*",IF(M141=0,"#I/T",(M140/M141))),"Data ikke tilføjet") -> 1414.375 | N142: =IFERROR(IF(N140="*","*",IF(N141=0,"#I/T",(N140/N141))),"Data ikke tilføjet") -> 1250.04 | O142: =IFERROR(IF(O140="*","*",IF(O141=0,"#I/T",(O140/O141))),"Data ikke tilføjet") -> 1073.625 | P142: =IFERROR(IF(P140="*","*",IF(P141=0,"#I/T",(P140/P141))),"Data ikke tilføjet") -> 1128.857143 | Q142: =IFERROR(IF(Q140="*","*",IF(Q141=0,"#I/T",(Q140/Q141))),"Data ikke tilføjet") -> 1087.1875 | R142: =IFERROR(IF(R140="*","*",IF(R141=0,"#I/T",(R140/R141))),"Data ikke tilføjet") -> 748.9473684
B143: Sammenligningsgruppe, gns.
B144: Samlet antal dage | D144: =IF('Dine valg'!$G$24="","-",SUMIF(Hjælpefane!$D$7:$D$111,"="&D$9,Hjælpefane!$L$7:$L$111)) -> 42799 | E144: =IF('Dine valg'!$G$24="","-",SUMIF(Hjælpefane!$D$7:$D$111,"="&E$9,Hjælpefane!$L$7:$L$111)) -> 0 | F144: =IF('Dine valg'!$G$24="","-",SUMIF(Hjælpefane!$D$7:$D$111,"="&F$9,Hjælpefane!$L$7:$L$111)) -> 0 | G144: =IF('Dine valg'!$G$24="","-",SUMIF(Hjælpefane!$D$7:$D$111,"="&G$9,Hjælpefane!$L$7:$L$111)) -> 0 | H144: =IF('Dine valg'!$G$24="","-",SUMIF(Hjælpefane!$D$7:$D$111,"="&H$9,Hjælpefane!$L$7:$L$111)) -> 0 | I144: =IF('Dine valg'!$G$24="","-",SUMIF(Hjælpefane!$D$7:$D$111,"="&I$9,Hjælpefane!$L$7:$L$111)) -> 37199 | J144: =IF('Dine valg'!$G$24="","-",SUMIF(Hjælpefane!$D$7:$D$111,"="&J$9,Hjælpefane!$L$7:$L$111)) -> 33889 | K144: =IF('Dine valg'!$G$24="","-",SUMIF(Hjælpefane!$D$7:$D$111,"="&K$9,Hjælpefane!$L$7:$L$111)) -> 34160 | L144: =IF('Dine valg'!$G$24="","-",SUMIF(Hjælpefane!$D$7:$D$111,"="&L$9,Hjælpefane!$L$7:$L$111)) -> 29665 | M144: =IF('Dine valg'!$G$24="","-",SUMIF(Hjælpefane!$D$7:$D$111,"="&M$9,Hjælpefane!$L$7:$L$111)) -> 24634 | N144: =IF('Dine valg'!$G$24="","-",SUMIF(Hjælpefane!$D$7:$D$111,"="&N$9,Hjælpefane!$L$7:$L$111)) -> 26619 | O144: =IF('Dine valg'!$G$24="","-",SUMIF(Hjælpefane!$D$7:$D$111,"="&O$9,Hjælpefane!$L$7:$L$111)) -> 21561 | P144: =IF('Dine valg'!$G$24="","-",SUMIF(Hjælpefane!$D$7:$D$111,"="&P$9,Hjælpefane!$L$7:$L$111)) -> 19822 | Q144: =IF('Dine valg'!$G$24="","-",SUMIF(Hjælpefane!$D$7:$D$111,"="&Q$9,Hjælpefane!$L$7:$L$111)) -> 24098 | R144: =IF('Dine valg'!$G$24="","-",SUMIF(Hjælpefane!$D$7:$D$111,"="&R$9,Hjælpefane!$L$7:$L$111)) -> 20830
B145: Antal anbragte | D145: =IF('Dine valg'!$G$24="","-",SUMIF(Hjælpefane!$D$7:$D$111,"="&D$9,Hjælpefane!$H$7:$H$111)) -> 55 | E145: =IF('Dine valg'!$G$24="","-",SUMIF(Hjælpefane!$D$7:$D$111,"="&E$9,Hjælpefane!$H$7:$H$111)) -> 61 | F145: =IF('Dine valg'!$G$24="","-",SUMIF(Hjælpefane!$D$7:$D$111,"="&F$9,Hjælpefane!$H$7:$H$111)) -> 55 | G145: =IF('Dine valg'!$G$24="","-",SUMIF(Hjælpefane!$D$7:$D$111,"="&G$9,Hjælpefane!$H$7:$H$111)) -> 53 | H145: =IF('Dine valg'!$G$24="","-",SUMIF(Hjælpefane!$D$7:$D$111,"="&H$9,Hjælpefane!$H$7:$H$111)) -> 57 | I145: =IF('Dine valg'!$G$24="","-",SUMIF(Hjælpefane!$D$7:$D$111,"="&I$9,Hjælpefane!$H$7:$H$111)) -> 45 | J145: =IF('Dine valg'!$G$24="","-",SUMIF(Hjælpefane!$D$7:$D$111,"="&J$9,Hjælpefane!$H$7:$H$111)) -> 46 | K145: =IF('Dine valg'!$G$24="","-",SUMIF(Hjælpefane!$D$7:$D$111,"="&K$9,Hjælpefane!$H$7:$H$111)) -> 42 | L145: =IF('Dine valg'!$G$24="","-",SUMIF(Hjælpefane!$D$7:$D$111,"="&L$9,Hjælpefane!$H$7:$H$111)) -> 35 | M145: =IF('Dine valg'!$G$24="","-",SUMIF(Hjælpefane!$D$7:$D$111,"="&M$9,Hjælpefane!$H$7:$H$111)) -> 35 | N145: =IF('Dine valg'!$G$24="","-",SUMIF(Hjælpefane!$D$7:$D$111,"="&N$9,Hjælpefane!$H$7:$H$111)) -> 37 | O145: =IF('Dine valg'!$G$24="","-",SUMIF(Hjælpefane!$D$7:$D$111,"="&O$9,Hjælpefane!$H$7:$H$111)) -> 43 | P145: =IF('Dine valg'!$G$24="","-",SUMIF(Hjælpefane!$D$7:$D$111,"="&P$9,Hjælpefane!$H$7:$H$111)) -> 38 | Q145: =IF('Dine valg'!$G$24="","-",SUMIF(Hjælpefane!$D$7:$D$111,"="&Q$9,Hjælpefane!$H$7:$H$111)) -> 48 | R145: =IF('Dine valg'!$G$24="","-",SUMIF(Hjælpefane!$D$7:$D$111,"="&R$9,Hjælpefane!$H$7:$H$111)) -> 44
B146: Gennemsnitlig varighed | D146: =IFERROR(IF(D144="*","*",IF(D145="","Indtast data",(D144/D145))),"-") -> 778.1636364 | E146: =IFERROR(IF(E144="*","*",IF(E145="","Indtast data",(E144/E145))),"-") -> 0 | F146: =IFERROR(IF(F144="*","*",IF(F145="","Indtast data",(F144/F145))),"-") -> 0 | G146: =IFERROR(IF(G144="*","*",IF(G145="","Indtast data",(G144/G145))),"-") -> 0 | H146: =IFERROR(IF(H144="*","*",IF(H145="","Indtast data",(H144/H145))),"-") -> 0 | I146: =IFERROR(IF(I144="*","*",IF(I145="","Indtast data",(I144/I145))),"-") -> 826.6444444 | J146: =IFERROR(IF(J144="*","*",IF(J145="","Indtast data",(J144/J145))),"-") -> 736.7173913 | K146: =IFERROR(IF(K144="*","*",IF(K145="","Indtast data",(K144/K145))),"-") -> 813.3333333 | L146: =IFERROR(IF(L144="*","*",IF(L145="","Indtast data",(L144/L145))),"-") -> 847.5714286 | M146: 703.8285714 | N146: 719.4324324 | O146: 501.4186047 | P146: 521.6315789 | Q146: 502.0416667 | R146: 473.4090909
B147: Hele landet
B148: Samlet antal dage | D148: =INDEX(Data_land,MATCH(Skyggetabeller!D138,Data!landaar,0),11) -> 1288184 | E148: =INDEX(Data_land,MATCH(Skyggetabeller!E138,Data!landaar,0),11) -> 1207775 | F148: =INDEX(Data_land,MATCH(Skyggetabeller!F138,Data!landaar,0),11) -> 1155372 | G148: =INDEX(Data_land,MATCH(Skyggetabeller!G138,Data!landaar,0),11) -> 1160718 | H148: =INDEX(Data_land,MATCH(Skyggetabeller!H138,Data!landaar,0),11) -> 1143714 | I148: =INDEX(Data_land,MATCH(Skyggetabeller!I138,Data!landaar,0),11) -> 1107236 | J148: =INDEX(Data_land,MATCH(Skyggetabeller!J138,Data!landaar,0),11) -> 1066788 | K148: =INDEX(Data_land,MATCH(Skyggetabeller!K138,Data!landaar,0),11) -> 1037987 | L148: =INDEX(Data_land,MATCH(Skyggetabeller!L138,Data!landaar,0),11) -> 1019726 | M148: =INDEX(Data_land,MATCH(Skyggetabeller!M138,Data!landaar,0),11) -> 1070144 | N148: =INDEX(Data_land,MATCH(Skyggetabeller!N138,Data!landaar,0),11) -> 1080706 | O148: =INDEX(Data_land,MATCH(Skyggetabeller!O138,Data!landaar,0),11) -> 1107690 | P148: =INDEX(Data_land,MATCH(Skyggetabeller!P138,Data!landaar,0),11) -> 1132015 | Q148: =INDEX(Data_land,MATCH(Skyggetabeller!Q138,Data!landaar,0),11) -> 1146909 | R148: =INDEX(Data_land,MATCH(Skyggetabeller!R138,Data!landaar,0),11) -> 1157210
B149: Antal anbragte | D149: =INDEX(Data_land,MATCH(Skyggetabeller!D138,Data!landaar,0),7) -> 1550 | E149: =INDEX(Data_land,MATCH(Skyggetabeller!E138,Data!landaar,0),7) -> 1529 | F149: =INDEX(Data_land,MATCH(Skyggetabeller!F138,Data!landaar,0),7) -> 1486 | G149: =INDEX(Data_land,MATCH(Skyggetabeller!G138,Data!landaar,0),7) -> 1575 | H149: =INDEX(Data_land,MATCH(Skyggetabeller!H138,Data!landaar,0),7) -> 1551 | I149: =INDEX(Data_land,MATCH(Skyggetabeller!I138,Data!landaar,0),7) -> 1546 | J149: =INDEX(Data_land,MATCH(Skyggetabeller!J138,Data!landaar,0),7) -> 1534 | K149: =INDEX(Data_land,MATCH(Skyggetabeller!K138,Data!landaar,0),7) -> 1518 | L149: =INDEX(Data_land,MATCH(Skyggetabeller!L138,Data!landaar,0),7) -> 1514 | M149: =INDEX(Data_land,MATCH(Skyggetabeller!M138,Data!landaar,0),7) -> 1581 | N149: =INDEX(Data_land,MATCH(Skyggetabeller!N138,Data!landaar,0),7) -> 1595 | O149: =INDEX(Data_land,MATCH(Skyggetabeller!O138,Data!landaar,0),7) -> 1693 | P149: =INDEX(Data_land,MATCH(Skyggetabeller!P138,Data!landaar,0),7) -> 1677 | Q149: =INDEX(Data_land,MATCH(Skyggetabeller!Q138,Data!landaar,0),7) -> 1773 | R149: =INDEX(Data_land,MATCH(Skyggetabeller!R138,Data!landaar,0),7) -> 1782
B150: Gennemsnitlig varighed | D150: =IFERROR(IF(D148="*","*",IF(D149=0,"#I/T",(D148/D149))),"Data ikke tilføjet") -> 831.0864516 | E150: =IFERROR(IF(E148="*","*",IF(E149=0,"#I/T",(E148/E149))),"Data ikke tilføjet") -> 789.911707 | F150: =IFERROR(IF(F148="*","*",IF(F149=0,"#I/T",(F148/F149))),"Data ikke tilføjet") -> 777.5047106 | G150: =IFERROR(IF(G148="*","*",IF(G149=0,"#I/T",(G148/G149))),"Data ikke tilføjet") -> 736.9638095 | H150: =IFERROR(IF(H148="*","*",IF(H149=0,"#I/T",(H148/H149))),"Data ikke tilføjet") -> 737.4042553 | I150: =IFERROR(IF(I148="*","*",IF(I149=0,"#I/T",(I148/I149))),"Data ikke tilføjet") -> 716.1940492 | J150: =IFERROR(IF(J148="*","*",IF(J149=0,"#I/T",(J148/J149))),"Data ikke tilføjet") -> 695.4289439 | K150: =IFERROR(IF(K148="*","*",IF(K149=0,"#I/T",(K148/K149))),"Data ikke tilføjet") -> 683.7859025 | L150: =IFERROR(IF(L148="*","*",IF(L149=0,"#I/T",(L148/L149))),"Data ikke tilføjet") -> 673.5310436 | M150: =IFERROR(IF(M148="*","*",IF(M149=0,"#I/T",(M148/M149))),"Data ikke tilføjet") -> 676.8779254 | N150: =IFERROR(IF(N148="*","*",IF(N149=0,"#I/T",(N148/N149))),"Data ikke tilføjet") -> 677.5586207 | O150: =IFERROR(IF(O148="*","*",IF(O149=0,"#I/T",(O148/O149))),"Data ikke tilføjet") -> 654.2764324 | P150: =IFERROR(IF(P148="*","*",IF(P149=0,"#I/T",(P148/P149))),"Data ikke tilføjet") -> 675.0238521 | Q150: =IFERROR(IF(Q148="*","*",IF(Q149=0,"#I/T",(Q148/Q149))),"Data ikke tilføjet") -> 646.8747885 | R150: =IFERROR(IF(R148="*","*",IF(R149=0,"#I/T",(R148/R149))),"Data ikke tilføjet") -> 649.3883277
B153: Nøgletal 3: Anbragte i plejefamilie
B155: Tabel 3: Anbragte i plejefamilie
B156: Nøgletal 3: Anbragte i plejefamilie | D156: 2016-01-01 | E156: 2016-07-01 | F156: 2017-01-01 | G156: 2017-07-01 | H156: 2018-01-01 | I156: 2018-07-01 | J156: 2019-01-01 | K156: 2019-07-01 | L156: 2020-01-01 | M156: 2020-07-01 | N156: 2021-01-01 | O156: 2021-07-01 | P156: 2022-01-01 | Q156: 2022-07-01 | R156: 2023-01-01
B157: =IF(Kommune="","Kommune",Kommune) -> København
B158: Antal anbragte | D158: =IFERROR(IF(INDEX(Data_kom2,MATCH(1,(komnavn2=Kommune)*(komaar2=D156),0),12)="*","*",INDEX(Data_kom2,MATCH(1,(komnavn2=Kommune)*(komaar2=D156),0),12)),"Data ikke tilføjet") -> 382 | E158: =IFERROR(IF(INDEX(Data_kom2,MATCH(1,(komnavn2=Kommune)*(komaar2=E156),0),12)="*","*",INDEX(Data_kom2,MATCH(1,(komnavn2=Kommune)*(komaar2=E156),0),12)),"Data ikke tilføjet") -> 369 | F158: =IFERROR(IF(INDEX(Data_kom2,MATCH(1,(komnavn2=Kommune)*(komaar2=F156),0),12)="*","*",INDEX(Data_kom2,MATCH(1,(komnavn2=Kommune)*(komaar2=F156),0),12)),"Data ikke tilføjet") -> 355 | G158: =IFERROR(IF(INDEX(Data_kom2,MATCH(1,(komnavn2=Kommune)*(komaar2=G156),0),12)="*","*",INDEX(Data_kom2,MATCH(1,(komnavn2=Kommune)*(komaar2=G156),0),12)),"Data ikke tilføjet") -> 347 | H158: =IFERROR(IF(INDEX(Data_kom2,MATCH(1,(komnavn2=Kommune)*(komaar2=H156),0),12)="*","*",INDEX(Data_kom2,MATCH(1,(komnavn2=Kommune)*(komaar2=H156),0),12)),"Data ikke tilføjet") -> 348 | I158: =IFERROR(IF(INDEX(Data_kom2,MATCH(1,(komnavn2=Kommune)*(komaar2=I156),0),12)="*","*",INDEX(Data_kom2,MATCH(1,(komnavn2=Kommune)*(komaar2=I156),0),12)),"Data ikke tilføjet") -> 351 | J158: =IFERROR(IF(INDEX(Data_kom2,MATCH(1,(komnavn2=Kommune)*(komaar2=J156),0),12)="*","*",INDEX(Data_kom2,MATCH(1,(komnavn2=Kommune)*(komaar2=J156),0),12)),"Data ikke tilføjet") -> 339 | K158: =IFERROR(IF(INDEX(Data_kom2,MATCH(1,(komnavn2=Kommune)*(komaar2=K156),0),12)="*","*",INDEX(Data_kom2,MATCH(1,(komnavn2=Kommune)*(komaar2=K156),0),12)),"Data ikke tilføjet") -> 325 | L158: =IFERROR(IF(INDEX(Data_kom2,MATCH(1,(komnavn2=Kommune)*(komaar2=L156),0),12)="*","*",INDEX(Data_kom2,MATCH(1,(komnavn2=Kommune)*(komaar2=L156),0),12)),"Data ikke tilføjet") -> 312 | M158: =IFERROR(IF(INDEX(Data_kom2,MATCH(1,(komnavn2=Kommune)*(komaar2=M156),0),12)="*","*",INDEX(Data_kom2,MATCH(1,(komnavn2=Kommune)*(komaar2=M156),0),12)),"Data ikke tilføjet") -> 295 | N158: =IFERROR(IF(INDEX(Data_kom2,MATCH(1,(komnavn2=Kommune)*(komaar2=N156),0),12)="*","*",INDEX(Data_kom2,MATCH(1,(komnavn2=Kommune)*(komaar2=N156),0),12)),"Data ikke tilføjet") -> 288 | O158: =IFERROR(IF(INDEX(Data_kom2,MATCH(1,(komnavn2=Kommune)*(komaar2=O156),0),12)="*","*",INDEX(Data_kom2,MATCH(1,(komnavn2=Kommune)*(komaar2=O156),0),12)),"Data ikke tilføjet") -> 285 | P158: =IFERROR(IF(INDEX(Data_kom2,MATCH(1,(komnavn2=Kommune)*(komaar2=P156),0),12)="*","*",INDEX(Data_kom2,MATCH(1,(komnavn2=Kommune)*(komaar2=P156),0),12)),"Data ikke tilføjet") -> 272 | Q158: =IFERROR(IF(INDEX(Data_kom2,MATCH(1,(komnavn2=Kommune)*(komaar2=Q156),0),12)="*","*",INDEX(Data_kom2,MATCH(1,(komnavn2=Kommune)*(komaar2=Q156),0),12)),"Data ikke tilføjet") -> 264 | R158: =IFERROR(IF(INDEX(Data_kom2,MATCH(1,(komnavn2=Kommune)*(komaar2=R156),0),12)="*","*",INDEX(Data_kom2,MATCH(1,(komnavn2=Kommune)*(komaar2=R156),0),12)),"Data ikke tilføjet") -> 269
B159: Antal 0-17-årige | D159: =IFERROR(INDEX(Data_kom2,MATCH(1,(komnavn2=Kommune)*(komaar2=D156),0),2),"Data ikke tilføjet") -> 103578 | E159: =IFERROR(INDEX(Data_kom2,MATCH(1,(komnavn2=Kommune)*(komaar2=E156),0),2),"Data ikke tilføjet") -> 104797 | F159: =IFERROR(INDEX(Data_kom2,MATCH(1,(komnavn2=Kommune)*(komaar2=F156),0),2),"Data ikke tilføjet") -> 105885 | G159: =IFERROR(INDEX(Data_kom2,MATCH(1,(komnavn2=Kommune)*(komaar2=G156),0),2),"Data ikke tilføjet") -> 106913 | H159: =IFERROR(INDEX(Data_kom2,MATCH(1,(komnavn2=Kommune)*(komaar2=H156),0),2),"Data ikke tilføjet") -> 107770 | I159: =IFERROR(INDEX(Data_kom2,MATCH(1,(komnavn2=Kommune)*(komaar2=I156),0),2),"Data ikke tilføjet") -> 108734 | J159: =IFERROR(INDEX(Data_kom2,MATCH(1,(komnavn2=Kommune)*(komaar2=J156),0),2),"Data ikke tilføjet") -> 109335 | K159: =IFERROR(INDEX(Data_kom2,MATCH(1,(komnavn2=Kommune)*(komaar2=K156),0),2),"Data ikke tilføjet") -> 110138 | L159: =IFERROR(INDEX(Data_kom2,MATCH(1,(komnavn2=Kommune)*(komaar2=L156),0),2),"Data ikke tilføjet") -> 110822 | M159: =IFERROR(INDEX(Data_kom2,MATCH(1,(komnavn2=Kommune)*(komaar2=M156),0),2),"Data ikke tilføjet") -> 111068 | N159: =IFERROR(INDEX(Data_kom2,MATCH(1,(komnavn2=Kommune)*(komaar2=N156),0),2),"Data ikke tilføjet") -> 110927 | O159: =IFERROR(INDEX(Data_kom2,MATCH(1,(komnavn2=Kommune)*(komaar2=O156),0),2),"Data ikke tilføjet") -> 110614 | P159: =IFERROR(INDEX(Data_kom2,MATCH(1,(komnavn2=Kommune)*(komaar2=P156),0),2),"Data ikke tilføjet") -> 110513 | Q159: =IFERROR(INDEX(Data_kom2,MATCH(1,(komnavn2=Kommune)*(komaar2=Q156),0),2),"Data ikke tilføjet") -> 110692 | R159: =IFERROR(INDEX(Data_kom2,MATCH(1,(komnavn2=Kommune)*(komaar2=R156),0),2),"Data ikke tilføjet") -> 110835
B160: Andel | D160: =IFERROR(IF(D158="*","*",IF(D159=0,"#I/T",(D158/D159*1000))),"Data ikke tilføjet") -> 3.688041862 | E160: 3.521093161 | F160: 3.35269396 | G160: 3.245629624 | H160: 3.229099007 | I160: 3.22806114 | J160: 3.100562491 | K160: 2.950843487 | L160: 2.815325477 | M160: =IFERROR(IF(M158="*","*",IF(M159=0,"#I/T",(M158/M159*1000))),"Data ikke tilføjet") -> 2.65603054 | N160: 2.596302073 | O160: 2.576527384 | P160: 2.461248903 | Q160: 2.384996206 | R160: 2.427031172
B161: Sammenligningsgruppe, gns.
B162: Antal anbragte | D162: =IF('Dine valg'!$G$24="","-",SUMIF(Hjælpefane!$D$7:$D$111,"="&D$9,Hjælpefane!$M$7:$M$111)) -> 208 | E162: =IF('Dine valg'!$G$24="","-",SUMIF(Hjælpefane!$D$7:$D$111,"="&E$9,Hjælpefane!$M$7:$M$111)) -> 215 | F162: =IF('Dine valg'!$G$24="","-",SUMIF(Hjælpefane!$D$7:$D$111,"="&F$9,Hjælpefane!$M$7:$M$111)) -> 221 | G162: =IF('Dine valg'!$G$24="","-",SUMIF(Hjælpefane!$D$7:$D$111,"="&G$9,Hjælpefane!$M$7:$M$111)) -> 225 | H162: =IF('Dine valg'!$G$24="","-",SUMIF(Hjælpefane!$D$7:$D$111,"="&H$9,Hjælpefane!$M$7:$M$111)) -> 228 | I162: =IF('Dine valg'!$G$24="","-",SUMIF(Hjælpefane!$D$7:$D$111,"="&I$9,Hjælpefane!$M$7:$M$111)) -> 240 | J162: =IF('Dine valg'!$G$24="","-",SUMIF(Hjælpefane!$D$7:$D$111,"="&J$9,Hjælpefane!$M$7:$M$111)) -> 239 | K162: =IF('Dine valg'!$G$24="","-",SUMIF(Hjælpefane!$D$7:$D$111,"="&K$9,Hjælpefane!$M$7:$M$111)) -> 234 | L162: =IF('Dine valg'!$G$24="","-",SUMIF(Hjælpefane!$D$7:$D$111,"="&L$9,Hjælpefane!$M$7:$M$111)) -> 232 | M162: =IF('Dine valg'!$G$24="","-",SUMIF(Hjælpefane!$D$7:$D$111,"="&M$9,Hjælpefane!$M$7:$M$111)) -> 233 | N162: =IF('Dine valg'!$G$24="","-",SUMIF(Hjælpefane!$D$7:$D$111,"="&N$9,Hjælpefane!$M$7:$M$111)) -> 224 | O162: =IF('Dine valg'!$G$24="","-",SUMIF(Hjælpefane!$D$7:$D$111,"="&O$9,Hjælpefane!$M$7:$M$111)) -> 214 | P162: =IF('Dine valg'!$G$24="","-",SUMIF(Hjælpefane!$D$7:$D$111,"="&P$9,Hjælpefane!$M$7:$M$111)) -> 214 | Q162: =IF('Dine valg'!$G$24="","-",SUMIF(Hjælpefane!$D$7:$D$111,"="&Q$9,Hjælpefane!$M$7:$M$111)) -> 217 | R162: =IF('Dine valg'!$G$24="","-",SUMIF(Hjælpefane!$D$7:$D$111,"="&R$9,Hjælpefane!$M$7:$M$111)) -> 205
B163: Antal 0-17-årige | D163: =IF('Dine valg'!$G$24="","-",SUMIF(Hjælpefane!$D$7:$D$111,"="&D$9,Hjælpefane!$C$7:$C$111)) -> 62241 | E163: =IF('Dine valg'!$G$24="","-",SUMIF(Hjælpefane!$D$7:$D$111,"="&E$9,Hjælpefane!$C$7:$C$111)) -> 62670 | F163: =IF('Dine valg'!$G$24="","-",SUMIF(Hjælpefane!$D$7:$D$111,"="&F$9,Hjælpefane!$C$7:$C$111)) -> 62903 | G163: =IF('Dine valg'!$G$24="","-",SUMIF(Hjælpefane!$D$7:$D$111,"="&G$9,Hjælpefane!$C$7:$C$111)) -> 63077 | H163: =IF('Dine valg'!$G$24="","-",SUMIF(Hjælpefane!$D$7:$D$111,"="&H$9,Hjælpefane!$C$7:$C$111)) -> 63245 | I163: =IF('Dine valg'!$G$24="","-",SUMIF(Hjælpefane!$D$7:$D$111,"="&I$9,Hjælpefane!$C$7:$C$111)) -> 63510 | J163: =IF('Dine valg'!$G$24="","-",SUMIF(Hjælpefane!$D$7:$D$111,"="&J$9,Hjælpefane!$C$7:$C$111)) -> 63607 | K163: =IF('Dine valg'!$G$24="","-",SUMIF(Hjælpefane!$D$7:$D$111,"="&K$9,Hjælpefane!$C$7:$C$111)) -> 63704 | L163: =IF('Dine valg'!$G$24="","-",SUMIF(Hjælpefane!$D$7:$D$111,"="&L$9,Hjælpefane!$C$7:$C$111)) -> 63890 | M163: =IF('Dine valg'!$G$24="","-",SUMIF(Hjælpefane!$D$7:$D$111,"="&M$9,Hjælpefane!$C$7:$C$111)) -> 64128 | N163: =IF('Dine valg'!$G$24="","-",SUMIF(Hjælpefane!$D$7:$D$111,"="&N$9,Hjælpefane!$C$7:$C$111)) -> 64334 | O163: =IF('Dine valg'!$G$24="","-",SUMIF(Hjælpefane!$D$7:$D$111,"="&O$9,Hjælpefane!$C$7:$C$111)) -> 64307 | P163: =IF('Dine valg'!$G$24="","-",SUMIF(Hjælpefane!$D$7:$D$111,"="&P$9,Hjælpefane!$C$7:$C$111)) -> 64049 | Q163: =IF('Dine valg'!$G$24="","-",SUMIF(Hjælpefane!$D$7:$D$111,"="&Q$9,Hjælpefane!$C$7:$C$111)) -> 64356 | R163: =IF('Dine valg'!$G$24="","-",SUMIF(Hjælpefane!$D$7:$D$111,"="&R$9,Hjælpefane!$C$7:$C$111)) -> 64420
B164: Andel | D164: =IFERROR(IF(D162="*","*",IF(D163="","Indtast data",(D162/D163*1000))),"-") -> 3.341848621 | E164: =IFERROR(IF(E162="*","*",IF(E163="","Indtast data",(E162/E163*1000))),"-") -> 3.430668581 | F164: 3.513345945 | G164: 3.567068821 | H164: 3.605028065 | I164: 3.778932452 | J164: 3.75744808 | K164: 3.673238729 | L164: 3.631241196 | M164: =IFERROR(IF(M162="*","*",IF(M163="","Indtast data",(M162/M163*1000))),"-") -> 3.633358283 | N164: 3.481829204 | O164: 3.327787022 | P164: 3.3411919 | Q164: 3.371868979 | R164: 3.18224154
B165: Hele landet
B166: Antal anbragte | D166: =INDEX(Data_land,MATCH(Skyggetabeller!D156,Data!landaar,0),12) -> 6595 | E166: =INDEX(Data_land,MATCH(Skyggetabeller!E156,Data!landaar,0),12) -> 6668 | F166: =INDEX(Data_land,MATCH(Skyggetabeller!F156,Data!landaar,0),12) -> 6765 | G166: =INDEX(Data_land,MATCH(Skyggetabeller!G156,Data!landaar,0),12) -> 6800 | H166: =INDEX(Data_land,MATCH(Skyggetabeller!H156,Data!landaar,0),12) -> 6764 | I166: =INDEX(Data_land,MATCH(Skyggetabeller!I156,Data!landaar,0),12) -> 6814 | J166: =INDEX(Data_land,MATCH(Skyggetabeller!J156,Data!landaar,0),12) -> 6788 | K166: =INDEX(Data_land,MATCH(Skyggetabeller!K156,Data!landaar,0),12) -> 6768 | L166: =INDEX(Data_land,MATCH(Skyggetabeller!L156,Data!landaar,0),12) -> 6647 | M166: =INDEX(Data_land,MATCH(Skyggetabeller!M156,Data!landaar,0),12) -> 6585 | N166: =INDEX(Data_land,MATCH(Skyggetabeller!N156,Data!landaar,0),12) -> 6525 | O166: =INDEX(Data_land,MATCH(Skyggetabeller!O156,Data!landaar,0),12) -> 6509 | P166: =INDEX(Data_land,MATCH(Skyggetabeller!P156,Data!landaar,0),12) -> 6410 | Q166: =INDEX(Data_land,MATCH(Skyggetabeller!Q156,Data!landaar,0),12) -> 6335 | R166: =INDEX(Data_land,MATCH(Skyggetabeller!R156,Data!landaar,0),12) -> 6243
B167: Antal 0-17-årige | D167: =INDEX(Data_land,MATCH(Skyggetabeller!D156,Data!landaar,0),2) -> 1167426 | E167: =INDEX(Data_land,MATCH(Skyggetabeller!E156,Data!landaar,0),2) -> 1167002 | F167: =INDEX(Data_land,MATCH(Skyggetabeller!F156,Data!landaar,0),2) -> 1168201 | G167: =INDEX(Data_land,MATCH(Skyggetabeller!G156,Data!landaar,0),2) -> 1165363 | H167: =INDEX(Data_land,MATCH(Skyggetabeller!H156,Data!landaar,0),2) -> 1165475 | I167: =INDEX(Data_land,MATCH(Skyggetabeller!I156,Data!landaar,0),2) -> 1162195 | J167: =INDEX(Data_land,MATCH(Skyggetabeller!J156,Data!landaar,0),2) -> 1160360 | K167: =INDEX(Data_land,MATCH(Skyggetabeller!K156,Data!landaar,0),2) -> 1156537 | L167: =INDEX(Data_land,MATCH(Skyggetabeller!L156,Data!landaar,0),2) -> 1156116 | M167: =INDEX(Data_land,MATCH(Skyggetabeller!M156,Data!landaar,0),2) -> 1153027 | N167: =INDEX(Data_land,MATCH(Skyggetabeller!N156,Data!landaar,0),2) -> 1152972 | O167: =INDEX(Data_land,MATCH(Skyggetabeller!O156,Data!landaar,0),2) -> 1151374 | P167: =INDEX(Data_land,MATCH(Skyggetabeller!P156,Data!landaar,0),2) -> 1151704 | Q167: =INDEX(Data_land,MATCH(Skyggetabeller!Q156,Data!landaar,0),2) -> 1157254 | R167: =INDEX(Data_land,MATCH(Skyggetabeller!R156,Data!landaar,0),2) -> 1155814
B168: Andel | D168: =IFERROR(IF(D166="*","*",IF(D167=0,"#I/T",(D166/D167*1000))),"Data ikke tilføjet") -> 5.649180333 | E168: 5.713786266 | F168: 5.790955495 | G168: 5.835091727 | H168: 5.803642292 | I168: 5.863043637 | J168: 5.849908649 | K168: 5.851952856 | L168: 5.749423068 | M168: =IFERROR(IF(M166="*","*",IF(M167=0,"#I/T",(M166/M167*1000))),"Data ikke tilføjet") -> 5.711054468 | N168: 5.659287476 | O168: 5.6532456 | P168: 5.565666178 | Q168: 5.474165568 | R168: 5.401388113
B171: Nøgletal 4: Anbragte i netværksplejefamilie
B173: Tabel 4: Anbragte i netværksplejefamilie
B174: Nøgletal 4: Anbragte i netværksplejefamilie | D174: 2016-01-01 | E174: 2016-07-01 | F174: 2017-01-01 | G174: 2017-07-01 | H174: 2018-01-01 | I174: 2018-07-01 | J174: 2019-01-01 | K174: 2019-07-01 | L174: 2020-01-01 | M174: 2020-07-01 | N174: 2021-01-01 | O174: 2021-07-01 | P174: 2022-01-01 | Q174: 2022-07-01 | R174: 2023-01-01
B175: =IF(Kommune="","Kommune",Kommune) -> København
B176: Antal anbragte | D176: =IFERROR(IF(INDEX(Data_kom2,MATCH(1,(komnavn2=Kommune)*(komaar2=D174),0),13)="*","*",INDEX(Data_kom2,MATCH(1,(komnavn2=Kommune)*(komaar2=D174),0),13)),"Data ikke tilføjet") -> 105 | E176: =IFERROR(IF(INDEX(Data_kom2,MATCH(1,(komnavn2=Kommune)*(komaar2=E174),0),13)="*","*",INDEX(Data_kom2,MATCH(1,(komnavn2=Kommune)*(komaar2=E174),0),13)),"Data ikke tilføjet") -> 101 | F176: =IFERROR(IF(INDEX(Data_kom2,MATCH(1,(komnavn2=Kommune)*(komaar2=F174),0),13)="*","*",INDEX(Data_kom2,MATCH(1,(komnavn2=Kommune)*(komaar2=F174),0),13)),"Data ikke tilføjet") -> 105 | G176: =IFERROR(IF(INDEX(Data_kom2,MATCH(1,(komnavn2=Kommune)*(komaar2=G174),0),13)="*","*",INDEX(Data_kom2,MATCH(1,(komnavn2=Kommune)*(komaar2=G174),0),13)),"Data ikke tilføjet") -> 112 | H176: =IFERROR(IF(INDEX(Data_kom2,MATCH(1,(komnavn2=Kommune)*(komaar2=H174),0),13)="*","*",INDEX(Data_kom2,MATCH(1,(komnavn2=Kommune)*(komaar2=H174),0),13)),"Data ikke tilføjet") -> 110 | I176: =IFERROR(IF(INDEX(Data_kom2,MATCH(1,(komnavn2=Kommune)*(komaar2=I174),0),13)="*","*",INDEX(Data_kom2,MATCH(1,(komnavn2=Kommune)*(komaar2=I174),0),13)),"Data ikke tilføjet") -> 107 | J176: =IFERROR(IF(INDEX(Data_kom2,MATCH(1,(komnavn2=Kommune)*(komaar2=J174),0),13)="*","*",INDEX(Data_kom2,MATCH(1,(komnavn2=Kommune)*(komaar2=J174),0),13)),"Data ikke tilføjet") -> 112 | K176: =IFERROR(IF(INDEX(Data_kom2,MATCH(1,(komnavn2=Kommune)*(komaar2=K174),0),13)="*","*",INDEX(Data_kom2,MATCH(1,(komnavn2=Kommune)*(komaar2=K174),0),13)),"Data ikke tilføjet") -> 107 | L176: =IFERROR(IF(INDEX(Data_kom2,MATCH(1,(komnavn2=Kommune)*(komaar2=L174),0),13)="*","*",INDEX(Data_kom2,MATCH(1,(komnavn2=Kommune)*(komaar2=L174),0),13)),"Data ikke tilføjet") -> 108 | M176: =IFERROR(IF(INDEX(Data_kom2,MATCH(1,(komnavn2=Kommune)*(komaar2=M174),0),13)="*","*",INDEX(Data_kom2,MATCH(1,(komnavn2=Kommune)*(komaar2=M174),0),13)),"Data ikke tilføjet") -> 108 | N176: =IFERROR(IF(INDEX(Data_kom2,MATCH(1,(komnavn2=Kommune)*(komaar2=N174),0),13)="*","*",INDEX(Data_kom2,MATCH(1,(komnavn2=Kommune)*(komaar2=N174),0),13)),"Data ikke tilføjet") -> 115 | O176: =IFERROR(IF(INDEX(Data_kom2,MATCH(1,(komnavn2=Kommune)*(komaar2=O174),0),13)="*","*",INDEX(Data_kom2,MATCH(1,(komnavn2=Kommune)*(komaar2=O174),0),13)),"Data ikke tilføjet") -> 113 | P176: =IFERROR(IF(INDEX(Data_kom2,MATCH(1,(komnavn2=Kommune)*(komaar2=P174),0),13)="*","*",INDEX(Data_kom2,MATCH(1,(komnavn2=Kommune)*(komaar2=P174),0),13)),"Data ikke tilføjet") -> 113 | Q176: =IFERROR(IF(INDEX(Data_kom2,MATCH(1,(komnavn2=Kommune)*(komaar2=Q174),0),13)="*","*",INDEX(Data_kom2,MATCH(1,(komnavn2=Kommune)*(komaar2=Q174),0),13)),"Data ikke tilføjet") -> 112 | R176: =IFERROR(IF(INDEX(Data_kom2,MATCH(1,(komnavn2=Kommune)*(komaar2=R174),0),13)="*","*",INDEX(Data_kom2,MATCH(1,(komnavn2=Kommune)*(komaar2=R174),0),13)),"Data ikke tilføjet") -> 114
B177: Antal 0-17-årige | D177: =IFERROR(INDEX(Data_kom2,MATCH(1,(komnavn2=Kommune)*(komaar2=D174),0),2),"Data ikke tilføjet") -> 103578 | E177: =IFERROR(INDEX(Data_kom2,MATCH(1,(komnavn2=Kommune)*(komaar2=E174),0),2),"Data ikke tilføjet") -> 104797 | F177: =IFERROR(INDEX(Data_kom2,MATCH(1,(komnavn2=Kommune)*(komaar2=F174),0),2),"Data ikke tilføjet") -> 105885 | G177: =IFERROR(INDEX(Data_kom2,MATCH(1,(komnavn2=Kommune)*(komaar2=G174),0),2),"Data ikke tilføjet") -> 106913 | H177: =IFERROR(INDEX(Data_kom2,MATCH(1,(komnavn2=Kommune)*(komaar2=H174),0),2),"Data ikke tilføjet") -> 107770 | I177: =IFERROR(INDEX(Data_kom2,MATCH(1,(komnavn2=Kommune)*(komaar2=I174),0),2),"Data ikke tilføjet") -> 108734 | J177: =IFERROR(INDEX(Data_kom2,MATCH(1,(komnavn2=Kommune)*(komaar2=J174),0),2),"Data ikke tilføjet") -> 109335 | K177: =IFERROR(INDEX(Data_kom2,MATCH(1,(komnavn2=Kommune)*(komaar2=K174),0),2),"Data ikke tilføjet") -> 110138 | L177: =IFERROR(INDEX(Data_kom2,MATCH(1,(komnavn2=Kommune)*(komaar2=L174),0),2),"Data ikke tilføjet") -> 110822 | M177: =IFERROR(INDEX(Data_kom2,MATCH(1,(komnavn2=Kommune)*(komaar2=M174),0),2),"Data ikke tilføjet") -> 111068 | N177: =IFERROR(INDEX(Data_kom2,MATCH(1,(komnavn2=Kommune)*(komaar2=N174),0),2),"Data ikke tilføjet") -> 110927 | O177: =IFERROR(INDEX(Data_kom2,MATCH(1,(komnavn2=Kommune)*(komaar2=O174),0),2),"Data ikke tilføjet") -> 110614 | P177: =IFERROR(INDEX(Data_kom2,MATCH(1,(komnavn2=Kommune)*(komaar2=P174),0),2),"Data ikke tilføjet") -> 110513 | Q177: =IFERROR(INDEX(Data_kom2,MATCH(1,(komnavn2=Kommune)*(komaar2=Q174),0),2),"Data ikke tilføjet") -> 110692 | R177: =IFERROR(INDEX(Data_kom2,MATCH(1,(komnavn2=Kommune)*(komaar2=R174),0),2),"Data ikke tilføjet") -> 110835
B178: Andel | D178: =IFERROR(IF(D176="*","*",IF(D177=0,"#I/T",(D176/D177*1000))),"Data ikke tilføjet") -> 1.013728784 | E178: 0.9637680468 | F178: 0.9916418756 | G178: 1.047580743 | H178: 1.020692215 | I178: 0.9840528262 | J178: 1.024374628 | K178: 0.9715084712 | L178: 0.974535742 | M178: =IFERROR(IF(M176="*","*",IF(M177=0,"#I/T",(M176/M177*1000))),"Data ikke tilføjet") -> 0.9723772824 | N178: 1.036717841 | O178: 1.021570506 | P178: 1.02250414 | Q178: 1.011816572 | R178: 1.028555962
B179: Sammenligningsgruppe, gns.
B180: Antal anbragte | D180: =IF('Dine valg'!$G$24="","-",SUMIF(Hjælpefane!$D$7:$D$111,"="&D$9,Hjælpefane!$N$7:$N$111)) -> 37 | E180: =IF('Dine valg'!$G$24="","-",SUMIF(Hjælpefane!$D$7:$D$111,"="&E$9,Hjælpefane!$N$7:$N$111)) -> 38 | F180: =IF('Dine valg'!$G$24="","-",SUMIF(Hjælpefane!$D$7:$D$111,"="&F$9,Hjælpefane!$N$7:$N$111)) -> 42 | G180: =IF('Dine valg'!$G$24="","-",SUMIF(Hjælpefane!$D$7:$D$111,"="&G$9,Hjælpefane!$N$7:$N$111)) -> 37 | H180: =IF('Dine valg'!$G$24="","-",SUMIF(Hjælpefane!$D$7:$D$111,"="&H$9,Hjælpefane!$N$7:$N$111)) -> 33 | I180: =IF('Dine valg'!$G$24="","-",SUMIF(Hjælpefane!$D$7:$D$111,"="&I$9,Hjælpefane!$N$7:$N$111)) -> 27 | J180: =IF('Dine valg'!$G$24="","-",SUMIF(Hjælpefane!$D$7:$D$111,"="&J$9,Hjælpefane!$N$7:$N$111)) -> 25 | K180: =IF('Dine valg'!$G$24="","-",SUMIF(Hjælpefane!$D$7:$D$111,"="&K$9,Hjælpefane!$N$7:$N$111)) -> 24 | L180: =IF('Dine valg'!$G$24="","-",SUMIF(Hjælpefane!$D$7:$D$111,"="&L$9,Hjælpefane!$N$7:$N$111)) -> 22 | M180: =IF('Dine valg'!$G$24="","-",SUMIF(Hjælpefane!$D$7:$D$111,"="&M$9,Hjælpefane!$N$7:$N$111)) -> 24 | N180: =IF('Dine valg'!$G$24="","-",SUMIF(Hjælpefane!$D$7:$D$111,"="&N$9,Hjælpefane!$N$7:$N$111)) -> 26 | O180: =IF('Dine valg'!$G$24="","-",SUMIF(Hjælpefane!$D$7:$D$111,"="&O$9,Hjælpefane!$N$7:$N$111)) -> 25 | P180: =IF('Dine valg'!$G$24="","-",SUMIF(Hjælpefane!$D$7:$D$111,"="&P$9,Hjælpefane!$N$7:$N$111)) -> 22 | Q180: =IF('Dine valg'!$G$24="","-",SUMIF(Hjælpefane!$D$7:$D$111,"="&Q$9,Hjælpefane!$N$7:$N$111)) -> 22 | R180: =IF('Dine valg'!$G$24="","-",SUMIF(Hjælpefane!$D$7:$D$111,"="&R$9,Hjælpefane!$N$7:$N$111)) -> 25
B181: Antal 0-17-årige | D181: =IF('Dine valg'!$G$24="","-",SUMIF(Hjælpefane!$D$7:$D$111,"="&D$9,Hjælpefane!$C$7:$C$111)) -> 62241 | E181: =IF('Dine valg'!$G$24="","-",SUMIF(Hjælpefane!$D$7:$D$111,"="&E$9,Hjælpefane!$C$7:$C$111)) -> 62670 | F181: =IF('Dine valg'!$G$24="","-",SUMIF(Hjælpefane!$D$7:$D$111,"="&F$9,Hjælpefane!$C$7:$C$111)) -> 62903 | G181: =IF('Dine valg'!$G$24="","-",SUMIF(Hjælpefane!$D$7:$D$111,"="&G$9,Hjælpefane!$C$7:$C$111)) -> 63077 | H181: =IF('Dine valg'!$G$24="","-",SUMIF(Hjælpefane!$D$7:$D$111,"="&H$9,Hjælpefane!$C$7:$C$111)) -> 63245 | I181: =IF('Dine valg'!$G$24="","-",SUMIF(Hjælpefane!$D$7:$D$111,"="&I$9,Hjælpefane!$C$7:$C$111)) -> 63510 | J181: =IF('Dine valg'!$G$24="","-",SUMIF(Hjælpefane!$D$7:$D$111,"="&J$9,Hjælpefane!$C$7:$C$111)) -> 63607 | K181: =IF('Dine valg'!$G$24="","-",SUMIF(Hjælpefane!$D$7:$D$111,"="&K$9,Hjælpefane!$C$7:$C$111)) -> 63704 | L181: =IF('Dine valg'!$G$24="","-",SUMIF(Hjælpefane!$D$7:$D$111,"="&L$9,Hjælpefane!$C$7:$C$111)) -> 63890 | M181: =IF('Dine valg'!$G$24="","-",SUMIF(Hjælpefane!$D$7:$D$111,"="&M$9,Hjælpefane!$C$7:$C$111)) -> 64128 | N181: =IF('Dine valg'!$G$24="","-",SUMIF(Hjælpefane!$D$7:$D$111,"="&N$9,Hjælpefane!$C$7:$C$111)) -> 64334 | O181: =IF('Dine valg'!$G$24="","-",SUMIF(Hjælpefane!$D$7:$D$111,"="&O$9,Hjælpefane!$C$7:$C$111)) -> 64307 | P181: =IF('Dine valg'!$G$24="","-",SUMIF(Hjælpefane!$D$7:$D$111,"="&P$9,Hjælpefane!$C$7:$C$111)) -> 64049 | Q181: =IF('Dine valg'!$G$24="","-",SUMIF(Hjælpefane!$D$7:$D$111,"="&Q$9,Hjælpefane!$C$7:$C$111)) -> 64356 | R181: =IF('Dine valg'!$G$24="","-",SUMIF(Hjælpefane!$D$7:$D$111,"="&R$9,Hjælpefane!$C$7:$C$111)) -> 64420
B182: Andel | D182: =IFERROR(IF(D180="*","*",IF(D181="","Indtast data",(D180/D181*1000))),"-") -> 0.5944634566 | E182: =IFERROR(IF(E180="*","*",IF(E181="","Indtast data",(E180/E181*1000))),"-") -> 0.606350726 | F182: =IFERROR(IF(F180="*","*",IF(F181="","Indtast data",(F180/F181*1000))),"-") -> 0.6676947045 | G182: =IFERROR(IF(G180="*","*",IF(G181="","Indtast data",(G180/G181*1000))),"-") -> 0.5865846505 | H182: =IFERROR(IF(H180="*","*",IF(H181="","Indtast data",(H180/H181*1000))),"-") -> 0.5217803779 | I182: =IFERROR(IF(I180="*","*",IF(I181="","Indtast data",(I180/I181*1000))),"-") -> 0.4251299008 | J182: =IFERROR(IF(J180="*","*",IF(J181="","Indtast data",(J180/J181*1000))),"-") -> 0.3930385021 | K182: =IFERROR(IF(K180="*","*",IF(K181="","Indtast data",(K180/K181*1000))),"-") -> 0.3767424338 | L182: =IFERROR(IF(L180="*","*",IF(L181="","Indtast data",(L180/L181*1000))),"-") -> 0.3443418375 | M182: 0.374251497 | N182: 0.4041408897 | O182: 0.3887601661 | P182: 0.3434870178 | Q182: 0.3418484679 | R182: 0.3880782366
B183: Hele landet
B184: Antal anbragte | D184: =INDEX(Data_land,MATCH(Skyggetabeller!D174,Data!landaar,0),13) -> 942 | E184: =INDEX(Data_land,MATCH(Skyggetabeller!E174,Data!landaar,0),13) -> 959 | F184: =INDEX(Data_land,MATCH(Skyggetabeller!F174,Data!landaar,0),13) -> 954 | G184: =INDEX(Data_land,MATCH(Skyggetabeller!G174,Data!landaar,0),13) -> 999 | H184: =INDEX(Data_land,MATCH(Skyggetabeller!H174,Data!landaar,0),13) -> 961 | I184: =INDEX(Data_land,MATCH(Skyggetabeller!I174,Data!landaar,0),13) -> 943 | J184: =INDEX(Data_land,MATCH(Skyggetabeller!J174,Data!landaar,0),13) -> 942 | K184: =INDEX(Data_land,MATCH(Skyggetabeller!K174,Data!landaar,0),13) -> 917 | L184: =INDEX(Data_land,MATCH(Skyggetabeller!L174,Data!landaar,0),13) -> 899 | M184: =INDEX(Data_land,MATCH(Skyggetabeller!M174,Data!landaar,0),13) -> 919 | N184: =INDEX(Data_land,MATCH(Skyggetabeller!N174,Data!landaar,0),13) -> 943 | O184: =INDEX(Data_land,MATCH(Skyggetabeller!O174,Data!landaar,0),13) -> 946 | P184: =INDEX(Data_land,MATCH(Skyggetabeller!P174,Data!landaar,0),13) -> 929 | Q184: =INDEX(Data_land,MATCH(Skyggetabeller!Q174,Data!landaar,0),13) -> 947 | R184: =INDEX(Data_land,MATCH(Skyggetabeller!R174,Data!landaar,0),13) -> 978
B185: Antal 0-17-årige | D185: =INDEX(Data_land,MATCH(Skyggetabeller!D174,Data!landaar,0),2) -> 1167426 | E185: =INDEX(Data_land,MATCH(Skyggetabeller!E174,Data!landaar,0),2) -> 1167002 | F185: =INDEX(Data_land,MATCH(Skyggetabeller!F174,Data!landaar,0),2) -> 1168201 | G185: =INDEX(Data_land,MATCH(Skyggetabeller!G174,Data!landaar,0),2) -> 1165363 | H185: =INDEX(Data_land,MATCH(Skyggetabeller!H174,Data!landaar,0),2) -> 1165475 | I185: =INDEX(Data_land,MATCH(Skyggetabeller!I174,Data!landaar,0),2) -> 1162195 | J185: =INDEX(Data_land,MATCH(Skyggetabeller!J174,Data!landaar,0),2) -> 1160360 | K185: =INDEX(Data_land,MATCH(Skyggetabeller!K174,Data!landaar,0),2) -> 1156537 | L185: =INDEX(Data_land,MATCH(Skyggetabeller!L174,Data!landaar,0),2) -> 1156116 | M185: =INDEX(Data_land,MATCH(Skyggetabeller!M174,Data!landaar,0),2) -> 1153027 | N185: =INDEX(Data_land,MATCH(Skyggetabeller!N174,Data!landaar,0),2) -> 1152972 | O185: =INDEX(Data_land,MATCH(Skyggetabeller!O174,Data!landaar,0),2) -> 1151374 | P185: =INDEX(Data_land,MATCH(Skyggetabeller!P174,Data!landaar,0),2) -> 1151704 | Q185: =INDEX(Data_land,MATCH(Skyggetabeller!Q174,Data!landaar,0),2) -> 1157254 | R185: =INDEX(Data_land,MATCH(Skyggetabeller!R174,Data!landaar,0),2) -> 1155814
B186: Andel | D186: =IFERROR(IF(D184="*","*",IF(D185=0,"#I/T",(D184/D185*1000))),"Data ikke tilføjet") -> 0.8069033926 | E186: 0.8217638016 | F186: 0.8166402871 | G186: 0.8572436228 | H186: 0.8245565113 | I186: 0.811395678 | J186: 0.8118170223 | K186: 0.7928842743 | L186: 0.7776036315 | M186: =IFERROR(IF(M184="*","*",IF(M185=0,"#I/T",(M184/M185*1000))),"Data ikke tilføjet") -> 0.7970325066 | N186: 0.8178862973 | O186: 0.82162703 | P186: 0.8066308704 | Q186: 0.8183164629 | R186: 0.8461569076
B189: Nøgletal 5: Hjemmebaserede foranstaltninger
B191: Tabel 5: Modtagere af hjemmebaserede foranstaltninger
B192: Nøgletal 5: Modtagere af hjemmebaserede foranstaltninger | D192: 2016-01-01 | E192: 2016-07-01 | F192: 2017-01-01 | G192: 2017-07-01 | H192: 2018-01-01 | I192: 2018-07-01 | J192: 2019-01-01 | K192: 2019-07-01 | L192: 2020-01-01 | M192: 2020-07-01 | N192: 2021-01-01 | O192: 2021-07-01 | P192: 2022-01-01 | Q192: 2022-07-01 | R192: 2023-01-01
B193: =IF(Kommune="","Kommune",Kommune) -> København
B194: Antal modtagere | D194: =IFERROR(IF(INDEX(Data_kom2,MATCH(1,(komnavn2=Kommune)*(komaar2=D192),0),14)="*","*",INDEX(Data_kom2,MATCH(1,(komnavn2=Kommune)*(komaar2=D192),0),14)),"Data ikke tilføjet") -> 1985 | E194: =IFERROR(IF(INDEX(Data_kom2,MATCH(1,(komnavn2=Kommune)*(komaar2=E192),0),14)="*","*",INDEX(Data_kom2,MATCH(1,(komnavn2=Kommune)*(komaar2=E192),0),14)),"Data ikke tilføjet") -> 2101 | F194: =IFERROR(IF(INDEX(Data_kom2,MATCH(1,(komnavn2=Kommune)*(komaar2=F192),0),14)="*","*",INDEX(Data_kom2,MATCH(1,(komnavn2=Kommune)*(komaar2=F192),0),14)),"Data ikke tilføjet") -> 2146 | G194: =IFERROR(IF(INDEX(Data_kom2,MATCH(1,(komnavn2=Kommune)*(komaar2=G192),0),14)="*","*",INDEX(Data_kom2,MATCH(1,(komnavn2=Kommune)*(komaar2=G192),0),14)),"Data ikke tilføjet") -> 2233 | H194: =IFERROR(IF(INDEX(Data_kom2,MATCH(1,(komnavn2=Kommune)*(komaar2=H192),0),14)="*","*",INDEX(Data_kom2,MATCH(1,(komnavn2=Kommune)*(komaar2=H192),0),14)),"Data ikke tilføjet") -> 2324 | I194: =IFERROR(IF(INDEX(Data_kom2,MATCH(1,(komnavn2=Kommune)*(komaar2=I192),0),14)="*","*",INDEX(Data_kom2,MATCH(1,(komnavn2=Kommune)*(komaar2=I192),0),14)),"Data ikke tilføjet") -> 2384 | J194: =IFERROR(IF(INDEX(Data_kom2,MATCH(1,(komnavn2=Kommune)*(komaar2=J192),0),14)="*","*",INDEX(Data_kom2,MATCH(1,(komnavn2=Kommune)*(komaar2=J192),0),14)),"Data ikke tilføjet") -> 2355 | K194: =IFERROR(IF(INDEX(Data_kom2,MATCH(1,(komnavn2=Kommune)*(komaar2=K192),0),14)="*","*",INDEX(Data_kom2,MATCH(1,(komnavn2=Kommune)*(komaar2=K192),0),14)),"Data ikke tilføjet") -> 2239 | L194: =IFERROR(IF(INDEX(Data_kom2,MATCH(1,(komnavn2=Kommune)*(komaar2=L192),0),14)="*","*",INDEX(Data_kom2,MATCH(1,(komnavn2=Kommune)*(komaar2=L192),0),14)),"Data ikke tilføjet") -> 2155 | M194: =IFERROR(IF(INDEX(Data_kom2,MATCH(1,(komnavn2=Kommune)*(komaar2=M192),0),14)="*","*",INDEX(Data_kom2,MATCH(1,(komnavn2=Kommune)*(komaar2=M192),0),14)),"Data ikke tilføjet") -> 2139 | N194: =IFERROR(IF(INDEX(Data_kom2,MATCH(1,(komnavn2=Kommune)*(komaar2=N192),0),14)="*","*",INDEX(Data_kom2,MATCH(1,(komnavn2=Kommune)*(komaar2=N192),0),14)),"Data ikke tilføjet") -> 2042 | O194: =IFERROR(IF(INDEX(Data_kom2,MATCH(1,(komnavn2=Kommune)*(komaar2=O192),0),14)="*","*",INDEX(Data_kom2,MATCH(1,(komnavn2=Kommune)*(komaar2=O192),0),14)),"Data ikke tilføjet") -> 2302 | P194: =IFERROR(IF(INDEX(Data_kom2,MATCH(1,(komnavn2=Kommune)*(komaar2=P192),0),14)="*","*",INDEX(Data_kom2,MATCH(1,(komnavn2=Kommune)*(komaar2=P192),0),14)),"Data ikke tilføjet") -> 2307 | Q194: =IFERROR(IF(INDEX(Data_kom2,MATCH(1,(komnavn2=Kommune)*(komaar2=Q192),0),14)="*","*",INDEX(Data_kom2,MATCH(1,(komnavn2=Kommune)*(komaar2=Q192),0),14)),"Data ikke tilføjet") -> 2419 | R194: =IFERROR(IF(INDEX(Data_kom2,MATCH(1,(komnavn2=Kommune)*(komaar2=R192),0),14)="*","*",INDEX(Data_kom2,MATCH(1,(komnavn2=Kommune)*(komaar2=R192),0),14)),"Data ikke tilføjet") -> 2424
B195: Antal 0-17-årige | D195: =IFERROR(INDEX(Data_kom2,MATCH(1,(komnavn2=Kommune)*(komaar2=D192),0),2),"Data ikke tilføjet") -> 103578 | E195: =IFERROR(INDEX(Data_kom2,MATCH(1,(komnavn2=Kommune)*(komaar2=E192),0),2),"Data ikke tilføjet") -> 104797 | F195: =IFERROR(INDEX(Data_kom2,MATCH(1,(komnavn2=Kommune)*(komaar2=F192),0),2),"Data ikke tilføjet") -> 105885 | G195: =IFERROR(INDEX(Data_kom2,MATCH(1,(komnavn2=Kommune)*(komaar2=G192),0),2),"Data ikke tilføjet") -> 106913 | H195: =IFERROR(INDEX(Data_kom2,MATCH(1,(komnavn2=Kommune)*(komaar2=H192),0),2),"Data ikke tilføjet") -> 107770 | I195: =IFERROR(INDEX(Data_kom2,MATCH(1,(komnavn2=Kommune)*(komaar2=I192),0),2),"Data ikke tilføjet") -> 108734 | J195: =IFERROR(INDEX(Data_kom2,MATCH(1,(komnavn2=Kommune)*(komaar2=J192),0),2),"Data ikke tilføjet") -> 109335 | K195: =IFERROR(INDEX(Data_kom2,MATCH(1,(komnavn2=Kommune)*(komaar2=K192),0),2),"Data ikke tilføjet") -> 110138 | L195: =IFERROR(INDEX(Data_kom2,MATCH(1,(komnavn2=Kommune)*(komaar2=L192),0),2),"Data ikke tilføjet") -> 110822 | M195: =IFERROR(INDEX(Data_kom2,MATCH(1,(komnavn2=Kommune)*(komaar2=M192),0),2),"Data ikke tilføjet") -> 111068 | N195: =IFERROR(INDEX(Data_kom2,MATCH(1,(komnavn2=Kommune)*(komaar2=N192),0),2),"Data ikke tilføjet") -> 110927 | O195: =IFERROR(INDEX(Data_kom2,MATCH(1,(komnavn2=Kommune)*(komaar2=O192),0),2),"Data ikke tilføjet") -> 110614 | P195: =IFERROR(INDEX(Data_kom2,MATCH(1,(komnavn2=Kommune)*(komaar2=P192),0),2),"Data ikke tilføjet") -> 110513 | Q195: =IFERROR(INDEX(Data_kom2,MATCH(1,(komnavn2=Kommune)*(komaar2=Q192),0),2),"Data ikke tilføjet") -> 110692 | R195: =IFERROR(INDEX(Data_kom2,MATCH(1,(komnavn2=Kommune)*(komaar2=R192),0),2),"Data ikke tilføjet") -> 110835
B196: Andel | D196: =IFERROR(IF(D194="*","*",IF(D195=0,"#I/T",(D194/D195*1000))),"Data ikke tilføjet") -> 19.1643013 | E196: 20.04828382 | F196: 20.2672711 | G196: 20.88614107 | H196: 21.56444279 | I196: 21.92506484 | J196: 21.5393058 | K196: 20.32904175 | L196: 19.44559744 | M196: =IFERROR(IF(M194="*","*",IF(M195=0,"#I/T",(M194/M195*1000))),"Data ikke tilføjet") -> 19.25847229 | N196: 18.40850289 | O196: 20.8111089 | P196: 20.87537213 | Q196: 21.85343114 | R196: 21.87034781
B197: Sammenligningsgruppe, gns.
